Workbook

Sheet Cover
A2: RIIO-2 Price Control Financial Model (PCFM)
B3: Electricity Transmission
C4: Model Version | G4: =MID(CELL("filename"),SEARCH("[",CELL("filename"))+1,SEARCH("]",CELL("filename"))-SEARCH("[",CELL("filename"))-1) -> ET2 PCFM November 2021.xlsm
B7: Model key
E9: Sample | G9: Calculated value | I9: Sample | K9: Information and interface
E10: Sample | G10: Import | I10: Sample | K10: Fixed input value
E11: Sample | G11: Export | I11: Sample | K11: Ofgem annual update input (outturn value)
E12: Sample | G12: Named range | I12: Sample | K12: Ofgem annual update input (forecasted value)
E13: Sample | G13: Formula change in cells to the right | I13: Sample | K13: Other annual update input (outturn value)
I14: Sample | K14: Other annual update input (forecasted value)
I15: Sample | K15: Input linked from annual update
I16: Sample | K16: Notes and instructions
I17: Sample | K17: Check
B19: Contents
E21: INTERFACE > | I21: GENERAL INPUT SHEETS >
E22: Cover | G22: Model key and content directory | I22: Annual Inflation | K22: Derivation of annual inflation rates and price indices
E23: UserInterface | G23: Model operation | I23: Monthly Inflation | K23: Dataset and derivation of monthly inflation rates and price indices
E25: INPUT SELECTION > | I25: COMPANY SPECIFIC INPUT SHEETS >
E26: Input | G26: Inputs for selected licensee | I26: SHET | K26: Inputs for SHE-Transmission PLC TO
I27: SPTL | K27: Inputs for SPTL TO
E28: CALCULATION > | I28: NGET | K28: Inputs for NGET TO
E29: Totex | G29: Totex allowance and actuals
E30: TIM | G30: Totex Incentive Mechanism and capitalisation
E31: Depn | G31: Electricity transmission regulatory depreciation
E32: Return&RAV | G32: RAV and return calculations
E33: TaxPools | G33: Tax pools and capital allowances
E34: Finance&Tax | G34: Net debt, equity issuance, financing costs and tax
E35: NonCore | G35: Calculations for non-core regulatory assets (TIRG)
E36: ReturnAdj | G36: Calculations for the Return Adjustment
E37: Revenue | G37: Summary of calculated revenue
E38: AR | G38: Derivation of allowed revenue
E40: OUTPUT >
E41: LiveResults | G41: Results for selected company
E42: SavedResults | G42: Saved results for all companies
B44: End of sheet

Sheet UserInterface
A1: User Interface
B3: Model operation
C5: PCFM year t
C6: Instruction: Use the following drop-down list to identify year t in the model. Year t is identified here by its end date.
E8: Year t selection:
E10: Year t selected: | G10: =INDEX($G$37:$G$43, m_PCFM_year_t) -> 2023-03-31
C12: Active company
C13: Instruction: Use the following drop-down list to select the active company in the model.
E15: Company selection:
E17: Selected company: | G17: =INDEX(E37:E39, E40) -> SHET
C19: Run model for all licensees
C20: Instruction: Click on the left button to save results for the selected company only. Click the right button to save results for all.
C21: Note: Annual iterations must have been completed for all prior years before running the model to generate MOD.
C22: The macros save results and values required for future years which cannot be recreated once inputs are revised.
C23: Running the macro saves the output from year t's iteration for use in future iterations.
C24: Results for the selected company can be found on the "LiveResults" sheet and also on the "SavedResults" sheet once saved by a macro.
B30: User selection lists
B31: Note: The lists below drive the drop-down lists above.
B32: Using the drop-down lists above returns an integer in the "cell link" positioned below their "source list."
B33: The number returned in the cell link corresponds to the position of the selected item in the source list.
B34: The company selection output is set as a "named range." This gives a stable anchor point for the "RunForAll" macro to change the company.
E36: ="Source for ''"&C12&"'' drop-down list" -> Source for ''Active company'' drop-down list | G36: ="Source for ''"&C5&"'' drop-down list" -> Source for ''PCFM year t'' drop-down list
E37: SHET | G37: 2022-03-31
E38: SPTL | G38: 2023-03-31
E39: NGET | G39: 2024-03-31
E40: 1 | G40: 2025-03-31
E41: Adjacent named range: m_identity | G41: 2026-03-31
G42: 2027-03-31
G43: 2028-03-31
G44: 2
G45: Adjacent named range: m_PCFM_year_t
B47: End of sheet
E51: 0

Sheet Input
A1: Input
B2: =UserInterface!G17 -> SHET | G2: Price shock:
E3: Parameter | F3: Licence condition | G3: Units | H3: Term | I3: Constant | AP3: Annual values | BC3: TIM/ Non-TIM | BD3: RPE Incl. or Excl. | BE3: Baseline/UM | BF3: Fast/slow split or 100% fast money award
E4: PCFM year ending | F4: =Cover!C4 -> Model Version | I4: =UserInterface!$G$10 -> 2023-03-31 | K4: 1991-03-31 | L4: 1992-03-31 | M4: 1993-03-31 | N4: 1994-03-31 | O4: 1995-03-31 | P4: 1996-03-31 | Q4: 1997-03-31 | R4: 1998-03-31 | S4: 1999-03-31 | T4: 2000-03-31 | U4: 2001-03-31 | V4: 2002-03-31 | W4: 2003-03-31 | X4: 2004-03-31 | Y4: 2005-03-31 | Z4: 2006-03-31 | AA4: 2007-03-31 | AB4: 2008-03-31 | AC4: 2009-03-31 | AD4: 2010-03-31 | AE4: 2011-03-31 | AF4: 2012-03-31 | AG4: 2013-03-31 | AH4: 2014-03-31 | AI4: 2015-03-31 | AJ4: 2016-03-31 | AK4: 2017-03-31 | AL4: 2018-03-31 | AM4: 2019-03-31 | AN4: 2020-03-31 | AO4: 2021-03-31 | AP4: 2022-03-31 | AQ4: 2023-03-31 | AR4: 2024-03-31 | AS4: 2025-03-31 | AT4: 2026-03-31
B6: Totex allowance
C8: Non-variant allowances
C9: Note: Disposals net sales proceeds are deducted from non-variant "other capex".
E11: Non-variant allowed load related capex expenditure | G11: £m 18/19 prices | AP11: =(CHOOSE(m_identity,SHET!AP10, SPTL!AP10, NGET!AP10)) -> -2.842170943e-14 | AQ11: =(CHOOSE(m_identity,SHET!AQ10, SPTL!AQ10, NGET!AQ10)) -> 0 | AR11: =(CHOOSE(m_identity,SHET!AR10, SPTL!AR10, NGET!AR10)) -> 2.078263847 | AS11: =(CHOOSE(m_identity,SHET!AS10, SPTL!AS10, NGET!AS10)) -> 2.054363813 | AT11: =(CHOOSE(m_identity,SHET!AT10, SPTL!AT10, NGET!AT10)) -> 2.030738629
E12: Non-variant allowed asset replacement capex expenditure | G12: £m 18/19 prices | AP12: =(CHOOSE(m_identity,SHET!AP11, SPTL!AP11, NGET!AP11)) -> 6.472002719 | AQ12: =(CHOOSE(m_identity,SHET!AQ11, SPTL!AQ11, NGET!AQ11)) -> 4.467996506 | AR12: =(CHOOSE(m_identity,SHET!AR11, SPTL!AR11, NGET!AR11)) -> 19.56207715 | AS12: =(CHOOSE(m_identity,SHET!AS11, SPTL!AS11, NGET!AS11)) -> 13.30615178 | AT12: =(CHOOSE(m_identity,SHET!AT11, SPTL!AT11, NGET!AT11)) -> 3.973492235
E13: Non-variant allowed other capex expenditure (net of disposals) | G13: £m 18/19 prices | AP13: =- AP711 + CHOOSE(m_identity,SHET!AP12, SPTL!AP12, NGET!AP12) -> 12.13692679 | AQ13: =- AQ711 + CHOOSE(m_identity,SHET!AQ12, SPTL!AQ12, NGET!AQ12) -> 5.221663221 | AR13: =- AR711 + CHOOSE(m_identity,SHET!AR12, SPTL!AR12, NGET!AR12) -> 5.170436746 | AS13: =- AS711 + CHOOSE(m_identity,SHET!AS12, SPTL!AS12, NGET!AS12) -> 3.707923061 | AT13: =- AT711 + CHOOSE(m_identity,SHET!AT12, SPTL!AT12, NGET!AT12) -> 3.610418982
E14: Non-variant allowed network operating costs (opex) | G14: £m 18/19 prices | AP14: =(CHOOSE(m_identity,SHET!AP13, SPTL!AP13, NGET!AP13)) -> 15.7330012 | AQ14: =(CHOOSE(m_identity,SHET!AQ13, SPTL!AQ13, NGET!AQ13)) -> 25.45176986 | AR14: =(CHOOSE(m_identity,SHET!AR13, SPTL!AR13, NGET!AR13)) -> 24.98348738 | AS14: =(CHOOSE(m_identity,SHET!AS13, SPTL!AS13, NGET!AS13)) -> 27.96084419 | AT14: =(CHOOSE(m_identity,SHET!AT13, SPTL!AT13, NGET!AT13)) -> 13.71526963
E15: Non-variant allowed indirects (opex) | G15: £m 18/19 prices | AP15: =(CHOOSE(m_identity,SHET!AP14, SPTL!AP14, NGET!AP14)) -> 33.58688314 | AQ15: =(CHOOSE(m_identity,SHET!AQ14, SPTL!AQ14, NGET!AQ14)) -> 24.5260514 | AR15: =(CHOOSE(m_identity,SHET!AR14, SPTL!AR14, NGET!AR14)) -> 33.52300352 | AS15: =(CHOOSE(m_identity,SHET!AS14, SPTL!AS14, NGET!AS14)) -> 31.33544408 | AT15: =(CHOOSE(m_identity,SHET!AT14, SPTL!AT14, NGET!AT14)) -> 42.51070241
E16: Non-variant allowed non-operational capex | G16: £m 18/19 prices | AP16: =(CHOOSE(m_identity,SHET!AP15, SPTL!AP15, NGET!AP15)) -> 8.16088443 | AQ16: =(CHOOSE(m_identity,SHET!AQ15, SPTL!AQ15, NGET!AQ15)) -> 17.26830219 | AR16: =(CHOOSE(m_identity,SHET!AR15, SPTL!AR15, NGET!AR15)) -> 14.67827527 | AS16: =(CHOOSE(m_identity,SHET!AS15, SPTL!AS15, NGET!AS15)) -> -4.293414453 | AT16: =(CHOOSE(m_identity,SHET!AT15, SPTL!AT15, NGET!AT15)) -> -1.672090236
E17: Total | G17: £m 18/19 prices | AP17: =SUM(AP11:AP16) -> 76.08969828 | AQ17: =SUM(AQ11:AQ16) -> 76.93578318 | AR17: =SUM(AR11:AR16) -> 99.99554392 | AS17: =SUM(AS11:AS16) -> 74.07131247 | AT17: =SUM(AT11:AT16) -> 64.16853165
C19: Variant allowances (including Real Price Effects)
C20: Note: In the table below RPEs are aggregated in three groups: RPE non-variant allowances, PCDs and UMs. This allows to apply the correct capitalisation rate to each group.
E22: =(CHOOSE(m_identity,SHET!E20, SPTL!E20, NGET!E20)) -> Enhancing Pre-existing Infrastructure Projects | G22: £m 18/19 prices | H22: =CHOOSE(m_identity,SHET!H20, SPTL!H20, NGET!H20) -> EPIt | I22: =CHOOSE(m_identity,SHET!I20, SPTL!I20, NGET!I20) -> PCD | AP22: =CHOOSE(m_identity,SHET!AP20, SPTL!AP20, NGET!AP20) -> 7.054 | AQ22: =CHOOSE(m_identity,SHET!AQ20, SPTL!AQ20, NGET!AQ20) -> 0.889 | AR22: =CHOOSE(m_identity,SHET!AR20, SPTL!AR20, NGET!AR20) -> 0 | AS22: =CHOOSE(m_identity,SHET!AS20, SPTL!AS20, NGET!AS20) -> 0 | AT22: =CHOOSE(m_identity,SHET!AT20, SPTL!AT20, NGET!AT20) -> 0 | BC22: =CHOOSE(m_identity,SHET!BC20, SPTL!BC20, NGET!BC20) -> TIM | BD22: =CHOOSE(m_identity,SHET!BD20, SPTL!BD20, NGET!BD20) -> RPEs Don’t Apply | BE22: =CHOOSE(m_identity,SHET!BE20, SPTL!BE20, NGET!BE20) -> CapRate 1 (Baseline) | BF22: =CHOOSE(m_identity,SHET!BF20, SPTL!BF20, NGET!BF20) -> Fast/Slow Split
E23: =(CHOOSE(m_identity,SHET!E21, SPTL!E21, NGET!E21)) -> Large Onshore Transmission Investment Re-opener Project 1 - Hinckley Sea Bank | G23: £m 18/19 prices | H23: =CHOOSE(m_identity,SHET!H21, SPTL!H21, NGET!H21) -> LOTIAt | I23: =CHOOSE(m_identity,SHET!I21, SPTL!I21, NGET!I21) -> PCD | AP23: =CHOOSE(m_identity,SHET!AP21, SPTL!AP21, NGET!AP21) -> 0 | AQ23: =CHOOSE(m_identity,SHET!AQ21, SPTL!AQ21, NGET!AQ21) -> 0 | AR23: =CHOOSE(m_identity,SHET!AR21, SPTL!AR21, NGET!AR21) -> 0 | AS23: =CHOOSE(m_identity,SHET!AS21, SPTL!AS21, NGET!AS21) -> 0 | AT23: =CHOOSE(m_identity,SHET!AT21, SPTL!AT21, NGET!AT21) -> 0 | BC23: =CHOOSE(m_identity,SHET!BC21, SPTL!BC21, NGET!BC21) -> TIM | BD23: =CHOOSE(m_identity,SHET!BD21, SPTL!BD21, NGET!BD21) -> RPEs Apply | BE23: =CHOOSE(m_identity,SHET!BE21, SPTL!BE21, NGET!BE21) -> CapRate 1 (Baseline) | BF23: =CHOOSE(m_identity,SHET!BF21, SPTL!BF21, NGET!BF21) -> Fast/Slow Split
E24: =(CHOOSE(m_identity,SHET!E22, SPTL!E22, NGET!E22)) -> Wider Works Price Control Deliverable | G24: £m 18/19 prices | H24: =CHOOSE(m_identity,SHET!H22, SPTL!H22, NGET!H22) -> WWt | I24: =CHOOSE(m_identity,SHET!I22, SPTL!I22, NGET!I22) -> PCD | AP24: =CHOOSE(m_identity,SHET!AP22, SPTL!AP22, NGET!AP22) -> 59.79 | AQ24: =CHOOSE(m_identity,SHET!AQ22, SPTL!AQ22, NGET!AQ22) -> 69.48410526 | AR24: =CHOOSE(m_identity,SHET!AR22, SPTL!AR22, NGET!AR22) -> 67.32252705 | AS24: =CHOOSE(m_identity,SHET!AS22, SPTL!AS22, NGET!AS22) -> 91.5278358 | AT24: =CHOOSE(m_identity,SHET!AT22, SPTL!AT22, NGET!AT22) -> 83.9137166 | BC24: =CHOOSE(m_identity,SHET!BC22, SPTL!BC22, NGET!BC22) -> TIM | BD24: =CHOOSE(m_identity,SHET!BD22, SPTL!BD22, NGET!BD22) -> RPEs Apply | BE24: =CHOOSE(m_identity,SHET!BE22, SPTL!BE22, NGET!BE22) -> CapRate 1 (Baseline) | BF24: =CHOOSE(m_identity,SHET!BF22, SPTL!BF22, NGET!BF22) -> Fast/Slow Split
E25: =(CHOOSE(m_identity,SHET!E23, SPTL!E23, NGET!E23)) -> Physical Security Price Control Deliverable | G25: £m 18/19 prices | H25: =CHOOSE(m_identity,SHET!H23, SPTL!H23, NGET!H23) -> PSUPt | I25: =CHOOSE(m_identity,SHET!I23, SPTL!I23, NGET!I23) -> PCD | AP25: =CHOOSE(m_identity,SHET!AP23, SPTL!AP23, NGET!AP23) -> 2.822742932 | AQ25: =CHOOSE(m_identity,SHET!AQ23, SPTL!AQ23, NGET!AQ23) -> 2.833369176 | AR25: =CHOOSE(m_identity,SHET!AR23, SPTL!AR23, NGET!AR23) -> 0.9470929462 | AS25: =CHOOSE(m_identity,SHET!AS23, SPTL!AS23, NGET!AS23) -> 0.02308247735 | AT25: =CHOOSE(m_identity,SHET!AT23, SPTL!AT23, NGET!AT23) -> 0.02279394638 | BC25: =CHOOSE(m_identity,SHET!BC23, SPTL!BC23, NGET!BC23) -> TIM | BD25: =CHOOSE(m_identity,SHET!BD23, SPTL!BD23, NGET!BD23) -> RPEs Apply | BE25: =CHOOSE(m_identity,SHET!BE23, SPTL!BE23, NGET!BE23) -> CapRate 1 (Baseline) | BF25: =CHOOSE(m_identity,SHET!BF23, SPTL!BF23, NGET!BF23) -> Fast/Slow Split
E26: =(CHOOSE(m_identity,SHET!E24, SPTL!E24, NGET!E24)) -> Cyber Resilience OT Price Control Deliverable | G26: £m 18/19 prices | H26: =CHOOSE(m_identity,SHET!H24, SPTL!H24, NGET!H24) -> CROTt | I26: =CHOOSE(m_identity,SHET!I24, SPTL!I24, NGET!I24) -> PCD | AP26: =CHOOSE(m_identity,SHET!AP24, SPTL!AP24, NGET!AP24) -> 1.634 | AQ26: =CHOOSE(m_identity,SHET!AQ24, SPTL!AQ24, NGET!AQ24) -> 0 | AR26: =CHOOSE(m_identity,SHET!AR24, SPTL!AR24, NGET!AR24) -> 0 | AS26: =CHOOSE(m_identity,SHET!AS24, SPTL!AS24, NGET!AS24) -> 0 | AT26: =CHOOSE(m_identity,SHET!AT24, SPTL!AT24, NGET!AT24) -> 0 | BC26: =CHOOSE(m_identity,SHET!BC24, SPTL!BC24, NGET!BC24) -> Non-Tim | BD26: =CHOOSE(m_identity,SHET!BD24, SPTL!BD24, NGET!BD24) -> RPEs Don’t Apply | BE26: =CHOOSE(m_identity,SHET!BE24, SPTL!BE24, NGET!BE24) -> CapRate 1 (Baseline) | BF26: =CHOOSE(m_identity,SHET!BF24, SPTL!BF24, NGET!BF24) -> Fast/Slow Split
E27: =(CHOOSE(m_identity,SHET!E25, SPTL!E25, NGET!E25)) -> Cyber Resilience IT Price Control Deliverable | G27: £m 18/19 prices | H27: =CHOOSE(m_identity,SHET!H25, SPTL!H25, NGET!H25) -> CRITt | I27: =CHOOSE(m_identity,SHET!I25, SPTL!I25, NGET!I25) -> PCD | AP27: =CHOOSE(m_identity,SHET!AP25, SPTL!AP25, NGET!AP25) -> 1.491717001 | AQ27: =CHOOSE(m_identity,SHET!AQ25, SPTL!AQ25, NGET!AQ25) -> 2.037921214 | AR27: =CHOOSE(m_identity,SHET!AR25, SPTL!AR25, NGET!AR25) -> 1.454029647 | AS27: =CHOOSE(m_identity,SHET!AS25, SPTL!AS25, NGET!AS25) -> 1.111373971 | AT27: =CHOOSE(m_identity,SHET!AT25, SPTL!AT25, NGET!AT25) -> 1.149280481 | BC27: =CHOOSE(m_identity,SHET!BC25, SPTL!BC25, NGET!BC25) -> TIM | BD27: =CHOOSE(m_identity,SHET!BD25, SPTL!BD25, NGET!BD25) -> RPEs Apply | BE27: =CHOOSE(m_identity,SHET!BE25, SPTL!BE25, NGET!BE25) -> CapRate 1 (Baseline) | BF27: =CHOOSE(m_identity,SHET!BF25, SPTL!BF25, NGET!BF25) -> Fast/Slow Split
E28: =(CHOOSE(m_identity,SHET!E26, SPTL!E26, NGET!E26)) -> Baseline Network Risk Output | G28: £m 18/19 prices | H28: =CHOOSE(m_identity,SHET!H26, SPTL!H26, NGET!H26) -> NARMt | I28: =CHOOSE(m_identity,SHET!I26, SPTL!I26, NGET!I26) -> PCD | AP28: =CHOOSE(m_identity,SHET!AP26, SPTL!AP26, NGET!AP26) -> 92.59540733 | AQ28: =CHOOSE(m_identity,SHET!AQ26, SPTL!AQ26, NGET!AQ26) -> 156.8275851 | AR28: =CHOOSE(m_identity,SHET!AR26, SPTL!AR26, NGET!AR26) -> 153.215526 | AS28: =CHOOSE(m_identity,SHET!AS26, SPTL!AS26, NGET!AS26) -> 216.7854876 | AT28: =CHOOSE(m_identity,SHET!AT26, SPTL!AT26, NGET!AT26) -> 110.1821977 | BC28: =CHOOSE(m_identity,SHET!BC26, SPTL!BC26, NGET!BC26) -> TIM | BD28: =CHOOSE(m_identity,SHET!BD26, SPTL!BD26, NGET!BD26) -> RPEs Apply | BE28: =CHOOSE(m_identity,SHET!BE26, SPTL!BE26, NGET!BE26) -> CapRate 1 (Baseline) | BF28: =CHOOSE(m_identity,SHET!BF26, SPTL!BF26, NGET!BF26) -> Fast/Slow Split
E29: =(CHOOSE(m_identity,SHET!E27, SPTL!E27, NGET!E27)) -> Generation Related Infrastructure Price Control Deliverable (NGET only) | G29: £m 18/19 prices | H29: =CHOOSE(m_identity,SHET!H27, SPTL!H27, NGET!H27) -> GRIt | I29: =CHOOSE(m_identity,SHET!I27, SPTL!I27, NGET!I27) -> PCD | AP29: =CHOOSE(m_identity,SHET!AP27, SPTL!AP27, NGET!AP27) -> 0 | AQ29: =CHOOSE(m_identity,SHET!AQ27, SPTL!AQ27, NGET!AQ27) -> 0 | AR29: =CHOOSE(m_identity,SHET!AR27, SPTL!AR27, NGET!AR27) -> 0 | AS29: =CHOOSE(m_identity,SHET!AS27, SPTL!AS27, NGET!AS27) -> 0 | AT29: =CHOOSE(m_identity,SHET!AT27, SPTL!AT27, NGET!AT27) -> 0 | BC29: =CHOOSE(m_identity,SHET!BC27, SPTL!BC27, NGET!BC27) -> TIM | BD29: =CHOOSE(m_identity,SHET!BD27, SPTL!BD27, NGET!BD27) -> RPEs Apply | BE29: =CHOOSE(m_identity,SHET!BE27, SPTL!BE27, NGET!BE27) -> CapRate 1 (Baseline) | BF29: =CHOOSE(m_identity,SHET!BF27, SPTL!BF27, NGET!BF27) -> Fast/Slow Split
E30: =(CHOOSE(m_identity,SHET!E28, SPTL!E28, NGET!E28)) -> Resilience and Operability Price Control Deliverable (SHET and SPTL only) | G30: £m 18/19 prices | H30: =CHOOSE(m_identity,SHET!H28, SPTL!H28, NGET!H28) -> ROt | I30: =CHOOSE(m_identity,SHET!I28, SPTL!I28, NGET!I28) -> PCD | AP30: =CHOOSE(m_identity,SHET!AP28, SPTL!AP28, NGET!AP28) -> 25.2706276 | AQ30: =CHOOSE(m_identity,SHET!AQ28, SPTL!AQ28, NGET!AQ28) -> 39.60891834 | AR30: =CHOOSE(m_identity,SHET!AR28, SPTL!AR28, NGET!AR28) -> 39.19652894 | AS30: =CHOOSE(m_identity,SHET!AS28, SPTL!AS28, NGET!AS28) -> 39.32755311 | AT30: =CHOOSE(m_identity,SHET!AT28, SPTL!AT28, NGET!AT28) -> 24.17624697 | BC30: =CHOOSE(m_identity,SHET!BC28, SPTL!BC28, NGET!BC28) -> TIM | BD30: =CHOOSE(m_identity,SHET!BD28, SPTL!BD28, NGET!BD28) -> RPEs Apply | BE30: =CHOOSE(m_identity,SHET!BE28, SPTL!BE28, NGET!BE28) -> CapRate 1 (Baseline) | BF30: =CHOOSE(m_identity,SHET!BF28, SPTL!BF28, NGET!BF28) -> Fast/Slow Split
E31: =(CHOOSE(m_identity,SHET!E29, SPTL!E29, NGET!E29)) -> Operational transport carbon reduction Price Control Deliverable (NGET only) | G31: £m 18/19 prices | H31: =CHOOSE(m_identity,SHET!H29, SPTL!H29, NGET!H29) -> OTCt | I31: =CHOOSE(m_identity,SHET!I29, SPTL!I29, NGET!I29) -> PCD | AP31: =CHOOSE(m_identity,SHET!AP29, SPTL!AP29, NGET!AP29) -> 0 | AQ31: =CHOOSE(m_identity,SHET!AQ29, SPTL!AQ29, NGET!AQ29) -> 0 | AR31: =CHOOSE(m_identity,SHET!AR29, SPTL!AR29, NGET!AR29) -> 0 | AS31: =CHOOSE(m_identity,SHET!AS29, SPTL!AS29, NGET!AS29) -> 0 | AT31: =CHOOSE(m_identity,SHET!AT29, SPTL!AT29, NGET!AT29) -> 0 | BC31: =CHOOSE(m_identity,SHET!BC29, SPTL!BC29, NGET!BC29) -> TIM | BD31: =CHOOSE(m_identity,SHET!BD29, SPTL!BD29, NGET!BD29) -> RPEs Apply | BE31: =CHOOSE(m_identity,SHET!BE29, SPTL!BE29, NGET!BE29) -> CapRate 1 (Baseline) | BF31: =CHOOSE(m_identity,SHET!BF29, SPTL!BF29, NGET!BF29) -> Fast/Slow Split
E32: =(CHOOSE(m_identity,SHET!E30, SPTL!E30, NGET!E30)) -> Shared Schemes Price Control Deliverable (SHET and SPTL only) | G32: £m 18/19 prices | H32: =CHOOSE(m_identity,SHET!H30, SPTL!H30, NGET!H30) -> SSt | I32: =CHOOSE(m_identity,SHET!I30, SPTL!I30, NGET!I30) -> PCD | AP32: =CHOOSE(m_identity,SHET!AP30, SPTL!AP30, NGET!AP30) -> 100.15 | AQ32: =CHOOSE(m_identity,SHET!AQ30, SPTL!AQ30, NGET!AQ30) -> 147.2376029 | AR32: =CHOOSE(m_identity,SHET!AR30, SPTL!AR30, NGET!AR30) -> 65.443759 | AS32: =CHOOSE(m_identity,SHET!AS30, SPTL!AS30, NGET!AS30) -> -7.779843342 | AT32: =CHOOSE(m_identity,SHET!AT30, SPTL!AT30, NGET!AT30) -> 1.052839503 | BC32: =CHOOSE(m_identity,SHET!BC30, SPTL!BC30, NGET!BC30) -> TIM | BD32: =CHOOSE(m_identity,SHET!BD30, SPTL!BD30, NGET!BD30) -> RPEs Apply | BE32: =CHOOSE(m_identity,SHET!BE30, SPTL!BE30, NGET!BE30) -> CapRate 1 (Baseline) | BF32: =CHOOSE(m_identity,SHET!BF30, SPTL!BF30, NGET!BF30) -> Fast/Slow Split
E33: =(CHOOSE(m_identity,SHET!E31, SPTL!E31, NGET!E31)) -> Enhanced Environmental Requirements use it or lose it allowance (SPTL only) | G33: £m 18/19 prices | H33: =CHOOSE(m_identity,SHET!H31, SPTL!H31, NGET!H31) -> EERt | I33: =CHOOSE(m_identity,SHET!I31, SPTL!I31, NGET!I31) -> PCD | AP33: =CHOOSE(m_identity,SHET!AP31, SPTL!AP31, NGET!AP31) -> 0 | AQ33: =CHOOSE(m_identity,SHET!AQ31, SPTL!AQ31, NGET!AQ31) -> 0 | AR33: =CHOOSE(m_identity,SHET!AR31, SPTL!AR31, NGET!AR31) -> 0 | AS33: =CHOOSE(m_identity,SHET!AS31, SPTL!AS31, NGET!AS31) -> 0 | AT33: =CHOOSE(m_identity,SHET!AT31, SPTL!AT31, NGET!AT31) -> 0 | BC33: =CHOOSE(m_identity,SHET!BC31, SPTL!BC31, NGET!BC31) -> Non-Tim | BD33: =CHOOSE(m_identity,SHET!BD31, SPTL!BD31, NGET!BD31) -> RPEs Don’t Apply | BE33: =CHOOSE(m_identity,SHET!BE31, SPTL!BE31, NGET!BE31) -> CapRate 1 (Baseline) | BF33: =CHOOSE(m_identity,SHET!BF31, SPTL!BF31, NGET!BF31) -> Fast/Slow Split
E34: =(CHOOSE(m_identity,SHET!E32, SPTL!E32, NGET!E32)) -> SF6 asset intervention Price Control Deliverable (NGET only) | G34: £m 18/19 prices | H34: =CHOOSE(m_identity,SHET!H32, SPTL!H32, NGET!H32) -> SF6t | I34: =CHOOSE(m_identity,SHET!I32, SPTL!I32, NGET!I32) -> PCD | AP34: =CHOOSE(m_identity,SHET!AP32, SPTL!AP32, NGET!AP32) -> 0 | AQ34: =CHOOSE(m_identity,SHET!AQ32, SPTL!AQ32, NGET!AQ32) -> 0 | AR34: =CHOOSE(m_identity,SHET!AR32, SPTL!AR32, NGET!AR32) -> 0 | AS34: =CHOOSE(m_identity,SHET!AS32, SPTL!AS32, NGET!AS32) -> 0 | AT34: =CHOOSE(m_identity,SHET!AT32, SPTL!AT32, NGET!AT32) -> 0 | BC34: =CHOOSE(m_identity,SHET!BC32, SPTL!BC32, NGET!BC32) -> TIM | BD34: =CHOOSE(m_identity,SHET!BD32, SPTL!BD32, NGET!BD32) -> RPEs Apply | BE34: =CHOOSE(m_identity,SHET!BE32, SPTL!BE32, NGET!BE32) -> CapRate 1 (Baseline) | BF34: =CHOOSE(m_identity,SHET!BF32, SPTL!BF32, NGET!BF32) -> Fast/Slow Split
E35: =(CHOOSE(m_identity,SHET!E33, SPTL!E33, NGET!E33)) -> Substation Auxiliary Systems use it or lose it allowance (NGET only) | G35: £m 18/19 prices | H35: =CHOOSE(m_identity,SHET!H33, SPTL!H33, NGET!H33) -> SASt | I35: =CHOOSE(m_identity,SHET!I33, SPTL!I33, NGET!I33) -> PCD | AP35: =CHOOSE(m_identity,SHET!AP33, SPTL!AP33, NGET!AP33) -> 0 | AQ35: =CHOOSE(m_identity,SHET!AQ33, SPTL!AQ33, NGET!AQ33) -> 0 | AR35: =CHOOSE(m_identity,SHET!AR33, SPTL!AR33, NGET!AR33) -> 0 | AS35: =CHOOSE(m_identity,SHET!AS33, SPTL!AS33, NGET!AS33) -> 0 | AT35: =CHOOSE(m_identity,SHET!AT33, SPTL!AT33, NGET!AT33) -> 0 | BC35: =CHOOSE(m_identity,SHET!BC33, SPTL!BC33, NGET!BC33) -> Non-Tim | BD35: =CHOOSE(m_identity,SHET!BD33, SPTL!BD33, NGET!BD33) -> RPEs Don’t Apply | BE35: =CHOOSE(m_identity,SHET!BE33, SPTL!BE33, NGET!BE33) -> CapRate 1 (Baseline) | BF35: =CHOOSE(m_identity,SHET!BF33, SPTL!BF33, NGET!BF33) -> Fast/Slow Split
E36: =(CHOOSE(m_identity,SHET!E34, SPTL!E34, NGET!E34)) -> Instrument Transformer Price Control Deliverable (NGET only) | G36: £m 18/19 prices | H36: =CHOOSE(m_identity,SHET!H34, SPTL!H34, NGET!H34) -> InTt | I36: =CHOOSE(m_identity,SHET!I34, SPTL!I34, NGET!I34) -> PCD | AP36: =CHOOSE(m_identity,SHET!AP34, SPTL!AP34, NGET!AP34) -> 0 | AQ36: =CHOOSE(m_identity,SHET!AQ34, SPTL!AQ34, NGET!AQ34) -> 0 | AR36: =CHOOSE(m_identity,SHET!AR34, SPTL!AR34, NGET!AR34) -> 0 | AS36: =CHOOSE(m_identity,SHET!AS34, SPTL!AS34, NGET!AS34) -> 0 | AT36: =CHOOSE(m_identity,SHET!AT34, SPTL!AT34, NGET!AT34) -> 0 | BC36: =CHOOSE(m_identity,SHET!BC34, SPTL!BC34, NGET!BC34) -> TIM | BD36: =CHOOSE(m_identity,SHET!BD34, SPTL!BD34, NGET!BD34) -> RPEs Apply | BE36: =CHOOSE(m_identity,SHET!BE34, SPTL!BE34, NGET!BE34) -> CapRate 1 (Baseline) | BF36: =CHOOSE(m_identity,SHET!BF34, SPTL!BF34, NGET!BF34) -> Fast/Slow Split
E37: =(CHOOSE(m_identity,SHET!E35, SPTL!E35, NGET!E35)) -> Bay Assets Price Control Deliverable (NGET only) | G37: £m 18/19 prices | H37: =CHOOSE(m_identity,SHET!H35, SPTL!H35, NGET!H35) -> BAt | I37: =CHOOSE(m_identity,SHET!I35, SPTL!I35, NGET!I35) -> PCD | AP37: =CHOOSE(m_identity,SHET!AP35, SPTL!AP35, NGET!AP35) -> 0 | AQ37: =CHOOSE(m_identity,SHET!AQ35, SPTL!AQ35, NGET!AQ35) -> 0 | AR37: =CHOOSE(m_identity,SHET!AR35, SPTL!AR35, NGET!AR35) -> 0 | AS37: =CHOOSE(m_identity,SHET!AS35, SPTL!AS35, NGET!AS35) -> 0 | AT37: =CHOOSE(m_identity,SHET!AT35, SPTL!AT35, NGET!AT35) -> 0 | BC37: =CHOOSE(m_identity,SHET!BC35, SPTL!BC35, NGET!BC35) -> TIM | BD37: =CHOOSE(m_identity,SHET!BD35, SPTL!BD35, NGET!BD35) -> RPEs Apply | BE37: =CHOOSE(m_identity,SHET!BE35, SPTL!BE35, NGET!BE35) -> CapRate 1 (Baseline) | BF37: =CHOOSE(m_identity,SHET!BF35, SPTL!BF35, NGET!BF35) -> Fast/Slow Split
E38: =(CHOOSE(m_identity,SHET!E36, SPTL!E36, NGET!E36)) -> Protection and Control Price Control Deliverable (NGET only) | G38: £m 18/19 prices | H38: =CHOOSE(m_identity,SHET!H36, SPTL!H36, NGET!H36) -> PCt | I38: =CHOOSE(m_identity,SHET!I36, SPTL!I36, NGET!I36) -> PCD | AP38: =CHOOSE(m_identity,SHET!AP36, SPTL!AP36, NGET!AP36) -> 0 | AQ38: =CHOOSE(m_identity,SHET!AQ36, SPTL!AQ36, NGET!AQ36) -> 0 | AR38: =CHOOSE(m_identity,SHET!AR36, SPTL!AR36, NGET!AR36) -> 0 | AS38: =CHOOSE(m_identity,SHET!AS36, SPTL!AS36, NGET!AS36) -> 0 | AT38: =CHOOSE(m_identity,SHET!AT36, SPTL!AT36, NGET!AT36) -> 0 | BC38: =CHOOSE(m_identity,SHET!BC36, SPTL!BC36, NGET!BC36) -> TIM | BD38: =CHOOSE(m_identity,SHET!BD36, SPTL!BD36, NGET!BD36) -> RPEs Apply | BE38: =CHOOSE(m_identity,SHET!BE36, SPTL!BE36, NGET!BE36) -> CapRate 1 (Baseline) | BF38: =CHOOSE(m_identity,SHET!BF36, SPTL!BF36, NGET!BF36) -> Fast/Slow Split
E39: =(CHOOSE(m_identity,SHET!E37, SPTL!E37, NGET!E37)) -> Overhead Line Conductor Price Control Deliverable (NGET only) | G39: £m 18/19 prices | H39: =CHOOSE(m_identity,SHET!H37, SPTL!H37, NGET!H37) -> OCt | I39: =CHOOSE(m_identity,SHET!I37, SPTL!I37, NGET!I37) -> PCD | AP39: =CHOOSE(m_identity,SHET!AP37, SPTL!AP37, NGET!AP37) -> 0 | AQ39: =CHOOSE(m_identity,SHET!AQ37, SPTL!AQ37, NGET!AQ37) -> 0 | AR39: =CHOOSE(m_identity,SHET!AR37, SPTL!AR37, NGET!AR37) -> 0 | AS39: =CHOOSE(m_identity,SHET!AS37, SPTL!AS37, NGET!AS37) -> 0 | AT39: =CHOOSE(m_identity,SHET!AT37, SPTL!AT37, NGET!AT37) -> 0 | BC39: =CHOOSE(m_identity,SHET!BC37, SPTL!BC37, NGET!BC37) -> TIM | BD39: =CHOOSE(m_identity,SHET!BD37, SPTL!BD37, NGET!BD37) -> RPEs Apply | BE39: =CHOOSE(m_identity,SHET!BE37, SPTL!BE37, NGET!BE37) -> CapRate 1 (Baseline) | BF39: =CHOOSE(m_identity,SHET!BF37, SPTL!BF37, NGET!BF37) -> Fast/Slow Split
E40: =(CHOOSE(m_identity,SHET!E38, SPTL!E38, NGET!E38)) -> Pre-Construction Funding Price Control Deliverable | G40: £m 18/19 prices | H40: =CHOOSE(m_identity,SHET!H38, SPTL!H38, NGET!H38) -> PCFt | I40: =CHOOSE(m_identity,SHET!I38, SPTL!I38, NGET!I38) -> PCD | AP40: =CHOOSE(m_identity,SHET!AP38, SPTL!AP38, NGET!AP38) -> 18.75979116 | AQ40: =CHOOSE(m_identity,SHET!AQ38, SPTL!AQ38, NGET!AQ38) -> 18.54222784 | AR40: =CHOOSE(m_identity,SHET!AR38, SPTL!AR38, NGET!AR38) -> 18.32718933 | AS40: =CHOOSE(m_identity,SHET!AS38, SPTL!AS38, NGET!AS38) -> 18.11464629 | AT40: =CHOOSE(m_identity,SHET!AT38, SPTL!AT38, NGET!AT38) -> 17.90456976 | BC40: =CHOOSE(m_identity,SHET!BC38, SPTL!BC38, NGET!BC38) -> TIM | BD40: =CHOOSE(m_identity,SHET!BD38, SPTL!BD38, NGET!BD38) -> RPEs Apply | BE40: =CHOOSE(m_identity,SHET!BE38, SPTL!BE38, NGET!BE38) -> CapRate 1 (Baseline) | BF40: =CHOOSE(m_identity,SHET!BF38, SPTL!BF38, NGET!BF38) -> Fast/Slow Split
E41: =(CHOOSE(m_identity,SHET!E39, SPTL!E39, NGET!E39)) -> Net Zero And Re-opener Development Fund use it or lose it allowance | G41: £m 18/19 prices | H41: =CHOOSE(m_identity,SHET!H39, SPTL!H39, NGET!H39) -> RDFt | I41: =CHOOSE(m_identity,SHET!I39, SPTL!I39, NGET!I39) -> PCD | AP41: =CHOOSE(m_identity,SHET!AP39, SPTL!AP39, NGET!AP39) -> 2.4 | AQ41: =CHOOSE(m_identity,SHET!AQ39, SPTL!AQ39, NGET!AQ39) -> 2.4 | AR41: =CHOOSE(m_identity,SHET!AR39, SPTL!AR39, NGET!AR39) -> 2.4 | AS41: =CHOOSE(m_identity,SHET!AS39, SPTL!AS39, NGET!AS39) -> 2.4 | AT41: =CHOOSE(m_identity,SHET!AT39, SPTL!AT39, NGET!AT39) -> 2.4 | BC41: =CHOOSE(m_identity,SHET!BC39, SPTL!BC39, NGET!BC39) -> Non-Tim | BD41: =CHOOSE(m_identity,SHET!BD39, SPTL!BD39, NGET!BD39) -> RPEs Don’t Apply | BE41: =CHOOSE(m_identity,SHET!BE39, SPTL!BE39, NGET!BE39) -> CapRate 1 (Baseline) | BF41: =CHOOSE(m_identity,SHET!BF39, SPTL!BF39, NGET!BF39) -> Fast/Slow Split
E42: =(CHOOSE(m_identity,SHET!E40, SPTL!E40, NGET!E40)) -> Spare PCD 1 | G42: £m 18/19 prices | H42: =CHOOSE(m_identity,SHET!H40, SPTL!H40, NGET!H40) -> 0 | I42: =CHOOSE(m_identity,SHET!I40, SPTL!I40, NGET!I40) -> PCD | AP42: =CHOOSE(m_identity,SHET!AP40, SPTL!AP40, NGET!AP40) -> 0 | AQ42: =CHOOSE(m_identity,SHET!AQ40, SPTL!AQ40, NGET!AQ40) -> 0 | AR42: =CHOOSE(m_identity,SHET!AR40, SPTL!AR40, NGET!AR40) -> 0 | AS42: =CHOOSE(m_identity,SHET!AS40, SPTL!AS40, NGET!AS40) -> 0 | AT42: =CHOOSE(m_identity,SHET!AT40, SPTL!AT40, NGET!AT40) -> 0 | BC42: =CHOOSE(m_identity,SHET!BC40, SPTL!BC40, NGET!BC40) -> 0 | BD42: =CHOOSE(m_identity,SHET!BD40, SPTL!BD40, NGET!BD40) -> 0 | BE42: =CHOOSE(m_identity,SHET!BE40, SPTL!BE40, NGET!BE40) -> 0 | BF42: =CHOOSE(m_identity,SHET!BF40, SPTL!BF40, NGET!BF40) -> 0
E43: =(CHOOSE(m_identity,SHET!E41, SPTL!E41, NGET!E41)) -> Spare PCD 2 | G43: £m 18/19 prices | H43: =CHOOSE(m_identity,SHET!H41, SPTL!H41, NGET!H41) -> 0 | I43: =CHOOSE(m_identity,SHET!I41, SPTL!I41, NGET!I41) -> PCD | AP43: =CHOOSE(m_identity,SHET!AP41, SPTL!AP41, NGET!AP41) -> 0 | AQ43: =CHOOSE(m_identity,SHET!AQ41, SPTL!AQ41, NGET!AQ41) -> 0 | AR43: =CHOOSE(m_identity,SHET!AR41, SPTL!AR41, NGET!AR41) -> 0 | AS43: =CHOOSE(m_identity,SHET!AS41, SPTL!AS41, NGET!AS41) -> 0 | AT43: =CHOOSE(m_identity,SHET!AT41, SPTL!AT41, NGET!AT41) -> 0 | BC43: =CHOOSE(m_identity,SHET!BC41, SPTL!BC41, NGET!BC41) -> 0 | BD43: =CHOOSE(m_identity,SHET!BD41, SPTL!BD41, NGET!BD41) -> 0 | BE43: =CHOOSE(m_identity,SHET!BE41, SPTL!BE41, NGET!BE41) -> 0 | BF43: =CHOOSE(m_identity,SHET!BF41, SPTL!BF41, NGET!BF41) -> 0
E44: =(CHOOSE(m_identity,SHET!E42, SPTL!E42, NGET!E42)) -> Spare PCD 3 | G44: £m 18/19 prices | H44: =CHOOSE(m_identity,SHET!H42, SPTL!H42, NGET!H42) -> 0 | I44: =CHOOSE(m_identity,SHET!I42, SPTL!I42, NGET!I42) -> PCD | AP44: =CHOOSE(m_identity,SHET!AP42, SPTL!AP42, NGET!AP42) -> 0 | AQ44: =CHOOSE(m_identity,SHET!AQ42, SPTL!AQ42, NGET!AQ42) -> 0 | AR44: =CHOOSE(m_identity,SHET!AR42, SPTL!AR42, NGET!AR42) -> 0 | AS44: =CHOOSE(m_identity,SHET!AS42, SPTL!AS42, NGET!AS42) -> 0 | AT44: =CHOOSE(m_identity,SHET!AT42, SPTL!AT42, NGET!AT42) -> 0 | BC44: =CHOOSE(m_identity,SHET!BC42, SPTL!BC42, NGET!BC42) -> 0 | BD44: =CHOOSE(m_identity,SHET!BD42, SPTL!BD42, NGET!BD42) -> 0 | BE44: =CHOOSE(m_identity,SHET!BE42, SPTL!BE42, NGET!BE42) -> 0 | BF44: =CHOOSE(m_identity,SHET!BF42, SPTL!BF42, NGET!BF42) -> 0
E45: =(CHOOSE(m_identity,SHET!E43, SPTL!E43, NGET!E43)) -> Visual Impact Mitigation Re-opener | G45: £m 18/19 prices | H45: =CHOOSE(m_identity,SHET!H43, SPTL!H43, NGET!H43) -> VIMREt | I45: =CHOOSE(m_identity,SHET!I43, SPTL!I43, NGET!I43) -> UM | AP45: =CHOOSE(m_identity,SHET!AP43, SPTL!AP43, NGET!AP43) -> 24.95769092 | AQ45: =CHOOSE(m_identity,SHET!AQ43, SPTL!AQ43, NGET!AQ43) -> 3.049257749 | AR45: =CHOOSE(m_identity,SHET!AR43, SPTL!AR43, NGET!AR43) -> 4.85935811 | AS45: =CHOOSE(m_identity,SHET!AS43, SPTL!AS43, NGET!AS43) -> 3.288045542 | AT45: =CHOOSE(m_identity,SHET!AT43, SPTL!AT43, NGET!AT43) -> 0 | BC45: =CHOOSE(m_identity,SHET!BC43, SPTL!BC43, NGET!BC43) -> TIM | BD45: =CHOOSE(m_identity,SHET!BD43, SPTL!BD43, NGET!BD43) -> RPEs Don’t Apply | BE45: =CHOOSE(m_identity,SHET!BE43, SPTL!BE43, NGET!BE43) -> CapRate 2 (UM) | BF45: =CHOOSE(m_identity,SHET!BF43, SPTL!BF43, NGET!BF43) -> Fast/Slow Split
E46: =(CHOOSE(m_identity,SHET!E44, SPTL!E44, NGET!E44)) -> Large Onshore Transmission Investment Re-opener Project 2 - Shetland | G46: £m 18/19 prices | H46: =CHOOSE(m_identity,SHET!H44, SPTL!H44, NGET!H44) -> LOTIREt | I46: =CHOOSE(m_identity,SHET!I44, SPTL!I44, NGET!I44) -> UM | AP46: =CHOOSE(m_identity,SHET!AP44, SPTL!AP44, NGET!AP44) -> 189.3567347 | AQ46: =CHOOSE(m_identity,SHET!AQ44, SPTL!AQ44, NGET!AQ44) -> 158.3647514 | AR46: =CHOOSE(m_identity,SHET!AR44, SPTL!AR44, NGET!AR44) -> 97.79943555 | AS46: =CHOOSE(m_identity,SHET!AS44, SPTL!AS44, NGET!AS44) -> 22.50534607 | AT46: =CHOOSE(m_identity,SHET!AT44, SPTL!AT44, NGET!AT44) -> 5.347128007 | BC46: =CHOOSE(m_identity,SHET!BC44, SPTL!BC44, NGET!BC44) -> TIM | BD46: =CHOOSE(m_identity,SHET!BD44, SPTL!BD44, NGET!BD44) -> RPEs Don’t Apply | BE46: =CHOOSE(m_identity,SHET!BE44, SPTL!BE44, NGET!BE44) -> CapRate 2 (UM) | BF46: =CHOOSE(m_identity,SHET!BF44, SPTL!BF44, NGET!BF44) -> Fast/Slow Split
E47: =(CHOOSE(m_identity,SHET!E45, SPTL!E45, NGET!E45)) -> Large Onshore Transmission Investment Re-opener Project 3 | G47: £m 18/19 prices | H47: =CHOOSE(m_identity,SHET!H45, SPTL!H45, NGET!H45) -> LOTIREt | I47: =CHOOSE(m_identity,SHET!I45, SPTL!I45, NGET!I45) -> UM | AP47: =CHOOSE(m_identity,SHET!AP45, SPTL!AP45, NGET!AP45) -> 2.5124929e-17 | AQ47: =CHOOSE(m_identity,SHET!AQ45, SPTL!AQ45, NGET!AQ45) -> 0 | AR47: =CHOOSE(m_identity,SHET!AR45, SPTL!AR45, NGET!AR45) -> 105.3918273 | AS47: =CHOOSE(m_identity,SHET!AS45, SPTL!AS45, NGET!AS45) -> 110.7228907 | AT47: =CHOOSE(m_identity,SHET!AT45, SPTL!AT45, NGET!AT45) -> 53.2735027 | BC47: =CHOOSE(m_identity,SHET!BC45, SPTL!BC45, NGET!BC45) -> TIM | BD47: =CHOOSE(m_identity,SHET!BD45, SPTL!BD45, NGET!BD45) -> RPEs Don’t Apply | BE47: =CHOOSE(m_identity,SHET!BE45, SPTL!BE45, NGET!BE45) -> CapRate 2 (UM) | BF47: =CHOOSE(m_identity,SHET!BF45, SPTL!BF45, NGET!BF45) -> Fast/Slow Split
E48: =(CHOOSE(m_identity,SHET!E46, SPTL!E46, NGET!E46)) -> Large Onshore Transmission Investment Re-opener Project 4 | G48: £m 18/19 prices | H48: =CHOOSE(m_identity,SHET!H46, SPTL!H46, NGET!H46) -> LOTIREt | I48: =CHOOSE(m_identity,SHET!I46, SPTL!I46, NGET!I46) -> UM | AP48: =CHOOSE(m_identity,SHET!AP46, SPTL!AP46, NGET!AP46) -> 3.257484345 | AQ48: =CHOOSE(m_identity,SHET!AQ46, SPTL!AQ46, NGET!AQ46) -> 3.683822935 | AR48: =CHOOSE(m_identity,SHET!AR46, SPTL!AR46, NGET!AR46) -> 92.41066576 | AS48: =CHOOSE(m_identity,SHET!AS46, SPTL!AS46, NGET!AS46) -> 151.9550207 | AT48: =CHOOSE(m_identity,SHET!AT46, SPTL!AT46, NGET!AT46) -> 57.69293696 | BC48: =CHOOSE(m_identity,SHET!BC46, SPTL!BC46, NGET!BC46) -> TIM | BD48: =CHOOSE(m_identity,SHET!BD46, SPTL!BD46, NGET!BD46) -> RPEs Don’t Apply | BE48: =CHOOSE(m_identity,SHET!BE46, SPTL!BE46, NGET!BE46) -> CapRate 2 (UM) | BF48: =CHOOSE(m_identity,SHET!BF46, SPTL!BF46, NGET!BF46) -> Fast/Slow Split
E49: =(CHOOSE(m_identity,SHET!E47, SPTL!E47, NGET!E47)) -> Large Onshore Transmission Investment Re-opener Project 5 | G49: £m 18/19 prices | H49: =CHOOSE(m_identity,SHET!H47, SPTL!H47, NGET!H47) -> LOTIREt | I49: =CHOOSE(m_identity,SHET!I47, SPTL!I47, NGET!I47) -> UM | AP49: =CHOOSE(m_identity,SHET!AP47, SPTL!AP47, NGET!AP47) -> 0 | AQ49: =CHOOSE(m_identity,SHET!AQ47, SPTL!AQ47, NGET!AQ47) -> 0 | AR49: =CHOOSE(m_identity,SHET!AR47, SPTL!AR47, NGET!AR47) -> 0.5891321134 | AS49: =CHOOSE(m_identity,SHET!AS47, SPTL!AS47, NGET!AS47) -> 87.49794188 | AT49: =CHOOSE(m_identity,SHET!AT47, SPTL!AT47, NGET!AT47) -> 127.5252531 | BC49: =CHOOSE(m_identity,SHET!BC47, SPTL!BC47, NGET!BC47) -> TIM | BD49: =CHOOSE(m_identity,SHET!BD47, SPTL!BD47, NGET!BD47) -> RPEs Don’t Apply | BE49: =CHOOSE(m_identity,SHET!BE47, SPTL!BE47, NGET!BE47) -> CapRate 2 (UM) | BF49: =CHOOSE(m_identity,SHET!BF47, SPTL!BF47, NGET!BF47) -> Fast/Slow Split
E50: =(CHOOSE(m_identity,SHET!E48, SPTL!E48, NGET!E48)) -> Large Onshore Transmission Investment Re-opener Project 6 | G50: £m 18/19 prices | H50: =CHOOSE(m_identity,SHET!H48, SPTL!H48, NGET!H48) -> LOTIREt | I50: =CHOOSE(m_identity,SHET!I48, SPTL!I48, NGET!I48) -> UM | AP50: =CHOOSE(m_identity,SHET!AP48, SPTL!AP48, NGET!AP48) -> 0 | AQ50: =CHOOSE(m_identity,SHET!AQ48, SPTL!AQ48, NGET!AQ48) -> 0 | AR50: =CHOOSE(m_identity,SHET!AR48, SPTL!AR48, NGET!AR48) -> 0 | AS50: =CHOOSE(m_identity,SHET!AS48, SPTL!AS48, NGET!AS48) -> 0 | AT50: =CHOOSE(m_identity,SHET!AT48, SPTL!AT48, NGET!AT48) -> 0 | BC50: =CHOOSE(m_identity,SHET!BC48, SPTL!BC48, NGET!BC48) -> TIM | BD50: =CHOOSE(m_identity,SHET!BD48, SPTL!BD48, NGET!BD48) -> RPEs Don’t Apply | BE50: =CHOOSE(m_identity,SHET!BE48, SPTL!BE48, NGET!BE48) -> CapRate 2 (UM) | BF50: =CHOOSE(m_identity,SHET!BF48, SPTL!BF48, NGET!BF48) -> Fast/Slow Split
E51: =(CHOOSE(m_identity,SHET!E49, SPTL!E49, NGET!E49)) -> Large Onshore Transmission Investment Re-opener Project 7 | G51: £m 18/19 prices | H51: =CHOOSE(m_identity,SHET!H49, SPTL!H49, NGET!H49) -> LOTIREt | I51: =CHOOSE(m_identity,SHET!I49, SPTL!I49, NGET!I49) -> UM | AP51: =CHOOSE(m_identity,SHET!AP49, SPTL!AP49, NGET!AP49) -> 0 | AQ51: =CHOOSE(m_identity,SHET!AQ49, SPTL!AQ49, NGET!AQ49) -> 0 | AR51: =CHOOSE(m_identity,SHET!AR49, SPTL!AR49, NGET!AR49) -> 0 | AS51: =CHOOSE(m_identity,SHET!AS49, SPTL!AS49, NGET!AS49) -> 0 | AT51: =CHOOSE(m_identity,SHET!AT49, SPTL!AT49, NGET!AT49) -> 0 | BC51: =CHOOSE(m_identity,SHET!BC49, SPTL!BC49, NGET!BC49) -> TIM | BD51: =CHOOSE(m_identity,SHET!BD49, SPTL!BD49, NGET!BD49) -> RPEs Don’t Apply | BE51: =CHOOSE(m_identity,SHET!BE49, SPTL!BE49, NGET!BE49) -> CapRate 2 (UM) | BF51: =CHOOSE(m_identity,SHET!BF49, SPTL!BF49, NGET!BF49) -> Fast/Slow Split
E52: =(CHOOSE(m_identity,SHET!E50, SPTL!E50, NGET!E50)) -> Large Onshore Transmission Investment Re-opener Project 8 | G52: £m 18/19 prices | H52: =CHOOSE(m_identity,SHET!H50, SPTL!H50, NGET!H50) -> LOTIREt | I52: =CHOOSE(m_identity,SHET!I50, SPTL!I50, NGET!I50) -> UM | AP52: =CHOOSE(m_identity,SHET!AP50, SPTL!AP50, NGET!AP50) -> 0 | AQ52: =CHOOSE(m_identity,SHET!AQ50, SPTL!AQ50, NGET!AQ50) -> 0 | AR52: =CHOOSE(m_identity,SHET!AR50, SPTL!AR50, NGET!AR50) -> 0 | AS52: =CHOOSE(m_identity,SHET!AS50, SPTL!AS50, NGET!AS50) -> 0 | AT52: =CHOOSE(m_identity,SHET!AT50, SPTL!AT50, NGET!AT50) -> 0 | BC52: =CHOOSE(m_identity,SHET!BC50, SPTL!BC50, NGET!BC50) -> TIM | BD52: =CHOOSE(m_identity,SHET!BD50, SPTL!BD50, NGET!BD50) -> RPEs Don’t Apply | BE52: =CHOOSE(m_identity,SHET!BE50, SPTL!BE50, NGET!BE50) -> CapRate 2 (UM) | BF52: =CHOOSE(m_identity,SHET!BF50, SPTL!BF50, NGET!BF50) -> Fast/Slow Split
E53: =(CHOOSE(m_identity,SHET!E51, SPTL!E51, NGET!E51)) -> Large Onshore Transmission Investment Re-opener Project 9 | G53: £m 18/19 prices | H53: =CHOOSE(m_identity,SHET!H51, SPTL!H51, NGET!H51) -> LOTIREt | I53: =CHOOSE(m_identity,SHET!I51, SPTL!I51, NGET!I51) -> UM | AP53: =CHOOSE(m_identity,SHET!AP51, SPTL!AP51, NGET!AP51) -> 0 | AQ53: =CHOOSE(m_identity,SHET!AQ51, SPTL!AQ51, NGET!AQ51) -> 0 | AR53: =CHOOSE(m_identity,SHET!AR51, SPTL!AR51, NGET!AR51) -> 0 | AS53: =CHOOSE(m_identity,SHET!AS51, SPTL!AS51, NGET!AS51) -> 0 | AT53: =CHOOSE(m_identity,SHET!AT51, SPTL!AT51, NGET!AT51) -> 0 | BC53: =CHOOSE(m_identity,SHET!BC51, SPTL!BC51, NGET!BC51) -> TIM | BD53: =CHOOSE(m_identity,SHET!BD51, SPTL!BD51, NGET!BD51) -> RPEs Don’t Apply | BE53: =CHOOSE(m_identity,SHET!BE51, SPTL!BE51, NGET!BE51) -> CapRate 2 (UM) | BF53: =CHOOSE(m_identity,SHET!BF51, SPTL!BF51, NGET!BF51) -> Fast/Slow Split
E54: =(CHOOSE(m_identity,SHET!E52, SPTL!E52, NGET!E52)) -> Large Onshore Transmission Investment Re-opener Project 10 | G54: £m 18/19 prices | H54: =CHOOSE(m_identity,SHET!H52, SPTL!H52, NGET!H52) -> LOTIREt | I54: =CHOOSE(m_identity,SHET!I52, SPTL!I52, NGET!I52) -> UM | AP54: =CHOOSE(m_identity,SHET!AP52, SPTL!AP52, NGET!AP52) -> 0 | AQ54: =CHOOSE(m_identity,SHET!AQ52, SPTL!AQ52, NGET!AQ52) -> 0 | AR54: =CHOOSE(m_identity,SHET!AR52, SPTL!AR52, NGET!AR52) -> 0 | AS54: =CHOOSE(m_identity,SHET!AS52, SPTL!AS52, NGET!AS52) -> 0 | AT54: =CHOOSE(m_identity,SHET!AT52, SPTL!AT52, NGET!AT52) -> 0 | BC54: =CHOOSE(m_identity,SHET!BC52, SPTL!BC52, NGET!BC52) -> TIM | BD54: =CHOOSE(m_identity,SHET!BD52, SPTL!BD52, NGET!BD52) -> RPEs Don’t Apply | BE54: =CHOOSE(m_identity,SHET!BE52, SPTL!BE52, NGET!BE52) -> CapRate 2 (UM) | BF54: =CHOOSE(m_identity,SHET!BF52, SPTL!BF52, NGET!BF52) -> Fast/Slow Split
E55: =(CHOOSE(m_identity,SHET!E53, SPTL!E53, NGET!E53)) -> Generation Connections volume driver | G55: £m 18/19 prices | H55: =CHOOSE(m_identity,SHET!H53, SPTL!H53, NGET!H53) -> GCEt | I55: =CHOOSE(m_identity,SHET!I53, SPTL!I53, NGET!I53) -> UM | AP55: =CHOOSE(m_identity,SHET!AP53, SPTL!AP53, NGET!AP53) -> 22.262575 | AQ55: =CHOOSE(m_identity,SHET!AQ53, SPTL!AQ53, NGET!AQ53) -> 37.71655 | AR55: =CHOOSE(m_identity,SHET!AR53, SPTL!AR53, NGET!AR53) -> 46.681575 | AS55: =CHOOSE(m_identity,SHET!AS53, SPTL!AS53, NGET!AS53) -> 44.025625 | AT55: =CHOOSE(m_identity,SHET!AT53, SPTL!AT53, NGET!AT53) -> 27.07495 | BC55: =CHOOSE(m_identity,SHET!BC53, SPTL!BC53, NGET!BC53) -> TIM | BD55: =CHOOSE(m_identity,SHET!BD53, SPTL!BD53, NGET!BD53) -> RPEs Apply | BE55: =CHOOSE(m_identity,SHET!BE53, SPTL!BE53, NGET!BE53) -> CapRate 2 (UM) | BF55: =CHOOSE(m_identity,SHET!BF53, SPTL!BF53, NGET!BF53) -> Fast/Slow Split
E56: =(CHOOSE(m_identity,SHET!E54, SPTL!E54, NGET!E54)) -> Demand Connections volume driver (SPTL and NGET only) | G56: £m 18/19 prices | H56: =CHOOSE(m_identity,SHET!H54, SPTL!H54, NGET!H54) -> DRIt | I56: =CHOOSE(m_identity,SHET!I54, SPTL!I54, NGET!I54) -> UM | AP56: =CHOOSE(m_identity,SHET!AP54, SPTL!AP54, NGET!AP54) -> 0 | AQ56: =CHOOSE(m_identity,SHET!AQ54, SPTL!AQ54, NGET!AQ54) -> 0 | AR56: =CHOOSE(m_identity,SHET!AR54, SPTL!AR54, NGET!AR54) -> 0 | AS56: =CHOOSE(m_identity,SHET!AS54, SPTL!AS54, NGET!AS54) -> 0 | AT56: =CHOOSE(m_identity,SHET!AT54, SPTL!AT54, NGET!AT54) -> 0 | BC56: =CHOOSE(m_identity,SHET!BC54, SPTL!BC54, NGET!BC54) -> TIM | BD56: =CHOOSE(m_identity,SHET!BD54, SPTL!BD54, NGET!BD54) -> RPEs Apply | BE56: =CHOOSE(m_identity,SHET!BE54, SPTL!BE54, NGET!BE54) -> CapRate 2 (UM) | BF56: =CHOOSE(m_identity,SHET!BF54, SPTL!BF54, NGET!BF54) -> Fast/Slow Split
E57: =(CHOOSE(m_identity,SHET!E55, SPTL!E55, NGET!E55)) -> Net zero Re-opener | G57: £m 18/19 prices | H57: =CHOOSE(m_identity,SHET!H55, SPTL!H55, NGET!H55) -> NZt | I57: =CHOOSE(m_identity,SHET!I55, SPTL!I55, NGET!I55) -> UM | AP57: =CHOOSE(m_identity,SHET!AP55, SPTL!AP55, NGET!AP55) -> 0 | AQ57: =CHOOSE(m_identity,SHET!AQ55, SPTL!AQ55, NGET!AQ55) -> 0 | AR57: =CHOOSE(m_identity,SHET!AR55, SPTL!AR55, NGET!AR55) -> 0 | AS57: =CHOOSE(m_identity,SHET!AS55, SPTL!AS55, NGET!AS55) -> 0 | AT57: =CHOOSE(m_identity,SHET!AT55, SPTL!AT55, NGET!AT55) -> 0 | BC57: =CHOOSE(m_identity,SHET!BC55, SPTL!BC55, NGET!BC55) -> TIM | BD57: =CHOOSE(m_identity,SHET!BD55, SPTL!BD55, NGET!BD55) -> RPEs Don’t Apply | BE57: =CHOOSE(m_identity,SHET!BE55, SPTL!BE55, NGET!BE55) -> CapRate 2 (UM) | BF57: =CHOOSE(m_identity,SHET!BF55, SPTL!BF55, NGET!BF55) -> Fast/Slow Split
E58: =(CHOOSE(m_identity,SHET!E56, SPTL!E56, NGET!E56)) -> Coordinated adjustment mechanism Re-opener | G58: £m 18/19 prices | H58: =CHOOSE(m_identity,SHET!H56, SPTL!H56, NGET!H56) -> CAMt | I58: =CHOOSE(m_identity,SHET!I56, SPTL!I56, NGET!I56) -> UM | AP58: =CHOOSE(m_identity,SHET!AP56, SPTL!AP56, NGET!AP56) -> 0 | AQ58: =CHOOSE(m_identity,SHET!AQ56, SPTL!AQ56, NGET!AQ56) -> 0 | AR58: =CHOOSE(m_identity,SHET!AR56, SPTL!AR56, NGET!AR56) -> 0 | AS58: =CHOOSE(m_identity,SHET!AS56, SPTL!AS56, NGET!AS56) -> 0 | AT58: =CHOOSE(m_identity,SHET!AT56, SPTL!AT56, NGET!AT56) -> 0 | BC58: =CHOOSE(m_identity,SHET!BC56, SPTL!BC56, NGET!BC56) -> TIM | BD58: =CHOOSE(m_identity,SHET!BD56, SPTL!BD56, NGET!BD56) -> RPEs Don’t Apply | BE58: =CHOOSE(m_identity,SHET!BE56, SPTL!BE56, NGET!BE56) -> CapRate 2 (UM) | BF58: =CHOOSE(m_identity,SHET!BF56, SPTL!BF56, NGET!BF56) -> Fast/Slow Split
E59: =(CHOOSE(m_identity,SHET!E57, SPTL!E57, NGET!E57)) -> Medium Sized Investment Projects Re-opener | G59: £m 18/19 prices | H59: =CHOOSE(m_identity,SHET!H57, SPTL!H57, NGET!H57) -> MSIPREt | I59: =CHOOSE(m_identity,SHET!I57, SPTL!I57, NGET!I57) -> UM | AP59: =CHOOSE(m_identity,SHET!AP57, SPTL!AP57, NGET!AP57) -> 2.977327471 | AQ59: =CHOOSE(m_identity,SHET!AQ57, SPTL!AQ57, NGET!AQ57) -> 6.430629375 | AR59: =CHOOSE(m_identity,SHET!AR57, SPTL!AR57, NGET!AR57) -> 43.70317303 | AS59: =CHOOSE(m_identity,SHET!AS57, SPTL!AS57, NGET!AS57) -> 70.61959697 | AT59: =CHOOSE(m_identity,SHET!AT57, SPTL!AT57, NGET!AT57) -> 39.2040957 | BC59: =CHOOSE(m_identity,SHET!BC57, SPTL!BC57, NGET!BC57) -> TIM | BD59: =CHOOSE(m_identity,SHET!BD57, SPTL!BD57, NGET!BD57) -> RPEs Don’t Apply | BE59: =CHOOSE(m_identity,SHET!BE57, SPTL!BE57, NGET!BE57) -> CapRate 2 (UM) | BF59: =CHOOSE(m_identity,SHET!BF57, SPTL!BF57, NGET!BF57) -> Fast/Slow Split
E60: =(CHOOSE(m_identity,SHET!E58, SPTL!E58, NGET!E58)) -> SF6 asset intervention Re-opener (NGET only) | G60: £m 18/19 prices | H60: =CHOOSE(m_identity,SHET!H58, SPTL!H58, NGET!H58) -> SF6REt | I60: =CHOOSE(m_identity,SHET!I58, SPTL!I58, NGET!I58) -> UM | AP60: =CHOOSE(m_identity,SHET!AP58, SPTL!AP58, NGET!AP58) -> 0 | AQ60: =CHOOSE(m_identity,SHET!AQ58, SPTL!AQ58, NGET!AQ58) -> 0 | AR60: =CHOOSE(m_identity,SHET!AR58, SPTL!AR58, NGET!AR58) -> 0 | AS60: =CHOOSE(m_identity,SHET!AS58, SPTL!AS58, NGET!AS58) -> 0 | AT60: =CHOOSE(m_identity,SHET!AT58, SPTL!AT58, NGET!AT58) -> 0 | BC60: =CHOOSE(m_identity,SHET!BC58, SPTL!BC58, NGET!BC58) -> TIM | BD60: =CHOOSE(m_identity,SHET!BD58, SPTL!BD58, NGET!BD58) -> RPEs Don’t Apply | BE60: =CHOOSE(m_identity,SHET!BE58, SPTL!BE58, NGET!BE58) -> CapRate 2 (UM) | BF60: =CHOOSE(m_identity,SHET!BF58, SPTL!BF58, NGET!BF58) -> Fast/Slow Split
E61: =(CHOOSE(m_identity,SHET!E59, SPTL!E59, NGET!E59)) -> Subsea Cable Re-opener (SHET only) | G61: £m 18/19 prices | H61: =CHOOSE(m_identity,SHET!H59, SPTL!H59, NGET!H59) -> SCRt | I61: =CHOOSE(m_identity,SHET!I59, SPTL!I59, NGET!I59) -> UM | AP61: =CHOOSE(m_identity,SHET!AP59, SPTL!AP59, NGET!AP59) -> 0 | AQ61: =CHOOSE(m_identity,SHET!AQ59, SPTL!AQ59, NGET!AQ59) -> 0 | AR61: =CHOOSE(m_identity,SHET!AR59, SPTL!AR59, NGET!AR59) -> 0 | AS61: =CHOOSE(m_identity,SHET!AS59, SPTL!AS59, NGET!AS59) -> 0 | AT61: =CHOOSE(m_identity,SHET!AT59, SPTL!AT59, NGET!AT59) -> 0 | BC61: =CHOOSE(m_identity,SHET!BC59, SPTL!BC59, NGET!BC59) -> TIM | BD61: =CHOOSE(m_identity,SHET!BD59, SPTL!BD59, NGET!BD59) -> RPEs Don’t Apply | BE61: =CHOOSE(m_identity,SHET!BE59, SPTL!BE59, NGET!BE59) -> CapRate 2 (UM) | BF61: =CHOOSE(m_identity,SHET!BF59, SPTL!BF59, NGET!BF59) -> Fast/Slow Split
E62: =(CHOOSE(m_identity,SHET!E60, SPTL!E60, NGET!E60)) -> Uncertain non-load related projects Re-opener (SPTL only) | G62: £m 18/19 prices | H62: =CHOOSE(m_identity,SHET!H60, SPTL!H60, NGET!H60) -> UNLREt | I62: =CHOOSE(m_identity,SHET!I60, SPTL!I60, NGET!I60) -> UM | AP62: =CHOOSE(m_identity,SHET!AP60, SPTL!AP60, NGET!AP60) -> 0 | AQ62: =CHOOSE(m_identity,SHET!AQ60, SPTL!AQ60, NGET!AQ60) -> 0 | AR62: =CHOOSE(m_identity,SHET!AR60, SPTL!AR60, NGET!AR60) -> 0 | AS62: =CHOOSE(m_identity,SHET!AS60, SPTL!AS60, NGET!AS60) -> 0 | AT62: =CHOOSE(m_identity,SHET!AT60, SPTL!AT60, NGET!AT60) -> 0 | BC62: =CHOOSE(m_identity,SHET!BC60, SPTL!BC60, NGET!BC60) -> TIM | BD62: =CHOOSE(m_identity,SHET!BD60, SPTL!BD60, NGET!BD60) -> RPEs Don’t Apply | BE62: =CHOOSE(m_identity,SHET!BE60, SPTL!BE60, NGET!BE60) -> CapRate 2 (UM) | BF62: =CHOOSE(m_identity,SHET!BF60, SPTL!BF60, NGET!BF60) -> Fast/Slow Split
E63: =(CHOOSE(m_identity,SHET!E61, SPTL!E61, NGET!E61)) -> Non-operational IT Capex Reopener | G63: £m 18/19 prices | H63: =CHOOSE(m_identity,SHET!H61, SPTL!H61, NGET!H61) -> NOITt | I63: =CHOOSE(m_identity,SHET!I61, SPTL!I61, NGET!I61) -> UM | AP63: =CHOOSE(m_identity,SHET!AP61, SPTL!AP61, NGET!AP61) -> 0 | AQ63: =CHOOSE(m_identity,SHET!AQ61, SPTL!AQ61, NGET!AQ61) -> 0 | AR63: =CHOOSE(m_identity,SHET!AR61, SPTL!AR61, NGET!AR61) -> 0 | AS63: =CHOOSE(m_identity,SHET!AS61, SPTL!AS61, NGET!AS61) -> 0 | AT63: =CHOOSE(m_identity,SHET!AT61, SPTL!AT61, NGET!AT61) -> 0 | BC63: =CHOOSE(m_identity,SHET!BC61, SPTL!BC61, NGET!BC61) -> TIM | BD63: =CHOOSE(m_identity,SHET!BD61, SPTL!BD61, NGET!BD61) -> RPEs Don’t Apply | BE63: =CHOOSE(m_identity,SHET!BE61, SPTL!BE61, NGET!BE61) -> CapRate 2 (UM) | BF63: =CHOOSE(m_identity,SHET!BF61, SPTL!BF61, NGET!BF61) -> Fast/Slow Split
E64: =(CHOOSE(m_identity,SHET!E62, SPTL!E62, NGET!E62)) -> Tyne Crossing Project Re-opener (NGET only) | G64: £m 18/19 prices | H64: =CHOOSE(m_identity,SHET!H62, SPTL!H62, NGET!H62) -> TCRt | I64: =CHOOSE(m_identity,SHET!I62, SPTL!I62, NGET!I62) -> UM | AP64: =CHOOSE(m_identity,SHET!AP62, SPTL!AP62, NGET!AP62) -> 0 | AQ64: =CHOOSE(m_identity,SHET!AQ62, SPTL!AQ62, NGET!AQ62) -> 0 | AR64: =CHOOSE(m_identity,SHET!AR62, SPTL!AR62, NGET!AR62) -> 0 | AS64: =CHOOSE(m_identity,SHET!AS62, SPTL!AS62, NGET!AS62) -> 0 | AT64: =CHOOSE(m_identity,SHET!AT62, SPTL!AT62, NGET!AT62) -> 0 | BC64: =CHOOSE(m_identity,SHET!BC62, SPTL!BC62, NGET!BC62) -> TIM | BD64: =CHOOSE(m_identity,SHET!BD62, SPTL!BD62, NGET!BD62) -> RPEs Don’t Apply | BE64: =CHOOSE(m_identity,SHET!BE62, SPTL!BE62, NGET!BE62) -> CapRate 2 (UM) | BF64: =CHOOSE(m_identity,SHET!BF62, SPTL!BF62, NGET!BF62) -> Fast/Slow Split
E65: =(CHOOSE(m_identity,SHET!E63, SPTL!E63, NGET!E63)) -> Bengeworth Road GSP Project Re-opener (NGET only) | G65: £m 18/19 prices | H65: =CHOOSE(m_identity,SHET!H63, SPTL!H63, NGET!H63) -> BRGt | I65: =CHOOSE(m_identity,SHET!I63, SPTL!I63, NGET!I63) -> UM | AP65: =CHOOSE(m_identity,SHET!AP63, SPTL!AP63, NGET!AP63) -> 0 | AQ65: =CHOOSE(m_identity,SHET!AQ63, SPTL!AQ63, NGET!AQ63) -> 0 | AR65: =CHOOSE(m_identity,SHET!AR63, SPTL!AR63, NGET!AR63) -> 0 | AS65: =CHOOSE(m_identity,SHET!AS63, SPTL!AS63, NGET!AS63) -> 0 | AT65: =CHOOSE(m_identity,SHET!AT63, SPTL!AT63, NGET!AT63) -> 0 | BC65: =CHOOSE(m_identity,SHET!BC63, SPTL!BC63, NGET!BC63) -> TIM | BD65: =CHOOSE(m_identity,SHET!BD63, SPTL!BD63, NGET!BD63) -> RPEs Don’t Apply | BE65: =CHOOSE(m_identity,SHET!BE63, SPTL!BE63, NGET!BE63) -> CapRate 2 (UM) | BF65: =CHOOSE(m_identity,SHET!BF63, SPTL!BF63, NGET!BF63) -> Fast/Slow Split
E66: =(CHOOSE(m_identity,SHET!E64, SPTL!E64, NGET!E64)) -> Civil Related Works Re-opener (NGET only) | G66: £m 18/19 prices | H66: =CHOOSE(m_identity,SHET!H64, SPTL!H64, NGET!H64) -> CWRt | I66: =CHOOSE(m_identity,SHET!I64, SPTL!I64, NGET!I64) -> UM | AP66: =CHOOSE(m_identity,SHET!AP64, SPTL!AP64, NGET!AP64) -> 0 | AQ66: =CHOOSE(m_identity,SHET!AQ64, SPTL!AQ64, NGET!AQ64) -> 0 | AR66: =CHOOSE(m_identity,SHET!AR64, SPTL!AR64, NGET!AR64) -> 0 | AS66: =CHOOSE(m_identity,SHET!AS64, SPTL!AS64, NGET!AS64) -> 0 | AT66: =CHOOSE(m_identity,SHET!AT64, SPTL!AT64, NGET!AT64) -> 0 | BC66: =CHOOSE(m_identity,SHET!BC64, SPTL!BC64, NGET!BC64) -> TIM | BD66: =CHOOSE(m_identity,SHET!BD64, SPTL!BD64, NGET!BD64) -> RPEs Don’t Apply | BE66: =CHOOSE(m_identity,SHET!BE64, SPTL!BE64, NGET!BE64) -> CapRate 2 (UM) | BF66: =CHOOSE(m_identity,SHET!BF64, SPTL!BF64, NGET!BF64) -> Fast/Slow Split
E67: =(CHOOSE(m_identity,SHET!E65, SPTL!E65, NGET!E65)) -> Tower Steelworks and Foundations Re-opener (NGET only) | G67: £m 18/19 prices | H67: =CHOOSE(m_identity,SHET!H65, SPTL!H65, NGET!H65) -> TSFt | I67: =CHOOSE(m_identity,SHET!I65, SPTL!I65, NGET!I65) -> UM | AP67: =CHOOSE(m_identity,SHET!AP65, SPTL!AP65, NGET!AP65) -> 0 | AQ67: =CHOOSE(m_identity,SHET!AQ65, SPTL!AQ65, NGET!AQ65) -> 0 | AR67: =CHOOSE(m_identity,SHET!AR65, SPTL!AR65, NGET!AR65) -> 0 | AS67: =CHOOSE(m_identity,SHET!AS65, SPTL!AS65, NGET!AS65) -> 0 | AT67: =CHOOSE(m_identity,SHET!AT65, SPTL!AT65, NGET!AT65) -> 0 | BC67: =CHOOSE(m_identity,SHET!BC65, SPTL!BC65, NGET!BC65) -> TIM | BD67: =CHOOSE(m_identity,SHET!BD65, SPTL!BD65, NGET!BD65) -> RPEs Don’t Apply | BE67: =CHOOSE(m_identity,SHET!BE65, SPTL!BE65, NGET!BE65) -> CapRate 2 (UM) | BF67: =CHOOSE(m_identity,SHET!BF65, SPTL!BF65, NGET!BF65) -> Fast/Slow Split
E68: =(CHOOSE(m_identity,SHET!E66, SPTL!E66, NGET!E66)) -> Wider Works Volume Driver (NGET only) | G68: £m 18/19 prices | H68: =CHOOSE(m_identity,SHET!H66, SPTL!H66, NGET!H66) -> WWVt | I68: =CHOOSE(m_identity,SHET!I66, SPTL!I66, NGET!I66) -> UM | AP68: =CHOOSE(m_identity,SHET!AP66, SPTL!AP66, NGET!AP66) -> 0 | AQ68: =CHOOSE(m_identity,SHET!AQ66, SPTL!AQ66, NGET!AQ66) -> 0 | AR68: =CHOOSE(m_identity,SHET!AR66, SPTL!AR66, NGET!AR66) -> 0 | AS68: =CHOOSE(m_identity,SHET!AS66, SPTL!AS66, NGET!AS66) -> 0 | AT68: =CHOOSE(m_identity,SHET!AT66, SPTL!AT66, NGET!AT66) -> 0 | BC68: =CHOOSE(m_identity,SHET!BC66, SPTL!BC66, NGET!BC66) -> TIM | BD68: =CHOOSE(m_identity,SHET!BD66, SPTL!BD66, NGET!BD66) -> RPEs Apply | BE68: =CHOOSE(m_identity,SHET!BE66, SPTL!BE66, NGET!BE66) -> CapRate 2 (UM) | BF68: =CHOOSE(m_identity,SHET!BF66, SPTL!BF66, NGET!BF66) -> Fast/Slow Split
E69: =(CHOOSE(m_identity,SHET!E67, SPTL!E67, NGET!E67)) -> Fibre Wrap Replacement Re-opener (NGET only) | G69: £m 18/19 prices | H69: =CHOOSE(m_identity,SHET!H67, SPTL!H67, NGET!H67) -> FWRt | I69: =CHOOSE(m_identity,SHET!I67, SPTL!I67, NGET!I67) -> UM | AP69: =CHOOSE(m_identity,SHET!AP67, SPTL!AP67, NGET!AP67) -> 0 | AQ69: =CHOOSE(m_identity,SHET!AQ67, SPTL!AQ67, NGET!AQ67) -> 0 | AR69: =CHOOSE(m_identity,SHET!AR67, SPTL!AR67, NGET!AR67) -> 0 | AS69: =CHOOSE(m_identity,SHET!AS67, SPTL!AS67, NGET!AS67) -> 0 | AT69: =CHOOSE(m_identity,SHET!AT67, SPTL!AT67, NGET!AT67) -> 0 | BC69: =CHOOSE(m_identity,SHET!BC67, SPTL!BC67, NGET!BC67) -> TIM | BD69: =CHOOSE(m_identity,SHET!BD67, SPTL!BD67, NGET!BD67) -> RPEs Don’t Apply | BE69: =CHOOSE(m_identity,SHET!BE67, SPTL!BE67, NGET!BE67) -> CapRate 2 (UM) | BF69: =CHOOSE(m_identity,SHET!BF67, SPTL!BF67, NGET!BF67) -> Fast/Slow Split
E70: =(CHOOSE(m_identity,SHET!E68, SPTL!E68, NGET!E68)) -> Access Reform Change Re-Opener | G70: £m 18/19 prices | H70: =CHOOSE(m_identity,SHET!H68, SPTL!H68, NGET!H68) -> ARRt | I70: =CHOOSE(m_identity,SHET!I68, SPTL!I68, NGET!I68) -> UM | AP70: =CHOOSE(m_identity,SHET!AP68, SPTL!AP68, NGET!AP68) -> 0 | AQ70: =CHOOSE(m_identity,SHET!AQ68, SPTL!AQ68, NGET!AQ68) -> 0 | AR70: =CHOOSE(m_identity,SHET!AR68, SPTL!AR68, NGET!AR68) -> 0 | AS70: =CHOOSE(m_identity,SHET!AS68, SPTL!AS68, NGET!AS68) -> 0 | AT70: =CHOOSE(m_identity,SHET!AT68, SPTL!AT68, NGET!AT68) -> 0 | BC70: =CHOOSE(m_identity,SHET!BC68, SPTL!BC68, NGET!BC68) -> TIM | BD70: =CHOOSE(m_identity,SHET!BD68, SPTL!BD68, NGET!BD68) -> RPEs Don’t Apply | BE70: =CHOOSE(m_identity,SHET!BE68, SPTL!BE68, NGET!BE68) -> CapRate 2 (UM) | BF70: =CHOOSE(m_identity,SHET!BF68, SPTL!BF68, NGET!BF68) -> Fast/Slow Split
E71: =(CHOOSE(m_identity,SHET!E69, SPTL!E69, NGET!E69)) -> T1/T2 offset adjusment (NGET only) | G71: £m 18/19 prices | H71: =CHOOSE(m_identity,SHET!H69, SPTL!H69, NGET!H69) -> T1OAt | I71: =CHOOSE(m_identity,SHET!I69, SPTL!I69, NGET!I69) -> UM | AP71: =CHOOSE(m_identity,SHET!AP69, SPTL!AP69, NGET!AP69) -> 0 | AQ71: =CHOOSE(m_identity,SHET!AQ69, SPTL!AQ69, NGET!AQ69) -> 0 | AR71: =CHOOSE(m_identity,SHET!AR69, SPTL!AR69, NGET!AR69) -> 0 | AS71: =CHOOSE(m_identity,SHET!AS69, SPTL!AS69, NGET!AS69) -> 0 | AT71: =CHOOSE(m_identity,SHET!AT69, SPTL!AT69, NGET!AT69) -> 0 | BC71: =CHOOSE(m_identity,SHET!BC69, SPTL!BC69, NGET!BC69) -> TIM | BD71: =CHOOSE(m_identity,SHET!BD69, SPTL!BD69, NGET!BD69) -> RPEs Don’t Apply | BE71: =CHOOSE(m_identity,SHET!BE69, SPTL!BE69, NGET!BE69) -> CapRate 2 (UM) | BF71: =CHOOSE(m_identity,SHET!BF69, SPTL!BF69, NGET!BF69) -> Fast/Slow Split
E72: =(CHOOSE(m_identity,SHET!E70, SPTL!E70, NGET!E70)) -> Pre-Construction Funding Re-Opener | G72: £m 18/19 prices | H72: =CHOOSE(m_identity,SHET!H70, SPTL!H70, NGET!H70) -> PCFREt | I72: =CHOOSE(m_identity,SHET!I70, SPTL!I70, NGET!I70) -> UM | AP72: =CHOOSE(m_identity,SHET!AP70, SPTL!AP70, NGET!AP70) -> 3.032172624 | AQ72: =CHOOSE(m_identity,SHET!AQ70, SPTL!AQ70, NGET!AQ70) -> 23.41972917 | AR72: =CHOOSE(m_identity,SHET!AR70, SPTL!AR70, NGET!AR70) -> 28.41140436 | AS72: =CHOOSE(m_identity,SHET!AS70, SPTL!AS70, NGET!AS70) -> 26.93036158 | AT72: =CHOOSE(m_identity,SHET!AT70, SPTL!AT70, NGET!AT70) -> 30.26977633 | BC72: =CHOOSE(m_identity,SHET!BC70, SPTL!BC70, NGET!BC70) -> TIM | BD72: =CHOOSE(m_identity,SHET!BD70, SPTL!BD70, NGET!BD70) -> RPEs Don’t Apply | BE72: =CHOOSE(m_identity,SHET!BE70, SPTL!BE70, NGET!BE70) -> CapRate 2 (UM) | BF72: =CHOOSE(m_identity,SHET!BF70, SPTL!BF70, NGET!BF70) -> Fast/Slow Split
E73: =(CHOOSE(m_identity,SHET!E71, SPTL!E71, NGET!E71)) -> Physical Security Re-Opener | G73: £m 18/19 prices | H73: =CHOOSE(m_identity,SHET!H71, SPTL!H71, NGET!H71) -> PSUPREt | I73: =CHOOSE(m_identity,SHET!I71, SPTL!I71, NGET!I71) -> UM | AP73: =CHOOSE(m_identity,SHET!AP71, SPTL!AP71, NGET!AP71) -> 0 | AQ73: =CHOOSE(m_identity,SHET!AQ71, SPTL!AQ71, NGET!AQ71) -> 0 | AR73: =CHOOSE(m_identity,SHET!AR71, SPTL!AR71, NGET!AR71) -> 0 | AS73: =CHOOSE(m_identity,SHET!AS71, SPTL!AS71, NGET!AS71) -> 0 | AT73: =CHOOSE(m_identity,SHET!AT71, SPTL!AT71, NGET!AT71) -> 0 | BC73: =CHOOSE(m_identity,SHET!BC71, SPTL!BC71, NGET!BC71) -> TIM | BD73: =CHOOSE(m_identity,SHET!BD71, SPTL!BD71, NGET!BD71) -> RPEs Don’t Apply | BE73: =CHOOSE(m_identity,SHET!BE71, SPTL!BE71, NGET!BE71) -> CapRate 2 (UM) | BF73: =CHOOSE(m_identity,SHET!BF71, SPTL!BF71, NGET!BF71) -> Fast/Slow Split
E74: =(CHOOSE(m_identity,SHET!E72, SPTL!E72, NGET!E72)) -> Cyber Resilience OT Re-Opener | G74: £m 18/19 prices | H74: =CHOOSE(m_identity,SHET!H72, SPTL!H72, NGET!H72) -> CROTREt | I74: =CHOOSE(m_identity,SHET!I72, SPTL!I72, NGET!I72) -> UM | AP74: =CHOOSE(m_identity,SHET!AP72, SPTL!AP72, NGET!AP72) -> 7.518 | AQ74: =CHOOSE(m_identity,SHET!AQ72, SPTL!AQ72, NGET!AQ72) -> 7.019 | AR74: =CHOOSE(m_identity,SHET!AR72, SPTL!AR72, NGET!AR72) -> 7.438 | AS74: =CHOOSE(m_identity,SHET!AS72, SPTL!AS72, NGET!AS72) -> 7.963 | AT74: =CHOOSE(m_identity,SHET!AT72, SPTL!AT72, NGET!AT72) -> 5.221 | BC74: =CHOOSE(m_identity,SHET!BC72, SPTL!BC72, NGET!BC72) -> Non-Tim | BD74: =CHOOSE(m_identity,SHET!BD72, SPTL!BD72, NGET!BD72) -> RPEs Don’t Apply | BE74: =CHOOSE(m_identity,SHET!BE72, SPTL!BE72, NGET!BE72) -> CapRate 2 (UM) | BF74: =CHOOSE(m_identity,SHET!BF72, SPTL!BF72, NGET!BF72) -> Fast/Slow Split
E75: =(CHOOSE(m_identity,SHET!E73, SPTL!E73, NGET!E73)) -> Cyber Resilience IT Re-Opener | G75: £m 18/19 prices | H75: =CHOOSE(m_identity,SHET!H73, SPTL!H73, NGET!H73) -> CRITREt | I75: =CHOOSE(m_identity,SHET!I73, SPTL!I73, NGET!I73) -> UM | AP75: =CHOOSE(m_identity,SHET!AP73, SPTL!AP73, NGET!AP73) -> -0.85 | AQ75: =CHOOSE(m_identity,SHET!AQ73, SPTL!AQ73, NGET!AQ73) -> -0.38 | AR75: =CHOOSE(m_identity,SHET!AR73, SPTL!AR73, NGET!AR73) -> -0.18 | AS75: =CHOOSE(m_identity,SHET!AS73, SPTL!AS73, NGET!AS73) -> 0.48 | AT75: =CHOOSE(m_identity,SHET!AT73, SPTL!AT73, NGET!AT73) -> -0.001 | BC75: =CHOOSE(m_identity,SHET!BC73, SPTL!BC73, NGET!BC73) -> TIM | BD75: =CHOOSE(m_identity,SHET!BD73, SPTL!BD73, NGET!BD73) -> RPEs Don’t Apply | BE75: =CHOOSE(m_identity,SHET!BE73, SPTL!BE73, NGET!BE73) -> CapRate 2 (UM) | BF75: =CHOOSE(m_identity,SHET!BF73, SPTL!BF73, NGET!BF73) -> Fast/Slow Split
E76: =(CHOOSE(m_identity,SHET!E74, SPTL!E74, NGET!E74)) -> Opex escalator | G76: £m 18/19 prices | H76: =CHOOSE(m_identity,SHET!H74, SPTL!H74, NGET!H74) -> OEt | I76: =CHOOSE(m_identity,SHET!I74, SPTL!I74, NGET!I74) -> UM | AP76: =CHOOSE(m_identity,SHET!AP74, SPTL!AP74, NGET!AP74) -> 26.2599888 | AQ76: =CHOOSE(m_identity,SHET!AQ74, SPTL!AQ74, NGET!AQ74) -> 22.62975431 | AR76: =CHOOSE(m_identity,SHET!AR74, SPTL!AR74, NGET!AR74) -> 42.33353805 | AS76: =CHOOSE(m_identity,SHET!AS74, SPTL!AS74, NGET!AS74) -> 53.05973494 | AT76: =CHOOSE(m_identity,SHET!AT74, SPTL!AT74, NGET!AT74) -> 33.53910841 | BC76: =CHOOSE(m_identity,SHET!BC74, SPTL!BC74, NGET!BC74) -> TIM | BD76: =CHOOSE(m_identity,SHET!BD74, SPTL!BD74, NGET!BD74) -> RPEs Don’t Apply | BE76: =CHOOSE(m_identity,SHET!BE74, SPTL!BE74, NGET!BE74) -> CapRate 2 (UM) | BF76: =CHOOSE(m_identity,SHET!BF74, SPTL!BF74, NGET!BF74) -> Fast/Slow Split
E77: =(CHOOSE(m_identity,SHET!E75, SPTL!E75, NGET!E75)) -> Entry and Exit Connection Asset Allowance | G77: £m 18/19 prices | H77: =CHOOSE(m_identity,SHET!H75, SPTL!H75, NGET!H75) -> EECAt | I77: =CHOOSE(m_identity,SHET!I75, SPTL!I75, NGET!I75) -> UM | AP77: =CHOOSE(m_identity,SHET!AP75, SPTL!AP75, NGET!AP75) -> 18.17068702 | AQ77: =CHOOSE(m_identity,SHET!AQ75, SPTL!AQ75, NGET!AQ75) -> 18.22054175 | AR77: =CHOOSE(m_identity,SHET!AR75, SPTL!AR75, NGET!AR75) -> 53.95613265 | AS77: =CHOOSE(m_identity,SHET!AS75, SPTL!AS75, NGET!AS75) -> 71.483209 | AT77: =CHOOSE(m_identity,SHET!AT75, SPTL!AT75, NGET!AT75) -> 36.95956057 | BC77: =CHOOSE(m_identity,SHET!BC75, SPTL!BC75, NGET!BC75) -> Non-Tim | BD77: =CHOOSE(m_identity,SHET!BD75, SPTL!BD75, NGET!BD75) -> RPEs Don’t Apply | BE77: =CHOOSE(m_identity,SHET!BE75, SPTL!BE75, NGET!BE75) -> CapRate 2 (UM) | BF77: =CHOOSE(m_identity,SHET!BF75, SPTL!BF75, NGET!BF75) -> Fast/Slow Split
E78: =(CHOOSE(m_identity,SHET!E76, SPTL!E76, NGET!E76)) -> Legacy Baseline Connections Volume Driver (SHET only) | G78: £m 18/19 prices | H78: =CHOOSE(m_identity,SHET!H76, SPTL!H76, NGET!H76) -> LGCEt | I78: =CHOOSE(m_identity,SHET!I76, SPTL!I76, NGET!I76) -> UM | AP78: =CHOOSE(m_identity,SHET!AP76, SPTL!AP76, NGET!AP76) -> 88.4134433 | AQ78: =CHOOSE(m_identity,SHET!AQ76, SPTL!AQ76, NGET!AQ76) -> 30.60271758 | AR78: =CHOOSE(m_identity,SHET!AR76, SPTL!AR76, NGET!AR76) -> 0.2321599247 | AS78: =CHOOSE(m_identity,SHET!AS76, SPTL!AS76, NGET!AS76) -> 0.2292579256 | AT78: =CHOOSE(m_identity,SHET!AT76, SPTL!AT76, NGET!AT76) -> 0.2263922015 | BC78: =CHOOSE(m_identity,SHET!BC76, SPTL!BC76, NGET!BC76) -> Non-Tim | BD78: =CHOOSE(m_identity,SHET!BD76, SPTL!BD76, NGET!BD76) -> RPEs Don’t Apply | BE78: =CHOOSE(m_identity,SHET!BE76, SPTL!BE76, NGET!BE76) -> CapRate 2 (UM) | BF78: =CHOOSE(m_identity,SHET!BF76, SPTL!BF76, NGET!BF76) -> Fast/Slow Split
E79: =(CHOOSE(m_identity,SHET!E77, SPTL!E77, NGET!E77)) -> Spare UM 3 | G79: £m 18/19 prices | H79: =CHOOSE(m_identity,SHET!H77, SPTL!H77, NGET!H77) -> 0 | I79: =CHOOSE(m_identity,SHET!I77, SPTL!I77, NGET!I77) -> UM | AP79: =CHOOSE(m_identity,SHET!AP77, SPTL!AP77, NGET!AP77) -> 0 | AQ79: =CHOOSE(m_identity,SHET!AQ77, SPTL!AQ77, NGET!AQ77) -> 0 | AR79: =CHOOSE(m_identity,SHET!AR77, SPTL!AR77, NGET!AR77) -> 0 | AS79: =CHOOSE(m_identity,SHET!AS77, SPTL!AS77, NGET!AS77) -> 0 | AT79: =CHOOSE(m_identity,SHET!AT77, SPTL!AT77, NGET!AT77) -> 0 | BC79: =CHOOSE(m_identity,SHET!BC77, SPTL!BC77, NGET!BC77) -> 0 | BD79: =CHOOSE(m_identity,SHET!BD77, SPTL!BD77, NGET!BD77) -> 0 | BE79: =CHOOSE(m_identity,SHET!BE77, SPTL!BE77, NGET!BE77) -> 0 | BF79: =CHOOSE(m_identity,SHET!BF77, SPTL!BF77, NGET!BF77) -> 0
E80: RPE non-variant allowances | G80: £m 18/19 prices | H80: =CHOOSE(m_identity,SHET!H78, SPTL!H78, NGET!H78) -> RPEAt (non-variant) | I80: =CHOOSE(m_identity,SHET!I78, SPTL!I78, NGET!I78) -> UM | AP80: =SUMPRODUCT((AP$671:AP$688) * ($E$671:$E$688 = $E80)) -> 0.329639883 | AQ80: =SUMPRODUCT((AQ$671:AQ$688) * ($E$671:$E$688 = $E80)) -> 0.1547494885 | AR80: =SUMPRODUCT((AR$671:AR$688) * ($E$671:$E$688 = $E80)) -> 0.3353554661 | AS80: =SUMPRODUCT((AS$671:AS$688) * ($E$671:$E$688 = $E80)) -> 0.4838471729 | AT80: =SUMPRODUCT((AT$671:AT$688) * ($E$671:$E$688 = $E80)) -> 0.8603421669 | BC80: =CHOOSE(m_identity,SHET!BC78, SPTL!BC78, NGET!BC78) -> TIM | BD80: =CHOOSE(m_identity,SHET!BD78, SPTL!BD78, NGET!BD78) -> 0 | BE80: =CHOOSE(m_identity,SHET!BE78, SPTL!BE78, NGET!BE78) -> CapRate 1 (Baseline) | BF80: =CHOOSE(m_identity,SHET!BF78, SPTL!BF78, NGET!BF78) -> Fast/Slow Split
E81: RPE PCDs | G81: £m 18/19 prices | H81: =CHOOSE(m_identity,SHET!H79, SPTL!H79, NGET!H79) -> RPEAt (PCD) | I81: =CHOOSE(m_identity,SHET!I79, SPTL!I79, NGET!I79) -> UM | AP81: =SUMPRODUCT((AP$671:AP$688) * ($E$671:$E$688 = $E81)) -> 1.303489756 | AQ81: =SUMPRODUCT((AQ$671:AQ$688) * ($E$671:$E$688 = $E81)) -> 0.8781252247 | AR81: =SUMPRODUCT((AR$671:AR$688) * ($E$671:$E$688 = $E81)) -> 1.160068562 | AS81: =SUMPRODUCT((AS$671:AS$688) * ($E$671:$E$688 = $E81)) -> 2.345772178 | AT81: =SUMPRODUCT((AT$671:AT$688) * ($E$671:$E$688 = $E81)) -> 3.196379635 | BC81: =CHOOSE(m_identity,SHET!BC79, SPTL!BC79, NGET!BC79) -> TIM | BD81: =CHOOSE(m_identity,SHET!BD79, SPTL!BD79, NGET!BD79) -> 0 | BE81: =CHOOSE(m_identity,SHET!BE79, SPTL!BE79, NGET!BE79) -> CapRate 1 (Baseline) | BF81: =CHOOSE(m_identity,SHET!BF79, SPTL!BF79, NGET!BF79) -> Fast/Slow Split
E82: RPE UMs | G82: £m 18/19 prices | H82: =CHOOSE(m_identity,SHET!H80, SPTL!H80, NGET!H80) -> RPEAt (UM) | I82: =CHOOSE(m_identity,SHET!I80, SPTL!I80, NGET!I80) -> UM | AP82: =SUMPRODUCT((AP$671:AP$688) * ($E$671:$E$688 = $E82)) -> 0.0964471247 | AQ82: =SUMPRODUCT((AQ$671:AQ$688) * ($E$671:$E$688 = $E82)) -> 0.07586348743 | AR82: =SUMPRODUCT((AR$671:AR$688) * ($E$671:$E$688 = $E82)) -> 0.1565561897 | AS82: =SUMPRODUCT((AS$671:AS$688) * ($E$671:$E$688 = $E82)) -> 0.2875833231 | AT82: =SUMPRODUCT((AT$671:AT$688) * ($E$671:$E$688 = $E82)) -> 0.3630084802 | BC82: =CHOOSE(m_identity,SHET!BC80, SPTL!BC80, NGET!BC80) -> TIM | BD82: =CHOOSE(m_identity,SHET!BD80, SPTL!BD80, NGET!BD80) -> 0 | BE82: =CHOOSE(m_identity,SHET!BE80, SPTL!BE80, NGET!BE80) -> CapRate 2 (UM) | BF82: =CHOOSE(m_identity,SHET!BF80, SPTL!BF80, NGET!BF80) -> Fast/Slow Split
E83: Total | G83: £m 18/19 prices | AP83: =SUM(AP22:AP82) -> 699.0539669 | AQ83: =SUM(AQ22:AQ82) -> 751.7262224 | AR83: =SUM(AR22:AR82) -> 873.585035 | AS83: =SUM(AS22:AS82) -> 1015.387369 | AT83: =SUM(AT22:AT82) -> 661.5540792
B85: Actual totex
E87: Capitalisation rate 1:
E88: Actual load related capex expenditure | G88: £m 18/19 prices | H88: =CHOOSE(m_identity,SHET!H85, SPTL!H85, NGET!H85) -> ALC | J88: > | AH88: =CHOOSE(m_identity,SHET!AH85, SPTL!AH85, NGET!AH85) -> 159.0182507 | AI88: =CHOOSE(m_identity,SHET!AI85, SPTL!AI85, NGET!AI85) -> 329.0292028 | AJ88: =CHOOSE(m_identity,SHET!AJ85, SPTL!AJ85, NGET!AJ85) -> 529.0749247 | AK88: =CHOOSE(m_identity,SHET!AK85, SPTL!AK85, NGET!AK85) -> 428.7435894 | AL88: =CHOOSE(m_identity,SHET!AL85, SPTL!AL85, NGET!AL85) -> 352.908279 | AM88: =CHOOSE(m_identity,SHET!AM85, SPTL!AM85, NGET!AM85) -> 249.5385463 | AN88: =CHOOSE(m_identity,SHET!AN85, SPTL!AN85, NGET!AN85) -> 223.8676459 | AO88: =CHOOSE(m_identity,SHET!AO85, SPTL!AO85, NGET!AO85) -> 290.7588152 | AP88: =CHOOSE(m_identity,SHET!AP85, SPTL!AP85, NGET!AP85) -> 129.9057648 | AQ88: =CHOOSE(m_identity,SHET!AQ85, SPTL!AQ85, NGET!AQ85) -> 169.5417257 | AR88: =CHOOSE(m_identity,SHET!AR85, SPTL!AR85, NGET!AR85) -> 186.1826114 | AS88: =CHOOSE(m_identity,SHET!AS85, SPTL!AS85, NGET!AS85) -> 177.7478343 | AT88: =CHOOSE(m_identity,SHET!AT85, SPTL!AT85, NGET!AT85) -> 136.3780247
E89: Actual asset replacement capex expenditure | G89: £m 18/19 prices | H89: =CHOOSE(m_identity,SHET!H86, SPTL!H86, NGET!H86) -> ARC | J89: > | AH89: =CHOOSE(m_identity,SHET!AH86, SPTL!AH86, NGET!AH86) -> 21.55502869 | AI89: =CHOOSE(m_identity,SHET!AI86, SPTL!AI86, NGET!AI86) -> 21.53002866 | AJ89: =CHOOSE(m_identity,SHET!AJ86, SPTL!AJ86, NGET!AJ86) -> 14.25201897 | AK89: =CHOOSE(m_identity,SHET!AK86, SPTL!AK86, NGET!AK86) -> 22.51321027 | AL89: =CHOOSE(m_identity,SHET!AL86, SPTL!AL86, NGET!AL86) -> 41.36504672 | AM89: =CHOOSE(m_identity,SHET!AM86, SPTL!AM86, NGET!AM86) -> 44.69488755 | AN89: =CHOOSE(m_identity,SHET!AN86, SPTL!AN86, NGET!AN86) -> 63.82582667 | AO89: =CHOOSE(m_identity,SHET!AO86, SPTL!AO86, NGET!AO86) -> 74.12573424 | AP89: =CHOOSE(m_identity,SHET!AP86, SPTL!AP86, NGET!AP86) -> 112.7847898 | AQ89: =CHOOSE(m_identity,SHET!AQ86, SPTL!AQ86, NGET!AQ86) -> 150.1261518 | AR89: =CHOOSE(m_identity,SHET!AR86, SPTL!AR86, NGET!AR86) -> 167.9777274 | AS89: =CHOOSE(m_identity,SHET!AS86, SPTL!AS86, NGET!AS86) -> 160.2796902 | AT89: =CHOOSE(m_identity,SHET!AT86, SPTL!AT86, NGET!AT86) -> 122.5170357
E90: Actual other capex expenditure | G90: £m 18/19 prices | H90: =CHOOSE(m_identity,SHET!H87, SPTL!H87, NGET!H87) -> AOC | J90: > | AH90: =CHOOSE(m_identity,SHET!AH87, SPTL!AH87, NGET!AH87) -> 0.731000973 | AI90: =CHOOSE(m_identity,SHET!AI87, SPTL!AI87, NGET!AI87) -> 2.949136457 | AJ90: =CHOOSE(m_identity,SHET!AJ87, SPTL!AJ87, NGET!AJ87) -> 5.068696501 | AK90: =CHOOSE(m_identity,SHET!AK87, SPTL!AK87, NGET!AK87) -> 11.16425861 | AL90: =CHOOSE(m_identity,SHET!AL87, SPTL!AL87, NGET!AL87) -> 11.26835426 | AM90: =CHOOSE(m_identity,SHET!AM87, SPTL!AM87, NGET!AM87) -> 8.878265425 | AN90: =CHOOSE(m_identity,SHET!AN87, SPTL!AN87, NGET!AN87) -> 26.2056496 | AO90: =CHOOSE(m_identity,SHET!AO87, SPTL!AO87, NGET!AO87) -> 29.24991152 | AP90: =CHOOSE(m_identity,SHET!AP87, SPTL!AP87, NGET!AP87) -> 2.454524752 | AQ90: =CHOOSE(m_identity,SHET!AQ87, SPTL!AQ87, NGET!AQ87) -> 3.267181294 | AR90: =CHOOSE(m_identity,SHET!AR87, SPTL!AR87, NGET!AR87) -> 3.655683451 | AS90: =CHOOSE(m_identity,SHET!AS87, SPTL!AS87, NGET!AS87) -> 3.488151792 | AT90: =CHOOSE(m_identity,SHET!AT87, SPTL!AT87, NGET!AT87) -> 2.666326702
E91: Actual network operating costs (opex) | G91: £m 18/19 prices | H91: =CHOOSE(m_identity,SHET!H88, SPTL!H88, NGET!H88) -> ACO | J91: > | AH91: =CHOOSE(m_identity,SHET!AH88, SPTL!AH88, NGET!AH88) -> 14.74100643 | AI91: =CHOOSE(m_identity,SHET!AI88, SPTL!AI88, NGET!AI88) -> 18.00634352 | AJ91: =CHOOSE(m_identity,SHET!AJ88, SPTL!AJ88, NGET!AJ88) -> 21.87754668 | AK91: =CHOOSE(m_identity,SHET!AK88, SPTL!AK88, NGET!AK88) -> 25.8111056 | AL91: =CHOOSE(m_identity,SHET!AL88, SPTL!AL88, NGET!AL88) -> 33.2028844 | AM91: =CHOOSE(m_identity,SHET!AM88, SPTL!AM88, NGET!AM88) -> 39.11814987 | AN91: =CHOOSE(m_identity,SHET!AN88, SPTL!AN88, NGET!AN88) -> 41.74394046 | AO91: =CHOOSE(m_identity,SHET!AO88, SPTL!AO88, NGET!AO88) -> 51.27185603 | AP91: =CHOOSE(m_identity,SHET!AP88, SPTL!AP88, NGET!AP88) -> 24.89334211 | AQ91: =CHOOSE(m_identity,SHET!AQ88, SPTL!AQ88, NGET!AQ88) -> 38.06518431 | AR91: =CHOOSE(m_identity,SHET!AR88, SPTL!AR88, NGET!AR88) -> 38.77112896 | AS91: =CHOOSE(m_identity,SHET!AS88, SPTL!AS88, NGET!AS88) -> 41.5007425 | AT91: =CHOOSE(m_identity,SHET!AT88, SPTL!AT88, NGET!AT88) -> 23.35154794
E92: Actual indirects (opex) | G92: £m 18/19 prices | H92: =CHOOSE(m_identity,SHET!H89, SPTL!H89, NGET!H89) -> AIO | AP92: =CHOOSE(m_identity,SHET!AP89, SPTL!AP89, NGET!AP89) -> 64.85111281 | AQ92: =CHOOSE(m_identity,SHET!AQ89, SPTL!AQ89, NGET!AQ89) -> 63.88607395 | AR92: =CHOOSE(m_identity,SHET!AR89, SPTL!AR89, NGET!AR89) -> 77.73888294 | AS92: =CHOOSE(m_identity,SHET!AS89, SPTL!AS89, NGET!AS89) -> 73.47516345 | AT92: =CHOOSE(m_identity,SHET!AT89, SPTL!AT89, NGET!AT89) -> 76.50782319
E93: Actual non-operational capex | G93: £m 18/19 prices | H93: =CHOOSE(m_identity,SHET!H90, SPTL!H90, NGET!H90) -> ANC | J93: > | AH93: =CHOOSE(m_identity,SHET!AH90, SPTL!AH90, NGET!AH90) -> 0.3380004499 | AI93: =CHOOSE(m_identity,SHET!AI90, SPTL!AI90, NGET!AI90) -> 2.122002825 | AJ93: =CHOOSE(m_identity,SHET!AJ90, SPTL!AJ90, NGET!AJ90) -> 1.805002403 | AK93: =CHOOSE(m_identity,SHET!AK90, SPTL!AK90, NGET!AK90) -> 5.279007027 | AL93: =CHOOSE(m_identity,SHET!AL90, SPTL!AL90, NGET!AL90) -> 5.366007142 | AM93: =CHOOSE(m_identity,SHET!AM90, SPTL!AM90, NGET!AM90) -> 3.135204173 | AN93: =CHOOSE(m_identity,SHET!AN90, SPTL!AN90, NGET!AN90) -> 3.823038153 | AO93: =CHOOSE(m_identity,SHET!AO90, SPTL!AO90, NGET!AO90) -> 7.096024104 | AP93: =CHOOSE(m_identity,SHET!AP90, SPTL!AP90, NGET!AP90) -> 10.35643532 | AQ93: =CHOOSE(m_identity,SHET!AQ90, SPTL!AQ90, NGET!AQ90) -> 13.78529661 | AR93: =CHOOSE(m_identity,SHET!AR90, SPTL!AR90, NGET!AR90) -> 15.42451311 | AS93: =CHOOSE(m_identity,SHET!AS90, SPTL!AS90, NGET!AS90) -> 14.71764275 | AT93: =CHOOSE(m_identity,SHET!AT90, SPTL!AT90, NGET!AT90) -> 11.25009638
E94: Total | G94: £m 18/19 prices | J94: > | AH94: =SUM(AH88:AH93) -> 196.3832872 | AI94: 373.6367142 | AJ94: 572.0781893 | AK94: 493.5111709 | AL94: 444.1105715 | AM94: 345.3650534 | AN94: 359.4661008 | AO94: 452.5023411 | AP94: 345.2459696 | AQ94: 438.6716136 | AR94: 489.7505472 | AS94: 471.2092249 | AT94: 372.6708546
E96: Capitalisation rate 2:
E97: Actual load related capex expenditure | G97: £m 18/19 prices | H97: =CHOOSE(m_identity,SHET!H93, SPTL!H93, NGET!H93) -> ALCU | AP97: =CHOOSE(m_identity,SHET!AP93, SPTL!AP93, NGET!AP93) -> 311.0983613 | AQ97: =CHOOSE(m_identity,SHET!AQ93, SPTL!AQ93, NGET!AQ93) -> 259.0116277 | AR97: =CHOOSE(m_identity,SHET!AR93, SPTL!AR93, NGET!AR93) -> 475.7318252 | AS97: =CHOOSE(m_identity,SHET!AS93, SPTL!AS93, NGET!AS93) -> 607.277522 | AT97: =CHOOSE(m_identity,SHET!AT93, SPTL!AT93, NGET!AT93) -> 375.7023396
E98: Actual asset replacement capex expenditure | G98: £m 18/19 prices | H98: =CHOOSE(m_identity,SHET!H94, SPTL!H94, NGET!H94) -> ARCU | AP98: =CHOOSE(m_identity,SHET!AP94, SPTL!AP94, NGET!AP94) -> 1.202994159 | AQ98: =CHOOSE(m_identity,SHET!AQ94, SPTL!AQ94, NGET!AQ94) -> 9.291620527 | AR98: =CHOOSE(m_identity,SHET!AR94, SPTL!AR94, NGET!AR94) -> 11.27203419 | AS98: =CHOOSE(m_identity,SHET!AS94, SPTL!AS94, NGET!AS94) -> 10.6844404 | AT98: =CHOOSE(m_identity,SHET!AT94, SPTL!AT94, NGET!AT94) -> 12.00933081
E99: Actual other capex expenditure | G99: £m 18/19 prices | H99: =CHOOSE(m_identity,SHET!H95, SPTL!H95, NGET!H95) -> AOCU | AP99: =CHOOSE(m_identity,SHET!AP95, SPTL!AP95, NGET!AP95) -> 0.02618064852 | AQ99: =CHOOSE(m_identity,SHET!AQ95, SPTL!AQ95, NGET!AQ95) -> 0.2022126619 | AR99: =CHOOSE(m_identity,SHET!AR95, SPTL!AR95, NGET!AR95) -> 0.2453122178 | AS99: =CHOOSE(m_identity,SHET!AS95, SPTL!AS95, NGET!AS95) -> 0.2325244695 | AT99: =CHOOSE(m_identity,SHET!AT95, SPTL!AT95, NGET!AT95) -> 0.2613579347
E100: Actual network operating costs (opex) | G100: £m 18/19 prices | H100: =CHOOSE(m_identity,SHET!H96, SPTL!H96, NGET!H96) -> ACOU | AP100: =CHOOSE(m_identity,SHET!AP96, SPTL!AP96, NGET!AP96) -> 0.08207007756 | AQ100: =CHOOSE(m_identity,SHET!AQ96, SPTL!AQ96, NGET!AQ96) -> 0.6338883789 | AR100: =CHOOSE(m_identity,SHET!AR96, SPTL!AR96, NGET!AR96) -> 0.7689951887 | AS100: =CHOOSE(m_identity,SHET!AS96, SPTL!AS96, NGET!AS96) -> 0.7289086531 | AT100: =CHOOSE(m_identity,SHET!AT96, SPTL!AT96, NGET!AT96) -> 0.8192946771
E101: Actual indirects (opex) | G101: £m 18/19 prices | H101: =CHOOSE(m_identity,SHET!H97, SPTL!H97, NGET!H97) -> AIOU | AP101: =CHOOSE(m_identity,SHET!AP97, SPTL!AP97, NGET!AP97) -> 22.31608845 | AQ101: =CHOOSE(m_identity,SHET!AQ97, SPTL!AQ97, NGET!AQ97) -> 22.22235418 | AR101: =CHOOSE(m_identity,SHET!AR97, SPTL!AR97, NGET!AR97) -> 45.52558249 | AS101: =CHOOSE(m_identity,SHET!AS97, SPTL!AS97, NGET!AS97) -> 58.8893547 | AT101: =CHOOSE(m_identity,SHET!AT97, SPTL!AT97, NGET!AT97) -> 38.04408938
E102: Actual non-operational capex | G102: £m 18/19 prices | H102: =CHOOSE(m_identity,SHET!H98, SPTL!H98, NGET!H98) -> ANCU | AP102: =CHOOSE(m_identity,SHET!AP98, SPTL!AP98, NGET!AP98) -> 0.1104646399 | AQ102: =CHOOSE(m_identity,SHET!AQ98, SPTL!AQ98, NGET!AQ98) -> 0.8532007477 | AR102: =CHOOSE(m_identity,SHET!AR98, SPTL!AR98, NGET!AR98) -> 1.035051741 | AS102: =CHOOSE(m_identity,SHET!AS98, SPTL!AS98, NGET!AS98) -> 0.9810960866 | AT102: =CHOOSE(m_identity,SHET!AT98, SPTL!AT98, NGET!AT98) -> 1.10275382
E103: Total | G103: £m 18/19 prices | AP103: =SUM(AP97:AP102) -> 334.8361593 | AQ103: =SUM(AQ97:AQ102) -> 292.2149042 | AR103: =SUM(AR97:AR102) -> 534.578801 | AS103: =SUM(AS97:AS102) -> 678.7938463 | AT103: =SUM(AT97:AT102) -> 427.9391662
B105: Pass-through costs
E107: =CHOOSE(m_identity,SHET!E102, SPTL!E102, NGET!E102) -> Prescribed Rates | G107: £m 18/19 prices | H107: =CHOOSE(m_identity,SHET!H102, SPTL!H102, NGET!H102) -> RBt | AP107: =CHOOSE(m_identity,SHET!AP102, SPTL!AP102, NGET!AP102) -> 41.11522739 | AQ107: =CHOOSE(m_identity,SHET!AQ102, SPTL!AQ102, NGET!AQ102) -> 40.33506452 | AR107: =CHOOSE(m_identity,SHET!AR102, SPTL!AR102, NGET!AR102) -> 40.0748871 | AS107: =CHOOSE(m_identity,SHET!AS102, SPTL!AS102, NGET!AS102) -> 40.02798583 | AT107: =CHOOSE(m_identity,SHET!AT102, SPTL!AT102, NGET!AT102) -> 40.02613412
E108: =CHOOSE(m_identity,SHET!E103, SPTL!E103, NGET!E103) -> Pension Scheme Established Deficit repair | G108: £m 18/19 prices | H108: =CHOOSE(m_identity,SHET!H103, SPTL!H103, NGET!H103) -> EDEt | AP108: =CHOOSE(m_identity,SHET!AP103, SPTL!AP103, NGET!AP103) -> -0.895494188 | AQ108: =CHOOSE(m_identity,SHET!AQ103, SPTL!AQ103, NGET!AQ103) -> -1.811256667 | AR108: =CHOOSE(m_identity,SHET!AR103, SPTL!AR103, NGET!AR103) -> 0 | AS108: =CHOOSE(m_identity,SHET!AS103, SPTL!AS103, NGET!AS103) -> 0 | AT108: =CHOOSE(m_identity,SHET!AT103, SPTL!AT103, NGET!AT103) -> 0
E109: =CHOOSE(m_identity,SHET!E104, SPTL!E104, NGET!E104) -> Temporary physical disconnection costs | G109: £m 18/19 prices | H109: =CHOOSE(m_identity,SHET!H104, SPTL!H104, NGET!H104) -> TPDt | AP109: =CHOOSE(m_identity,SHET!AP104, SPTL!AP104, NGET!AP104) -> 0 | AQ109: =CHOOSE(m_identity,SHET!AQ104, SPTL!AQ104, NGET!AQ104) -> 0 | AR109: =CHOOSE(m_identity,SHET!AR104, SPTL!AR104, NGET!AR104) -> 0 | AS109: =CHOOSE(m_identity,SHET!AS104, SPTL!AS104, NGET!AS104) -> 0 | AT109: =CHOOSE(m_identity,SHET!AT104, SPTL!AT104, NGET!AT104) -> 0
E110: =CHOOSE(m_identity,SHET!E105, SPTL!E105, NGET!E105) -> Energy not supplied compensatory scheme (SHET only) | G110: £m 18/19 prices | H110: =CHOOSE(m_identity,SHET!H105, SPTL!H105, NGET!H105) -> SHCPt | AP110: =CHOOSE(m_identity,SHET!AP105, SPTL!AP105, NGET!AP105) -> 0 | AQ110: =CHOOSE(m_identity,SHET!AQ105, SPTL!AQ105, NGET!AQ105) -> 0 | AR110: =CHOOSE(m_identity,SHET!AR105, SPTL!AR105, NGET!AR105) -> 0 | AS110: =CHOOSE(m_identity,SHET!AS105, SPTL!AS105, NGET!AS105) -> 0 | AT110: =CHOOSE(m_identity,SHET!AT105, SPTL!AT105, NGET!AT105) -> 0
E111: Pass-through expenditure | G111: £m 18/19 prices | H111: PTt | AP111: =SUM(AP107:AP110) -> 40.21973321 | AQ111: =SUM(AQ107:AQ110) -> 38.52380785 | AR111: =SUM(AR107:AR110) -> 40.0748871 | AS111: =SUM(AS107:AS110) -> 40.02798583 | AT111: =SUM(AT107:AT110) -> 40.02613412
B113: Incentive revenue
E115: =(CHOOSE(m_identity,SHET!E109, SPTL!E109, NGET!E109)) -> Business plan incentive | G115: £m 18/19 prices | H115: =(CHOOSE(m_identity,SHET!H109, SPTL!H109, NGET!H109)) -> BPIt | AP115: =(CHOOSE(m_identity,SHET!AP109, SPTL!AP109, NGET!AP109)) -> 4.362 | AQ115: =(CHOOSE(m_identity,SHET!AQ109, SPTL!AQ109, NGET!AQ109)) -> 4.362 | AR115: =(CHOOSE(m_identity,SHET!AR109, SPTL!AR109, NGET!AR109)) -> 4.362 | AS115: =(CHOOSE(m_identity,SHET!AS109, SPTL!AS109, NGET!AS109)) -> 4.362 | AT115: =(CHOOSE(m_identity,SHET!AT109, SPTL!AT109, NGET!AT109)) -> 4.362
E117: =CHOOSE(m_identity,SHET!E111, SPTL!E111, NGET!E111) -> Energy not supplied ODI | G117: £m 18/19 prices | H117: =CHOOSE(m_identity,SHET!H111, SPTL!H111, NGET!H111) -> ENSIt | AP117: =CHOOSE(m_identity,SHET!AP111, SPTL!AP111, NGET!AP111) -> 0.70712928 | AQ117: =CHOOSE(m_identity,SHET!AQ111, SPTL!AQ111, NGET!AQ111) -> 0.70712928 | AR117: =CHOOSE(m_identity,SHET!AR111, SPTL!AR111, NGET!AR111) -> 0.70712928 | AS117: =CHOOSE(m_identity,SHET!AS111, SPTL!AS111, NGET!AS111) -> 0.70712928 | AT117: =CHOOSE(m_identity,SHET!AT111, SPTL!AT111, NGET!AT111) -> 0.70712928
E118: =CHOOSE(m_identity,SHET!E112, SPTL!E112, NGET!E112) -> Insulation And Interruption Gas emissions ODI | G118: £m 18/19 prices | H118: =CHOOSE(m_identity,SHET!H112, SPTL!H112, NGET!H112) -> IIGIt | AP118: =CHOOSE(m_identity,SHET!AP112, SPTL!AP112, NGET!AP112) -> 0 | AQ118: =CHOOSE(m_identity,SHET!AQ112, SPTL!AQ112, NGET!AQ112) -> 0 | AR118: =CHOOSE(m_identity,SHET!AR112, SPTL!AR112, NGET!AR112) -> 0 | AS118: =CHOOSE(m_identity,SHET!AS112, SPTL!AS112, NGET!AS112) -> 0 | AT118: =CHOOSE(m_identity,SHET!AT112, SPTL!AT112, NGET!AT112) -> 0
E119: =CHOOSE(m_identity,SHET!E113, SPTL!E113, NGET!E113) -> Timely Connections ODI | G119: £m 18/19 prices | H119: =CHOOSE(m_identity,SHET!H113, SPTL!H113, NGET!H113) -> CONADJt | AP119: =CHOOSE(m_identity,SHET!AP113, SPTL!AP113, NGET!AP113) -> 0 | AQ119: =CHOOSE(m_identity,SHET!AQ113, SPTL!AQ113, NGET!AQ113) -> 0 | AR119: =CHOOSE(m_identity,SHET!AR113, SPTL!AR113, NGET!AR113) -> 0 | AS119: =CHOOSE(m_identity,SHET!AS113, SPTL!AS113, NGET!AS113) -> 0 | AT119: =CHOOSE(m_identity,SHET!AT113, SPTL!AT113, NGET!AT113) -> 0
E120: =CHOOSE(m_identity,SHET!E114, SPTL!E114, NGET!E114) -> Quality of connections satisfaction survey ODI | G120: £m 18/19 prices | H120: =CHOOSE(m_identity,SHET!H114, SPTL!H114, NGET!H114) -> QCSt | AP120: =CHOOSE(m_identity,SHET!AP114, SPTL!AP114, NGET!AP114) -> 0 | AQ120: =CHOOSE(m_identity,SHET!AQ114, SPTL!AQ114, NGET!AQ114) -> 0 | AR120: =CHOOSE(m_identity,SHET!AR114, SPTL!AR114, NGET!AR114) -> 0 | AS120: =CHOOSE(m_identity,SHET!AS114, SPTL!AS114, NGET!AS114) -> 0 | AT120: =CHOOSE(m_identity,SHET!AT114, SPTL!AT114, NGET!AT114) -> 0
E121: =CHOOSE(m_identity,SHET!E115, SPTL!E115, NGET!E115) -> SO-TO Optimisation ODI | G121: £m 18/19 prices | H121: =CHOOSE(m_identity,SHET!H115, SPTL!H115, NGET!H115) -> SOTOt | AP121: =CHOOSE(m_identity,SHET!AP115, SPTL!AP115, NGET!AP115) -> 0 | AQ121: =CHOOSE(m_identity,SHET!AQ115, SPTL!AQ115, NGET!AQ115) -> 0 | AR121: =CHOOSE(m_identity,SHET!AR115, SPTL!AR115, NGET!AR115) -> 0 | AS121: =CHOOSE(m_identity,SHET!AS115, SPTL!AS115, NGET!AS115) -> 0 | AT121: =CHOOSE(m_identity,SHET!AT115, SPTL!AT115, NGET!AT115) -> 0
E122: =CHOOSE(m_identity,SHET!E116, SPTL!E116, NGET!E116) -> Environmental scorecard ODI | G122: £m 18/19 prices | H122: =CHOOSE(m_identity,SHET!H116, SPTL!H116, NGET!H116) -> ESIt | AP122: =CHOOSE(m_identity,SHET!AP116, SPTL!AP116, NGET!AP116) -> 0 | AQ122: =CHOOSE(m_identity,SHET!AQ116, SPTL!AQ116, NGET!AQ116) -> 0 | AR122: =CHOOSE(m_identity,SHET!AR116, SPTL!AR116, NGET!AR116) -> 0 | AS122: =CHOOSE(m_identity,SHET!AS116, SPTL!AS116, NGET!AS116) -> 0 | AT122: =CHOOSE(m_identity,SHET!AT116, SPTL!AT116, NGET!AT116) -> 0
E123: Output delivery incentives | G123: £m 18/19 prices | H123: ODIt | AP123: =SUM(AP117:AP122) -> 0.70712928 | AQ123: =SUM(AQ117:AQ122) -> 0.70712928 | AR123: =SUM(AR117:AR122) -> 0.70712928 | AS123: =SUM(AS117:AS122) -> 0.70712928 | AT123: =SUM(AT117:AT122) -> 0.70712928
B125: Other revenue allowances
E127: =(CHOOSE(m_identity,SHET!E128, SPTL!E128, NGET!E128)) -> Transmission investment for renewable generation (SHET and SPTL only) | G127: £m nominal | H127: =(CHOOSE(m_identity,SHET!H128, SPTL!H128, NGET!H128)) -> LTIRGt | AP127: =(CHOOSE(m_identity,SHET!AP128, SPTL!AP128, NGET!AP128)) -> 82.88136059 | AQ127: =(CHOOSE(m_identity,SHET!AQ128, SPTL!AQ128, NGET!AQ128)) -> 0 | AR127: =(CHOOSE(m_identity,SHET!AR128, SPTL!AR128, NGET!AR128)) -> 0 | AS127: =(CHOOSE(m_identity,SHET!AS128, SPTL!AS128, NGET!AS128)) -> 0 | AT127: =(CHOOSE(m_identity,SHET!AT128, SPTL!AT128, NGET!AT128)) -> 0
E128: =(CHOOSE(m_identity,SHET!E129, SPTL!E129, NGET!E129)) -> Pre-RIIO-1 pension true-up | G128: £m 18/19 prices | H128: PRPNt | I128: =(CHOOSE(m_identity,SHET!I129, SPTL!I129, NGET!I129)) -> 5.590854041 | AP128: =($I$128/9)*(1+$AH$210)*(1+$AI$210)*(1+$AJ$210)*(1+$AK$210)*(1+$AL$210)*(1+$AM$210)*(1+$AN$210)*(1+$AO$210)*(1+$AP$210) * (AP$4 = $I$215) -> 0.8815014526 | AQ128: =($I$128/9)*(1+$AH$210)*(1+$AI$210)*(1+$AJ$210)*(1+$AK$210)*(1+$AL$210)*(1+$AM$210)*(1+$AN$210)*(1+$AO$210)*(1+$AP$210) * (AQ$4 = $I$215) -> 0 | AR128: =($I$128/9)*(1+$AH$210)*(1+$AI$210)*(1+$AJ$210)*(1+$AK$210)*(1+$AL$210)*(1+$AM$210)*(1+$AN$210)*(1+$AO$210)*(1+$AP$210) * (AR$4 = $I$215) -> 0 | AS128: =($I$128/9)*(1+$AH$210)*(1+$AI$210)*(1+$AJ$210)*(1+$AK$210)*(1+$AL$210)*(1+$AM$210)*(1+$AN$210)*(1+$AO$210)*(1+$AP$210) * (AS$4 = $I$215) -> 0 | AT128: =($I$128/9)*(1+$AH$210)*(1+$AI$210)*(1+$AJ$210)*(1+$AK$210)*(1+$AL$210)*(1+$AM$210)*(1+$AN$210)*(1+$AO$210)*(1+$AP$210) * (AT$4 = $I$215) -> 0
I129: Assumed cost multipliers:
E130: =CHOOSE(m_identity,SHET!E120, SPTL!E120, NGET!E120) -> RIIO-2 network innovation allowance | G130: £m 18/19 prices | H130: =CHOOSE(m_identity,SHET!H120, SPTL!H120, NGET!H120) -> NIAt | I130: =(CHOOSE(m_identity,SHET!I586, SPTL!I586, NGET!I586)) -> 1.111111111 | AP130: =CHOOSE(m_identity,SHET!AP120, SPTL!AP120, NGET!AP120) -> 1.6 | AQ130: =CHOOSE(m_identity,SHET!AQ120, SPTL!AQ120, NGET!AQ120) -> 1.6 | AR130: =CHOOSE(m_identity,SHET!AR120, SPTL!AR120, NGET!AR120) -> 1.6 | AS130: =CHOOSE(m_identity,SHET!AS120, SPTL!AS120, NGET!AS120) -> 1.6 | AT130: =CHOOSE(m_identity,SHET!AT120, SPTL!AT120, NGET!AT120) -> 1.6
E131: =CHOOSE(m_identity,SHET!E121, SPTL!E121, NGET!E121) -> Carry-over Network Innovation Allowance | G131: £m 18/19 prices | H131: =CHOOSE(m_identity,SHET!H121, SPTL!H121, NGET!H121) -> CNIAt | I131: =(CHOOSE(m_identity,SHET!I587, SPTL!I587, NGET!I587)) -> 1.111111111 | AP131: =CHOOSE(m_identity,SHET!AP121, SPTL!AP121, NGET!AP121) -> 0 | AQ131: =CHOOSE(m_identity,SHET!AQ121, SPTL!AQ121, NGET!AQ121) -> 0 | AR131: =CHOOSE(m_identity,SHET!AR121, SPTL!AR121, NGET!AR121) -> 0 | AS131: =CHOOSE(m_identity,SHET!AS121, SPTL!AS121, NGET!AS121) -> 0 | AT131: =CHOOSE(m_identity,SHET!AT121, SPTL!AT121, NGET!AT121) -> 0
E132: =CHOOSE(m_identity,SHET!E122, SPTL!E122, NGET!E122) -> Net Zero Fund use it or lose it allowance (SHET and SPTL only) | G132: £m 18/19 prices | H132: =CHOOSE(m_identity,SHET!H122, SPTL!H122, NGET!H122) -> NZFt | I132: =(CHOOSE(m_identity,SHET!I588, SPTL!I588, NGET!I588)) -> 1 | AP132: =CHOOSE(m_identity,SHET!AP122, SPTL!AP122, NGET!AP122) -> 0 | AQ132: =CHOOSE(m_identity,SHET!AQ122, SPTL!AQ122, NGET!AQ122) -> 0 | AR132: =CHOOSE(m_identity,SHET!AR122, SPTL!AR122, NGET!AR122) -> 0 | AS132: =CHOOSE(m_identity,SHET!AS122, SPTL!AS122, NGET!AS122) -> 0 | AT132: =CHOOSE(m_identity,SHET!AT122, SPTL!AT122, NGET!AT122) -> 0
E133: =CHOOSE(m_identity,SHET!E123, SPTL!E123, NGET!E123) -> Net zero carbon Capital Construction use it or lose it allowance (NGET only) | G133: £m 18/19 prices | H133: =CHOOSE(m_identity,SHET!H123, SPTL!H123, NGET!H123) -> NZ3Ct | I133: =(CHOOSE(m_identity,SHET!I589, SPTL!I589, NGET!I589)) -> 1 | AP133: =CHOOSE(m_identity,SHET!AP123, SPTL!AP123, NGET!AP123) -> 0 | AQ133: =CHOOSE(m_identity,SHET!AQ123, SPTL!AQ123, NGET!AQ123) -> 0 | AR133: =CHOOSE(m_identity,SHET!AR123, SPTL!AR123, NGET!AR123) -> 0 | AS133: =CHOOSE(m_identity,SHET!AS123, SPTL!AS123, NGET!AS123) -> 0 | AT133: =CHOOSE(m_identity,SHET!AT123, SPTL!AT123, NGET!AT123) -> 0
E134: =CHOOSE(m_identity,SHET!E124, SPTL!E124, NGET!E124) -> Non-Technical Mitigation Projects allowance | G134: £m 18/19 prices | H134: =CHOOSE(m_identity,SHET!H124, SPTL!H124, NGET!H124) -> NTMPt | I134: =(CHOOSE(m_identity,SHET!I590, SPTL!I590, NGET!I590)) -> 1 | AP134: =CHOOSE(m_identity,SHET!AP124, SPTL!AP124, NGET!AP124) -> 0.2 | AQ134: =CHOOSE(m_identity,SHET!AQ124, SPTL!AQ124, NGET!AQ124) -> 0.7 | AR134: =CHOOSE(m_identity,SHET!AR124, SPTL!AR124, NGET!AR124) -> 1.7 | AS134: =CHOOSE(m_identity,SHET!AS124, SPTL!AS124, NGET!AS124) -> 3.2 | AT134: =CHOOSE(m_identity,SHET!AT124, SPTL!AT124, NGET!AT124) -> 1.7
E135: =CHOOSE(m_identity,SHET!E125, SPTL!E125, NGET!E125) -> Spare 1 | G135: £m 18/19 prices | H135: =CHOOSE(m_identity,SHET!H125, SPTL!H125, NGET!H125) -> 0 | I135: =(CHOOSE(m_identity,SHET!I591, SPTL!I591, NGET!I591)) -> 0 | AP135: =CHOOSE(m_identity,SHET!AP125, SPTL!AP125, NGET!AP125) -> 0 | AQ135: =CHOOSE(m_identity,SHET!AQ125, SPTL!AQ125, NGET!AQ125) -> 0 | AR135: =CHOOSE(m_identity,SHET!AR125, SPTL!AR125, NGET!AR125) -> 0 | AS135: =CHOOSE(m_identity,SHET!AS125, SPTL!AS125, NGET!AS125) -> 0 | AT135: =CHOOSE(m_identity,SHET!AT125, SPTL!AT125, NGET!AT125) -> 0
E136: =CHOOSE(m_identity,SHET!E126, SPTL!E126, NGET!E126) -> Spare 2 | G136: £m 18/19 prices | H136: =CHOOSE(m_identity,SHET!H126, SPTL!H126, NGET!H126) -> 0 | I136: =(CHOOSE(m_identity,SHET!I592, SPTL!I592, NGET!I592)) -> 0 | AP136: =CHOOSE(m_identity,SHET!AP126, SPTL!AP126, NGET!AP126) -> 0 | AQ136: =CHOOSE(m_identity,SHET!AQ126, SPTL!AQ126, NGET!AQ126) -> 0 | AR136: =CHOOSE(m_identity,SHET!AR126, SPTL!AR126, NGET!AR126) -> 0 | AS136: =CHOOSE(m_identity,SHET!AS126, SPTL!AS126, NGET!AS126) -> 0 | AT136: =CHOOSE(m_identity,SHET!AT126, SPTL!AT126, NGET!AT126) -> 0
E137: =CHOOSE(m_identity,SHET!E127, SPTL!E127, NGET!E127) -> Spare 3 | G137: £m 18/19 prices | H137: =CHOOSE(m_identity,SHET!H127, SPTL!H127, NGET!H127) -> 0 | I137: =(CHOOSE(m_identity,SHET!I593, SPTL!I593, NGET!I593)) -> 0 | AP137: =CHOOSE(m_identity,SHET!AP127, SPTL!AP127, NGET!AP127) -> 0 | AQ137: =CHOOSE(m_identity,SHET!AQ127, SPTL!AQ127, NGET!AQ127) -> 0 | AR137: =CHOOSE(m_identity,SHET!AR127, SPTL!AR127, NGET!AR127) -> 0 | AS137: =CHOOSE(m_identity,SHET!AS127, SPTL!AS127, NGET!AS127) -> 0 | AT137: =CHOOSE(m_identity,SHET!AT127, SPTL!AT127, NGET!AT127) -> 0
E138: Transmission investment for renewable generation | G138: £m 18/19 prices | H138: TIRGt | I138: =(CHOOSE(m_identity,SHET!I594, SPTL!I594, NGET!I594)) -> 0 | AP138: =AP127/TOpf -> 76.71474185 | AQ138: =AQ127/TOpf -> 0 | AR138: =AR127/TOpf -> 0 | AS138: =AS127/TOpf -> 0 | AT138: =AT127/TOpf -> 0
E139: Pre-RIIO-1 pension true-up | G139: £m 18/19 prices | H139: =H128 -> PRPNt | I139: =(CHOOSE(m_identity,SHET!I595, SPTL!I595, NGET!I595)) -> 0 | AP139: =AP128 -> 0.8815014526 | AQ139: =AQ128 -> 0 | AR139: =AR128 -> 0 | AS139: =AS128 -> 0 | AT139: =AT128 -> 0
E140: Other revenue allowance | G140: £m 18/19 prices | H140: ORAt | AP140: =SUM(AP130:AP139) -> 79.3962433 | AQ140: =SUM(AQ130:AQ139) -> 2.3 | AR140: =SUM(AR130:AR139) -> 3.3 | AS140: =SUM(AS130:AS139) -> 4.8 | AT140: =SUM(AT130:AT139) -> 3.3
E142: Costs associated with "Other revenue" | G142: £m 18/19 prices | AP142: =SUMPRODUCT((AP130:AP139*$I$130:$I$139)) -> 1.977777778 | AQ142: =SUMPRODUCT((AQ130:AQ139*$I$130:$I$139)) -> 2.477777778 | AR142: =SUMPRODUCT((AR130:AR139*$I$130:$I$139)) -> 3.477777778 | AS142: =SUMPRODUCT((AS130:AS139*$I$130:$I$139)) -> 4.977777778 | AT142: =SUMPRODUCT((AT130:AT139*$I$130:$I$139)) -> 3.477777778
B144: Legacy adjustments
E146: =CHOOSE(m_identity,SHET!E133, SPTL!E133, NGET!E133) -> Close-out of RIIO-ET1 pass-through items | G146: £m nominal | H146: =CHOOSE(m_identity,SHET!H133, SPTL!H133, NGET!H133) -> LPTt | AP146: =CHOOSE(m_identity,SHET!AP133, SPTL!AP133, NGET!AP133) -> 24.21956446 | AQ146: =CHOOSE(m_identity,SHET!AQ133, SPTL!AQ133, NGET!AQ133) -> 30.85566251 | AR146: =CHOOSE(m_identity,SHET!AR133, SPTL!AR133, NGET!AR133) -> 0 | AS146: =CHOOSE(m_identity,SHET!AS133, SPTL!AS133, NGET!AS133) -> 0 | AT146: =CHOOSE(m_identity,SHET!AT133, SPTL!AT133, NGET!AT133) -> 0
E147: =CHOOSE(m_identity,SHET!E134, SPTL!E134, NGET!E134) -> Legacy MOD | G147: £m nominal | H147: =CHOOSE(m_identity,SHET!H134, SPTL!H134, NGET!H134) -> LMODt | AP147: =CHOOSE(m_identity,SHET!AP134, SPTL!AP134, NGET!AP134) -> -16.19266505 | AQ147: =CHOOSE(m_identity,SHET!AQ134, SPTL!AQ134, NGET!AQ134) -> 57.66014289 | AR147: =CHOOSE(m_identity,SHET!AR134, SPTL!AR134, NGET!AR134) -> 0 | AS147: =CHOOSE(m_identity,SHET!AS134, SPTL!AS134, NGET!AS134) -> 0 | AT147: =CHOOSE(m_identity,SHET!AT134, SPTL!AT134, NGET!AT134) -> 0
E148: =CHOOSE(m_identity,SHET!E135, SPTL!E135, NGET!E135) -> Legacy K correction | G148: £m nominal | H148: =CHOOSE(m_identity,SHET!H135, SPTL!H135, NGET!H135) -> LKt | AP148: =CHOOSE(m_identity,SHET!AP135, SPTL!AP135, NGET!AP135) -> -0.1458395973 | AQ148: =CHOOSE(m_identity,SHET!AQ135, SPTL!AQ135, NGET!AQ135) -> 0 | AR148: =CHOOSE(m_identity,SHET!AR135, SPTL!AR135, NGET!AR135) -> 0 | AS148: =CHOOSE(m_identity,SHET!AS135, SPTL!AS135, NGET!AS135) -> 0 | AT148: =CHOOSE(m_identity,SHET!AT135, SPTL!AT135, NGET!AT135) -> 0
E149: =CHOOSE(m_identity,SHET!E136, SPTL!E136, NGET!E136) -> Legacy TRU term | G149: £m nominal | H149: =CHOOSE(m_identity,SHET!H136, SPTL!H136, NGET!H136) -> LTRUt | AP149: =CHOOSE(m_identity,SHET!AP136, SPTL!AP136, NGET!AP136) -> -3.60083018 | AQ149: =CHOOSE(m_identity,SHET!AQ136, SPTL!AQ136, NGET!AQ136) -> -5.223202229 | AR149: =CHOOSE(m_identity,SHET!AR136, SPTL!AR136, NGET!AR136) -> 0 | AS149: =CHOOSE(m_identity,SHET!AS136, SPTL!AS136, NGET!AS136) -> 0 | AT149: =CHOOSE(m_identity,SHET!AT136, SPTL!AT136, NGET!AT136) -> 0
E150: =CHOOSE(m_identity,SHET!E137, SPTL!E137, NGET!E137) -> Close-out of RIIO-ET1 network outputs | G150: £m nominal | H150: =CHOOSE(m_identity,SHET!H137, SPTL!H137, NGET!H137) -> NOCOt | AP150: =CHOOSE(m_identity,SHET!AP137, SPTL!AP137, NGET!AP137) -> 0 | AQ150: =CHOOSE(m_identity,SHET!AQ137, SPTL!AQ137, NGET!AQ137) -> 0 | AR150: =CHOOSE(m_identity,SHET!AR137, SPTL!AR137, NGET!AR137) -> 0 | AS150: =CHOOSE(m_identity,SHET!AS137, SPTL!AS137, NGET!AS137) -> 0 | AT150: =CHOOSE(m_identity,SHET!AT137, SPTL!AT137, NGET!AT137) -> 0
E151: =CHOOSE(m_identity,SHET!E138, SPTL!E138, NGET!E138) -> Close-out of RIIO-ET1 stakeholder satisfaction output | G151: £m nominal | H151: =CHOOSE(m_identity,SHET!H138, SPTL!H138, NGET!H138) -> LSSOt | AP151: =CHOOSE(m_identity,SHET!AP138, SPTL!AP138, NGET!AP138) -> 2.41447353 | AQ151: =CHOOSE(m_identity,SHET!AQ138, SPTL!AQ138, NGET!AQ138) -> 1.594659419 | AR151: =CHOOSE(m_identity,SHET!AR138, SPTL!AR138, NGET!AR138) -> 0 | AS151: =CHOOSE(m_identity,SHET!AS138, SPTL!AS138, NGET!AS138) -> 0 | AT151: =CHOOSE(m_identity,SHET!AT138, SPTL!AT138, NGET!AT138) -> 0
E152: =CHOOSE(m_identity,SHET!E139, SPTL!E139, NGET!E139) -> Close-out of RIIO-ET1 environmental discretionary reward scheme adjustment | G152: £m nominal | H152: =CHOOSE(m_identity,SHET!H139, SPTL!H139, NGET!H139) -> LEDRt | AP152: =CHOOSE(m_identity,SHET!AP139, SPTL!AP139, NGET!AP139) -> 2.0164144 | AQ152: =CHOOSE(m_identity,SHET!AQ139, SPTL!AQ139, NGET!AQ139) -> 0 | AR152: =CHOOSE(m_identity,SHET!AR139, SPTL!AR139, NGET!AR139) -> 0 | AS152: =CHOOSE(m_identity,SHET!AS139, SPTL!AS139, NGET!AS139) -> 0 | AT152: =CHOOSE(m_identity,SHET!AT139, SPTL!AT139, NGET!AT139) -> 0
E153: =CHOOSE(m_identity,SHET!E140, SPTL!E140, NGET!E140) -> Close-out of RIIO-ET1 sulphur hexaflouride gas emissions incentive | G153: £m nominal | H153: =CHOOSE(m_identity,SHET!H140, SPTL!H140, NGET!H140) -> LSFIt | AP153: =CHOOSE(m_identity,SHET!AP140, SPTL!AP140, NGET!AP140) -> -0.05724103161 | AQ153: =CHOOSE(m_identity,SHET!AQ140, SPTL!AQ140, NGET!AQ140) -> -0.1116296189 | AR153: =CHOOSE(m_identity,SHET!AR140, SPTL!AR140, NGET!AR140) -> 0 | AS153: =CHOOSE(m_identity,SHET!AS140, SPTL!AS140, NGET!AS140) -> 0 | AT153: =CHOOSE(m_identity,SHET!AT140, SPTL!AT140, NGET!AT140) -> 0
E154: =CHOOSE(m_identity,SHET!E141, SPTL!E141, NGET!E141) -> Close-out of RIIO-ET1 energy not supplied reliability incentive | G154: £m nominal | H154: =CHOOSE(m_identity,SHET!H141, SPTL!H141, NGET!H141) -> LRIt | AP154: =CHOOSE(m_identity,SHET!AP141, SPTL!AP141, NGET!AP141) -> 1.770311547 | AQ154: =CHOOSE(m_identity,SHET!AQ141, SPTL!AQ141, NGET!AQ141) -> 1.844632261 | AR154: =CHOOSE(m_identity,SHET!AR141, SPTL!AR141, NGET!AR141) -> 0 | AS154: =CHOOSE(m_identity,SHET!AS141, SPTL!AS141, NGET!AS141) -> 0 | AT154: =CHOOSE(m_identity,SHET!AT141, SPTL!AT141, NGET!AT141) -> 0
E155: Legacy adjustments | G155: £m nominal | H155: LARt | AP155: =SUM(AP146:AP154) -> 10.42418807 | AQ155: =SUM(AQ146:AQ154) -> 86.62026524 | AR155: =SUM(AR146:AR154) -> 0 | AS155: =SUM(AS146:AS154) -> 0 | AT155: =SUM(AT146:AT154) -> 0
B157: Directly remunerated services
E159: =(CHOOSE(m_identity,SHET!E146, SPTL!E146, NGET!E146)) -> Pre-vesting directly remunerated services | G159: £m 18/19 prices | H159: =(CHOOSE(m_identity,SHET!H146, SPTL!H146, NGET!H146)) -> PREDRSt | AP159: =(CHOOSE(m_identity,SHET!AP146, SPTL!AP146, NGET!AP146)) -> 2.340968 | AQ159: =(CHOOSE(m_identity,SHET!AQ146, SPTL!AQ146, NGET!AQ146)) -> 2.138904 | AR159: =(CHOOSE(m_identity,SHET!AR146, SPTL!AR146, NGET!AR146)) -> 2.138904 | AS159: =(CHOOSE(m_identity,SHET!AS146, SPTL!AS146, NGET!AS146)) -> 2.138904 | AT159: =(CHOOSE(m_identity,SHET!AT146, SPTL!AT146, NGET!AT146)) -> 2.138904
E160: =(CHOOSE(m_identity,SHET!E147, SPTL!E147, NGET!E147)) -> Post-vesting directly remunerated services | G160: £m 18/19 prices | H160: =(CHOOSE(m_identity,SHET!H147, SPTL!H147, NGET!H147)) -> POSDRSt | AP160: =(CHOOSE(m_identity,SHET!AP147, SPTL!AP147, NGET!AP147)) -> -8.091325 | AQ160: =(CHOOSE(m_identity,SHET!AQ147, SPTL!AQ147, NGET!AQ147)) -> 13.383504 | AR160: =(CHOOSE(m_identity,SHET!AR147, SPTL!AR147, NGET!AR147)) -> 13.383504 | AS160: =(CHOOSE(m_identity,SHET!AS147, SPTL!AS147, NGET!AS147)) -> 13.383504 | AT160: =(CHOOSE(m_identity,SHET!AT147, SPTL!AT147, NGET!AT147)) -> 13.383504
E161: =(CHOOSE(m_identity,SHET!E148, SPTL!E148, NGET!E148)) -> Other Income directly remunerated services | G161: £m 18/19 prices | H161: =(CHOOSE(m_identity,SHET!H148, SPTL!H148, NGET!H148)) -> OIDRSt | AP161: =(CHOOSE(m_identity,SHET!AP148, SPTL!AP148, NGET!AP148)) -> 0 | AQ161: =(CHOOSE(m_identity,SHET!AQ148, SPTL!AQ148, NGET!AQ148)) -> 0 | AR161: =(CHOOSE(m_identity,SHET!AR148, SPTL!AR148, NGET!AR148)) -> 0 | AS161: =(CHOOSE(m_identity,SHET!AS148, SPTL!AS148, NGET!AS148)) -> 0 | AT161: =(CHOOSE(m_identity,SHET!AT148, SPTL!AT148, NGET!AT148)) -> 0
E162: =(CHOOSE(m_identity,SHET!E149, SPTL!E149, NGET!E149)) -> Identified directly remunerated services costs | G162: £m 18/19 prices | H162: =(CHOOSE(m_identity,SHET!H149, SPTL!H149, NGET!H149)) -> IDRSt | AP162: =(CHOOSE(m_identity,SHET!AP149, SPTL!AP149, NGET!AP149)) -> 0 | AQ162: =(CHOOSE(m_identity,SHET!AQ149, SPTL!AQ149, NGET!AQ149)) -> 0 | AR162: =(CHOOSE(m_identity,SHET!AR149, SPTL!AR149, NGET!AR149)) -> 0 | AS162: =(CHOOSE(m_identity,SHET!AS149, SPTL!AS149, NGET!AS149)) -> 0 | AT162: =(CHOOSE(m_identity,SHET!AT149, SPTL!AT149, NGET!AT149)) -> 0
E163: Directly remunerated services net position | G163: £m 18/19 prices | AP163: =SUM(AP159:AP162) -> -5.750357 | AQ163: =SUM(AQ159:AQ162) -> 15.522408 | AR163: =SUM(AR159:AR162) -> 15.522408 | AS163: =SUM(AS159:AS162) -> 15.522408 | AT163: =SUM(AT159:AT162) -> 15.522408
E165: Directly remunerated services adjustment | G165: £m 18/19 prices | H165: DRSt | AP165: =- AP163 -> 5.750357 | AQ165: =- AQ163 -> -15.522408 | AR165: =- AR163 -> -15.522408 | AS165: =- AS163 -> -15.522408 | AT165: =- AT163 -> -15.522408
B167: Finance inputs
C169: Allowed return on debt
C170: Note: RAV calculations below are for use in the SHET weighted average allowed return on debt calculation and therefore are not applicable to the other operators.
E172: =CHOOSE(m_identity,SHET!E153, SPTL!E153, NGET!E153) -> iBoxx trailing average | G172: annual real % | H172: =CHOOSE(m_identity,SHET!H153, SPTL!H153, NGET!H153) -> iBTAt | AH172: =CHOOSE(m_identity,SHET!AH153, SPTL!AH153, NGET!AH153) -> 0.0375 | AI172: =CHOOSE(m_identity,SHET!AI153, SPTL!AI153, NGET!AI153) -> 0.0363 | AJ172: =CHOOSE(m_identity,SHET!AJ153, SPTL!AJ153, NGET!AJ153) -> 0.0351 | AK172: =CHOOSE(m_identity,SHET!AK153, SPTL!AK153, NGET!AK153) -> 0.0337 | AL172: =CHOOSE(m_identity,SHET!AL153, SPTL!AL153, NGET!AL153) -> 0.0323 | AM172: =CHOOSE(m_identity,SHET!AM153, SPTL!AM153, NGET!AM153) -> 0.0298 | AN172: =CHOOSE(m_identity,SHET!AN153, SPTL!AN153, NGET!AN153) -> 0.0268 | AO172: =CHOOSE(m_identity,SHET!AO153, SPTL!AO153, NGET!AO153) -> 0.0235 | AP172: =CHOOSE(m_identity,SHET!AP153, SPTL!AP153, NGET!AP153) -> 0.0205 | AQ172: =CHOOSE(m_identity,SHET!AQ153, SPTL!AQ153, NGET!AQ153) -> 0.019 | AR172: =CHOOSE(m_identity,SHET!AR153, SPTL!AR153, NGET!AR153) -> 0.0183 | AS172: =CHOOSE(m_identity,SHET!AS153, SPTL!AS153, NGET!AS153) -> 0.0178 | AT172: =CHOOSE(m_identity,SHET!AT153, SPTL!AT153, NGET!AT153) -> 0.0175
E173: =CHOOSE(m_identity,SHET!E154, SPTL!E154, NGET!E154) -> iBoxx average (Financial Year) | G173: annual real % | H173: =CHOOSE(m_identity,SHET!H154, SPTL!H154, NGET!H154) -> iBAFYt | AH173: =CHOOSE(m_identity,SHET!AH154, SPTL!AH154, NGET!AH154) -> 0.0281 | AI173: =CHOOSE(m_identity,SHET!AI154, SPTL!AI154, NGET!AI154) -> 0.0238 | AJ173: =CHOOSE(m_identity,SHET!AJ154, SPTL!AJ154, NGET!AJ154) -> 0.0233 | AK173: =CHOOSE(m_identity,SHET!AK154, SPTL!AK154, NGET!AK154) -> 0.0142 | AL173: =CHOOSE(m_identity,SHET!AL154, SPTL!AL154, NGET!AL154) -> 0.0126 | AM173: =CHOOSE(m_identity,SHET!AM154, SPTL!AM154, NGET!AM154) -> 0.0158 | AN173: =CHOOSE(m_identity,SHET!AN154, SPTL!AN154, NGET!AN154) -> 0.0085 | AO173: =CHOOSE(m_identity,SHET!AO154, SPTL!AO154, NGET!AO154) -> 0.0039 | AP173: =CHOOSE(m_identity,SHET!AP154, SPTL!AP154, NGET!AP154) -> 0.0077 | AQ173: =CHOOSE(m_identity,SHET!AQ154, SPTL!AQ154, NGET!AQ154) -> 0.0115 | AR173: =CHOOSE(m_identity,SHET!AR154, SPTL!AR154, NGET!AR154) -> 0.0121 | AS173: =CHOOSE(m_identity,SHET!AS154, SPTL!AS154, NGET!AS154) -> 0.0127 | AT173: =CHOOSE(m_identity,SHET!AT154, SPTL!AT154, NGET!AT154) -> 0.0133
E174: =CHOOSE(m_identity,SHET!E155, SPTL!E155, NGET!E155) -> iBoxx average (April - October) | G174: annual real % | H174: =CHOOSE(m_identity,SHET!H155, SPTL!H155, NGET!H155) -> iBAAOt | AH174: =CHOOSE(m_identity,SHET!AH155, SPTL!AH155, NGET!AH155) -> 0.0276 | AI174: =CHOOSE(m_identity,SHET!AI155, SPTL!AI155, NGET!AI155) -> 0.0267 | AJ174: =CHOOSE(m_identity,SHET!AJ155, SPTL!AJ155, NGET!AJ155) -> 0.0227 | AK174: =CHOOSE(m_identity,SHET!AK155, SPTL!AK155, NGET!AK155) -> 0.0142 | AL174: =CHOOSE(m_identity,SHET!AL155, SPTL!AL155, NGET!AL155) -> 0.012 | AM174: =CHOOSE(m_identity,SHET!AM155, SPTL!AM155, NGET!AM155) -> 0.0158 | AN174: =CHOOSE(m_identity,SHET!AN155, SPTL!AN155, NGET!AN155) -> 0.0094 | AO174: =CHOOSE(m_identity,SHET!AO155, SPTL!AO155, NGET!AO155) -> 0.0035 | AP174: =CHOOSE(m_identity,SHET!AP155, SPTL!AP155, NGET!AP155) -> 0.0055 | AQ174: =CHOOSE(m_identity,SHET!AQ155, SPTL!AQ155, NGET!AQ155) -> 0.0113 | AR174: =CHOOSE(m_identity,SHET!AR155, SPTL!AR155, NGET!AR155) -> 0.012 | AS174: =CHOOSE(m_identity,SHET!AS155, SPTL!AS155, NGET!AS155) -> 0.0126 | AT174: =CHOOSE(m_identity,SHET!AT155, SPTL!AT155, NGET!AT155) -> 0.0132
E176: Opening RAV (after transfers), core and non-core (for SHET CoD weighted average only) | G176: £m 18/19 prices | AH176: =IF(m_identity = 1, SUM('Return&RAV'!AH41, NonCore!AH29), "NA") -> 1288.442324 | AI176: =IF(m_identity = 1, SUM('Return&RAV'!AI41, NonCore!AI29), "NA") -> 1496.6659 | AJ176: =IF(m_identity = 1, SUM('Return&RAV'!AJ41, NonCore!AJ29), "NA") -> 1887.994453 | AK176: =IF(m_identity = 1, SUM('Return&RAV'!AK41, NonCore!AK29), "NA") -> 2455.176535 | AL176: =IF(m_identity = 1, SUM('Return&RAV'!AL41, NonCore!AL29), "NA") -> 2870.51618 | AM176: =IF(m_identity = 1, SUM('Return&RAV'!AM41, NonCore!AM29), "NA") -> 3103.597549 | AN176: =IF(m_identity = 1, SUM('Return&RAV'!AN41, NonCore!AN29), "NA") -> 3188.376179 | AO176: =IF(m_identity = 1, SUM('Return&RAV'!AO41, NonCore!AO29), "NA") -> 3289.953066 | AP176: =IF(m_identity = 1, SUM('Return&RAV'!AP41, NonCore!AP29), "NA") -> 3486.963675 | AQ176: =IF(m_identity = 1, SUM('Return&RAV'!AQ41, NonCore!AQ29), "NA") -> 3910.075283 | AR176: =IF(m_identity = 1, SUM('Return&RAV'!AR41, NonCore!AR29), "NA") -> 4313.10516 | AS176: =IF(m_identity = 1, SUM('Return&RAV'!AS41, NonCore!AS29), "NA") -> 4903.714036 | AT176: =IF(m_identity = 1, SUM('Return&RAV'!AT41, NonCore!AT29), "NA") -> 5579.668124
E177: Closing RAV, core and non-core | G177: £m 18/19 prices | AH177: =IF(m_identity = 1, SUM('Return&RAV'!AH44, NonCore!AH32),"NA") -> 1496.6659 | AI177: =IF(m_identity = 1, SUM('Return&RAV'!AI44, NonCore!AI32),"NA") -> 1887.994453 | AJ177: =IF(m_identity = 1, SUM('Return&RAV'!AJ44, NonCore!AJ32),"NA") -> 2455.176535 | AK177: =IF(m_identity = 1, SUM('Return&RAV'!AK44, NonCore!AK32),"NA") -> 2870.51618 | AL177: =IF(m_identity = 1, SUM('Return&RAV'!AL44, NonCore!AL32),"NA") -> 3103.597549 | AM177: =IF(m_identity = 1, SUM('Return&RAV'!AM44, NonCore!AM32),"NA") -> 3188.376179 | AN177: =IF(m_identity = 1, SUM('Return&RAV'!AN44, NonCore!AN32),"NA") -> 3289.953066 | AO177: =IF(m_identity = 1, SUM('Return&RAV'!AO44, NonCore!AO32),"NA") -> 3486.963675 | AP177: =IF(m_identity = 1, SUM('Return&RAV'!AP44, NonCore!AP32),"NA") -> 3910.075283 | AQ177: =IF(m_identity = 1, SUM('Return&RAV'!AQ44, NonCore!AQ32),"NA") -> 4313.10516 | AR177: =IF(m_identity = 1, SUM('Return&RAV'!AR44, NonCore!AR32),"NA") -> 4903.714036 | AS177: =IF(m_identity = 1, SUM('Return&RAV'!AS44, NonCore!AS32),"NA") -> 5579.668124 | AT177: =IF(m_identity = 1, SUM('Return&RAV'!AT44, NonCore!AT32),"NA") -> 5946.286224
E179: Opening RAV (after transfers) | G179: £m nominal (FY start) | AH179: =IFERROR(AH176 * AH234, "NA") -> 1132.868134 | AI179: =IFERROR(AI176 * AI234, "NA") -> 1348.438877 | AJ179: 1716.338399 | AK179: 2264.016954 | AL179: 2735.167843 | AM179: 3056.400445 | AN179: =IFERROR(AN176 * AN234, "NA") -> 3225.983582 | AO179: 3397.853694 | AP179: 3673.00303 | AQ179: 4308.46979 | AR179: 4888.802533 | AS179: 5678.740309 | AT179: 6591.582381
E180: Closing RAV | G180: £m nominal (FY end) | AH180: =IFERROR(AH177 * AH235, "NA") -> 1348.438877 | AI180: =IFERROR(AI177 * AI235, "NA") -> 1716.338399 | AJ180: 2264.016954 | AK180: 2735.167843 | AL180: 3056.400445 | AM180: 3225.983582 | AN180: 3397.853694 | AO180: 3673.00303 | AP180: 4308.46979 | AQ180: 4888.802533 | AR180: 5678.740309 | AS180: 6591.582381 | AT180: 7159.271125
E181: RAV change in year | G181: £m nominal | AH181: =IFERROR(AH180 - AH179, "NA") -> 215.5707436 | AI181: =IFERROR(AI180 - AI179, "NA") -> 367.8995218 | AJ181: 547.6785545 | AK181: 471.1508888 | AL181: 321.2326024 | AM181: 169.5831366 | AN181: =IFERROR(AN180 - AN179, "NA") -> 171.8701126 | AO181: 275.1493358 | AP181: 635.4667602 | AQ181: 580.3327426 | AR181: 789.9377763 | AS181: 912.8420716 | AT181: 567.6887441
E183: iBoxx trailing average (rounded to 5 d.p.) - for derivation of WACC at 60% gearing | G183: annual real % | AP183: =AP172 -> 0.0205 | AQ183: =AQ172 -> 0.019 | AR183: 0.0183 | AS183: 0.0178 | AT183: 0.0175
E184: Allowed return on debt | G184: annual real % | H184: CDEt | AP184: =IFERROR((($AH179 * AP172) + SUMPRODUCT(($AH173:AN173) * ($AH181:AN181)) + (AO181 * AO174)) / AO180, AP183) -> 0.01814304498 | AQ184: =IFERROR((($AH179 * AQ172) + SUMPRODUCT(($AH173:AO173) * ($AH181:AO181)) + (AP181 * AP174)) / AP180, AQ183) -> 0.0159094266 | AR184: =IFERROR((($AH179 * AR172) + SUMPRODUCT(($AH173:AP173) * ($AH181:AP181)) + (AQ181 * AQ174)) / AQ180, AR183) -> 0.01548601371 | AS184: =IFERROR((($AH179 * AS172) + SUMPRODUCT(($AH173:AQ173) * ($AH181:AQ181)) + (AR181 * AR174)) / AR180, AS183) -> 0.01492178622 | AT184: =IFERROR((($AH179 * AT172) + SUMPRODUCT(($AH173:AR173) * ($AH181:AR181)) + (AS181 * AS174)) / AS180, AT183) -> 0.01456067553
C186: Allowed return on equity
E188: =(CHOOSE(m_identity,SHET!E156, SPTL!E156, NGET!E156)) -> Risk-free rate | G188: annual real % | AP188: =(CHOOSE(m_identity,SHET!AP156, SPTL!AP156, NGET!AP156)) -> -0.0171 | AQ188: =(CHOOSE(m_identity,SHET!AQ156, SPTL!AQ156, NGET!AQ156)) -> -0.0155 | AR188: =(CHOOSE(m_identity,SHET!AR156, SPTL!AR156, NGET!AR156)) -> -0.0162 | AS188: =(CHOOSE(m_identity,SHET!AS156, SPTL!AS156, NGET!AS156)) -> -0.0152 | AT188: =(CHOOSE(m_identity,SHET!AT156, SPTL!AT156, NGET!AT156)) -> -0.0144
E189: Equity Beta | G189: scalar | AP189: =(CHOOSE(m_identity,SHET!AP205, SPTL!AP205, NGET!AP205)) -> 0.75861 | AQ189: =(CHOOSE(m_identity,SHET!AQ205, SPTL!AQ205, NGET!AQ205)) -> 0.75861 | AR189: =(CHOOSE(m_identity,SHET!AR205, SPTL!AR205, NGET!AR205)) -> 0.75861 | AS189: =(CHOOSE(m_identity,SHET!AS205, SPTL!AS205, NGET!AS205)) -> 0.75861 | AT189: =(CHOOSE(m_identity,SHET!AT205, SPTL!AT205, NGET!AT205)) -> 0.75861
E190: Total Market Return | G190: annual real % | AP190: =(CHOOSE(m_identity,SHET!AP206, SPTL!AP206, NGET!AP206)) -> 0.065 | AQ190: =(CHOOSE(m_identity,SHET!AQ206, SPTL!AQ206, NGET!AQ206)) -> 0.065 | AR190: =(CHOOSE(m_identity,SHET!AR206, SPTL!AR206, NGET!AR206)) -> 0.065 | AS190: =(CHOOSE(m_identity,SHET!AS206, SPTL!AS206, NGET!AS206)) -> 0.065 | AT190: =(CHOOSE(m_identity,SHET!AT206, SPTL!AT206, NGET!AT206)) -> 0.065
E192: Cost of equity at 60% gearing | G192: annual real % | AP192: =AP188 + AP189 * (AP190 - AP188) -> 0.045181881 | AQ192: =AQ188 + AQ189 * (AQ190 - AQ188) -> 0.045568105 | AR192: 0.045399132 | AS192: 0.045640522 | AT192: 0.045833634
E193: Not used | G193: Not used
E194: Allowed return on equity at 60% gearing | G194: annual real % | AP194: =AP192 -> 0.045181881 | AQ194: =AQ192 -> 0.045568105 | AR194: 0.045399132 | AS194: 0.045640522 | AT194: 0.045833634
E195: Benchmark gearing (60%) | G195: % | AP195: =(CHOOSE(m_identity,SHET!AP207, SPTL!AP207, NGET!AP207)) -> 0.6 | AQ195: =(CHOOSE(m_identity,SHET!AQ207, SPTL!AQ207, NGET!AQ207)) -> 0.6 | AR195: =(CHOOSE(m_identity,SHET!AR207, SPTL!AR207, NGET!AR207)) -> 0.6 | AS195: =(CHOOSE(m_identity,SHET!AS207, SPTL!AS207, NGET!AS207)) -> 0.6 | AT195: =(CHOOSE(m_identity,SHET!AT207, SPTL!AT207, NGET!AT207)) -> 0.6
E196: Vanilla WACC at 60% gearing | G196: annual real % | AP196: =(AP183 * AP195) + (AP192 * (1 - AP195)) -> 0.0303727524 | AQ196: =(AQ183 * AQ195) + (AQ192 * (1 - AQ195)) -> 0.029627242 | AR196: =(AR183 * AR195) + (AR192 * (1 - AR195)) -> 0.0291396528 | AS196: =(AS183 * AS195) + (AS192 * (1 - AS195)) -> 0.0289362088 | AT196: =(AT183 * AT195) + (AT192 * (1 - AT195)) -> 0.0288334536
E197: Allowed return on capital at 60% gearing | G197: annual real % | AP197: =(AP183* AP195) + (AP194 * (1 - AP195)) -> 0.0303727524 | AQ197: =(AQ183* AQ195) + (AQ194 * (1 - AQ195)) -> 0.029627242 | AR197: =(AR183* AR195) + (AR194 * (1 - AR195)) -> 0.0291396528 | AS197: =(AS183* AS195) + (AS194 * (1 - AS195)) -> 0.0289362088 | AT197: =(AT183* AT195) + (AT194 * (1 - AT195)) -> 0.0288334536
E199: Notional gearing | G199: % | AO199: =(CHOOSE(m_identity,SHET!AO209, SPTL!AO209, NGET!AO209)) -> 0.55 | AP199: =(CHOOSE(m_identity,SHET!AP209, SPTL!AP209, NGET!AP209)) -> 0.55 | AQ199: =(CHOOSE(m_identity,SHET!AQ209, SPTL!AQ209, NGET!AQ209)) -> 0.55 | AR199: =(CHOOSE(m_identity,SHET!AR209, SPTL!AR209, NGET!AR209)) -> 0.55 | AS199: =(CHOOSE(m_identity,SHET!AS209, SPTL!AS209, NGET!AS209)) -> 0.55 | AT199: =(CHOOSE(m_identity,SHET!AT209, SPTL!AT209, NGET!AT209)) -> 0.55
E200: Cost of equity at notional gearing | G200: annual real % | AP200: =(AP196 - (AP199 * AP183)) / (1 - AP199) -> 0.04243944978 | AQ200: =(AQ196 - (AQ199 * AQ183)) / (1 - AQ199) -> 0.04261609333 | AR200: 0.04238811733 | AS200: 0.04254713067 | AT200: 0.04268545244
E201: Allowed return on equity | G201: annual real % | AP201: =(AP197 - (AP183 * AP199)) / (1 - AP199) -> 0.04243944978 | AQ201: =(AQ197 - (AQ183 * AQ199)) / (1 - AQ199) -> 0.04261609333 | AR201: 0.04238811733 | AS201: 0.04254713067 | AT201: =(AT197 - (AT183 * AT199)) / (1 - AT199) -> 0.04268545244
E202: Not used | G202: Not used
C204: Vanilla allowed return on capital
E206: Allowed return on debt | G206: annual real % | AP206: =AP184 -> 0.01814304498 | AQ206: =AQ184 -> 0.0159094266 | AR206: =AR184 -> 0.01548601371 | AS206: =AS184 -> 0.01492178622 | AT206: =AT184 -> 0.01456067553
E207: Allowed return on equity | G207: annual real % | AP207: =AP201 -> 0.04243944978 | AQ207: =AQ201 -> 0.04261609333 | AR207: =AR201 -> 0.04238811733 | AS207: =AS201 -> 0.04254713067 | AT207: =AT201 -> 0.04268545244
E208: Notional gearing | G208: % | J208: > | AO208: =AO199 -> 0.55 | AP208: 0.55 | AQ208: 0.55 | AR208: 0.55 | AS208: 0.55 | AT208: 0.55
E210: Vanilla allowed return on capital | G210: annual real % | AH210: =(CHOOSE(m_identity,SHET!AH213, SPTL!AH213, NGET!AH213)) -> 0.04756 | AI210: =(CHOOSE(m_identity,SHET!AI213, SPTL!AI213, NGET!AI213)) -> 0.04525 | AJ210: =(CHOOSE(m_identity,SHET!AJ213, SPTL!AJ213, NGET!AJ213)) -> 0.043325 | AK210: =(CHOOSE(m_identity,SHET!AK213, SPTL!AK213, NGET!AK213)) -> 0.041345 | AL210: =(CHOOSE(m_identity,SHET!AL213, SPTL!AL213, NGET!AL213)) -> 0.039805 | AM210: =(CHOOSE(m_identity,SHET!AM213, SPTL!AM213, NGET!AM213)) -> 0.03788 | AN210: =(CHOOSE(m_identity,SHET!AN213, SPTL!AN213, NGET!AN213)) -> 0.037055 | AO210: =(CHOOSE(m_identity,SHET!AO213, SPTL!AO213, NGET!AO213)) -> 0.03568 | AP210: =(AP206 * AP208) + AP207 * (1 - AP208) -> 0.02907642714 | AQ210: =(AQ206 * AQ208) + AQ207 * (1 - AQ208) -> 0.02792742663 | AR210: =(AR206 * AR208) + AR207 * (1 - AR208) -> 0.02759196034 | AS210: =(AS206 * AS208) + AS207 * (1 - AS208) -> 0.02735319122 | AT210: =(AT206 * AT208) + AT207 * (1 - AT208) -> 0.02721682514
E211: Vanilla weighted average cost of capital | G211: annual real % | AP211: =(AP206 * AP208) + AP200 * (1 - AP208) -> 0.02907642714 | AQ211: =(AQ206 * AQ208) + AQ200 * (1 - AQ208) -> 0.02792742663 | AR211: 0.02759196034 | AS211: 0.02735319122 | AT211: 0.02721682514
C213: Inflation and price conversion
E215: Start of RIIO-2 | G215: year ending | I215: ='Annual Inflation'!I15 -> 2022-03-31
D217: Inflation rates
E219: Retail Prices Index (financial year average) | G219: index value | H219: RPIt | J219: > | V219: ='Annual Inflation'!V23 -> 173.875 | W219: ='Annual Inflation'!W23 -> 177.5166667 | X219: ='Annual Inflation'!X23 -> 182.475 | Y219: ='Annual Inflation'!Y23 -> 188.15 | Z219: ='Annual Inflation'!Z23 -> 193.1083333 | AA219: ='Annual Inflation'!AA23 -> 200.3166667 | AB219: ='Annual Inflation'!AB23 -> 208.5916667 | AC219: ='Annual Inflation'!AC23 -> 214.7833333 | AD219: ='Annual Inflation'!AD23 -> 215.7666667 | AE219: ='Annual Inflation'!AE23 -> 226.475 | AF219: ='Annual Inflation'!AF23 -> 237.3416667 | AG219: ='Annual Inflation'!AG23 -> 244.675 | AH219: ='Annual Inflation'!AH23 -> 251.7333333 | AI219: ='Annual Inflation'!AI23 -> 256.6666667 | AJ219: ='Annual Inflation'!AJ23 -> 259.4333333 | AK219: ='Annual Inflation'!AK23 -> 264.9916667 | AL219: ='Annual Inflation'!AL23 -> 274.9083333 | AM219: ='Annual Inflation'!AM23 -> 283.3083333 | AN219: ='Annual Inflation'!AN23 -> 290.6416667 | AO219: ='Annual Inflation'!AO23 -> 294.1666667 | AP219: ='Annual Inflation'!AP23 -> 308.2475298 | AQ219: ='Annual Inflation'!AQ23 -> 322.1742484 | AR219: ='Annual Inflation'!AR23 -> 332.7117672 | AS219: ='Annual Inflation'!AS23 -> 342.0979774 | AT219: ='Annual Inflation'!AT23 -> 351.7143182
E220: RPI inflation (financial year average) | G220: annual % | J220: > | W220: ='Annual Inflation'!W24 -> 0.02094416487 | X220: ='Annual Inflation'!X24 -> 0.02793164961 | Y220: ='Annual Inflation'!Y24 -> 0.03110015071 | Z220: ='Annual Inflation'!Z24 -> 0.02635308708 | AA220: ='Annual Inflation'!AA24 -> 0.03732792474 | AB220: ='Annual Inflation'!AB24 -> 0.04130959314 | AC220: ='Annual Inflation'!AC24 -> 0.02968319284 | AD220: ='Annual Inflation'!AD24 -> 0.004578257158 | AE220: ='Annual Inflation'!AE24 -> 0.04962922911 | AF220: ='Annual Inflation'!AF24 -> 0.04798174927 | AG220: ='Annual Inflation'!AG24 -> 0.03089779151 | AH220: ='Annual Inflation'!AH24 -> 0.02884779129 | AI220: ='Annual Inflation'!AI24 -> 0.01959745763 | AJ220: ='Annual Inflation'!AJ24 -> 0.01077922078 | AK220: ='Annual Inflation'!AK24 -> 0.02142490042 | AL220: ='Annual Inflation'!AL24 -> 0.03742256046 | AM220: ='Annual Inflation'!AM24 -> 0.03055563976 | AN220: ='Annual Inflation'!AN24 -> 0.02588463688 | AO220: ='Annual Inflation'!AO24 -> 0.01212833673 | AP220: ='Annual Inflation'!AP24 -> 0.04786695668 | AQ220: ='Annual Inflation'!AQ24 -> 0.045180309 | AR220: ='Annual Inflation'!AR24 -> 0.03270751427 | AS220: ='Annual Inflation'!AS24 -> 0.02821123608 | AT220: ='Annual Inflation'!AT24 -> 0.02810990241
E222: Consumer Prices Index incl. housing costs (financial year average) | G222: index value | H222: CPIHt | J222: > | V222: ='Annual Inflation'!V26 -> 74.86666667 | W222: ='Annual Inflation'!W26 -> 75.95833333 | X222: ='Annual Inflation'!X26 -> 76.975 | Y222: ='Annual Inflation'!Y26 -> 78.125 | Z222: ='Annual Inflation'!Z26 -> 79.825 | AA222: ='Annual Inflation'!AA26 -> 81.91666667 | AB222: ='Annual Inflation'!AB26 -> 83.825 | AC222: ='Annual Inflation'!AC26 -> 86.85833333 | AD222: ='Annual Inflation'!AD26 -> 88.43333333 | AE222: ='Annual Inflation'!AE26 -> 90.90833333 | AF222: ='Annual Inflation'!AF26 -> 94.30833333 | AG222: ='Annual Inflation'!AG26 -> 96.58333333 | AH222: ='Annual Inflation'!AH26 -> 98.6 | AI222: ='Annual Inflation'!AI26 -> 99.725 | AJ222: ='Annual Inflation'!AJ26 -> 100.1666667 | AK222: ='Annual Inflation'!AK26 -> 101.5416667 | AL222: ='Annual Inflation'!AL26 -> 104.2166667 | AM222: ='Annual Inflation'!AM26 -> 106.4333333 | AN222: ='Annual Inflation'!AN26 -> 108.2416667 | AO222: ='Annual Inflation'!AO26 -> 109.1083333 | AP222: ='Annual Inflation'!AP26 -> 112.6578762 | AQ222: ='Annual Inflation'!AQ26 -> 116.671754 | AR222: ='Annual Inflation'!AR26 -> 119.5204952 | AS222: ='Annual Inflation'!AS26 -> 121.9737183 | AT222: ='Annual Inflation'!AT26 -> 124.4147344
E223: CPIH inflation (financial year average) | G223: annual % | J223: > | W223: ='Annual Inflation'!W27 -> 0.01458147818 | X223: ='Annual Inflation'!X27 -> 0.01338453099 | Y223: ='Annual Inflation'!Y27 -> 0.01493991556 | Z223: ='Annual Inflation'!Z27 -> 0.02176 | AA223: ='Annual Inflation'!AA27 -> 0.02620315273 | AB223: ='Annual Inflation'!AB27 -> 0.02329603255 | AC223: ='Annual Inflation'!AC27 -> 0.03618649965 | AD223: ='Annual Inflation'!AD27 -> 0.01813297515 | AE223: ='Annual Inflation'!AE27 -> 0.02798718432 | AF223: ='Annual Inflation'!AF27 -> 0.03740031167 | AG223: ='Annual Inflation'!AG27 -> 0.0241230008 | AH223: ='Annual Inflation'!AH27 -> 0.02088006903 | AI223: ='Annual Inflation'!AI27 -> 0.01140973631 | AJ223: ='Annual Inflation'!AJ27 -> 0.004428845993 | AK223: ='Annual Inflation'!AK27 -> 0.01372712146 | AL223: ='Annual Inflation'!AL27 -> 0.02634386541 | AM223: ='Annual Inflation'!AM27 -> 0.0212697905 | AN223: ='Annual Inflation'!AN27 -> 0.01699029126 | AO223: ='Annual Inflation'!AO27 -> 0.008006774963 | AP223: ='Annual Inflation'!AP27 -> 0.03253228038 | AQ223: ='Annual Inflation'!AQ27 -> 0.03562891362 | AR223: ='Annual Inflation'!AR27 -> 0.02441671753 | AS223: ='Annual Inflation'!AS27 -> 0.02052554347 | AT223: ='Annual Inflation'!AT27 -> 0.02001263978
E225: Combined RPI-CPIH price index (financial year average) | G225: index value | H225: PIt | J225: > | V225: ='Annual Inflation'!V29 -> 173.875 | W225: ='Annual Inflation'!W29 -> 177.5166667 | X225: ='Annual Inflation'!X29 -> 182.475 | Y225: ='Annual Inflation'!Y29 -> 188.15 | Z225: ='Annual Inflation'!Z29 -> 193.1083333 | AA225: ='Annual Inflation'!AA29 -> 200.3166667 | AB225: ='Annual Inflation'!AB29 -> 208.5916667 | AC225: ='Annual Inflation'!AC29 -> 214.7833333 | AD225: ='Annual Inflation'!AD29 -> 215.7666667 | AE225: ='Annual Inflation'!AE29 -> 226.475 | AF225: ='Annual Inflation'!AF29 -> 237.3416667 | AG225: ='Annual Inflation'!AG29 -> 244.675 | AH225: ='Annual Inflation'!AH29 -> 251.7333333 | AI225: ='Annual Inflation'!AI29 -> 256.6666667 | AJ225: ='Annual Inflation'!AJ29 -> 259.4333333 | AK225: ='Annual Inflation'!AK29 -> 264.9916667 | AL225: ='Annual Inflation'!AL29 -> 274.9083333 | AM225: ='Annual Inflation'!AM29 -> 283.3083333 | AN225: ='Annual Inflation'!AN29 -> 290.6416667 | AO225: ='Annual Inflation'!AO29 -> 294.1666667 | AP225: ='Annual Inflation'!AP29 -> 306.08172 | AQ225: ='Annual Inflation'!AQ29 -> 316.9870791 | AR225: ='Annual Inflation'!AR29 -> 324.7268631 | AS225: ='Annual Inflation'!AS29 -> 331.3920584 | AT225: ='Annual Inflation'!AT29 -> 338.0240883
E226: Combined RPI-CPIH inflation (financial year average) | G226: annual % | J226: > | W226: ='Annual Inflation'!W30 -> 0.02094416487 | X226: ='Annual Inflation'!X30 -> 0.02793164961 | Y226: ='Annual Inflation'!Y30 -> 0.03110015071 | Z226: ='Annual Inflation'!Z30 -> 0.02635308708 | AA226: ='Annual Inflation'!AA30 -> 0.03732792474 | AB226: ='Annual Inflation'!AB30 -> 0.04130959314 | AC226: ='Annual Inflation'!AC30 -> 0.02968319284 | AD226: ='Annual Inflation'!AD30 -> 0.004578257158 | AE226: ='Annual Inflation'!AE30 -> 0.04962922911 | AF226: ='Annual Inflation'!AF30 -> 0.04798174927 | AG226: ='Annual Inflation'!AG30 -> 0.03089779151 | AH226: ='Annual Inflation'!AH30 -> 0.02884779129 | AI226: ='Annual Inflation'!AI30 -> 0.01959745763 | AJ226: ='Annual Inflation'!AJ30 -> 0.01077922078 | AK226: ='Annual Inflation'!AK30 -> 0.02142490042 | AL226: ='Annual Inflation'!AL30 -> 0.03742256046 | AM226: ='Annual Inflation'!AM30 -> 0.03055563976 | AN226: ='Annual Inflation'!AN30 -> 0.02588463688 | AO226: ='Annual Inflation'!AO30 -> 0.01212833673 | AP226: ='Annual Inflation'!AP30 -> 0.0405044305 | AQ226: ='Annual Inflation'!AQ30 -> 0.03562891362 | AR226: ='Annual Inflation'!AR30 -> 0.02441671753 | AS226: ='Annual Inflation'!AS30 -> 0.02052554347 | AT226: ='Annual Inflation'!AT30 -> 0.02001263978
E228: Forecast Debt inflation (CPIH long term forecast) | G228: annual % | AP228: ='Annual Inflation'!AP$34 -> 0.02 | AQ228: ='Annual Inflation'!AQ$34 -> 0.02 | AR228: ='Annual Inflation'!AR$34 -> 0.02 | AS228: ='Annual Inflation'!AS$34 -> 0.02 | AT228: ='Annual Inflation'!AT$34 -> 0.02
D230: Price conversion factors
E232: Real to nominal prices conversion factor (financial year average) | G232: scalar | V232: ='Annual Inflation'!V32 -> 0.6137306233 | W232: ='Annual Inflation'!W32 -> 0.6265846986 | X232: ='Annual Inflation'!X32 -> 0.6440862429 | Y232: ='Annual Inflation'!Y32 -> 0.6641174221 | Z232: ='Annual Inflation'!Z32 -> 0.6816189664 | AA232: ='Annual Inflation'!AA32 -> 0.7070623879 | AB232: ='Annual Inflation'!AB32 -> 0.7362708474 | AC232: ='Annual Inflation'!AC32 -> 0.758125717 | AD232: ='Annual Inflation'!AD32 -> 0.7615966115 | AE232: ='Annual Inflation'!AE32 -> 0.7993940642 | AF232: ='Annual Inflation'!AF32 -> 0.8377503897 | AG232: ='Annual Inflation'!AG32 -> 0.8636350266 | AH232: ='Annual Inflation'!AH32 -> 0.8885489896 | AI232: ='Annual Inflation'!AI32 -> 0.9059622908 | AJ232: ='Annual Inflation'!AJ32 -> 0.9157278583 | AK232: ='Annual Inflation'!AK32 -> 0.9353472365 | AL232: ='Annual Inflation'!AL32 -> 0.970350325 | AM232: ='Annual Inflation'!AM32 -> 1 | AN232: ='Annual Inflation'!AN32 -> 1.025884637 | AO232: ='Annual Inflation'!AO32 -> 1.038326911 | AP232: ='Annual Inflation'!AP32 -> 1.080383751 | AQ232: ='Annual Inflation'!AQ32 -> 1.118876651 | AR232: ='Annual Inflation'!AR32 -> 1.146195946 | AS232: ='Annual Inflation'!AS32 -> 1.169722241 | AT232: ='Annual Inflation'!AT32 -> 1.19313147
AP233: Adjacent named range: TOpf
E234: Real to nominal prices conversion factor (financial year start) | G234: scalar | V234: ='Annual Inflation'!V44 -> 0.6094067124 | W234: ='Annual Inflation'!W44 -> 0.6180545342 | X234: ='Annual Inflation'!X44 -> 0.6372915257 | Y234: ='Annual Inflation'!Y44 -> 0.6535282525 | Z234: ='Annual Inflation'!Z44 -> 0.6743536194 | AA234: ='Annual Inflation'!AA44 -> 0.6909433185 | AB234: ='Annual Inflation'!AB44 -> 0.7232402859 | AC234: ='Annual Inflation'!AC44 -> 0.7520075301 | AD234: ='Annual Inflation'!AD44 -> 0.7461834868 | AE234: ='Annual Inflation'!AE44 -> 0.782716122 | AF234: ='Annual Inflation'!AF44 -> 0.8240138836 | AG234: ='Annual Inflation'!AG44 -> 0.8529576139 | AH234: ='Annual Inflation'!AH44 -> 0.8792540518 | AI234: ='Annual Inflation'!AI44 -> 0.9009618496 | AJ234: ='Annual Inflation'!AJ44 -> 0.909080213 | AK234: ='Annual Inflation'!AK44 -> 0.9221401888 | AL234: ='Annual Inflation'!AL44 -> 0.9528487808 | AM234: ='Annual Inflation'!AM44 -> 0.9847927758 | AN234: ='Annual Inflation'!AN44 -> 1.011795158 | AO234: ='Annual Inflation'!AO44 -> 1.032797012 | AP234: ='Annual Inflation'!AP44 -> 1.053352823 | AQ234: ='Annual Inflation'!AQ44 -> 1.101889217 | AR234: ='Annual Inflation'!AR44 -> 1.133476313 | AS234: ='Annual Inflation'!AS44 -> 1.158048831 | AT234: ='Annual Inflation'!AT44 -> 1.181357427
E235: Real to nominal prices conversion factor (financial year end) | G235: scalar | V235: ='Annual Inflation'!V45 -> 0.6180545342 | W235: ='Annual Inflation'!W45 -> 0.6372915257 | X235: ='Annual Inflation'!X45 -> 0.6535282525 | Y235: ='Annual Inflation'!Y45 -> 0.6743536194 | Z235: ='Annual Inflation'!Z45 -> 0.6909433185 | AA235: ='Annual Inflation'!AA45 -> 0.7232402859 | AB235: ='Annual Inflation'!AB45 -> 0.7520075301 | AC235: ='Annual Inflation'!AC45 -> 0.7461834868 | AD235: ='Annual Inflation'!AD45 -> 0.782716122 | AE235: ='Annual Inflation'!AE45 -> 0.8240138836 | AF235: ='Annual Inflation'!AF45 -> 0.8529576139 | AG235: ='Annual Inflation'!AG45 -> 0.8792540518 | AH235: ='Annual Inflation'!AH45 -> 0.9009618496 | AI235: ='Annual Inflation'!AI45 -> 0.909080213 | AJ235: ='Annual Inflation'!AJ45 -> 0.9221401888 | AK235: ='Annual Inflation'!AK45 -> 0.9528487808 | AL235: ='Annual Inflation'!AL45 -> 0.9847927758 | AM235: ='Annual Inflation'!AM45 -> 1.011795158 | AN235: ='Annual Inflation'!AN45 -> 1.032797012 | AO235: ='Annual Inflation'!AO45 -> 1.053352823 | AP235: ='Annual Inflation'!AP45 -> 1.101889217 | AQ235: ='Annual Inflation'!AQ45 -> 1.133476313 | AR235: ='Annual Inflation'!AR45 -> 1.158048831 | AS235: ='Annual Inflation'!AS45 -> 1.181357427 | AT235: ='Annual Inflation'!AT45 -> 1.203990332
C237: Real Price Effects indexation
E239: RPE index | G239: index value | H239: RPEIt | J239: > | AN239: =PRODUCT(1 + $AN240:AN240) -> 0.9999612652 | AO239: =PRODUCT(1 + $AN240:AO240) -> 0.9931242937 | AP239: =PRODUCT(1 + $AN240:AP240) -> 1.004332254 | AQ239: =PRODUCT(1 + $AN240:AQ240) -> 1.002011411 | AR239: =PRODUCT(1 + $AN240:AR240) -> 1.003353704 | AS239: =PRODUCT(1 + $AN240:AS240) -> 1.00653218 | AT239: =PRODUCT(1 + $AN240:AT240) -> 1.01340754
E240: =CHOOSE(m_identity,SHET!E159, SPTL!E159, NGET!E159) -> RPE annual growth | G240: annual % | H240: =CHOOSE(m_identity,SHET!H159, SPTL!H159, NGET!H159) -> RPEt | J240: > | AN240: =CHOOSE(m_identity,SHET!AN159, SPTL!AN159, NGET!AN159) -> -3.873475751e-05 | AO240: =CHOOSE(m_identity,SHET!AO159, SPTL!AO159, NGET!AO159) -> -0.006837236358 | AP240: =CHOOSE(m_identity,SHET!AP159, SPTL!AP159, NGET!AP159) -> 0.01128555623 | AQ240: =CHOOSE(m_identity,SHET!AQ159, SPTL!AQ159, NGET!AQ159) -> -0.002310831568 | AR240: =CHOOSE(m_identity,SHET!AR159, SPTL!AR159, NGET!AR159) -> 0.001339598519 | AS240: =CHOOSE(m_identity,SHET!AS159, SPTL!AS159, NGET!AS159) -> 0.00316785222 | AT240: =CHOOSE(m_identity,SHET!AT159, SPTL!AT159, NGET!AT159) -> 0.006830740197
C242: Tax allowance
E244: =CHOOSE(m_identity,SHET!E161, SPTL!E161, NGET!E161) -> Adjusted net debt | G244: £m nominal | H244: =CHOOSE(m_identity,SHET!H161, SPTL!H161, NGET!H161) -> ANDt | AP244: =CHOOSE(m_identity,SHET!AP161, SPTL!AP161, NGET!AP161) -> 0 | AQ244: =CHOOSE(m_identity,SHET!AQ161, SPTL!AQ161, NGET!AQ161) -> 0 | AR244: =CHOOSE(m_identity,SHET!AR161, SPTL!AR161, NGET!AR161) -> 0 | AS244: =CHOOSE(m_identity,SHET!AS161, SPTL!AS161, NGET!AS161) -> 0 | AT244: =CHOOSE(m_identity,SHET!AT161, SPTL!AT161, NGET!AT161) -> 0
E245: =CHOOSE(m_identity,SHET!E162, SPTL!E162, NGET!E162) -> Tax deductible net interest cost | G245: £m nominal | H245: =CHOOSE(m_identity,SHET!H162, SPTL!H162, NGET!H162) -> TDNIt | AP245: =CHOOSE(m_identity,SHET!AP162, SPTL!AP162, NGET!AP162) -> 0 | AQ245: =CHOOSE(m_identity,SHET!AQ162, SPTL!AQ162, NGET!AQ162) -> 0 | AR245: =CHOOSE(m_identity,SHET!AR162, SPTL!AR162, NGET!AR162) -> 0 | AS245: =CHOOSE(m_identity,SHET!AS162, SPTL!AS162, NGET!AS162) -> 0 | AT245: =CHOOSE(m_identity,SHET!AT162, SPTL!AT162, NGET!AT162) -> 0
E246: =CHOOSE(m_identity,SHET!E163, SPTL!E163, NGET!E163) -> Tax allowance adjustment | G246: £m nominal | H246: =CHOOSE(m_identity,SHET!H163, SPTL!H163, NGET!H163) -> TAXAt | AP246: =CHOOSE(m_identity,SHET!AP163, SPTL!AP163, NGET!AP163) -> 0 | AQ246: =CHOOSE(m_identity,SHET!AQ163, SPTL!AQ163, NGET!AQ163) -> 0 | AR246: =CHOOSE(m_identity,SHET!AR163, SPTL!AR163, NGET!AR163) -> 0 | AS246: =CHOOSE(m_identity,SHET!AS163, SPTL!AS163, NGET!AS163) -> 0 | AT246: =CHOOSE(m_identity,SHET!AT163, SPTL!AT163, NGET!AT163) -> 0
E247: =CHOOSE(m_identity,SHET!E164, SPTL!E164, NGET!E164) -> Tax liability - tax trigger events | G247: £m 18/19 prices | H247: =CHOOSE(m_identity,SHET!H164, SPTL!H164, NGET!H164) -> TTEt | AP247: =CHOOSE(m_identity,SHET!AP164, SPTL!AP164, NGET!AP164) -> -15.15650128 | AQ247: =CHOOSE(m_identity,SHET!AQ164, SPTL!AQ164, NGET!AQ164) -> -14.16091536 | AR247: =CHOOSE(m_identity,SHET!AR164, SPTL!AR164, NGET!AR164) -> 0 | AS247: =CHOOSE(m_identity,SHET!AS164, SPTL!AS164, NGET!AS164) -> 0 | AT247: =CHOOSE(m_identity,SHET!AT164, SPTL!AT164, NGET!AT164) -> 0
... 483 more rows

Sheet Totex
A1: Totex
B2: =UserInterface!G17 -> SHET
E3: Parameter | G3: Units | I3: Constant | AP3: Annual values
E4: PCFM year ending | I4: =UserInterface!$G$10 -> 2023-03-31 | K4: 1991-03-31 | L4: 1992-03-31 | M4: 1993-03-31 | N4: 1994-03-31 | O4: 1995-03-31 | P4: 1996-03-31 | Q4: 1997-03-31 | R4: 1998-03-31 | S4: 1999-03-31 | T4: 2000-03-31 | U4: 2001-03-31 | V4: 2002-03-31 | W4: 2003-03-31 | X4: 2004-03-31 | Y4: 2005-03-31 | Z4: 2006-03-31 | AA4: 2007-03-31 | AB4: 2008-03-31 | AC4: 2009-03-31 | AD4: 2010-03-31 | AE4: 2011-03-31 | AF4: 2012-03-31 | AG4: 2013-03-31 | AH4: 2014-03-31 | AI4: 2015-03-31 | AJ4: 2016-03-31 | AK4: 2017-03-31 | AL4: 2018-03-31 | AM4: 2019-03-31 | AN4: 2020-03-31 | AO4: 2021-03-31 | AP4: 2022-03-31 | AQ4: 2023-03-31 | AR4: 2024-03-31 | AS4: 2025-03-31 | AT4: 2026-03-31
B6: Totex
C8: Allowed totex aggregated by sub-category
C9: Note: Totex is the sum of a number of cost categories, with all totex allowances falling under one (or more) of them. They have significance in the model as each sub-category can have its own set of tax pool allocation rules.
D11: Capitalisation rate 1 totex
E14: Load related capex | G14: £m 18/19 prices | AP14: =Input!AP11 + SUMPRODUCT((Input!AP$323:AP$688) * (Input!$H$323:$H$688 = $E14) * (Input!$BE$323:$BE$688 = "CapRate 1 (Baseline)")) -> 140.5591383 | AQ14: =Input!AQ11 + SUMPRODUCT((Input!AQ$323:AQ$688) * (Input!$H$323:$H$688 = $E14) * (Input!$BE$323:$BE$688 = "CapRate 1 (Baseline)")) -> 193.0921247 | AR14: =Input!AR11 + SUMPRODUCT((Input!AR$323:AR$688) * (Input!$H$323:$H$688 = $E14) * (Input!$BE$323:$BE$688 = "CapRate 1 (Baseline)")) -> 155.0933771 | AS14: =Input!AS11 + SUMPRODUCT((Input!AS$323:AS$688) * (Input!$H$323:$H$688 = $E14) * (Input!$BE$323:$BE$688 = "CapRate 1 (Baseline)")) -> 161.3300039 | AT14: =Input!AT11 + SUMPRODUCT((Input!AT$323:AT$688) * (Input!$H$323:$H$688 = $E14) * (Input!$BE$323:$BE$688 = "CapRate 1 (Baseline)")) -> 109.2254794 | AU14: =Input!AU11 + SUMPRODUCT((Input!AU$323:AU$688) * (Input!$H$323:$H$688 = $E14) * (Input!$BE$323:$BE$688 = "CapRate 1 (Baseline)")) -> 0
E15: Asset replacement capex | G15: £m 18/19 prices | AP15: =Input!AP12 + SUMPRODUCT((Input!AP$323:AP$688) * (Input!$H$323:$H$688 = $E15) * (Input!$BE$323:$BE$688 = "CapRate 1 (Baseline)")) -> 127.0377066 | AQ15: =Input!AQ12 + SUMPRODUCT((Input!AQ$323:AQ$688) * (Input!$H$323:$H$688 = $E15) * (Input!$BE$323:$BE$688 = "CapRate 1 (Baseline)")) -> 178.0322806 | AR15: =Input!AR12 + SUMPRODUCT((Input!AR$323:AR$688) * (Input!$H$323:$H$688 = $E15) * (Input!$BE$323:$BE$688 = "CapRate 1 (Baseline)")) -> 157.3240774 | AS15: =Input!AS12 + SUMPRODUCT((Input!AS$323:AS$688) * (Input!$H$323:$H$688 = $E15) * (Input!$BE$323:$BE$688 = "CapRate 1 (Baseline)")) -> 156.7982781 | AT15: =Input!AT12 + SUMPRODUCT((Input!AT$323:AT$688) * (Input!$H$323:$H$688 = $E15) * (Input!$BE$323:$BE$688 = "CapRate 1 (Baseline)")) -> 99.87916342 | AU15: =Input!AU12 + SUMPRODUCT((Input!AU$323:AU$688) * (Input!$H$323:$H$688 = $E15) * (Input!$BE$323:$BE$688 = "CapRate 1 (Baseline)")) -> 0
E16: Other capex | G16: £m 18/19 prices | AP16: =Input!AP13 + SUMPRODUCT((Input!AP$323:AP$688) * (Input!$H$323:$H$688 = $E16) * (Input!$BE$323:$BE$688 = "CapRate 1 (Baseline)")) -> 14.8127569 | AQ16: =Input!AQ13 + SUMPRODUCT((Input!AQ$323:AQ$688) * (Input!$H$323:$H$688 = $E16) * (Input!$BE$323:$BE$688 = "CapRate 1 (Baseline)")) -> 9.009233707 | AR16: =Input!AR13 + SUMPRODUCT((Input!AR$323:AR$688) * (Input!$H$323:$H$688 = $E16) * (Input!$BE$323:$BE$688 = "CapRate 1 (Baseline)")) -> 8.184450524 | AS16: =Input!AS13 + SUMPRODUCT((Input!AS$323:AS$688) * (Input!$H$323:$H$688 = $E16) * (Input!$BE$323:$BE$688 = "CapRate 1 (Baseline)")) -> 6.853057914 | AT16: =Input!AT13 + SUMPRODUCT((Input!AT$323:AT$688) * (Input!$H$323:$H$688 = $E16) * (Input!$BE$323:$BE$688 = "CapRate 1 (Baseline)")) -> 5.74485249 | AU16: =Input!AU13 + SUMPRODUCT((Input!AU$323:AU$688) * (Input!$H$323:$H$688 = $E16) * (Input!$BE$323:$BE$688 = "CapRate 1 (Baseline)")) -> 0
E17: Network operating costs (opex) | G17: £m 18/19 prices | AP17: =Input!AP14 + SUMPRODUCT((Input!AP$323:AP$688) * (Input!$H$323:$H$688 = $E17) * (Input!$BE$323:$BE$688 = "CapRate 1 (Baseline)")) -> 24.02442206 | AQ17: =Input!AQ14 + SUMPRODUCT((Input!AQ$323:AQ$688) * (Input!$H$323:$H$688 = $E17) * (Input!$BE$323:$BE$688 = "CapRate 1 (Baseline)")) -> 37.3431682 | AR17: =Input!AR14 + SUMPRODUCT((Input!AR$323:AR$688) * (Input!$H$323:$H$688 = $E17) * (Input!$BE$323:$BE$688 = "CapRate 1 (Baseline)")) -> 34.46113052 | AS17: =Input!AS14 + SUMPRODUCT((Input!AS$323:AS$688) * (Input!$H$323:$H$688 = $E17) * (Input!$BE$323:$BE$688 = "CapRate 1 (Baseline)")) -> 37.92680925 | AT17: =Input!AT14 + SUMPRODUCT((Input!AT$323:AT$688) * (Input!$H$323:$H$688 = $E17) * (Input!$BE$323:$BE$688 = "CapRate 1 (Baseline)")) -> 20.43835284 | AU17: =Input!AU14 + SUMPRODUCT((Input!AU$323:AU$688) * (Input!$H$323:$H$688 = $E17) * (Input!$BE$323:$BE$688 = "CapRate 1 (Baseline)")) -> 0
E18: Indirects (opex) | G18: £m 18/19 prices | AP18: =Input!AP15 + SUMPRODUCT((Input!AP$323:AP$688) * (Input!$H$323:$H$688 = $E18) * (Input!$BE$323:$BE$688 = "CapRate 1 (Baseline)")) -> 63.9925094 | AQ18: =Input!AQ15 + SUMPRODUCT((Input!AQ$323:AQ$688) * (Input!$H$323:$H$688 = $E18) * (Input!$BE$323:$BE$688 = "CapRate 1 (Baseline)")) -> 67.11287272 | AR18: =Input!AR15 + SUMPRODUCT((Input!AR$323:AR$688) * (Input!$H$323:$H$688 = $E18) * (Input!$BE$323:$BE$688 = "CapRate 1 (Baseline)")) -> 67.36314624 | AS18: =Input!AS15 + SUMPRODUCT((Input!AS$323:AS$688) * (Input!$H$323:$H$688 = $E18) * (Input!$BE$323:$BE$688 = "CapRate 1 (Baseline)")) -> 66.6562308 | AT18: =Input!AT15 + SUMPRODUCT((Input!AT$323:AT$688) * (Input!$H$323:$H$688 = $E18) * (Input!$BE$323:$BE$688 = "CapRate 1 (Baseline)")) -> 66.63193664 | AU18: =Input!AU15 + SUMPRODUCT((Input!AU$323:AU$688) * (Input!$H$323:$H$688 = $E18) * (Input!$BE$323:$BE$688 = "CapRate 1 (Baseline)")) -> 0
E19: Non-operational capex | G19: £m 18/19 prices | AP19: =Input!AP16 + SUMPRODUCT((Input!AP$323:AP$688) * (Input!$H$323:$H$688 = $E19) * (Input!$BE$323:$BE$688 = "CapRate 1 (Baseline)")) -> 19.26458066 | AQ19: =Input!AQ16 + SUMPRODUCT((Input!AQ$323:AQ$688) * (Input!$H$323:$H$688 = $E19) * (Input!$BE$323:$BE$688 = "CapRate 1 (Baseline)")) -> 33.2397079 | AR19: =Input!AR16 + SUMPRODUCT((Input!AR$323:AR$688) * (Input!$H$323:$H$688 = $E19) * (Input!$BE$323:$BE$688 = "CapRate 1 (Baseline)")) -> 27.37143912 | AS19: =Input!AS16 + SUMPRODUCT((Input!AS$323:AS$688) * (Input!$H$323:$H$688 = $E19) * (Input!$BE$323:$BE$688 = "CapRate 1 (Baseline)")) -> 8.846687816 | AT19: =Input!AT16 + SUMPRODUCT((Input!AT$323:AT$688) * (Input!$H$323:$H$688 = $E19) * (Input!$BE$323:$BE$688 = "CapRate 1 (Baseline)")) -> 7.107113647 | AU19: =Input!AU16 + SUMPRODUCT((Input!AU$323:AU$688) * (Input!$H$323:$H$688 = $E19) * (Input!$BE$323:$BE$688 = "CapRate 1 (Baseline)")) -> 0
D21: Capitalisation rate 2 totex
E24: Load related capex | G24: =Input!G310 -> £m 18/19 prices | AP24: =SUMPRODUCT((Input!AP$323:AP$688) * (Input!$H$323:$H$688 = $E24) * (Input!$BE$323:$BE$688 = "CapRate 2 (UM)")) -> 356.8114852 | AQ24: =SUMPRODUCT((Input!AQ$323:AQ$688) * (Input!$H$323:$H$688 = $E24) * (Input!$BE$323:$BE$688 = "CapRate 2 (UM)")) -> 274.2983222 | AR24: =SUMPRODUCT((Input!AR$323:AR$688) * (Input!$H$323:$H$688 = $E24) * (Input!$BE$323:$BE$688 = "CapRate 2 (UM)")) -> 464.6608718 | AS24: =SUMPRODUCT((Input!AS$323:AS$688) * (Input!$H$323:$H$688 = $E24) * (Input!$BE$323:$BE$688 = "CapRate 2 (UM)")) -> 581.9181569 | AT24: =SUMPRODUCT((Input!AT$323:AT$688) * (Input!$H$323:$H$688 = $E24) * (Input!$BE$323:$BE$688 = "CapRate 2 (UM)")) -> 365.5212016
E25: Asset replacement capex | G25: =Input!G311 -> £m 18/19 prices | AP25: =SUMPRODUCT((Input!AP$323:AP$688) * (Input!$H$323:$H$688 = $E25) * (Input!$BE$323:$BE$688 = "CapRate 2 (UM)")) -> 1.202994159 | AQ25: =SUMPRODUCT((Input!AQ$323:AQ$688) * (Input!$H$323:$H$688 = $E25) * (Input!$BE$323:$BE$688 = "CapRate 2 (UM)")) -> 9.291620527 | AR25: =SUMPRODUCT((Input!AR$323:AR$688) * (Input!$H$323:$H$688 = $E25) * (Input!$BE$323:$BE$688 = "CapRate 2 (UM)")) -> 11.27203419 | AS25: =SUMPRODUCT((Input!AS$323:AS$688) * (Input!$H$323:$H$688 = $E25) * (Input!$BE$323:$BE$688 = "CapRate 2 (UM)")) -> 10.6844404 | AT25: =SUMPRODUCT((Input!AT$323:AT$688) * (Input!$H$323:$H$688 = $E25) * (Input!$BE$323:$BE$688 = "CapRate 2 (UM)")) -> 12.00933081
E26: Other capex | G26: =Input!G312 -> £m 18/19 prices | AP26: =SUMPRODUCT((Input!AP$323:AP$688) * (Input!$H$323:$H$688 = $E26) * (Input!$BE$323:$BE$688 = "CapRate 2 (UM)")) -> 0.02618064852 | AQ26: =SUMPRODUCT((Input!AQ$323:AQ$688) * (Input!$H$323:$H$688 = $E26) * (Input!$BE$323:$BE$688 = "CapRate 2 (UM)")) -> 0.2022126619 | AR26: =SUMPRODUCT((Input!AR$323:AR$688) * (Input!$H$323:$H$688 = $E26) * (Input!$BE$323:$BE$688 = "CapRate 2 (UM)")) -> 0.2453122178 | AS26: =SUMPRODUCT((Input!AS$323:AS$688) * (Input!$H$323:$H$688 = $E26) * (Input!$BE$323:$BE$688 = "CapRate 2 (UM)")) -> 0.2325244695 | AT26: =SUMPRODUCT((Input!AT$323:AT$688) * (Input!$H$323:$H$688 = $E26) * (Input!$BE$323:$BE$688 = "CapRate 2 (UM)")) -> 0.2613579347
E27: Network operating costs (opex) | G27: =Input!G313 -> £m 18/19 prices | AP27: =SUMPRODUCT((Input!AP$323:AP$688) * (Input!$H$323:$H$688 = $E27) * (Input!$BE$323:$BE$688 = "CapRate 2 (UM)")) -> 0.08207007756 | AQ27: =SUMPRODUCT((Input!AQ$323:AQ$688) * (Input!$H$323:$H$688 = $E27) * (Input!$BE$323:$BE$688 = "CapRate 2 (UM)")) -> 0.6338883789 | AR27: =SUMPRODUCT((Input!AR$323:AR$688) * (Input!$H$323:$H$688 = $E27) * (Input!$BE$323:$BE$688 = "CapRate 2 (UM)")) -> 0.7689951887 | AS27: =SUMPRODUCT((Input!AS$323:AS$688) * (Input!$H$323:$H$688 = $E27) * (Input!$BE$323:$BE$688 = "CapRate 2 (UM)")) -> 0.7289086531 | AT27: =SUMPRODUCT((Input!AT$323:AT$688) * (Input!$H$323:$H$688 = $E27) * (Input!$BE$323:$BE$688 = "CapRate 2 (UM)")) -> 0.8192946771
E28: Indirects (opex) | G28: =Input!G314 -> £m 18/19 prices | AP28: =SUMPRODUCT((Input!AP$323:AP$688) * (Input!$H$323:$H$688 = $E28) * (Input!$BE$323:$BE$688 = "CapRate 2 (UM)")) -> 27.21935657 | AQ28: =SUMPRODUCT((Input!AQ$323:AQ$688) * (Input!$H$323:$H$688 = $E28) * (Input!$BE$323:$BE$688 = "CapRate 2 (UM)")) -> 25.55337327 | AR28: =SUMPRODUCT((Input!AR$323:AR$688) * (Input!$H$323:$H$688 = $E28) * (Input!$BE$323:$BE$688 = "CapRate 2 (UM)")) -> 45.80069294 | AS28: =SUMPRODUCT((Input!AS$323:AS$688) * (Input!$H$323:$H$688 = $E28) * (Input!$BE$323:$BE$688 = "CapRate 2 (UM)")) -> 56.50248722 | AT28: =SUMPRODUCT((Input!AT$323:AT$688) * (Input!$H$323:$H$688 = $E28) * (Input!$BE$323:$BE$688 = "CapRate 2 (UM)")) -> 36.98177359
E29: Non-operational capex | G29: =Input!G315 -> £m 18/19 prices | AP29: =SUMPRODUCT((Input!AP$323:AP$688) * (Input!$H$323:$H$688 = $E29) * (Input!$BE$323:$BE$688 = "CapRate 2 (UM)")) -> 0.1104646399 | AQ29: =SUMPRODUCT((Input!AQ$323:AQ$688) * (Input!$H$323:$H$688 = $E29) * (Input!$BE$323:$BE$688 = "CapRate 2 (UM)")) -> 0.8532007477 | AR29: =SUMPRODUCT((Input!AR$323:AR$688) * (Input!$H$323:$H$688 = $E29) * (Input!$BE$323:$BE$688 = "CapRate 2 (UM)")) -> 1.035051741 | AS29: =SUMPRODUCT((Input!AS$323:AS$688) * (Input!$H$323:$H$688 = $E29) * (Input!$BE$323:$BE$688 = "CapRate 2 (UM)")) -> 0.9810960866 | AT29: =SUMPRODUCT((Input!AT$323:AT$688) * (Input!$H$323:$H$688 = $E29) * (Input!$BE$323:$BE$688 = "CapRate 2 (UM)")) -> 1.10275382
D31: Allowance
E34: Allowed load related capex expenditure | G34: £m 18/19 prices | AP34: =AP14 + AP24 -> 497.3706235 | AQ34: 467.3904469 | AR34: 619.7542489 | AS34: 743.2481608 | AT34: 474.746681
E35: Allowed asset replacement capex expenditure | G35: £m 18/19 prices | AP35: 128.2407008 | AQ35: 187.3239011 | AR35: 168.5961116 | AS35: 167.4827185 | AT35: 111.8884942
E36: Allowed other capex expenditure | G36: £m 18/19 prices | AP36: 14.83893754 | AQ36: 9.211446369 | AR36: 8.429762742 | AS36: 7.085582383 | AT36: 6.006210425
E37: Allowed network operating costs (opex) | G37: £m 18/19 prices | AP37: 24.10649214 | AQ37: 37.97705657 | AR37: 35.23012571 | AS37: 38.6557179 | AT37: 21.25764752
E38: Allowed indirects (opex) | G38: £m 18/19 prices | AP38: 91.21186597 | AQ38: 92.66624599 | AR38: 113.1638392 | AS38: 123.158718 | AT38: 103.6137102
E39: Allowed non-operational capex | G39: £m 18/19 prices | AP39: 19.3750453 | AQ39: 34.09290865 | AR39: 28.40649086 | AS39: 9.827783902 | AT39: 8.209867467
E40: Allowed totex | G40: £m 18/19 prices | AP40: =SUM(AP34:AP39) -> 775.1436652 | AQ40: =SUM(AQ34:AQ39) -> 828.6620056 | AR40: =SUM(AR34:AR39) -> 973.5805789 | AS40: =SUM(AS34:AS39) -> 1089.458681 | AT40: =SUM(AT34:AT39) -> 725.7226108
C42: Actual totex
D44: Source of actuals
D45: Note: The model assumes that there is a time lag from year t until actual expenditure data becomes available for the model. After the lag, actual expenditure inputs are used. Up to that point the model generates a forecast actual expenditure.
D46: When required in the model, forecasts assume that actuals are equal to their corresponding allowance.
D47: In a year where actual totex is assumed to be available, values must be inputted to the model as it will not generate a forecast and the empty input cell will be read as an actual spend of zero.
E49: Years from t until normal reporting of actual costs | G49: years | I49: =Input!I291 -> 2
E50: Historic totex (FYI only) | G50: text | AP50: =YEAR($I$4) >= YEAR(AP$4) + $I49 -> FALSE | AQ50: =YEAR($I$4) >= YEAR(AQ$4) + $I49 -> FALSE | AR50: =YEAR($I$4) >= YEAR(AR$4) + $I49 -> FALSE | AS50: =YEAR($I$4) >= YEAR(AS$4) + $I49 -> FALSE | AT50: =YEAR($I$4) >= YEAR(AT$4) + $I49 -> FALSE
E51: Forecasted totex (FYI only) | G51: text | AP51: =IF(AP50, FALSE, TRUE) -> TRUE | AQ51: =IF(AQ50, FALSE, TRUE) -> TRUE | AR51: =IF(AR50, FALSE, TRUE) -> TRUE | AS51: =IF(AS50, FALSE, TRUE) -> TRUE | AT51: =IF(AT50, FALSE, TRUE) -> TRUE
D53: Actual totex (historic and forecasted)
D54: Note: Actuals are exported both to identify performance against the allowance and to generate writing down allowances used in the tax calculation.
E56: Capitalisation rate 1 totex
E58: Load related capex | G58: £m 18/19 prices | AP58: =Input!AP88 -> 129.9057648 | AQ58: =Input!AQ88 -> 169.5417257 | AR58: =Input!AR88 -> 186.1826114 | AS58: =Input!AS88 -> 177.7478343 | AT58: =Input!AT88 -> 136.3780247
E59: Asset replacement capex | G59: £m 18/19 prices | AP59: =Input!AP89 -> 112.7847898 | AQ59: =Input!AQ89 -> 150.1261518 | AR59: =Input!AR89 -> 167.9777274 | AS59: =Input!AS89 -> 160.2796902 | AT59: =Input!AT89 -> 122.5170357
E60: Other capex | G60: £m 18/19 prices | AP60: =Input!AP90 -> 2.454524752 | AQ60: =Input!AQ90 -> 3.267181294 | AR60: =Input!AR90 -> 3.655683451 | AS60: =Input!AS90 -> 3.488151792 | AT60: =Input!AT90 -> 2.666326702
E61: Network operating costs (opex) | G61: £m 18/19 prices | AP61: =Input!AP91 -> 24.89334211 | AQ61: =Input!AQ91 -> 38.06518431 | AR61: =Input!AR91 -> 38.77112896 | AS61: =Input!AS91 -> 41.5007425 | AT61: =Input!AT91 -> 23.35154794
E62: Indirects (opex) | G62: £m 18/19 prices | AP62: =Input!AP92 -> 64.85111281 | AQ62: =Input!AQ92 -> 63.88607395 | AR62: =Input!AR92 -> 77.73888294 | AS62: =Input!AS92 -> 73.47516345 | AT62: =Input!AT92 -> 76.50782319
E63: Non-operational capex | G63: £m 18/19 prices | AP63: =Input!AP93 -> 10.35643532 | AQ63: =Input!AQ93 -> 13.78529661 | AR63: =Input!AR93 -> 15.42451311 | AS63: =Input!AS93 -> 14.71764275 | AT63: =Input!AT93 -> 11.25009638
E65: Capitalisation rate 2 totex
E67: Load related capex | G67: £m 18/19 prices | AP67: =Input!AP97 -> 311.0983613 | AQ67: =Input!AQ97 -> 259.0116277 | AR67: =Input!AR97 -> 475.7318252 | AS67: =Input!AS97 -> 607.277522 | AT67: =Input!AT97 -> 375.7023396
E68: Asset replacement capex | G68: £m 18/19 prices | AP68: =Input!AP98 -> 1.202994159 | AQ68: =Input!AQ98 -> 9.291620527 | AR68: =Input!AR98 -> 11.27203419 | AS68: =Input!AS98 -> 10.6844404 | AT68: =Input!AT98 -> 12.00933081
E69: Other capex | G69: £m 18/19 prices | AP69: =Input!AP99 -> 0.02618064852 | AQ69: =Input!AQ99 -> 0.2022126619 | AR69: =Input!AR99 -> 0.2453122178 | AS69: =Input!AS99 -> 0.2325244695 | AT69: =Input!AT99 -> 0.2613579347
E70: Network operating costs (opex) | G70: £m 18/19 prices | AP70: =Input!AP100 -> 0.08207007756 | AQ70: =Input!AQ100 -> 0.6338883789 | AR70: =Input!AR100 -> 0.7689951887 | AS70: =Input!AS100 -> 0.7289086531 | AT70: =Input!AT100 -> 0.8192946771
E71: Indirects (opex) | G71: £m 18/19 prices | AP71: =Input!AP101 -> 22.31608845 | AQ71: =Input!AQ101 -> 22.22235418 | AR71: =Input!AR101 -> 45.52558249 | AS71: =Input!AS101 -> 58.8893547 | AT71: =Input!AT101 -> 38.04408938
E72: Non-operational capex | G72: £m 18/19 prices | AP72: =Input!AP102 -> 0.1104646399 | AQ72: =Input!AQ102 -> 0.8532007477 | AR72: =Input!AR102 -> 1.035051741 | AS72: =Input!AS102 -> 0.9810960866 | AT72: =Input!AT102 -> 1.10275382
E74: Total actual
E76: Actual load related capex expenditure | G76: £m 18/19 prices | AP76: =SUM(AP58, AP67) -> 441.0041261 | AQ76: =SUM(AQ58, AQ67) -> 428.5533534 | AR76: 661.9144365 | AS76: 785.0253563 | AT76: 512.0803643
E77: Actual asset replacement capex expenditure | G77: £m 18/19 prices | AP77: =SUM(AP59, AP68) -> 113.987784 | AQ77: 159.4177723 | AR77: 179.2497616 | AS77: 170.9641306 | AT77: 134.5263665
E78: Actual other capex expenditure | G78: £m 18/19 prices | AP78: =SUM(AP60, AP69) -> 2.4807054 | AQ78: 3.469393956 | AR78: 3.900995669 | AS78: 3.720676262 | AT78: 2.927684637
E79: Actual network operating costs (opex) | G79: £m 18/19 prices | AP79: =SUM(AP61, AP70) -> 24.97541219 | AQ79: 38.69907268 | AR79: 39.54012415 | AS79: 42.22965115 | AT79: 24.17084262
E80: Actual actual indirects (opex) | G80: £m 18/19 prices | AP80: =SUM(AP62, AP71) -> 87.16720126 | AQ80: 86.10842813 | AR80: 123.2644654 | AS80: 132.3645181 | AT80: 114.5519126
E81: Actual non-operational capex | G81: £m 18/19 prices | AP81: =SUM(AP63, AP72) -> 10.46689996 | AQ81: 14.63849736 | AR81: 16.45956485 | AS81: 15.69873884 | AT81: 12.3528502
E82: Actual totex | G82: £m 18/19 prices | AP82: =SUM(AP76:AP81) -> 680.0821288 | AQ82: =SUM(AQ76:AQ81) -> 730.8865178 | AR82: =SUM(AR76:AR81) -> 1024.329348 | AS82: =SUM(AS76:AS81) -> 1150.003071 | AT82: =SUM(AT76:AT81) -> 800.6100208
B84: End of sheet

Sheet TIM
A1: Totex Incentive Mechanism (TIM)
B2: =UserInterface!G17 -> SHET
E3: Parameter | G3: Units | I3: Constant | AP3: Annual values
E4: PCFM year ending | I4: =UserInterface!$G$10 -> 2023-03-31 | K4: 1991-03-31 | L4: 1992-03-31 | M4: 1993-03-31 | N4: 1994-03-31 | O4: 1995-03-31 | P4: 1996-03-31 | Q4: 1997-03-31 | R4: 1998-03-31 | S4: 1999-03-31 | T4: 2000-03-31 | U4: 2001-03-31 | V4: 2002-03-31 | W4: 2003-03-31 | X4: 2004-03-31 | Y4: 2005-03-31 | Z4: 2006-03-31 | AA4: 2007-03-31 | AB4: 2008-03-31 | AC4: 2009-03-31 | AD4: 2010-03-31 | AE4: 2011-03-31 | AF4: 2012-03-31 | AG4: 2013-03-31 | AH4: 2014-03-31 | AI4: 2015-03-31 | AJ4: 2016-03-31 | AK4: 2017-03-31 | AL4: 2018-03-31 | AM4: 2019-03-31 | AN4: 2020-03-31 | AO4: 2021-03-31 | AP4: 2022-03-31 | AQ4: 2023-03-31 | AR4: 2024-03-31 | AS4: 2025-03-31 | AT4: 2026-03-31
B6: Efficiency incentive
C8: Post-TIM overspend (underspend)
C9: Note: Totex overspend (underspend) is identified and subject to the "efficiency incentive rate."
D11: Capitalisation 1 totex
E13: Actual totex | G13: £m 18/19 prices | AP13: =SUM(Totex!AP58:AP63) -> 345.2459696 | AQ13: =SUM(Totex!AQ58:AQ63) -> 438.6716136 | AR13: =SUM(Totex!AR58:AR63) -> 489.7505472 | AS13: =SUM(Totex!AS58:AS63) -> 471.2092249 | AT13: =SUM(Totex!AT58:AT63) -> 372.6708546
E14: Less allowed totex | G14: £m 18/19 prices | AP14: =- SUM(Totex!AP14:AP19) -> -389.6911139 | AQ14: =- SUM(Totex!AQ14:AQ19) -> -517.8293878 | AR14: =- SUM(Totex!AR14:AR19) -> -449.7976209 | AS14: =- SUM(Totex!AS14:AS19) -> -438.4110678 | AT14: =- SUM(Totex!AT14:AT19) -> -309.0268984
E15: Pre-TIM overspend (underspend) | G15: £m 18/19 prices | AP15: =SUM(AP13:AP14) -> -44.44514438 | AQ15: =SUM(AQ13:AQ14) -> -79.15777415 | AR15: =SUM(AR13:AR14) -> 39.95292636 | AS15: =SUM(AS13:AS14) -> 32.79815718 | AT15: =SUM(AT13:AT14) -> 63.64395625
E17: Funding Adjustment Rate (often referred to as 'sharing factor') | G17: % | AP17: =Input!$I$296 -> 0.64 | AQ17: =Input!$I$296 -> 0.64 | AR17: =Input!$I$296 -> 0.64 | AS17: =Input!$I$296 -> 0.64 | AT17: =Input!$I$296 -> 0.64
E19: Post-TIM overspend (underspend) | G19: £m 18/19 prices | AP19: =AP$17 * AP15 -> -28.44489241 | AQ19: =AQ$17 * AQ15 -> -50.66097546 | AR19: =AR$17 * AR15 -> 25.56987287 | AS19: =AS$17 * AS15 -> 20.9908206 | AT19: =AT$17 * AT15 -> 40.732132
D21: Capitalisation 2 totex
E23: Actual totex | G23: £m 18/19 prices | AP23: =SUM(Totex!AP67:AP72) -> 334.8361593 | AQ23: =SUM(Totex!AQ67:AQ72) -> 292.2149042 | AR23: =SUM(Totex!AR67:AR72) -> 534.578801 | AS23: =SUM(Totex!AS67:AS72) -> 678.7938463 | AT23: =SUM(Totex!AT67:AT72) -> 427.9391662
E24: Less allowed totex | G24: £m 18/19 prices | AP24: =- SUM(Totex!AP24:AP29) -> -385.4525513 | AQ24: =- SUM(Totex!AQ24:AQ29) -> -310.8326178 | AR24: =- SUM(Totex!AR24:AR29) -> -523.7829581 | AS24: =- SUM(Totex!AS24:AS29) -> -651.0476137 | AT24: =- SUM(Totex!AT24:AT29) -> -416.6957124
E25: Pre-TIM overspend (underspend) | G25: £m 18/19 prices | AP25: =SUM(AP23:AP24) -> -50.61639201 | AQ25: =SUM(AQ23:AQ24) -> -18.61771356 | AR25: =SUM(AR23:AR24) -> 10.79584292 | AS25: =SUM(AS23:AS24) -> 27.7462326 | AT25: =SUM(AT23:AT24) -> 11.24345376
E27: Funding Adjustment Rate (often referred to as 'sharing factor') | G27: % | AP27: =AP$17 -> 0.64 | AQ27: =AQ$17 -> 0.64 | AR27: =AR$17 -> 0.64 | AS27: =AS$17 -> 0.64 | AT27: =AT$17 -> 0.64
E29: Post-TIM overspend (underspend) | G29: £m 18/19 prices | AP29: =AP$27 * AP25 -> -32.39449088 | AQ29: =AQ$27 * AQ25 -> -11.91533668 | AR29: =AR$27 * AR25 -> 6.909339469 | AS29: =AS$27 * AS25 -> 17.75758886 | AT29: =AT$27 * AT25 -> 7.195810408
C31: Post-TIM totex
C32: Note: "Post-TIM overspend (underspend)" is added to the allowed totex value to give the Post-TIM totex allowance to be split into fast and slow money.
D34: Capitalisation 1 totex
E36: Allowed totex | G36: £m 18/19 prices | AP36: =-AP14 -> 389.6911139 | AQ36: =-AQ14 -> 517.8293878 | AR36: =-AR14 -> 449.7976209 | AS36: =-AS14 -> 438.4110678 | AT36: =-AT14 -> 309.0268984
E37: Post-TIM overspend (underspend) | G37: £m 18/19 prices | AP37: =AP19 -> -28.44489241 | AQ37: =AQ19 -> -50.66097546 | AR37: =AR19 -> 25.56987287 | AS37: =AS19 -> 20.9908206 | AT37: =AT19 -> 40.732132
E38: Post-TIM totex | G38: £m 18/19 prices | AP38: =SUM(AP36:AP37) -> 361.2462215 | AQ38: =SUM(AQ36:AQ37) -> 467.1684123 | AR38: =SUM(AR36:AR37) -> 475.3674937 | AS38: =SUM(AS36:AS37) -> 459.4018884 | AT38: =SUM(AT36:AT37) -> 349.7590304
D40: Capitalisation 2 totex
E42: Allowed totex | G42: £m 18/19 prices | AP42: =-AP24 -> 385.4525513 | AQ42: =-AQ24 -> 310.8326178 | AR42: =-AR24 -> 523.7829581 | AS42: =-AS24 -> 651.0476137 | AT42: =-AT24 -> 416.6957124
E43: Post-TIM overspend (underspend) | G43: £m 18/19 prices | AP43: =AP29 -> -32.39449088 | AQ43: =AQ29 -> -11.91533668 | AR43: =AR29 -> 6.909339469 | AS43: =AS29 -> 17.75758886 | AT43: =AT29 -> 7.195810408
E44: Post-TIM totex | G44: £m 18/19 prices | AP44: =SUM(AP42:AP43) -> 353.0580604 | AQ44: =SUM(AQ42:AQ43) -> 298.9172811 | AR44: =SUM(AR42:AR43) -> 530.6922975 | AS44: =SUM(AS42:AS43) -> 668.8052026 | AT44: =SUM(AT42:AT43) -> 423.8915228
B46: Capitalisation
B47: Note: The weighted capitalised share of totex (the weightings only apply to transmission operators, where the weights are based on the relative share of allowance to totex, wider works and entry & exit).
B48: Post-TIM totex is allocated into "fast" and "slow" elements based on a pre-set percentage split:
B49: - "fast money " is exported to the "Revenue" sheet where it is included as an element of "recalculated base revenue;" and
B50: - "slow money " is exported to the "Depn" sheet where it is added to RAV. Slow money is recovered over the life of the RAV through regulatory depreciation and return allowances.
C52: Separate capitalisation
D54: Capitalisation 1 totex
E56: Post-TIM totex | G56: £m 18/19 prices | AP56: =AP38 -> 361.2462215 | AQ56: =AQ38 -> 467.1684123 | AR56: =AR38 -> 475.3674937 | AS56: =AS38 -> 459.4018884 | AT56: =AT38 -> 349.7590304
E57: Capitalisation rate 1 | G57: % | AP57: =Input!AP293 -> 0.77 | AQ57: =Input!AQ293 -> 0.77 | AR57: =Input!AR293 -> 0.77 | AS57: =Input!AS293 -> 0.77 | AT57: =Input!AT293 -> 0.77
E58: Fast pot expenditure | G58: £m 18/19 prices | AP58: =AP56-AP59 -> 83.08663095 | AQ58: =AQ56-AQ59 -> 107.4487348 | AR58: =AR56-AR59 -> 109.3345236 | AS58: =AS56-AS59 -> 105.6624343 | AT58: =AT56-AT59 -> 80.44457699
E59: Slow pot expenditure | G59: £m 18/19 prices | AP59: =AP56 * AP57 -> 278.1595906 | AQ59: =AQ56 * AQ57 -> 359.7196775 | AR59: =AR56 * AR57 -> 366.0329702 | AS59: =AS56 * AS57 -> 353.739454 | AT59: =AT56 * AT57 -> 269.3144534
D61: Capitalisation 2 totex
E63: Post-TIM totex | G63: £m 18/19 prices | AP63: =AP44 -> 353.0580604 | AQ63: =AQ44 -> 298.9172811 | AR63: =AR44 -> 530.6922975 | AS63: =AS44 -> 668.8052026 | AT63: =AT44 -> 423.8915228
E64: Capitalisation rate 2 | G64: % | AP64: =Input!AP294 -> 0.85 | AQ64: =Input!AQ294 -> 0.85 | AR64: =Input!AR294 -> 0.85 | AS64: =Input!AS294 -> 0.85 | AT64: =Input!AT294 -> 0.85
E65: Fast pot expenditure | G65: £m 18/19 prices | AP65: =AP63 - AP66 -> 52.95870906 | AQ65: =AQ63 - AQ66 -> 44.83759217 | AR65: =AR63 - AR66 -> 79.60384463 | AS65: =AS63 - AS66 -> 100.3207804 | AT65: =AT63 - AT66 -> 63.58372843
E66: Slow pot expenditure | G66: £m 18/19 prices | AP66: =AP63 * AP64 -> 300.0993513 | AQ66: =AQ63 * AQ64 -> 254.0796889 | AR66: =AR63 * AR64 -> 451.0884529 | AS66: =AS63 * AS64 -> 568.4844222 | AT66: =AT63 * AT64 -> 360.3077944
C68: Totex
E70: Fast pot expenditure | G70: £m 18/19 prices | AP70: =AP58+AP65 -> 136.04534 | AQ70: =AQ58+AQ65 -> 152.286327 | AR70: =AR58+AR65 -> 188.9383682 | AS70: =AS58+AS65 -> 205.9832147 | AT70: =AT58+AT65 -> 144.0283054
E72: Slow pot expenditure | G72: £m 18/19 prices | AP72: =AP59+AP66 -> 578.2589419 | AQ72: =AQ59+AQ66 -> 613.7993664 | AR72: =AR59+AR66 -> 817.1214231 | AS72: =AS59+AS66 -> 922.2238762 | AT72: =AT59+AT66 -> 629.6222478
B74: End of sheet

Sheet Depn
A1: Regulatory Depreciation
B2: =UserInterface!G17 -> SHET
E3: Parameter | G3: Units | I3: Constant | AP3: Annual values
E4: PCFM year ending | I4: =UserInterface!$G$10 -> 2023-03-31 | K4: 1991-03-31 | L4: 1992-03-31 | M4: 1993-03-31 | N4: 1994-03-31 | O4: 1995-03-31 | P4: 1996-03-31 | Q4: 1997-03-31 | R4: 1998-03-31 | S4: 1999-03-31 | T4: 2000-03-31 | U4: 2001-03-31 | V4: 2002-03-31 | W4: 2003-03-31 | X4: 2004-03-31 | Y4: 2005-03-31 | Z4: 2006-03-31 | AA4: 2007-03-31 | AB4: 2008-03-31 | AC4: 2009-03-31 | AD4: 2010-03-31 | AE4: 2011-03-31 | AF4: 2012-03-31 | AG4: 2013-03-31 | AH4: 2014-03-31 | AI4: 2015-03-31 | AJ4: 2016-03-31 | AK4: 2017-03-31 | AL4: 2018-03-31 | AM4: 2019-03-31 | AN4: 2020-03-31 | AO4: 2021-03-31 | AP4: 2022-03-31 | AQ4: 2023-03-31 | AR4: 2024-03-31 | AS4: 2025-03-31 | AT4: 2026-03-31
B6: Regulatory depreciation
C8: Net RAV additions (after disposals)
C9: Note: Additions to RAV are combined before feeding into the depreciation calculations. Disposals are treated as negative additions. Pre-RIIO values are used to build up the post-vesting RAV from vesting.
C10: Logged-up and security costs are retrospectively added to RAV to provide the updated opening RAV and align depreciation with expenditure.
E12: Slow money | G12: £m 18/19 prices | AP12: =TIM!AP72 -> 578.2589419 | AQ12: =TIM!AQ72 -> 613.7993664 | AR12: =TIM!AR72 -> 817.1214231 | AS12: =TIM!AS72 -> 922.2238762 | AT12: =TIM!AT72 -> 629.6222478
E13: RIIO-1 net RAV additions (incl. adjustments) | G13: £m 18/19 prices | J13: > | AH13: =Input!AH707 -> 110.0837117 | AI13: =Input!AI707 -> 367.1064993 | AJ13: =Input!AJ707 -> 639.14795 | AK13: =Input!AK707 -> 537.8024541 | AL13: =Input!AL707 -> 389.5344038 | AM13: =Input!AM707 -> 254.1738332 | AN13: =Input!AN707 -> 278.8404426 | AO13: =Input!AO707 -> 381.8566
E14: Net adjustments | G14: £m 18/19 prices | AP14: =SUM(Input!AP708:AP709) -> 0 | AQ14: =SUM(Input!AQ708:AQ709) -> 0 | AR14: =SUM(Input!AR708:AR709) -> 0 | AS14: =SUM(Input!AS708:AS709) -> 0 | AT14: =SUM(Input!AT708:AT709) -> 0
E15: Pre-RIIO net RAV additions (after disposals) | G15: £m 18/19 prices | J15: > | K15: =Input!K705 -> 34.59618362 | L15: =Input!L705 -> 31.19088293 | M15: =Input!M705 -> 3.056499656 | N15: =Input!N705 -> 34.67974928 | O15: =Input!O705 -> 14.53281129 | P15: =Input!P705 -> 14.87885822 | Q15: =Input!Q705 -> 17.79107608 | R15: =Input!R705 -> 21.27128943 | S15: =Input!S705 -> 15.687443 | T15: =Input!T705 -> 28.61180442 | U15: =Input!U705 -> 14.8825519 | V15: =Input!V705 -> 10.86700546 | W15: =Input!W705 -> 12.49851658 | X15: =Input!X705 -> 13.41587591 | Y15: =Input!Y705 -> 63.63891178 | Z15: =Input!Z705 -> 29.18200966 | AA15: =Input!AA705 -> 34.89786415 | AB15: =Input!AB705 -> 61.13551256 | AC15: =Input!AC705 -> 71.22555919 | AD15: =Input!AD705 -> 51.79638 | AE15: =Input!AE705 -> 43.92255175 | AF15: =Input!AF705 -> 38.00315465 | AG15: =Input!AG705 -> 100.3154389
E16: Net RAV additions (after Pre-RIIO2 disposals) | G16: £m 18/19 prices | J16: > | K16: =SUM(K12:K15) -> 34.59618362 | L16: 31.19088293 | M16: 3.056499656 | N16: 34.67974928 | O16: 14.53281129 | P16: 14.87885822 | Q16: 17.79107608 | R16: 21.27128943 | S16: 15.687443 | T16: 28.61180442 | U16: 14.8825519 | V16: 10.86700546 | W16: 12.49851658 | X16: 13.41587591 | Y16: 63.63891178 | Z16: 29.18200966 | AA16: 34.89786415 | AB16: 61.13551256 | AC16: 71.22555919 | AD16: 51.79638 | AE16: 43.92255175 | AF16: 38.00315465 | AG16: 100.3154389 | AH16: 110.0837117 | AI16: 367.1064993 | AJ16: 639.14795 | AK16: 537.8024541 | AL16: 389.5344038 | AM16: 254.1738332 | AN16: 278.8404426 | AO16: 381.8566 | AP16: 578.2589419 | AQ16: 613.7993664 | AR16: 817.1214231 | AS16: 922.2238762 | AT16: 629.6222478
C18: Net depreciation additions (after disposals)
C19: Note:
E21: Pre-RIIO transfers to depreciation | G21: £m 18/19 prices | J21: > | K21: =Input!K706 -> 0 | L21: =Input!L706 -> 0 | M21: =Input!M706 -> 0 | N21: =Input!N706 -> 0 | O21: =Input!O706 -> 0 | P21: =Input!P706 -> 0 | Q21: =Input!Q706 -> 0 | R21: =Input!R706 -> 0 | S21: =Input!S706 -> 0 | T21: =Input!T706 -> 0 | U21: =Input!U706 -> 0 | V21: =Input!V706 -> 0 | W21: =Input!W706 -> 0 | X21: =Input!X706 -> 0 | Y21: =Input!Y706 -> 0 | Z21: =Input!Z706 -> 0 | AA21: =Input!AA706 -> 0 | AB21: =Input!AB706 -> 0 | AC21: =Input!AC706 -> 0 | AD21: =Input!AD706 -> 0 | AE21: =Input!AE706 -> 0 | AF21: =Input!AF706 -> 0 | AG21: =Input!AG706 -> 0
C23: Pre-vesting depreciation
C24: Note: The following depreciation factor is used to depreciate the pre-vesting balance on the "Return&RAV" sheet.
E26: Vesting year | G26: year ending | I26: =Input!I704 -> 1991-03-31
E27: Pre-vesting asset life | G27: years | I27: =Input!I694 -> 22
E28: Pre-vesting straight line depreciation factor | G28: scalar | AH28: =1 / $I27 -> 0.04545454545 | AI28: 0.04545454545 | AJ28: 0.04545454545 | AK28: 0.04545454545 | AL28: 0.04545454545 | AM28: 0.04545454545 | AN28: 0.04545454545 | AO28: 0.04545454545 | AP28: 0.04545454545 | AQ28: 0.04545454545 | AR28: 0.04545454545 | AS28: 0.04545454545 | AT28: 0.04545454545
C30: Accelerated post-vesting depreciation
C31: Note: Accelerated depreciation calculations provide the allowed depreciation after full depreciation of pre-vesting assets, but are also used to establish the "RAV differential" generated before that point.
D33: Depreciation parameters
E35: Post-vesting asset life | G35: years | J35: > | K35: =Input!K702 -> 20 | L35: =Input!L702 -> 20 | M35: =Input!M702 -> 20 | N35: =Input!N702 -> 20 | O35: =Input!O702 -> 20 | P35: =Input!P702 -> 20 | Q35: =Input!Q702 -> 20 | R35: =Input!R702 -> 20 | S35: =Input!S702 -> 20 | T35: =Input!T702 -> 20 | U35: =Input!U702 -> 20 | V35: =Input!V702 -> 20 | W35: =Input!W702 -> 20 | X35: =Input!X702 -> 20 | Y35: =Input!Y702 -> 20 | Z35: =Input!Z702 -> 20 | AA35: =Input!AA702 -> 20 | AB35: =Input!AB702 -> 20 | AC35: =Input!AC702 -> 20 | AD35: =Input!AD702 -> 20 | AE35: =Input!AE702 -> 20 | AF35: =Input!AF702 -> 20 | AG35: =Input!AG702 -> 20 | AH35: =Input!AH702 -> 21.5625 | AI35: =Input!AI702 -> 23.125 | AJ35: =Input!AJ702 -> 24.6875 | AK35: =Input!AK702 -> 26.25 | AL35: =Input!AL702 -> 27.8125 | AM35: =Input!AM702 -> 29.375 | AN35: =Input!AN702 -> 30.9375 | AO35: =Input!AO702 -> 32.5 | AP35: =Input!AP702 -> 35 | AQ35: =Input!AQ702 -> 37.5 | AR35: =Input!AR702 -> 40 | AS35: =Input!AS702 -> 42.5 | AT35: =Input!AT702 -> 45
E36: Accelerated post-vesting depreciation applied | G36: text | J36: > | L36: =YEAR(L$4) >= YEAR($I$26) + $I$27 -> FALSE | M36: FALSE | N36: FALSE | O36: FALSE | P36: FALSE | Q36: FALSE | R36: FALSE | S36: FALSE | T36: FALSE | U36: FALSE | V36: FALSE | W36: FALSE | X36: FALSE | Y36: FALSE | Z36: FALSE | AA36: FALSE | AB36: FALSE | AC36: FALSE | AD36: FALSE | AE36: FALSE | AF36: FALSE | AG36: TRUE | AH36: TRUE | AI36: TRUE | AJ36: TRUE | AK36: TRUE | AL36: TRUE | AM36: TRUE | AN36: TRUE | AO36: TRUE | AP36: TRUE | AQ36: TRUE | AR36: TRUE | AS36: TRUE | AT36: TRUE
D38: Depreciation schedule
E40: Accelerated depreciation of additions from year ending | I40: Net additions
E41: 1991-03-31 | G41: £m 18/19 prices | I41: =I89 -> 34.59618362 | J41: > | L41: =$I41/$K$35 -> 1.729809181 | M41: =IF($I41 >0, MIN(L41,$I41-SUM($L41:L41)), MAX(L41,$I41-SUM($L41:L41))) -> 1.729809181 | N41: =IF($I41 >0, MIN(M41,$I41-SUM($L41:M41)), MAX(M41,$I41-SUM($L41:M41))) -> 1.729809181 | O41: =IF($I41 >0, MIN(N41,$I41-SUM($L41:N41)), MAX(N41,$I41-SUM($L41:N41))) -> 1.729809181 | P41: =IF($I41 >0, MIN(O41,$I41-SUM($L41:O41)), MAX(O41,$I41-SUM($L41:O41))) -> 1.729809181 | Q41: =IF($I41 >0, MIN(P41,$I41-SUM($L41:P41)), MAX(P41,$I41-SUM($L41:P41))) -> 1.729809181 | R41: =IF($I41 >0, MIN(Q41,$I41-SUM($L41:Q41)), MAX(Q41,$I41-SUM($L41:Q41))) -> 1.729809181 | S41: =IF($I41 >0, MIN(R41,$I41-SUM($L41:R41)), MAX(R41,$I41-SUM($L41:R41))) -> 1.729809181 | T41: =IF($I41 >0, MIN(S41,$I41-SUM($L41:S41)), MAX(S41,$I41-SUM($L41:S41))) -> 1.729809181 | U41: =IF($I41 >0, MIN(T41,$I41-SUM($L41:T41)), MAX(T41,$I41-SUM($L41:T41))) -> 1.729809181 | V41: =IF($I41 >0, MIN(U41,$I41-SUM($L41:U41)), MAX(U41,$I41-SUM($L41:U41))) -> 1.729809181 | W41: =IF($I41 >0, MIN(V41,$I41-SUM($L41:V41)), MAX(V41,$I41-SUM($L41:V41))) -> 1.729809181 | X41: =IF($I41 >0, MIN(W41,$I41-SUM($L41:W41)), MAX(W41,$I41-SUM($L41:W41))) -> 1.729809181 | Y41: =IF($I41 >0, MIN(X41,$I41-SUM($L41:X41)), MAX(X41,$I41-SUM($L41:X41))) -> 1.729809181 | Z41: =IF($I41 >0, MIN(Y41,$I41-SUM($L41:Y41)), MAX(Y41,$I41-SUM($L41:Y41))) -> 1.729809181 | AA41: =IF($I41 >0, MIN(Z41,$I41-SUM($L41:Z41)), MAX(Z41,$I41-SUM($L41:Z41))) -> 1.729809181 | AB41: =IF($I41 >0, MIN(AA41,$I41-SUM($L41:AA41)), MAX(AA41,$I41-SUM($L41:AA41))) -> 1.729809181 | AC41: =IF($I41 >0, MIN(AB41,$I41-SUM($L41:AB41)), MAX(AB41,$I41-SUM($L41:AB41))) -> 1.729809181 | AD41: =IF($I41 >0, MIN(AC41,$I41-SUM($L41:AC41)), MAX(AC41,$I41-SUM($L41:AC41))) -> 1.729809181 | AE41: =IF($I41 >0, MIN(AD41,$I41-SUM($L41:AD41)), MAX(AD41,$I41-SUM($L41:AD41))) -> 1.729809181 | AF41: =IF($I41 >0, MIN(AE41,$I41-SUM($L41:AE41)), MAX(AE41,$I41-SUM($L41:AE41))) -> 1.421085472e-14 | AG41: =IF($I41 >0, MIN(AF41,$I41-SUM($L41:AF41)), MAX(AF41,$I41-SUM($L41:AF41))) -> 0 | AH41: =IF($I41 >0, MIN(AG41,$I41-SUM($L41:AG41)), MAX(AG41,$I41-SUM($L41:AG41))) -> 0 | AI41: =IF($I41 >0, MIN(AH41,$I41-SUM($L41:AH41)), MAX(AH41,$I41-SUM($L41:AH41))) -> 0 | AJ41: =IF($I41 >0, MIN(AI41,$I41-SUM($L41:AI41)), MAX(AI41,$I41-SUM($L41:AI41))) -> 0 | AK41: =IF($I41 >0, MIN(AJ41,$I41-SUM($L41:AJ41)), MAX(AJ41,$I41-SUM($L41:AJ41))) -> 0 | AL41: =IF($I41 >0, MIN(AK41,$I41-SUM($L41:AK41)), MAX(AK41,$I41-SUM($L41:AK41))) -> 0 | AM41: =IF($I41 >0, MIN(AL41,$I41-SUM($L41:AL41)), MAX(AL41,$I41-SUM($L41:AL41))) -> 0 | AN41: =IF($I41 >0, MIN(AM41,$I41-SUM($L41:AM41)), MAX(AM41,$I41-SUM($L41:AM41))) -> 0 | AO41: =IF($I41 >0, MIN(AN41,$I41-SUM($L41:AN41)), MAX(AN41,$I41-SUM($L41:AN41))) -> 0 | AP41: =IF($I41 >0, MIN(AO41,$I41-SUM($L41:AO41)), MAX(AO41,$I41-SUM($L41:AO41))) -> 0 | AQ41: =IF($I41 >0, MIN(AP41,$I41-SUM($L41:AP41)), MAX(AP41,$I41-SUM($L41:AP41))) -> 0 | AR41: =IF($I41 >0, MIN(AQ41,$I41-SUM($L41:AQ41)), MAX(AQ41,$I41-SUM($L41:AQ41))) -> 0 | AS41: =IF($I41 >0, MIN(AR41,$I41-SUM($L41:AR41)), MAX(AR41,$I41-SUM($L41:AR41))) -> 0 | AT41: =IF($I41 >0, MIN(AS41,$I41-SUM($L41:AS41)), MAX(AS41,$I41-SUM($L41:AS41))) -> 0
E42: 1992-03-31 | G42: £m 18/19 prices | I42: 31.19088293 | J42: > | M42: =$I42/L$35 -> 1.559544147 | N42: =IF($I42 >0, MIN(M42,$I42-SUM($L42:M42)), MAX(M42,$I42-SUM($L42:M42))) -> 1.559544147 | O42: =IF($I42 >0, MIN(N42,$I42-SUM($L42:N42)), MAX(N42,$I42-SUM($L42:N42))) -> 1.559544147 | P42: =IF($I42 >0, MIN(O42,$I42-SUM($L42:O42)), MAX(O42,$I42-SUM($L42:O42))) -> 1.559544147 | Q42: =IF($I42 >0, MIN(P42,$I42-SUM($L42:P42)), MAX(P42,$I42-SUM($L42:P42))) -> 1.559544147 | R42: =IF($I42 >0, MIN(Q42,$I42-SUM($L42:Q42)), MAX(Q42,$I42-SUM($L42:Q42))) -> 1.559544147 | S42: =IF($I42 >0, MIN(R42,$I42-SUM($L42:R42)), MAX(R42,$I42-SUM($L42:R42))) -> 1.559544147 | T42: =IF($I42 >0, MIN(S42,$I42-SUM($L42:S42)), MAX(S42,$I42-SUM($L42:S42))) -> 1.559544147 | U42: =IF($I42 >0, MIN(T42,$I42-SUM($L42:T42)), MAX(T42,$I42-SUM($L42:T42))) -> 1.559544147 | V42: =IF($I42 >0, MIN(U42,$I42-SUM($L42:U42)), MAX(U42,$I42-SUM($L42:U42))) -> 1.559544147 | W42: =IF($I42 >0, MIN(V42,$I42-SUM($L42:V42)), MAX(V42,$I42-SUM($L42:V42))) -> 1.559544147 | X42: =IF($I42 >0, MIN(W42,$I42-SUM($L42:W42)), MAX(W42,$I42-SUM($L42:W42))) -> 1.559544147 | Y42: =IF($I42 >0, MIN(X42,$I42-SUM($L42:X42)), MAX(X42,$I42-SUM($L42:X42))) -> 1.559544147 | Z42: =IF($I42 >0, MIN(Y42,$I42-SUM($L42:Y42)), MAX(Y42,$I42-SUM($L42:Y42))) -> 1.559544147 | AA42: =IF($I42 >0, MIN(Z42,$I42-SUM($L42:Z42)), MAX(Z42,$I42-SUM($L42:Z42))) -> 1.559544147 | AB42: =IF($I42 >0, MIN(AA42,$I42-SUM($L42:AA42)), MAX(AA42,$I42-SUM($L42:AA42))) -> 1.559544147 | AC42: =IF($I42 >0, MIN(AB42,$I42-SUM($L42:AB42)), MAX(AB42,$I42-SUM($L42:AB42))) -> 1.559544147 | AD42: =IF($I42 >0, MIN(AC42,$I42-SUM($L42:AC42)), MAX(AC42,$I42-SUM($L42:AC42))) -> 1.559544147 | AE42: =IF($I42 >0, MIN(AD42,$I42-SUM($L42:AD42)), MAX(AD42,$I42-SUM($L42:AD42))) -> 1.559544147 | AF42: =IF($I42 >0, MIN(AE42,$I42-SUM($L42:AE42)), MAX(AE42,$I42-SUM($L42:AE42))) -> 1.559544147 | AG42: =IF($I42 >0, MIN(AF42,$I42-SUM($L42:AF42)), MAX(AF42,$I42-SUM($L42:AF42))) -> 1.065814104e-14 | AH42: =IF($I42 >0, MIN(AG42,$I42-SUM($L42:AG42)), MAX(AG42,$I42-SUM($L42:AG42))) -> 0 | AI42: =IF($I42 >0, MIN(AH42,$I42-SUM($L42:AH42)), MAX(AH42,$I42-SUM($L42:AH42))) -> 0 | AJ42: =IF($I42 >0, MIN(AI42,$I42-SUM($L42:AI42)), MAX(AI42,$I42-SUM($L42:AI42))) -> 0 | AK42: =IF($I42 >0, MIN(AJ42,$I42-SUM($L42:AJ42)), MAX(AJ42,$I42-SUM($L42:AJ42))) -> 0 | AL42: =IF($I42 >0, MIN(AK42,$I42-SUM($L42:AK42)), MAX(AK42,$I42-SUM($L42:AK42))) -> 0 | AM42: =IF($I42 >0, MIN(AL42,$I42-SUM($L42:AL42)), MAX(AL42,$I42-SUM($L42:AL42))) -> 0 | AN42: =IF($I42 >0, MIN(AM42,$I42-SUM($L42:AM42)), MAX(AM42,$I42-SUM($L42:AM42))) -> 0 | AO42: =IF($I42 >0, MIN(AN42,$I42-SUM($L42:AN42)), MAX(AN42,$I42-SUM($L42:AN42))) -> 0 | AP42: =IF($I42 >0, MIN(AO42,$I42-SUM($L42:AO42)), MAX(AO42,$I42-SUM($L42:AO42))) -> 0 | AQ42: =IF($I42 >0, MIN(AP42,$I42-SUM($L42:AP42)), MAX(AP42,$I42-SUM($L42:AP42))) -> 0 | AR42: =IF($I42 >0, MIN(AQ42,$I42-SUM($L42:AQ42)), MAX(AQ42,$I42-SUM($L42:AQ42))) -> 0 | AS42: =IF($I42 >0, MIN(AR42,$I42-SUM($L42:AR42)), MAX(AR42,$I42-SUM($L42:AR42))) -> 0 | AT42: =IF($I42 >0, MIN(AS42,$I42-SUM($L42:AS42)), MAX(AS42,$I42-SUM($L42:AS42))) -> 0
E43: 1993-03-31 | G43: £m 18/19 prices | I43: 3.056499656 | J43: > | N43: =$I43/M$35 -> 0.1528249828 | O43: =IF($I43 >0, MIN(N43,$I43-SUM($L43:N43)), MAX(N43,$I43-SUM($L43:N43))) -> 0.1528249828 | P43: =IF($I43 >0, MIN(O43,$I43-SUM($L43:O43)), MAX(O43,$I43-SUM($L43:O43))) -> 0.1528249828 | Q43: =IF($I43 >0, MIN(P43,$I43-SUM($L43:P43)), MAX(P43,$I43-SUM($L43:P43))) -> 0.1528249828 | R43: =IF($I43 >0, MIN(Q43,$I43-SUM($L43:Q43)), MAX(Q43,$I43-SUM($L43:Q43))) -> 0.1528249828 | S43: =IF($I43 >0, MIN(R43,$I43-SUM($L43:R43)), MAX(R43,$I43-SUM($L43:R43))) -> 0.1528249828 | T43: =IF($I43 >0, MIN(S43,$I43-SUM($L43:S43)), MAX(S43,$I43-SUM($L43:S43))) -> 0.1528249828 | U43: =IF($I43 >0, MIN(T43,$I43-SUM($L43:T43)), MAX(T43,$I43-SUM($L43:T43))) -> 0.1528249828 | V43: =IF($I43 >0, MIN(U43,$I43-SUM($L43:U43)), MAX(U43,$I43-SUM($L43:U43))) -> 0.1528249828 | W43: =IF($I43 >0, MIN(V43,$I43-SUM($L43:V43)), MAX(V43,$I43-SUM($L43:V43))) -> 0.1528249828 | X43: =IF($I43 >0, MIN(W43,$I43-SUM($L43:W43)), MAX(W43,$I43-SUM($L43:W43))) -> 0.1528249828 | Y43: =IF($I43 >0, MIN(X43,$I43-SUM($L43:X43)), MAX(X43,$I43-SUM($L43:X43))) -> 0.1528249828 | Z43: =IF($I43 >0, MIN(Y43,$I43-SUM($L43:Y43)), MAX(Y43,$I43-SUM($L43:Y43))) -> 0.1528249828 | AA43: =IF($I43 >0, MIN(Z43,$I43-SUM($L43:Z43)), MAX(Z43,$I43-SUM($L43:Z43))) -> 0.1528249828 | AB43: =IF($I43 >0, MIN(AA43,$I43-SUM($L43:AA43)), MAX(AA43,$I43-SUM($L43:AA43))) -> 0.1528249828 | AC43: =IF($I43 >0, MIN(AB43,$I43-SUM($L43:AB43)), MAX(AB43,$I43-SUM($L43:AB43))) -> 0.1528249828 | AD43: =IF($I43 >0, MIN(AC43,$I43-SUM($L43:AC43)), MAX(AC43,$I43-SUM($L43:AC43))) -> 0.1528249828 | AE43: =IF($I43 >0, MIN(AD43,$I43-SUM($L43:AD43)), MAX(AD43,$I43-SUM($L43:AD43))) -> 0.1528249828 | AF43: =IF($I43 >0, MIN(AE43,$I43-SUM($L43:AE43)), MAX(AE43,$I43-SUM($L43:AE43))) -> 0.1528249828 | AG43: =IF($I43 >0, MIN(AF43,$I43-SUM($L43:AF43)), MAX(AF43,$I43-SUM($L43:AF43))) -> 0.1528249828 | AH43: =IF($I43 >0, MIN(AG43,$I43-SUM($L43:AG43)), MAX(AG43,$I43-SUM($L43:AG43))) -> 0 | AI43: =IF($I43 >0, MIN(AH43,$I43-SUM($L43:AH43)), MAX(AH43,$I43-SUM($L43:AH43))) -> 0 | AJ43: =IF($I43 >0, MIN(AI43,$I43-SUM($L43:AI43)), MAX(AI43,$I43-SUM($L43:AI43))) -> 0 | AK43: =IF($I43 >0, MIN(AJ43,$I43-SUM($L43:AJ43)), MAX(AJ43,$I43-SUM($L43:AJ43))) -> 0 | AL43: =IF($I43 >0, MIN(AK43,$I43-SUM($L43:AK43)), MAX(AK43,$I43-SUM($L43:AK43))) -> 0 | AM43: =IF($I43 >0, MIN(AL43,$I43-SUM($L43:AL43)), MAX(AL43,$I43-SUM($L43:AL43))) -> 0 | AN43: =IF($I43 >0, MIN(AM43,$I43-SUM($L43:AM43)), MAX(AM43,$I43-SUM($L43:AM43))) -> 0 | AO43: =IF($I43 >0, MIN(AN43,$I43-SUM($L43:AN43)), MAX(AN43,$I43-SUM($L43:AN43))) -> 0 | AP43: =IF($I43 >0, MIN(AO43,$I43-SUM($L43:AO43)), MAX(AO43,$I43-SUM($L43:AO43))) -> 0 | AQ43: =IF($I43 >0, MIN(AP43,$I43-SUM($L43:AP43)), MAX(AP43,$I43-SUM($L43:AP43))) -> 0 | AR43: =IF($I43 >0, MIN(AQ43,$I43-SUM($L43:AQ43)), MAX(AQ43,$I43-SUM($L43:AQ43))) -> 0 | AS43: =IF($I43 >0, MIN(AR43,$I43-SUM($L43:AR43)), MAX(AR43,$I43-SUM($L43:AR43))) -> 0 | AT43: =IF($I43 >0, MIN(AS43,$I43-SUM($L43:AS43)), MAX(AS43,$I43-SUM($L43:AS43))) -> 0
E44: 1994-03-31 | G44: £m 18/19 prices | I44: 34.67974928 | J44: > | O44: =$I44/N$35 -> 1.733987464 | P44: =IF($I44 >0, MIN(O44,$I44-SUM($L44:O44)), MAX(O44,$I44-SUM($L44:O44))) -> 1.733987464 | Q44: =IF($I44 >0, MIN(P44,$I44-SUM($L44:P44)), MAX(P44,$I44-SUM($L44:P44))) -> 1.733987464 | R44: =IF($I44 >0, MIN(Q44,$I44-SUM($L44:Q44)), MAX(Q44,$I44-SUM($L44:Q44))) -> 1.733987464 | S44: =IF($I44 >0, MIN(R44,$I44-SUM($L44:R44)), MAX(R44,$I44-SUM($L44:R44))) -> 1.733987464 | T44: =IF($I44 >0, MIN(S44,$I44-SUM($L44:S44)), MAX(S44,$I44-SUM($L44:S44))) -> 1.733987464 | U44: =IF($I44 >0, MIN(T44,$I44-SUM($L44:T44)), MAX(T44,$I44-SUM($L44:T44))) -> 1.733987464 | V44: =IF($I44 >0, MIN(U44,$I44-SUM($L44:U44)), MAX(U44,$I44-SUM($L44:U44))) -> 1.733987464 | W44: =IF($I44 >0, MIN(V44,$I44-SUM($L44:V44)), MAX(V44,$I44-SUM($L44:V44))) -> 1.733987464 | X44: =IF($I44 >0, MIN(W44,$I44-SUM($L44:W44)), MAX(W44,$I44-SUM($L44:W44))) -> 1.733987464 | Y44: =IF($I44 >0, MIN(X44,$I44-SUM($L44:X44)), MAX(X44,$I44-SUM($L44:X44))) -> 1.733987464 | Z44: =IF($I44 >0, MIN(Y44,$I44-SUM($L44:Y44)), MAX(Y44,$I44-SUM($L44:Y44))) -> 1.733987464 | AA44: =IF($I44 >0, MIN(Z44,$I44-SUM($L44:Z44)), MAX(Z44,$I44-SUM($L44:Z44))) -> 1.733987464 | AB44: =IF($I44 >0, MIN(AA44,$I44-SUM($L44:AA44)), MAX(AA44,$I44-SUM($L44:AA44))) -> 1.733987464 | AC44: =IF($I44 >0, MIN(AB44,$I44-SUM($L44:AB44)), MAX(AB44,$I44-SUM($L44:AB44))) -> 1.733987464 | AD44: =IF($I44 >0, MIN(AC44,$I44-SUM($L44:AC44)), MAX(AC44,$I44-SUM($L44:AC44))) -> 1.733987464 | AE44: =IF($I44 >0, MIN(AD44,$I44-SUM($L44:AD44)), MAX(AD44,$I44-SUM($L44:AD44))) -> 1.733987464 | AF44: =IF($I44 >0, MIN(AE44,$I44-SUM($L44:AE44)), MAX(AE44,$I44-SUM($L44:AE44))) -> 1.733987464 | AG44: =IF($I44 >0, MIN(AF44,$I44-SUM($L44:AF44)), MAX(AF44,$I44-SUM($L44:AF44))) -> 1.733987464 | AH44: =IF($I44 >0, MIN(AG44,$I44-SUM($L44:AG44)), MAX(AG44,$I44-SUM($L44:AG44))) -> 1.733987464 | AI44: =IF($I44 >0, MIN(AH44,$I44-SUM($L44:AH44)), MAX(AH44,$I44-SUM($L44:AH44))) -> 0 | AJ44: =IF($I44 >0, MIN(AI44,$I44-SUM($L44:AI44)), MAX(AI44,$I44-SUM($L44:AI44))) -> 0 | AK44: =IF($I44 >0, MIN(AJ44,$I44-SUM($L44:AJ44)), MAX(AJ44,$I44-SUM($L44:AJ44))) -> 0 | AL44: =IF($I44 >0, MIN(AK44,$I44-SUM($L44:AK44)), MAX(AK44,$I44-SUM($L44:AK44))) -> 0 | AM44: =IF($I44 >0, MIN(AL44,$I44-SUM($L44:AL44)), MAX(AL44,$I44-SUM($L44:AL44))) -> 0 | AN44: =IF($I44 >0, MIN(AM44,$I44-SUM($L44:AM44)), MAX(AM44,$I44-SUM($L44:AM44))) -> 0 | AO44: =IF($I44 >0, MIN(AN44,$I44-SUM($L44:AN44)), MAX(AN44,$I44-SUM($L44:AN44))) -> 0 | AP44: =IF($I44 >0, MIN(AO44,$I44-SUM($L44:AO44)), MAX(AO44,$I44-SUM($L44:AO44))) -> 0 | AQ44: =IF($I44 >0, MIN(AP44,$I44-SUM($L44:AP44)), MAX(AP44,$I44-SUM($L44:AP44))) -> 0 | AR44: =IF($I44 >0, MIN(AQ44,$I44-SUM($L44:AQ44)), MAX(AQ44,$I44-SUM($L44:AQ44))) -> 0 | AS44: =IF($I44 >0, MIN(AR44,$I44-SUM($L44:AR44)), MAX(AR44,$I44-SUM($L44:AR44))) -> 0 | AT44: =IF($I44 >0, MIN(AS44,$I44-SUM($L44:AS44)), MAX(AS44,$I44-SUM($L44:AS44))) -> 0
E45: 1995-03-31 | G45: £m 18/19 prices | I45: 14.53281129 | J45: > | P45: =$I45/O$35 -> 0.7266405647 | Q45: =IF($I45 >0, MIN(P45,$I45-SUM($L45:P45)), MAX(P45,$I45-SUM($L45:P45))) -> 0.7266405647 | R45: =IF($I45 >0, MIN(Q45,$I45-SUM($L45:Q45)), MAX(Q45,$I45-SUM($L45:Q45))) -> 0.7266405647 | S45: =IF($I45 >0, MIN(R45,$I45-SUM($L45:R45)), MAX(R45,$I45-SUM($L45:R45))) -> 0.7266405647 | T45: =IF($I45 >0, MIN(S45,$I45-SUM($L45:S45)), MAX(S45,$I45-SUM($L45:S45))) -> 0.7266405647 | U45: =IF($I45 >0, MIN(T45,$I45-SUM($L45:T45)), MAX(T45,$I45-SUM($L45:T45))) -> 0.7266405647 | V45: =IF($I45 >0, MIN(U45,$I45-SUM($L45:U45)), MAX(U45,$I45-SUM($L45:U45))) -> 0.7266405647 | W45: =IF($I45 >0, MIN(V45,$I45-SUM($L45:V45)), MAX(V45,$I45-SUM($L45:V45))) -> 0.7266405647 | X45: =IF($I45 >0, MIN(W45,$I45-SUM($L45:W45)), MAX(W45,$I45-SUM($L45:W45))) -> 0.7266405647 | Y45: =IF($I45 >0, MIN(X45,$I45-SUM($L45:X45)), MAX(X45,$I45-SUM($L45:X45))) -> 0.7266405647 | Z45: =IF($I45 >0, MIN(Y45,$I45-SUM($L45:Y45)), MAX(Y45,$I45-SUM($L45:Y45))) -> 0.7266405647 | AA45: =IF($I45 >0, MIN(Z45,$I45-SUM($L45:Z45)), MAX(Z45,$I45-SUM($L45:Z45))) -> 0.7266405647 | AB45: =IF($I45 >0, MIN(AA45,$I45-SUM($L45:AA45)), MAX(AA45,$I45-SUM($L45:AA45))) -> 0.7266405647 | AC45: =IF($I45 >0, MIN(AB45,$I45-SUM($L45:AB45)), MAX(AB45,$I45-SUM($L45:AB45))) -> 0.7266405647 | AD45: =IF($I45 >0, MIN(AC45,$I45-SUM($L45:AC45)), MAX(AC45,$I45-SUM($L45:AC45))) -> 0.7266405647 | AE45: =IF($I45 >0, MIN(AD45,$I45-SUM($L45:AD45)), MAX(AD45,$I45-SUM($L45:AD45))) -> 0.7266405647 | AF45: =IF($I45 >0, MIN(AE45,$I45-SUM($L45:AE45)), MAX(AE45,$I45-SUM($L45:AE45))) -> 0.7266405647 | AG45: =IF($I45 >0, MIN(AF45,$I45-SUM($L45:AF45)), MAX(AF45,$I45-SUM($L45:AF45))) -> 0.7266405647 | AH45: =IF($I45 >0, MIN(AG45,$I45-SUM($L45:AG45)), MAX(AG45,$I45-SUM($L45:AG45))) -> 0.7266405647 | AI45: =IF($I45 >0, MIN(AH45,$I45-SUM($L45:AH45)), MAX(AH45,$I45-SUM($L45:AH45))) -> 0.7266405647 | AJ45: =IF($I45 >0, MIN(AI45,$I45-SUM($L45:AI45)), MAX(AI45,$I45-SUM($L45:AI45))) -> 0 | AK45: =IF($I45 >0, MIN(AJ45,$I45-SUM($L45:AJ45)), MAX(AJ45,$I45-SUM($L45:AJ45))) -> 0 | AL45: =IF($I45 >0, MIN(AK45,$I45-SUM($L45:AK45)), MAX(AK45,$I45-SUM($L45:AK45))) -> 0 | AM45: =IF($I45 >0, MIN(AL45,$I45-SUM($L45:AL45)), MAX(AL45,$I45-SUM($L45:AL45))) -> 0 | AN45: =IF($I45 >0, MIN(AM45,$I45-SUM($L45:AM45)), MAX(AM45,$I45-SUM($L45:AM45))) -> 0 | AO45: =IF($I45 >0, MIN(AN45,$I45-SUM($L45:AN45)), MAX(AN45,$I45-SUM($L45:AN45))) -> 0 | AP45: =IF($I45 >0, MIN(AO45,$I45-SUM($L45:AO45)), MAX(AO45,$I45-SUM($L45:AO45))) -> 0 | AQ45: =IF($I45 >0, MIN(AP45,$I45-SUM($L45:AP45)), MAX(AP45,$I45-SUM($L45:AP45))) -> 0 | AR45: =IF($I45 >0, MIN(AQ45,$I45-SUM($L45:AQ45)), MAX(AQ45,$I45-SUM($L45:AQ45))) -> 0 | AS45: =IF($I45 >0, MIN(AR45,$I45-SUM($L45:AR45)), MAX(AR45,$I45-SUM($L45:AR45))) -> 0 | AT45: =IF($I45 >0, MIN(AS45,$I45-SUM($L45:AS45)), MAX(AS45,$I45-SUM($L45:AS45))) -> 0
E46: 1996-03-31 | G46: £m 18/19 prices | I46: 14.87885822 | J46: > | Q46: =$I46/P$35 -> 0.7439429111 | R46: =IF($I46 >0, MIN(Q46,$I46-SUM($L46:Q46)), MAX(Q46,$I46-SUM($L46:Q46))) -> 0.7439429111 | S46: =IF($I46 >0, MIN(R46,$I46-SUM($L46:R46)), MAX(R46,$I46-SUM($L46:R46))) -> 0.7439429111 | T46: =IF($I46 >0, MIN(S46,$I46-SUM($L46:S46)), MAX(S46,$I46-SUM($L46:S46))) -> 0.7439429111 | U46: =IF($I46 >0, MIN(T46,$I46-SUM($L46:T46)), MAX(T46,$I46-SUM($L46:T46))) -> 0.7439429111 | V46: =IF($I46 >0, MIN(U46,$I46-SUM($L46:U46)), MAX(U46,$I46-SUM($L46:U46))) -> 0.7439429111 | W46: =IF($I46 >0, MIN(V46,$I46-SUM($L46:V46)), MAX(V46,$I46-SUM($L46:V46))) -> 0.7439429111 | X46: =IF($I46 >0, MIN(W46,$I46-SUM($L46:W46)), MAX(W46,$I46-SUM($L46:W46))) -> 0.7439429111 | Y46: =IF($I46 >0, MIN(X46,$I46-SUM($L46:X46)), MAX(X46,$I46-SUM($L46:X46))) -> 0.7439429111 | Z46: =IF($I46 >0, MIN(Y46,$I46-SUM($L46:Y46)), MAX(Y46,$I46-SUM($L46:Y46))) -> 0.7439429111 | AA46: =IF($I46 >0, MIN(Z46,$I46-SUM($L46:Z46)), MAX(Z46,$I46-SUM($L46:Z46))) -> 0.7439429111 | AB46: =IF($I46 >0, MIN(AA46,$I46-SUM($L46:AA46)), MAX(AA46,$I46-SUM($L46:AA46))) -> 0.7439429111 | AC46: =IF($I46 >0, MIN(AB46,$I46-SUM($L46:AB46)), MAX(AB46,$I46-SUM($L46:AB46))) -> 0.7439429111 | AD46: =IF($I46 >0, MIN(AC46,$I46-SUM($L46:AC46)), MAX(AC46,$I46-SUM($L46:AC46))) -> 0.7439429111 | AE46: =IF($I46 >0, MIN(AD46,$I46-SUM($L46:AD46)), MAX(AD46,$I46-SUM($L46:AD46))) -> 0.7439429111 | AF46: =IF($I46 >0, MIN(AE46,$I46-SUM($L46:AE46)), MAX(AE46,$I46-SUM($L46:AE46))) -> 0.7439429111 | AG46: =IF($I46 >0, MIN(AF46,$I46-SUM($L46:AF46)), MAX(AF46,$I46-SUM($L46:AF46))) -> 0.7439429111 | AH46: =IF($I46 >0, MIN(AG46,$I46-SUM($L46:AG46)), MAX(AG46,$I46-SUM($L46:AG46))) -> 0.7439429111 | AI46: =IF($I46 >0, MIN(AH46,$I46-SUM($L46:AH46)), MAX(AH46,$I46-SUM($L46:AH46))) -> 0.7439429111 | AJ46: =IF($I46 >0, MIN(AI46,$I46-SUM($L46:AI46)), MAX(AI46,$I46-SUM($L46:AI46))) -> 0.7439429111 | AK46: =IF($I46 >0, MIN(AJ46,$I46-SUM($L46:AJ46)), MAX(AJ46,$I46-SUM($L46:AJ46))) -> 7.105427358e-15 | AL46: =IF($I46 >0, MIN(AK46,$I46-SUM($L46:AK46)), MAX(AK46,$I46-SUM($L46:AK46))) -> 0 | AM46: =IF($I46 >0, MIN(AL46,$I46-SUM($L46:AL46)), MAX(AL46,$I46-SUM($L46:AL46))) -> 0 | AN46: =IF($I46 >0, MIN(AM46,$I46-SUM($L46:AM46)), MAX(AM46,$I46-SUM($L46:AM46))) -> 0 | AO46: =IF($I46 >0, MIN(AN46,$I46-SUM($L46:AN46)), MAX(AN46,$I46-SUM($L46:AN46))) -> 0 | AP46: =IF($I46 >0, MIN(AO46,$I46-SUM($L46:AO46)), MAX(AO46,$I46-SUM($L46:AO46))) -> 0 | AQ46: =IF($I46 >0, MIN(AP46,$I46-SUM($L46:AP46)), MAX(AP46,$I46-SUM($L46:AP46))) -> 0 | AR46: =IF($I46 >0, MIN(AQ46,$I46-SUM($L46:AQ46)), MAX(AQ46,$I46-SUM($L46:AQ46))) -> 0 | AS46: =IF($I46 >0, MIN(AR46,$I46-SUM($L46:AR46)), MAX(AR46,$I46-SUM($L46:AR46))) -> 0 | AT46: =IF($I46 >0, MIN(AS46,$I46-SUM($L46:AS46)), MAX(AS46,$I46-SUM($L46:AS46))) -> 0
E47: 1997-03-31 | G47: £m 18/19 prices | I47: 17.79107608 | J47: > | R47: =$I47/Q$35 -> 0.889553804 | S47: =IF($I47 >0, MIN(R47,$I47-SUM($L47:R47)), MAX(R47,$I47-SUM($L47:R47))) -> 0.889553804 | T47: =IF($I47 >0, MIN(S47,$I47-SUM($L47:S47)), MAX(S47,$I47-SUM($L47:S47))) -> 0.889553804 | U47: =IF($I47 >0, MIN(T47,$I47-SUM($L47:T47)), MAX(T47,$I47-SUM($L47:T47))) -> 0.889553804 | V47: =IF($I47 >0, MIN(U47,$I47-SUM($L47:U47)), MAX(U47,$I47-SUM($L47:U47))) -> 0.889553804 | W47: =IF($I47 >0, MIN(V47,$I47-SUM($L47:V47)), MAX(V47,$I47-SUM($L47:V47))) -> 0.889553804 | X47: =IF($I47 >0, MIN(W47,$I47-SUM($L47:W47)), MAX(W47,$I47-SUM($L47:W47))) -> 0.889553804 | Y47: =IF($I47 >0, MIN(X47,$I47-SUM($L47:X47)), MAX(X47,$I47-SUM($L47:X47))) -> 0.889553804 | Z47: =IF($I47 >0, MIN(Y47,$I47-SUM($L47:Y47)), MAX(Y47,$I47-SUM($L47:Y47))) -> 0.889553804 | AA47: =IF($I47 >0, MIN(Z47,$I47-SUM($L47:Z47)), MAX(Z47,$I47-SUM($L47:Z47))) -> 0.889553804 | AB47: =IF($I47 >0, MIN(AA47,$I47-SUM($L47:AA47)), MAX(AA47,$I47-SUM($L47:AA47))) -> 0.889553804 | AC47: =IF($I47 >0, MIN(AB47,$I47-SUM($L47:AB47)), MAX(AB47,$I47-SUM($L47:AB47))) -> 0.889553804 | AD47: =IF($I47 >0, MIN(AC47,$I47-SUM($L47:AC47)), MAX(AC47,$I47-SUM($L47:AC47))) -> 0.889553804 | AE47: =IF($I47 >0, MIN(AD47,$I47-SUM($L47:AD47)), MAX(AD47,$I47-SUM($L47:AD47))) -> 0.889553804 | AF47: =IF($I47 >0, MIN(AE47,$I47-SUM($L47:AE47)), MAX(AE47,$I47-SUM($L47:AE47))) -> 0.889553804 | AG47: =IF($I47 >0, MIN(AF47,$I47-SUM($L47:AF47)), MAX(AF47,$I47-SUM($L47:AF47))) -> 0.889553804 | AH47: =IF($I47 >0, MIN(AG47,$I47-SUM($L47:AG47)), MAX(AG47,$I47-SUM($L47:AG47))) -> 0.889553804 | AI47: =IF($I47 >0, MIN(AH47,$I47-SUM($L47:AH47)), MAX(AH47,$I47-SUM($L47:AH47))) -> 0.889553804 | AJ47: =IF($I47 >0, MIN(AI47,$I47-SUM($L47:AI47)), MAX(AI47,$I47-SUM($L47:AI47))) -> 0.889553804 | AK47: =IF($I47 >0, MIN(AJ47,$I47-SUM($L47:AJ47)), MAX(AJ47,$I47-SUM($L47:AJ47))) -> 0.889553804 | AL47: =IF($I47 >0, MIN(AK47,$I47-SUM($L47:AK47)), MAX(AK47,$I47-SUM($L47:AK47))) -> 3.552713679e-15 | AM47: =IF($I47 >0, MIN(AL47,$I47-SUM($L47:AL47)), MAX(AL47,$I47-SUM($L47:AL47))) -> 0 | AN47: =IF($I47 >0, MIN(AM47,$I47-SUM($L47:AM47)), MAX(AM47,$I47-SUM($L47:AM47))) -> 0 | AO47: =IF($I47 >0, MIN(AN47,$I47-SUM($L47:AN47)), MAX(AN47,$I47-SUM($L47:AN47))) -> 0 | AP47: =IF($I47 >0, MIN(AO47,$I47-SUM($L47:AO47)), MAX(AO47,$I47-SUM($L47:AO47))) -> 0 | AQ47: =IF($I47 >0, MIN(AP47,$I47-SUM($L47:AP47)), MAX(AP47,$I47-SUM($L47:AP47))) -> 0 | AR47: =IF($I47 >0, MIN(AQ47,$I47-SUM($L47:AQ47)), MAX(AQ47,$I47-SUM($L47:AQ47))) -> 0 | AS47: =IF($I47 >0, MIN(AR47,$I47-SUM($L47:AR47)), MAX(AR47,$I47-SUM($L47:AR47))) -> 0 | AT47: =IF($I47 >0, MIN(AS47,$I47-SUM($L47:AS47)), MAX(AS47,$I47-SUM($L47:AS47))) -> 0
E48: 1998-03-31 | G48: £m 18/19 prices | I48: 21.27128943 | J48: > | S48: =$I48/R$35 -> 1.063564472 | T48: =IF($I48 >0, MIN(S48,$I48-SUM($L48:S48)), MAX(S48,$I48-SUM($L48:S48))) -> 1.063564472 | U48: =IF($I48 >0, MIN(T48,$I48-SUM($L48:T48)), MAX(T48,$I48-SUM($L48:T48))) -> 1.063564472 | V48: =IF($I48 >0, MIN(U48,$I48-SUM($L48:U48)), MAX(U48,$I48-SUM($L48:U48))) -> 1.063564472 | W48: =IF($I48 >0, MIN(V48,$I48-SUM($L48:V48)), MAX(V48,$I48-SUM($L48:V48))) -> 1.063564472 | X48: =IF($I48 >0, MIN(W48,$I48-SUM($L48:W48)), MAX(W48,$I48-SUM($L48:W48))) -> 1.063564472 | Y48: =IF($I48 >0, MIN(X48,$I48-SUM($L48:X48)), MAX(X48,$I48-SUM($L48:X48))) -> 1.063564472 | Z48: =IF($I48 >0, MIN(Y48,$I48-SUM($L48:Y48)), MAX(Y48,$I48-SUM($L48:Y48))) -> 1.063564472 | AA48: =IF($I48 >0, MIN(Z48,$I48-SUM($L48:Z48)), MAX(Z48,$I48-SUM($L48:Z48))) -> 1.063564472 | AB48: =IF($I48 >0, MIN(AA48,$I48-SUM($L48:AA48)), MAX(AA48,$I48-SUM($L48:AA48))) -> 1.063564472 | AC48: =IF($I48 >0, MIN(AB48,$I48-SUM($L48:AB48)), MAX(AB48,$I48-SUM($L48:AB48))) -> 1.063564472 | AD48: =IF($I48 >0, MIN(AC48,$I48-SUM($L48:AC48)), MAX(AC48,$I48-SUM($L48:AC48))) -> 1.063564472 | AE48: =IF($I48 >0, MIN(AD48,$I48-SUM($L48:AD48)), MAX(AD48,$I48-SUM($L48:AD48))) -> 1.063564472 | AF48: =IF($I48 >0, MIN(AE48,$I48-SUM($L48:AE48)), MAX(AE48,$I48-SUM($L48:AE48))) -> 1.063564472 | AG48: =IF($I48 >0, MIN(AF48,$I48-SUM($L48:AF48)), MAX(AF48,$I48-SUM($L48:AF48))) -> 1.063564472 | AH48: =IF($I48 >0, MIN(AG48,$I48-SUM($L48:AG48)), MAX(AG48,$I48-SUM($L48:AG48))) -> 1.063564472 | AI48: =IF($I48 >0, MIN(AH48,$I48-SUM($L48:AH48)), MAX(AH48,$I48-SUM($L48:AH48))) -> 1.063564472 | AJ48: =IF($I48 >0, MIN(AI48,$I48-SUM($L48:AI48)), MAX(AI48,$I48-SUM($L48:AI48))) -> 1.063564472 | AK48: =IF($I48 >0, MIN(AJ48,$I48-SUM($L48:AJ48)), MAX(AJ48,$I48-SUM($L48:AJ48))) -> 1.063564472 | AL48: =IF($I48 >0, MIN(AK48,$I48-SUM($L48:AK48)), MAX(AK48,$I48-SUM($L48:AK48))) -> 1.063564472 | AM48: =IF($I48 >0, MIN(AL48,$I48-SUM($L48:AL48)), MAX(AL48,$I48-SUM($L48:AL48))) -> 0 | AN48: =IF($I48 >0, MIN(AM48,$I48-SUM($L48:AM48)), MAX(AM48,$I48-SUM($L48:AM48))) -> 0 | AO48: =IF($I48 >0, MIN(AN48,$I48-SUM($L48:AN48)), MAX(AN48,$I48-SUM($L48:AN48))) -> 0 | AP48: =IF($I48 >0, MIN(AO48,$I48-SUM($L48:AO48)), MAX(AO48,$I48-SUM($L48:AO48))) -> 0 | AQ48: =IF($I48 >0, MIN(AP48,$I48-SUM($L48:AP48)), MAX(AP48,$I48-SUM($L48:AP48))) -> 0 | AR48: =IF($I48 >0, MIN(AQ48,$I48-SUM($L48:AQ48)), MAX(AQ48,$I48-SUM($L48:AQ48))) -> 0 | AS48: =IF($I48 >0, MIN(AR48,$I48-SUM($L48:AR48)), MAX(AR48,$I48-SUM($L48:AR48))) -> 0 | AT48: =IF($I48 >0, MIN(AS48,$I48-SUM($L48:AS48)), MAX(AS48,$I48-SUM($L48:AS48))) -> 0
E49: 1999-03-31 | G49: £m 18/19 prices | I49: 15.687443 | J49: > | T49: =$I49/S$35 -> 0.7843721499 | U49: =IF($I49 >0, MIN(T49,$I49-SUM($L49:T49)), MAX(T49,$I49-SUM($L49:T49))) -> 0.7843721499 | V49: =IF($I49 >0, MIN(U49,$I49-SUM($L49:U49)), MAX(U49,$I49-SUM($L49:U49))) -> 0.7843721499 | W49: =IF($I49 >0, MIN(V49,$I49-SUM($L49:V49)), MAX(V49,$I49-SUM($L49:V49))) -> 0.7843721499 | X49: =IF($I49 >0, MIN(W49,$I49-SUM($L49:W49)), MAX(W49,$I49-SUM($L49:W49))) -> 0.7843721499 | Y49: =IF($I49 >0, MIN(X49,$I49-SUM($L49:X49)), MAX(X49,$I49-SUM($L49:X49))) -> 0.7843721499 | Z49: =IF($I49 >0, MIN(Y49,$I49-SUM($L49:Y49)), MAX(Y49,$I49-SUM($L49:Y49))) -> 0.7843721499 | AA49: =IF($I49 >0, MIN(Z49,$I49-SUM($L49:Z49)), MAX(Z49,$I49-SUM($L49:Z49))) -> 0.7843721499 | AB49: =IF($I49 >0, MIN(AA49,$I49-SUM($L49:AA49)), MAX(AA49,$I49-SUM($L49:AA49))) -> 0.7843721499 | AC49: =IF($I49 >0, MIN(AB49,$I49-SUM($L49:AB49)), MAX(AB49,$I49-SUM($L49:AB49))) -> 0.7843721499 | AD49: =IF($I49 >0, MIN(AC49,$I49-SUM($L49:AC49)), MAX(AC49,$I49-SUM($L49:AC49))) -> 0.7843721499 | AE49: =IF($I49 >0, MIN(AD49,$I49-SUM($L49:AD49)), MAX(AD49,$I49-SUM($L49:AD49))) -> 0.7843721499 | AF49: =IF($I49 >0, MIN(AE49,$I49-SUM($L49:AE49)), MAX(AE49,$I49-SUM($L49:AE49))) -> 0.7843721499 | AG49: =IF($I49 >0, MIN(AF49,$I49-SUM($L49:AF49)), MAX(AF49,$I49-SUM($L49:AF49))) -> 0.7843721499 | AH49: =IF($I49 >0, MIN(AG49,$I49-SUM($L49:AG49)), MAX(AG49,$I49-SUM($L49:AG49))) -> 0.7843721499 | AI49: =IF($I49 >0, MIN(AH49,$I49-SUM($L49:AH49)), MAX(AH49,$I49-SUM($L49:AH49))) -> 0.7843721499 | AJ49: =IF($I49 >0, MIN(AI49,$I49-SUM($L49:AI49)), MAX(AI49,$I49-SUM($L49:AI49))) -> 0.7843721499 | AK49: =IF($I49 >0, MIN(AJ49,$I49-SUM($L49:AJ49)), MAX(AJ49,$I49-SUM($L49:AJ49))) -> 0.7843721499 | AL49: =IF($I49 >0, MIN(AK49,$I49-SUM($L49:AK49)), MAX(AK49,$I49-SUM($L49:AK49))) -> 0.7843721499 | AM49: =IF($I49 >0, MIN(AL49,$I49-SUM($L49:AL49)), MAX(AL49,$I49-SUM($L49:AL49))) -> 0.7843721499 | AN49: =IF($I49 >0, MIN(AM49,$I49-SUM($L49:AM49)), MAX(AM49,$I49-SUM($L49:AM49))) -> 0 | AO49: =IF($I49 >0, MIN(AN49,$I49-SUM($L49:AN49)), MAX(AN49,$I49-SUM($L49:AN49))) -> 0 | AP49: =IF($I49 >0, MIN(AO49,$I49-SUM($L49:AO49)), MAX(AO49,$I49-SUM($L49:AO49))) -> 0 | AQ49: =IF($I49 >0, MIN(AP49,$I49-SUM($L49:AP49)), MAX(AP49,$I49-SUM($L49:AP49))) -> 0 | AR49: =IF($I49 >0, MIN(AQ49,$I49-SUM($L49:AQ49)), MAX(AQ49,$I49-SUM($L49:AQ49))) -> 0 | AS49: =IF($I49 >0, MIN(AR49,$I49-SUM($L49:AR49)), MAX(AR49,$I49-SUM($L49:AR49))) -> 0 | AT49: =IF($I49 >0, MIN(AS49,$I49-SUM($L49:AS49)), MAX(AS49,$I49-SUM($L49:AS49))) -> 0
E50: 2000-03-31 | G50: £m 18/19 prices | I50: 28.61180442 | J50: > | U50: =$I50/T$35 -> 1.430590221 | V50: =IF($I50 >0, MIN(U50,$I50-SUM($L50:U50)), MAX(U50,$I50-SUM($L50:U50))) -> 1.430590221 | W50: =IF($I50 >0, MIN(V50,$I50-SUM($L50:V50)), MAX(V50,$I50-SUM($L50:V50))) -> 1.430590221 | X50: =IF($I50 >0, MIN(W50,$I50-SUM($L50:W50)), MAX(W50,$I50-SUM($L50:W50))) -> 1.430590221 | Y50: =IF($I50 >0, MIN(X50,$I50-SUM($L50:X50)), MAX(X50,$I50-SUM($L50:X50))) -> 1.430590221 | Z50: =IF($I50 >0, MIN(Y50,$I50-SUM($L50:Y50)), MAX(Y50,$I50-SUM($L50:Y50))) -> 1.430590221 | AA50: =IF($I50 >0, MIN(Z50,$I50-SUM($L50:Z50)), MAX(Z50,$I50-SUM($L50:Z50))) -> 1.430590221 | AB50: =IF($I50 >0, MIN(AA50,$I50-SUM($L50:AA50)), MAX(AA50,$I50-SUM($L50:AA50))) -> 1.430590221 | AC50: =IF($I50 >0, MIN(AB50,$I50-SUM($L50:AB50)), MAX(AB50,$I50-SUM($L50:AB50))) -> 1.430590221 | AD50: =IF($I50 >0, MIN(AC50,$I50-SUM($L50:AC50)), MAX(AC50,$I50-SUM($L50:AC50))) -> 1.430590221 | AE50: =IF($I50 >0, MIN(AD50,$I50-SUM($L50:AD50)), MAX(AD50,$I50-SUM($L50:AD50))) -> 1.430590221 | AF50: =IF($I50 >0, MIN(AE50,$I50-SUM($L50:AE50)), MAX(AE50,$I50-SUM($L50:AE50))) -> 1.430590221 | AG50: =IF($I50 >0, MIN(AF50,$I50-SUM($L50:AF50)), MAX(AF50,$I50-SUM($L50:AF50))) -> 1.430590221 | AH50: =IF($I50 >0, MIN(AG50,$I50-SUM($L50:AG50)), MAX(AG50,$I50-SUM($L50:AG50))) -> 1.430590221 | AI50: =IF($I50 >0, MIN(AH50,$I50-SUM($L50:AH50)), MAX(AH50,$I50-SUM($L50:AH50))) -> 1.430590221 | AJ50: =IF($I50 >0, MIN(AI50,$I50-SUM($L50:AI50)), MAX(AI50,$I50-SUM($L50:AI50))) -> 1.430590221 | AK50: =IF($I50 >0, MIN(AJ50,$I50-SUM($L50:AJ50)), MAX(AJ50,$I50-SUM($L50:AJ50))) -> 1.430590221 | AL50: =IF($I50 >0, MIN(AK50,$I50-SUM($L50:AK50)), MAX(AK50,$I50-SUM($L50:AK50))) -> 1.430590221 | AM50: =IF($I50 >0, MIN(AL50,$I50-SUM($L50:AL50)), MAX(AL50,$I50-SUM($L50:AL50))) -> 1.430590221 | AN50: =IF($I50 >0, MIN(AM50,$I50-SUM($L50:AM50)), MAX(AM50,$I50-SUM($L50:AM50))) -> 1.430590221 | AO50: =IF($I50 >0, MIN(AN50,$I50-SUM($L50:AN50)), MAX(AN50,$I50-SUM($L50:AN50))) -> 0 | AP50: =IF($I50 >0, MIN(AO50,$I50-SUM($L50:AO50)), MAX(AO50,$I50-SUM($L50:AO50))) -> 0 | AQ50: =IF($I50 >0, MIN(AP50,$I50-SUM($L50:AP50)), MAX(AP50,$I50-SUM($L50:AP50))) -> 0 | AR50: =IF($I50 >0, MIN(AQ50,$I50-SUM($L50:AQ50)), MAX(AQ50,$I50-SUM($L50:AQ50))) -> 0 | AS50: =IF($I50 >0, MIN(AR50,$I50-SUM($L50:AR50)), MAX(AR50,$I50-SUM($L50:AR50))) -> 0 | AT50: =IF($I50 >0, MIN(AS50,$I50-SUM($L50:AS50)), MAX(AS50,$I50-SUM($L50:AS50))) -> 0
E51: 2001-03-31 | G51: £m 18/19 prices | I51: 14.8825519 | J51: > | V51: =$I51/U$35 -> 0.7441275949 | W51: =IF($I51 >0, MIN(V51,$I51-SUM($L51:V51)), MAX(V51,$I51-SUM($L51:V51))) -> 0.7441275949 | X51: =IF($I51 >0, MIN(W51,$I51-SUM($L51:W51)), MAX(W51,$I51-SUM($L51:W51))) -> 0.7441275949 | Y51: =IF($I51 >0, MIN(X51,$I51-SUM($L51:X51)), MAX(X51,$I51-SUM($L51:X51))) -> 0.7441275949 | Z51: =IF($I51 >0, MIN(Y51,$I51-SUM($L51:Y51)), MAX(Y51,$I51-SUM($L51:Y51))) -> 0.7441275949 | AA51: =IF($I51 >0, MIN(Z51,$I51-SUM($L51:Z51)), MAX(Z51,$I51-SUM($L51:Z51))) -> 0.7441275949 | AB51: =IF($I51 >0, MIN(AA51,$I51-SUM($L51:AA51)), MAX(AA51,$I51-SUM($L51:AA51))) -> 0.7441275949 | AC51: =IF($I51 >0, MIN(AB51,$I51-SUM($L51:AB51)), MAX(AB51,$I51-SUM($L51:AB51))) -> 0.7441275949 | AD51: =IF($I51 >0, MIN(AC51,$I51-SUM($L51:AC51)), MAX(AC51,$I51-SUM($L51:AC51))) -> 0.7441275949 | AE51: =IF($I51 >0, MIN(AD51,$I51-SUM($L51:AD51)), MAX(AD51,$I51-SUM($L51:AD51))) -> 0.7441275949 | AF51: =IF($I51 >0, MIN(AE51,$I51-SUM($L51:AE51)), MAX(AE51,$I51-SUM($L51:AE51))) -> 0.7441275949 | AG51: =IF($I51 >0, MIN(AF51,$I51-SUM($L51:AF51)), MAX(AF51,$I51-SUM($L51:AF51))) -> 0.7441275949 | AH51: =IF($I51 >0, MIN(AG51,$I51-SUM($L51:AG51)), MAX(AG51,$I51-SUM($L51:AG51))) -> 0.7441275949 | AI51: =IF($I51 >0, MIN(AH51,$I51-SUM($L51:AH51)), MAX(AH51,$I51-SUM($L51:AH51))) -> 0.7441275949 | AJ51: =IF($I51 >0, MIN(AI51,$I51-SUM($L51:AI51)), MAX(AI51,$I51-SUM($L51:AI51))) -> 0.7441275949 | AK51: =IF($I51 >0, MIN(AJ51,$I51-SUM($L51:AJ51)), MAX(AJ51,$I51-SUM($L51:AJ51))) -> 0.7441275949 | AL51: =IF($I51 >0, MIN(AK51,$I51-SUM($L51:AK51)), MAX(AK51,$I51-SUM($L51:AK51))) -> 0.7441275949 | AM51: =IF($I51 >0, MIN(AL51,$I51-SUM($L51:AL51)), MAX(AL51,$I51-SUM($L51:AL51))) -> 0.7441275949 | AN51: =IF($I51 >0, MIN(AM51,$I51-SUM($L51:AM51)), MAX(AM51,$I51-SUM($L51:AM51))) -> 0.7441275949 | AO51: =IF($I51 >0, MIN(AN51,$I51-SUM($L51:AN51)), MAX(AN51,$I51-SUM($L51:AN51))) -> 0.7441275949 | AP51: =IF($I51 >0, MIN(AO51,$I51-SUM($L51:AO51)), MAX(AO51,$I51-SUM($L51:AO51))) -> 5.329070518e-15 | AQ51: =IF($I51 >0, MIN(AP51,$I51-SUM($L51:AP51)), MAX(AP51,$I51-SUM($L51:AP51))) -> 0 | AR51: =IF($I51 >0, MIN(AQ51,$I51-SUM($L51:AQ51)), MAX(AQ51,$I51-SUM($L51:AQ51))) -> 0 | AS51: =IF($I51 >0, MIN(AR51,$I51-SUM($L51:AR51)), MAX(AR51,$I51-SUM($L51:AR51))) -> 0 | AT51: =IF($I51 >0, MIN(AS51,$I51-SUM($L51:AS51)), MAX(AS51,$I51-SUM($L51:AS51))) -> 0
E52: 2002-03-31 | G52: £m 18/19 prices | I52: 10.86700546 | J52: > | W52: =$I52/V$35 -> 0.5433502732 | X52: =IF($I52 >0, MIN(W52,$I52-SUM($L52:W52)), MAX(W52,$I52-SUM($L52:W52))) -> 0.5433502732 | Y52: =IF($I52 >0, MIN(X52,$I52-SUM($L52:X52)), MAX(X52,$I52-SUM($L52:X52))) -> 0.5433502732 | Z52: =IF($I52 >0, MIN(Y52,$I52-SUM($L52:Y52)), MAX(Y52,$I52-SUM($L52:Y52))) -> 0.5433502732 | AA52: =IF($I52 >0, MIN(Z52,$I52-SUM($L52:Z52)), MAX(Z52,$I52-SUM($L52:Z52))) -> 0.5433502732 | AB52: =IF($I52 >0, MIN(AA52,$I52-SUM($L52:AA52)), MAX(AA52,$I52-SUM($L52:AA52))) -> 0.5433502732 | AC52: =IF($I52 >0, MIN(AB52,$I52-SUM($L52:AB52)), MAX(AB52,$I52-SUM($L52:AB52))) -> 0.5433502732 | AD52: =IF($I52 >0, MIN(AC52,$I52-SUM($L52:AC52)), MAX(AC52,$I52-SUM($L52:AC52))) -> 0.5433502732 | AE52: =IF($I52 >0, MIN(AD52,$I52-SUM($L52:AD52)), MAX(AD52,$I52-SUM($L52:AD52))) -> 0.5433502732 | AF52: =IF($I52 >0, MIN(AE52,$I52-SUM($L52:AE52)), MAX(AE52,$I52-SUM($L52:AE52))) -> 0.5433502732 | AG52: =IF($I52 >0, MIN(AF52,$I52-SUM($L52:AF52)), MAX(AF52,$I52-SUM($L52:AF52))) -> 0.5433502732 | AH52: =IF($I52 >0, MIN(AG52,$I52-SUM($L52:AG52)), MAX(AG52,$I52-SUM($L52:AG52))) -> 0.5433502732 | AI52: =IF($I52 >0, MIN(AH52,$I52-SUM($L52:AH52)), MAX(AH52,$I52-SUM($L52:AH52))) -> 0.5433502732 | AJ52: =IF($I52 >0, MIN(AI52,$I52-SUM($L52:AI52)), MAX(AI52,$I52-SUM($L52:AI52))) -> 0.5433502732 | AK52: =IF($I52 >0, MIN(AJ52,$I52-SUM($L52:AJ52)), MAX(AJ52,$I52-SUM($L52:AJ52))) -> 0.5433502732 | AL52: =IF($I52 >0, MIN(AK52,$I52-SUM($L52:AK52)), MAX(AK52,$I52-SUM($L52:AK52))) -> 0.5433502732 | AM52: =IF($I52 >0, MIN(AL52,$I52-SUM($L52:AL52)), MAX(AL52,$I52-SUM($L52:AL52))) -> 0.5433502732 | AN52: =IF($I52 >0, MIN(AM52,$I52-SUM($L52:AM52)), MAX(AM52,$I52-SUM($L52:AM52))) -> 0.5433502732 | AO52: =IF($I52 >0, MIN(AN52,$I52-SUM($L52:AN52)), MAX(AN52,$I52-SUM($L52:AN52))) -> 0.5433502732 | AP52: =IF($I52 >0, MIN(AO52,$I52-SUM($L52:AO52)), MAX(AO52,$I52-SUM($L52:AO52))) -> 0.5433502732 | AQ52: =IF($I52 >0, MIN(AP52,$I52-SUM($L52:AP52)), MAX(AP52,$I52-SUM($L52:AP52))) -> 0 | AR52: =IF($I52 >0, MIN(AQ52,$I52-SUM($L52:AQ52)), MAX(AQ52,$I52-SUM($L52:AQ52))) -> 0 | AS52: =IF($I52 >0, MIN(AR52,$I52-SUM($L52:AR52)), MAX(AR52,$I52-SUM($L52:AR52))) -> 0 | AT52: =IF($I52 >0, MIN(AS52,$I52-SUM($L52:AS52)), MAX(AS52,$I52-SUM($L52:AS52))) -> 0
E53: 2003-03-31 | G53: £m 18/19 prices | I53: 12.49851658 | J53: > | X53: =$I53/W$35 -> 0.6249258292 | Y53: =IF($I53 >0, MIN(X53,$I53-SUM($L53:X53)), MAX(X53,$I53-SUM($L53:X53))) -> 0.6249258292 | Z53: =IF($I53 >0, MIN(Y53,$I53-SUM($L53:Y53)), MAX(Y53,$I53-SUM($L53:Y53))) -> 0.6249258292 | AA53: =IF($I53 >0, MIN(Z53,$I53-SUM($L53:Z53)), MAX(Z53,$I53-SUM($L53:Z53))) -> 0.6249258292 | AB53: =IF($I53 >0, MIN(AA53,$I53-SUM($L53:AA53)), MAX(AA53,$I53-SUM($L53:AA53))) -> 0.6249258292 | AC53: =IF($I53 >0, MIN(AB53,$I53-SUM($L53:AB53)), MAX(AB53,$I53-SUM($L53:AB53))) -> 0.6249258292 | AD53: =IF($I53 >0, MIN(AC53,$I53-SUM($L53:AC53)), MAX(AC53,$I53-SUM($L53:AC53))) -> 0.6249258292 | AE53: =IF($I53 >0, MIN(AD53,$I53-SUM($L53:AD53)), MAX(AD53,$I53-SUM($L53:AD53))) -> 0.6249258292 | AF53: =IF($I53 >0, MIN(AE53,$I53-SUM($L53:AE53)), MAX(AE53,$I53-SUM($L53:AE53))) -> 0.6249258292 | AG53: =IF($I53 >0, MIN(AF53,$I53-SUM($L53:AF53)), MAX(AF53,$I53-SUM($L53:AF53))) -> 0.6249258292 | AH53: =IF($I53 >0, MIN(AG53,$I53-SUM($L53:AG53)), MAX(AG53,$I53-SUM($L53:AG53))) -> 0.6249258292 | AI53: =IF($I53 >0, MIN(AH53,$I53-SUM($L53:AH53)), MAX(AH53,$I53-SUM($L53:AH53))) -> 0.6249258292 | AJ53: =IF($I53 >0, MIN(AI53,$I53-SUM($L53:AI53)), MAX(AI53,$I53-SUM($L53:AI53))) -> 0.6249258292 | AK53: =IF($I53 >0, MIN(AJ53,$I53-SUM($L53:AJ53)), MAX(AJ53,$I53-SUM($L53:AJ53))) -> 0.6249258292 | AL53: =IF($I53 >0, MIN(AK53,$I53-SUM($L53:AK53)), MAX(AK53,$I53-SUM($L53:AK53))) -> 0.6249258292 | AM53: =IF($I53 >0, MIN(AL53,$I53-SUM($L53:AL53)), MAX(AL53,$I53-SUM($L53:AL53))) -> 0.6249258292 | AN53: =IF($I53 >0, MIN(AM53,$I53-SUM($L53:AM53)), MAX(AM53,$I53-SUM($L53:AM53))) -> 0.6249258292 | AO53: =IF($I53 >0, MIN(AN53,$I53-SUM($L53:AN53)), MAX(AN53,$I53-SUM($L53:AN53))) -> 0.6249258292 | AP53: =IF($I53 >0, MIN(AO53,$I53-SUM($L53:AO53)), MAX(AO53,$I53-SUM($L53:AO53))) -> 0.6249258292 | AQ53: =IF($I53 >0, MIN(AP53,$I53-SUM($L53:AP53)), MAX(AP53,$I53-SUM($L53:AP53))) -> 0.6249258292 | AR53: =IF($I53 >0, MIN(AQ53,$I53-SUM($L53:AQ53)), MAX(AQ53,$I53-SUM($L53:AQ53))) -> 0 | AS53: =IF($I53 >0, MIN(AR53,$I53-SUM($L53:AR53)), MAX(AR53,$I53-SUM($L53:AR53))) -> 0 | AT53: =IF($I53 >0, MIN(AS53,$I53-SUM($L53:AS53)), MAX(AS53,$I53-SUM($L53:AS53))) -> 0
E54: 2004-03-31 | G54: £m 18/19 prices | I54: 13.41587591 | J54: > | Y54: =$I54/X$35 -> 0.6707937956 | Z54: =IF($I54 >0, MIN(Y54,$I54-SUM($L54:Y54)), MAX(Y54,$I54-SUM($L54:Y54))) -> 0.6707937956 | AA54: =IF($I54 >0, MIN(Z54,$I54-SUM($L54:Z54)), MAX(Z54,$I54-SUM($L54:Z54))) -> 0.6707937956 | AB54: =IF($I54 >0, MIN(AA54,$I54-SUM($L54:AA54)), MAX(AA54,$I54-SUM($L54:AA54))) -> 0.6707937956 | AC54: =IF($I54 >0, MIN(AB54,$I54-SUM($L54:AB54)), MAX(AB54,$I54-SUM($L54:AB54))) -> 0.6707937956 | AD54: =IF($I54 >0, MIN(AC54,$I54-SUM($L54:AC54)), MAX(AC54,$I54-SUM($L54:AC54))) -> 0.6707937956 | AE54: =IF($I54 >0, MIN(AD54,$I54-SUM($L54:AD54)), MAX(AD54,$I54-SUM($L54:AD54))) -> 0.6707937956 | AF54: =IF($I54 >0, MIN(AE54,$I54-SUM($L54:AE54)), MAX(AE54,$I54-SUM($L54:AE54))) -> 0.6707937956 | AG54: =IF($I54 >0, MIN(AF54,$I54-SUM($L54:AF54)), MAX(AF54,$I54-SUM($L54:AF54))) -> 0.6707937956 | AH54: =IF($I54 >0, MIN(AG54,$I54-SUM($L54:AG54)), MAX(AG54,$I54-SUM($L54:AG54))) -> 0.6707937956 | AI54: =IF($I54 >0, MIN(AH54,$I54-SUM($L54:AH54)), MAX(AH54,$I54-SUM($L54:AH54))) -> 0.6707937956 | AJ54: =IF($I54 >0, MIN(AI54,$I54-SUM($L54:AI54)), MAX(AI54,$I54-SUM($L54:AI54))) -> 0.6707937956 | AK54: =IF($I54 >0, MIN(AJ54,$I54-SUM($L54:AJ54)), MAX(AJ54,$I54-SUM($L54:AJ54))) -> 0.6707937956 | AL54: =IF($I54 >0, MIN(AK54,$I54-SUM($L54:AK54)), MAX(AK54,$I54-SUM($L54:AK54))) -> 0.6707937956 | AM54: =IF($I54 >0, MIN(AL54,$I54-SUM($L54:AL54)), MAX(AL54,$I54-SUM($L54:AL54))) -> 0.6707937956 | AN54: =IF($I54 >0, MIN(AM54,$I54-SUM($L54:AM54)), MAX(AM54,$I54-SUM($L54:AM54))) -> 0.6707937956 | AO54: =IF($I54 >0, MIN(AN54,$I54-SUM($L54:AN54)), MAX(AN54,$I54-SUM($L54:AN54))) -> 0.6707937956 | AP54: =IF($I54 >0, MIN(AO54,$I54-SUM($L54:AO54)), MAX(AO54,$I54-SUM($L54:AO54))) -> 0.6707937956 | AQ54: =IF($I54 >0, MIN(AP54,$I54-SUM($L54:AP54)), MAX(AP54,$I54-SUM($L54:AP54))) -> 0.6707937956 | AR54: =IF($I54 >0, MIN(AQ54,$I54-SUM($L54:AQ54)), MAX(AQ54,$I54-SUM($L54:AQ54))) -> 0.6707937956 | AS54: =IF($I54 >0, MIN(AR54,$I54-SUM($L54:AR54)), MAX(AR54,$I54-SUM($L54:AR54))) -> 0 | AT54: =IF($I54 >0, MIN(AS54,$I54-SUM($L54:AS54)), MAX(AS54,$I54-SUM($L54:AS54))) -> 0
E55: 2005-03-31 | G55: £m 18/19 prices | I55: 63.63891178 | J55: > | Z55: =$I55/Y$35 -> 3.181945589 | AA55: =IF($I55 >0, MIN(Z55,$I55-SUM($L55:Z55)), MAX(Z55,$I55-SUM($L55:Z55))) -> 3.181945589 | AB55: =IF($I55 >0, MIN(AA55,$I55-SUM($L55:AA55)), MAX(AA55,$I55-SUM($L55:AA55))) -> 3.181945589 | AC55: =IF($I55 >0, MIN(AB55,$I55-SUM($L55:AB55)), MAX(AB55,$I55-SUM($L55:AB55))) -> 3.181945589 | AD55: =IF($I55 >0, MIN(AC55,$I55-SUM($L55:AC55)), MAX(AC55,$I55-SUM($L55:AC55))) -> 3.181945589 | AE55: =IF($I55 >0, MIN(AD55,$I55-SUM($L55:AD55)), MAX(AD55,$I55-SUM($L55:AD55))) -> 3.181945589 | AF55: =IF($I55 >0, MIN(AE55,$I55-SUM($L55:AE55)), MAX(AE55,$I55-SUM($L55:AE55))) -> 3.181945589 | AG55: =IF($I55 >0, MIN(AF55,$I55-SUM($L55:AF55)), MAX(AF55,$I55-SUM($L55:AF55))) -> 3.181945589 | AH55: =IF($I55 >0, MIN(AG55,$I55-SUM($L55:AG55)), MAX(AG55,$I55-SUM($L55:AG55))) -> 3.181945589 | AI55: =IF($I55 >0, MIN(AH55,$I55-SUM($L55:AH55)), MAX(AH55,$I55-SUM($L55:AH55))) -> 3.181945589 | AJ55: =IF($I55 >0, MIN(AI55,$I55-SUM($L55:AI55)), MAX(AI55,$I55-SUM($L55:AI55))) -> 3.181945589 | AK55: =IF($I55 >0, MIN(AJ55,$I55-SUM($L55:AJ55)), MAX(AJ55,$I55-SUM($L55:AJ55))) -> 3.181945589 | AL55: =IF($I55 >0, MIN(AK55,$I55-SUM($L55:AK55)), MAX(AK55,$I55-SUM($L55:AK55))) -> 3.181945589 | AM55: =IF($I55 >0, MIN(AL55,$I55-SUM($L55:AL55)), MAX(AL55,$I55-SUM($L55:AL55))) -> 3.181945589 | AN55: =IF($I55 >0, MIN(AM55,$I55-SUM($L55:AM55)), MAX(AM55,$I55-SUM($L55:AM55))) -> 3.181945589 | AO55: =IF($I55 >0, MIN(AN55,$I55-SUM($L55:AN55)), MAX(AN55,$I55-SUM($L55:AN55))) -> 3.181945589 | AP55: =IF($I55 >0, MIN(AO55,$I55-SUM($L55:AO55)), MAX(AO55,$I55-SUM($L55:AO55))) -> 3.181945589 | AQ55: =IF($I55 >0, MIN(AP55,$I55-SUM($L55:AP55)), MAX(AP55,$I55-SUM($L55:AP55))) -> 3.181945589 | AR55: =IF($I55 >0, MIN(AQ55,$I55-SUM($L55:AQ55)), MAX(AQ55,$I55-SUM($L55:AQ55))) -> 3.181945589 | AS55: =IF($I55 >0, MIN(AR55,$I55-SUM($L55:AR55)), MAX(AR55,$I55-SUM($L55:AR55))) -> 3.181945589 | AT55: =IF($I55 >0, MIN(AS55,$I55-SUM($L55:AS55)), MAX(AS55,$I55-SUM($L55:AS55))) -> 0
E56: 2006-03-31 | G56: £m 18/19 prices | I56: 29.18200966 | J56: > | AA56: =$I56/Z$35 -> 1.459100483 | AB56: =IF($I56 >0, MIN(AA56,$I56-SUM($L56:AA56)), MAX(AA56,$I56-SUM($L56:AA56))) -> 1.459100483 | AC56: =IF($I56 >0, MIN(AB56,$I56-SUM($L56:AB56)), MAX(AB56,$I56-SUM($L56:AB56))) -> 1.459100483 | AD56: =IF($I56 >0, MIN(AC56,$I56-SUM($L56:AC56)), MAX(AC56,$I56-SUM($L56:AC56))) -> 1.459100483 | AE56: =IF($I56 >0, MIN(AD56,$I56-SUM($L56:AD56)), MAX(AD56,$I56-SUM($L56:AD56))) -> 1.459100483 | AF56: =IF($I56 >0, MIN(AE56,$I56-SUM($L56:AE56)), MAX(AE56,$I56-SUM($L56:AE56))) -> 1.459100483 | AG56: =IF($I56 >0, MIN(AF56,$I56-SUM($L56:AF56)), MAX(AF56,$I56-SUM($L56:AF56))) -> 1.459100483 | AH56: =IF($I56 >0, MIN(AG56,$I56-SUM($L56:AG56)), MAX(AG56,$I56-SUM($L56:AG56))) -> 1.459100483 | AI56: =IF($I56 >0, MIN(AH56,$I56-SUM($L56:AH56)), MAX(AH56,$I56-SUM($L56:AH56))) -> 1.459100483 | AJ56: =IF($I56 >0, MIN(AI56,$I56-SUM($L56:AI56)), MAX(AI56,$I56-SUM($L56:AI56))) -> 1.459100483 | AK56: =IF($I56 >0, MIN(AJ56,$I56-SUM($L56:AJ56)), MAX(AJ56,$I56-SUM($L56:AJ56))) -> 1.459100483 | AL56: =IF($I56 >0, MIN(AK56,$I56-SUM($L56:AK56)), MAX(AK56,$I56-SUM($L56:AK56))) -> 1.459100483 | AM56: =IF($I56 >0, MIN(AL56,$I56-SUM($L56:AL56)), MAX(AL56,$I56-SUM($L56:AL56))) -> 1.459100483 | AN56: =IF($I56 >0, MIN(AM56,$I56-SUM($L56:AM56)), MAX(AM56,$I56-SUM($L56:AM56))) -> 1.459100483 | AO56: =IF($I56 >0, MIN(AN56,$I56-SUM($L56:AN56)), MAX(AN56,$I56-SUM($L56:AN56))) -> 1.459100483 | AP56: =IF($I56 >0, MIN(AO56,$I56-SUM($L56:AO56)), MAX(AO56,$I56-SUM($L56:AO56))) -> 1.459100483 | AQ56: =IF($I56 >0, MIN(AP56,$I56-SUM($L56:AP56)), MAX(AP56,$I56-SUM($L56:AP56))) -> 1.459100483 | AR56: =IF($I56 >0, MIN(AQ56,$I56-SUM($L56:AQ56)), MAX(AQ56,$I56-SUM($L56:AQ56))) -> 1.459100483 | AS56: =IF($I56 >0, MIN(AR56,$I56-SUM($L56:AR56)), MAX(AR56,$I56-SUM($L56:AR56))) -> 1.459100483 | AT56: =IF($I56 >0, MIN(AS56,$I56-SUM($L56:AS56)), MAX(AS56,$I56-SUM($L56:AS56))) -> 1.459100483
E57: 2007-03-31 | G57: £m 18/19 prices | I57: 34.89786415 | J57: > | AB57: =$I57/AA$35 -> 1.744893207 | AC57: =IF($I57 >0, MIN(AB57,$I57-SUM($L57:AB57)), MAX(AB57,$I57-SUM($L57:AB57))) -> 1.744893207 | AD57: =IF($I57 >0, MIN(AC57,$I57-SUM($L57:AC57)), MAX(AC57,$I57-SUM($L57:AC57))) -> 1.744893207 | AE57: =IF($I57 >0, MIN(AD57,$I57-SUM($L57:AD57)), MAX(AD57,$I57-SUM($L57:AD57))) -> 1.744893207 | AF57: =IF($I57 >0, MIN(AE57,$I57-SUM($L57:AE57)), MAX(AE57,$I57-SUM($L57:AE57))) -> 1.744893207 | AG57: =IF($I57 >0, MIN(AF57,$I57-SUM($L57:AF57)), MAX(AF57,$I57-SUM($L57:AF57))) -> 1.744893207 | AH57: =IF($I57 >0, MIN(AG57,$I57-SUM($L57:AG57)), MAX(AG57,$I57-SUM($L57:AG57))) -> 1.744893207 | AI57: =IF($I57 >0, MIN(AH57,$I57-SUM($L57:AH57)), MAX(AH57,$I57-SUM($L57:AH57))) -> 1.744893207 | AJ57: =IF($I57 >0, MIN(AI57,$I57-SUM($L57:AI57)), MAX(AI57,$I57-SUM($L57:AI57))) -> 1.744893207 | AK57: =IF($I57 >0, MIN(AJ57,$I57-SUM($L57:AJ57)), MAX(AJ57,$I57-SUM($L57:AJ57))) -> 1.744893207 | AL57: =IF($I57 >0, MIN(AK57,$I57-SUM($L57:AK57)), MAX(AK57,$I57-SUM($L57:AK57))) -> 1.744893207 | AM57: =IF($I57 >0, MIN(AL57,$I57-SUM($L57:AL57)), MAX(AL57,$I57-SUM($L57:AL57))) -> 1.744893207 | AN57: =IF($I57 >0, MIN(AM57,$I57-SUM($L57:AM57)), MAX(AM57,$I57-SUM($L57:AM57))) -> 1.744893207 | AO57: =IF($I57 >0, MIN(AN57,$I57-SUM($L57:AN57)), MAX(AN57,$I57-SUM($L57:AN57))) -> 1.744893207 | AP57: =IF($I57 >0, MIN(AO57,$I57-SUM($L57:AO57)), MAX(AO57,$I57-SUM($L57:AO57))) -> 1.744893207 | AQ57: =IF($I57 >0, MIN(AP57,$I57-SUM($L57:AP57)), MAX(AP57,$I57-SUM($L57:AP57))) -> 1.744893207 | AR57: =IF($I57 >0, MIN(AQ57,$I57-SUM($L57:AQ57)), MAX(AQ57,$I57-SUM($L57:AQ57))) -> 1.744893207 | AS57: =IF($I57 >0, MIN(AR57,$I57-SUM($L57:AR57)), MAX(AR57,$I57-SUM($L57:AR57))) -> 1.744893207 | AT57: =IF($I57 >0, MIN(AS57,$I57-SUM($L57:AS57)), MAX(AS57,$I57-SUM($L57:AS57))) -> 1.744893207
E58: 2008-03-31 | G58: £m 18/19 prices | I58: 61.13551256 | J58: > | AC58: =$I58/AB$35 -> 3.056775628 | AD58: =IF($I58 >0, MIN(AC58,$I58-SUM($L58:AC58)), MAX(AC58,$I58-SUM($L58:AC58))) -> 3.056775628 | AE58: =IF($I58 >0, MIN(AD58,$I58-SUM($L58:AD58)), MAX(AD58,$I58-SUM($L58:AD58))) -> 3.056775628 | AF58: =IF($I58 >0, MIN(AE58,$I58-SUM($L58:AE58)), MAX(AE58,$I58-SUM($L58:AE58))) -> 3.056775628 | AG58: =IF($I58 >0, MIN(AF58,$I58-SUM($L58:AF58)), MAX(AF58,$I58-SUM($L58:AF58))) -> 3.056775628 | AH58: =IF($I58 >0, MIN(AG58,$I58-SUM($L58:AG58)), MAX(AG58,$I58-SUM($L58:AG58))) -> 3.056775628 | AI58: =IF($I58 >0, MIN(AH58,$I58-SUM($L58:AH58)), MAX(AH58,$I58-SUM($L58:AH58))) -> 3.056775628 | AJ58: =IF($I58 >0, MIN(AI58,$I58-SUM($L58:AI58)), MAX(AI58,$I58-SUM($L58:AI58))) -> 3.056775628 | AK58: =IF($I58 >0, MIN(AJ58,$I58-SUM($L58:AJ58)), MAX(AJ58,$I58-SUM($L58:AJ58))) -> 3.056775628 | AL58: =IF($I58 >0, MIN(AK58,$I58-SUM($L58:AK58)), MAX(AK58,$I58-SUM($L58:AK58))) -> 3.056775628 | AM58: =IF($I58 >0, MIN(AL58,$I58-SUM($L58:AL58)), MAX(AL58,$I58-SUM($L58:AL58))) -> 3.056775628 | AN58: =IF($I58 >0, MIN(AM58,$I58-SUM($L58:AM58)), MAX(AM58,$I58-SUM($L58:AM58))) -> 3.056775628 | AO58: =IF($I58 >0, MIN(AN58,$I58-SUM($L58:AN58)), MAX(AN58,$I58-SUM($L58:AN58))) -> 3.056775628 | AP58: =IF($I58 >0, MIN(AO58,$I58-SUM($L58:AO58)), MAX(AO58,$I58-SUM($L58:AO58))) -> 3.056775628 | AQ58: =IF($I58 >0, MIN(AP58,$I58-SUM($L58:AP58)), MAX(AP58,$I58-SUM($L58:AP58))) -> 3.056775628 | AR58: =IF($I58 >0, MIN(AQ58,$I58-SUM($L58:AQ58)), MAX(AQ58,$I58-SUM($L58:AQ58))) -> 3.056775628 | AS58: =IF($I58 >0, MIN(AR58,$I58-SUM($L58:AR58)), MAX(AR58,$I58-SUM($L58:AR58))) -> 3.056775628 | AT58: =IF($I58 >0, MIN(AS58,$I58-SUM($L58:AS58)), MAX(AS58,$I58-SUM($L58:AS58))) -> 3.056775628
E59: 2009-03-31 | G59: £m 18/19 prices | I59: 71.22555919 | J59: > | AD59: =$I59/AC$35 -> 3.561277959 | AE59: =IF($I59 >0, MIN(AD59,$I59-SUM($L59:AD59)), MAX(AD59,$I59-SUM($L59:AD59))) -> 3.561277959 | AF59: =IF($I59 >0, MIN(AE59,$I59-SUM($L59:AE59)), MAX(AE59,$I59-SUM($L59:AE59))) -> 3.561277959 | AG59: =IF($I59 >0, MIN(AF59,$I59-SUM($L59:AF59)), MAX(AF59,$I59-SUM($L59:AF59))) -> 3.561277959 | AH59: =IF($I59 >0, MIN(AG59,$I59-SUM($L59:AG59)), MAX(AG59,$I59-SUM($L59:AG59))) -> 3.561277959 | AI59: =IF($I59 >0, MIN(AH59,$I59-SUM($L59:AH59)), MAX(AH59,$I59-SUM($L59:AH59))) -> 3.561277959 | AJ59: =IF($I59 >0, MIN(AI59,$I59-SUM($L59:AI59)), MAX(AI59,$I59-SUM($L59:AI59))) -> 3.561277959 | AK59: =IF($I59 >0, MIN(AJ59,$I59-SUM($L59:AJ59)), MAX(AJ59,$I59-SUM($L59:AJ59))) -> 3.561277959 | AL59: =IF($I59 >0, MIN(AK59,$I59-SUM($L59:AK59)), MAX(AK59,$I59-SUM($L59:AK59))) -> 3.561277959 | AM59: =IF($I59 >0, MIN(AL59,$I59-SUM($L59:AL59)), MAX(AL59,$I59-SUM($L59:AL59))) -> 3.561277959 | AN59: =IF($I59 >0, MIN(AM59,$I59-SUM($L59:AM59)), MAX(AM59,$I59-SUM($L59:AM59))) -> 3.561277959 | AO59: =IF($I59 >0, MIN(AN59,$I59-SUM($L59:AN59)), MAX(AN59,$I59-SUM($L59:AN59))) -> 3.561277959 | AP59: =IF($I59 >0, MIN(AO59,$I59-SUM($L59:AO59)), MAX(AO59,$I59-SUM($L59:AO59))) -> 3.561277959 | AQ59: =IF($I59 >0, MIN(AP59,$I59-SUM($L59:AP59)), MAX(AP59,$I59-SUM($L59:AP59))) -> 3.561277959 | AR59: =IF($I59 >0, MIN(AQ59,$I59-SUM($L59:AQ59)), MAX(AQ59,$I59-SUM($L59:AQ59))) -> 3.561277959 | AS59: =IF($I59 >0, MIN(AR59,$I59-SUM($L59:AR59)), MAX(AR59,$I59-SUM($L59:AR59))) -> 3.561277959 | AT59: =IF($I59 >0, MIN(AS59,$I59-SUM($L59:AS59)), MAX(AS59,$I59-SUM($L59:AS59))) -> 3.561277959
E60: 2010-03-31 | G60: £m 18/19 prices | I60: 51.79638 | J60: > | AE60: =$I60/AD$35 -> 2.589819 | AF60: =IF($I60 >0, MIN(AE60,$I60-SUM($L60:AE60)), MAX(AE60,$I60-SUM($L60:AE60))) -> 2.589819 | AG60: =IF($I60 >0, MIN(AF60,$I60-SUM($L60:AF60)), MAX(AF60,$I60-SUM($L60:AF60))) -> 2.589819 | AH60: =IF($I60 >0, MIN(AG60,$I60-SUM($L60:AG60)), MAX(AG60,$I60-SUM($L60:AG60))) -> 2.589819 | AI60: =IF($I60 >0, MIN(AH60,$I60-SUM($L60:AH60)), MAX(AH60,$I60-SUM($L60:AH60))) -> 2.589819 | AJ60: =IF($I60 >0, MIN(AI60,$I60-SUM($L60:AI60)), MAX(AI60,$I60-SUM($L60:AI60))) -> 2.589819 | AK60: =IF($I60 >0, MIN(AJ60,$I60-SUM($L60:AJ60)), MAX(AJ60,$I60-SUM($L60:AJ60))) -> 2.589819 | AL60: =IF($I60 >0, MIN(AK60,$I60-SUM($L60:AK60)), MAX(AK60,$I60-SUM($L60:AK60))) -> 2.589819 | AM60: =IF($I60 >0, MIN(AL60,$I60-SUM($L60:AL60)), MAX(AL60,$I60-SUM($L60:AL60))) -> 2.589819 | AN60: =IF($I60 >0, MIN(AM60,$I60-SUM($L60:AM60)), MAX(AM60,$I60-SUM($L60:AM60))) -> 2.589819 | AO60: =IF($I60 >0, MIN(AN60,$I60-SUM($L60:AN60)), MAX(AN60,$I60-SUM($L60:AN60))) -> 2.589819 | AP60: =IF($I60 >0, MIN(AO60,$I60-SUM($L60:AO60)), MAX(AO60,$I60-SUM($L60:AO60))) -> 2.589819 | AQ60: =IF($I60 >0, MIN(AP60,$I60-SUM($L60:AP60)), MAX(AP60,$I60-SUM($L60:AP60))) -> 2.589819 | AR60: =IF($I60 >0, MIN(AQ60,$I60-SUM($L60:AQ60)), MAX(AQ60,$I60-SUM($L60:AQ60))) -> 2.589819 | AS60: =IF($I60 >0, MIN(AR60,$I60-SUM($L60:AR60)), MAX(AR60,$I60-SUM($L60:AR60))) -> 2.589819 | AT60: =IF($I60 >0, MIN(AS60,$I60-SUM($L60:AS60)), MAX(AS60,$I60-SUM($L60:AS60))) -> 2.589819
E61: 2011-03-31 | G61: £m 18/19 prices | I61: 43.92255175 | J61: > | AF61: =$I61/AE$35 -> 2.196127588 | AG61: =IF($I61 >0, MIN(AF61,$I61-SUM($L61:AF61)), MAX(AF61,$I61-SUM($L61:AF61))) -> 2.196127588 | AH61: =IF($I61 >0, MIN(AG61,$I61-SUM($L61:AG61)), MAX(AG61,$I61-SUM($L61:AG61))) -> 2.196127588 | AI61: =IF($I61 >0, MIN(AH61,$I61-SUM($L61:AH61)), MAX(AH61,$I61-SUM($L61:AH61))) -> 2.196127588 | AJ61: =IF($I61 >0, MIN(AI61,$I61-SUM($L61:AI61)), MAX(AI61,$I61-SUM($L61:AI61))) -> 2.196127588 | AK61: =IF($I61 >0, MIN(AJ61,$I61-SUM($L61:AJ61)), MAX(AJ61,$I61-SUM($L61:AJ61))) -> 2.196127588 | AL61: =IF($I61 >0, MIN(AK61,$I61-SUM($L61:AK61)), MAX(AK61,$I61-SUM($L61:AK61))) -> 2.196127588 | AM61: =IF($I61 >0, MIN(AL61,$I61-SUM($L61:AL61)), MAX(AL61,$I61-SUM($L61:AL61))) -> 2.196127588 | AN61: =IF($I61 >0, MIN(AM61,$I61-SUM($L61:AM61)), MAX(AM61,$I61-SUM($L61:AM61))) -> 2.196127588 | AO61: =IF($I61 >0, MIN(AN61,$I61-SUM($L61:AN61)), MAX(AN61,$I61-SUM($L61:AN61))) -> 2.196127588 | AP61: =IF($I61 >0, MIN(AO61,$I61-SUM($L61:AO61)), MAX(AO61,$I61-SUM($L61:AO61))) -> 2.196127588 | AQ61: =IF($I61 >0, MIN(AP61,$I61-SUM($L61:AP61)), MAX(AP61,$I61-SUM($L61:AP61))) -> 2.196127588 | AR61: =IF($I61 >0, MIN(AQ61,$I61-SUM($L61:AQ61)), MAX(AQ61,$I61-SUM($L61:AQ61))) -> 2.196127588 | AS61: =IF($I61 >0, MIN(AR61,$I61-SUM($L61:AR61)), MAX(AR61,$I61-SUM($L61:AR61))) -> 2.196127588 | AT61: =IF($I61 >0, MIN(AS61,$I61-SUM($L61:AS61)), MAX(AS61,$I61-SUM($L61:AS61))) -> 2.196127588
E62: 2012-03-31 | G62: £m 18/19 prices | I62: 38.00315465 | J62: > | AG62: =$I62/AF$35 -> 1.900157733 | AH62: =IF($I62 >0, MIN(AG62,$I62-SUM($L62:AG62)), MAX(AG62,$I62-SUM($L62:AG62))) -> 1.900157733 | AI62: =IF($I62 >0, MIN(AH62,$I62-SUM($L62:AH62)), MAX(AH62,$I62-SUM($L62:AH62))) -> 1.900157733 | AJ62: =IF($I62 >0, MIN(AI62,$I62-SUM($L62:AI62)), MAX(AI62,$I62-SUM($L62:AI62))) -> 1.900157733 | AK62: =IF($I62 >0, MIN(AJ62,$I62-SUM($L62:AJ62)), MAX(AJ62,$I62-SUM($L62:AJ62))) -> 1.900157733 | AL62: =IF($I62 >0, MIN(AK62,$I62-SUM($L62:AK62)), MAX(AK62,$I62-SUM($L62:AK62))) -> 1.900157733 | AM62: =IF($I62 >0, MIN(AL62,$I62-SUM($L62:AL62)), MAX(AL62,$I62-SUM($L62:AL62))) -> 1.900157733 | AN62: =IF($I62 >0, MIN(AM62,$I62-SUM($L62:AM62)), MAX(AM62,$I62-SUM($L62:AM62))) -> 1.900157733 | AO62: =IF($I62 >0, MIN(AN62,$I62-SUM($L62:AN62)), MAX(AN62,$I62-SUM($L62:AN62))) -> 1.900157733 | AP62: =IF($I62 >0, MIN(AO62,$I62-SUM($L62:AO62)), MAX(AO62,$I62-SUM($L62:AO62))) -> 1.900157733 | AQ62: =IF($I62 >0, MIN(AP62,$I62-SUM($L62:AP62)), MAX(AP62,$I62-SUM($L62:AP62))) -> 1.900157733 | AR62: =IF($I62 >0, MIN(AQ62,$I62-SUM($L62:AQ62)), MAX(AQ62,$I62-SUM($L62:AQ62))) -> 1.900157733 | AS62: =IF($I62 >0, MIN(AR62,$I62-SUM($L62:AR62)), MAX(AR62,$I62-SUM($L62:AR62))) -> 1.900157733 | AT62: =IF($I62 >0, MIN(AS62,$I62-SUM($L62:AS62)), MAX(AS62,$I62-SUM($L62:AS62))) -> 1.900157733
E63: 2013-03-31 | G63: £m 18/19 prices | I63: 100.3154389 | AH63: =$I63/AG$35 -> 5.015771943 | AI63: =IF($I63 >0, MIN(AH63,$I63-SUM($L63:AH63)), MAX(AH63,$I63-SUM($L63:AH63))) -> 5.015771943 | AJ63: =IF($I63 >0, MIN(AI63,$I63-SUM($L63:AI63)), MAX(AI63,$I63-SUM($L63:AI63))) -> 5.015771943 | AK63: =IF($I63 >0, MIN(AJ63,$I63-SUM($L63:AJ63)), MAX(AJ63,$I63-SUM($L63:AJ63))) -> 5.015771943 | AL63: =IF($I63 >0, MIN(AK63,$I63-SUM($L63:AK63)), MAX(AK63,$I63-SUM($L63:AK63))) -> 5.015771943 | AM63: =IF($I63 >0, MIN(AL63,$I63-SUM($L63:AL63)), MAX(AL63,$I63-SUM($L63:AL63))) -> 5.015771943 | AN63: =IF($I63 >0, MIN(AM63,$I63-SUM($L63:AM63)), MAX(AM63,$I63-SUM($L63:AM63))) -> 5.015771943 | AO63: =IF($I63 >0, MIN(AN63,$I63-SUM($L63:AN63)), MAX(AN63,$I63-SUM($L63:AN63))) -> 5.015771943 | AP63: =IF($I63 >0, MIN(AO63,$I63-SUM($L63:AO63)), MAX(AO63,$I63-SUM($L63:AO63))) -> 5.015771943 | AQ63: =IF($I63 >0, MIN(AP63,$I63-SUM($L63:AP63)), MAX(AP63,$I63-SUM($L63:AP63))) -> 5.015771943 | AR63: =IF($I63 >0, MIN(AQ63,$I63-SUM($L63:AQ63)), MAX(AQ63,$I63-SUM($L63:AQ63))) -> 5.015771943 | AS63: =IF($I63 >0, MIN(AR63,$I63-SUM($L63:AR63)), MAX(AR63,$I63-SUM($L63:AR63))) -> 5.015771943 | AT63: =IF($I63 >0, MIN(AS63,$I63-SUM($L63:AS63)), MAX(AS63,$I63-SUM($L63:AS63))) -> 5.015771943
E64: 2014-03-31 | G64: £m 18/19 prices | I64: 110.0837117 | AI64: =$I64/AH$35 -> 5.105331556 | AJ64: =IF($I64 >0, MIN(AI64,$I64-SUM($L64:AI64)), MAX(AI64,$I64-SUM($L64:AI64))) -> 5.105331556 | AK64: =IF($I64 >0, MIN(AJ64,$I64-SUM($L64:AJ64)), MAX(AJ64,$I64-SUM($L64:AJ64))) -> 5.105331556 | AL64: =IF($I64 >0, MIN(AK64,$I64-SUM($L64:AK64)), MAX(AK64,$I64-SUM($L64:AK64))) -> 5.105331556 | AM64: =IF($I64 >0, MIN(AL64,$I64-SUM($L64:AL64)), MAX(AL64,$I64-SUM($L64:AL64))) -> 5.105331556 | AN64: =IF($I64 >0, MIN(AM64,$I64-SUM($L64:AM64)), MAX(AM64,$I64-SUM($L64:AM64))) -> 5.105331556 | AO64: =IF($I64 >0, MIN(AN64,$I64-SUM($L64:AN64)), MAX(AN64,$I64-SUM($L64:AN64))) -> 5.105331556 | AP64: =IF($I64 >0, MIN(AO64,$I64-SUM($L64:AO64)), MAX(AO64,$I64-SUM($L64:AO64))) -> 5.105331556 | AQ64: =IF($I64 >0, MIN(AP64,$I64-SUM($L64:AP64)), MAX(AP64,$I64-SUM($L64:AP64))) -> 5.105331556 | AR64: =IF($I64 >0, MIN(AQ64,$I64-SUM($L64:AQ64)), MAX(AQ64,$I64-SUM($L64:AQ64))) -> 5.105331556 | AS64: =IF($I64 >0, MIN(AR64,$I64-SUM($L64:AR64)), MAX(AR64,$I64-SUM($L64:AR64))) -> 5.105331556 | AT64: =IF($I64 >0, MIN(AS64,$I64-SUM($L64:AS64)), MAX(AS64,$I64-SUM($L64:AS64))) -> 5.105331556
E65: 2015-03-31 | G65: £m 18/19 prices | I65: 367.1064993 | AJ65: =$I65/AI$35 -> 15.87487564 | AK65: =IF($I65 >0, MIN(AJ65,$I65-SUM($L65:AJ65)), MAX(AJ65,$I65-SUM($L65:AJ65))) -> 15.87487564 | AL65: =IF($I65 >0, MIN(AK65,$I65-SUM($L65:AK65)), MAX(AK65,$I65-SUM($L65:AK65))) -> 15.87487564 | AM65: =IF($I65 >0, MIN(AL65,$I65-SUM($L65:AL65)), MAX(AL65,$I65-SUM($L65:AL65))) -> 15.87487564 | AN65: =IF($I65 >0, MIN(AM65,$I65-SUM($L65:AM65)), MAX(AM65,$I65-SUM($L65:AM65))) -> 15.87487564 | AO65: =IF($I65 >0, MIN(AN65,$I65-SUM($L65:AN65)), MAX(AN65,$I65-SUM($L65:AN65))) -> 15.87487564 | AP65: =IF($I65 >0, MIN(AO65,$I65-SUM($L65:AO65)), MAX(AO65,$I65-SUM($L65:AO65))) -> 15.87487564 | AQ65: =IF($I65 >0, MIN(AP65,$I65-SUM($L65:AP65)), MAX(AP65,$I65-SUM($L65:AP65))) -> 15.87487564 | AR65: =IF($I65 >0, MIN(AQ65,$I65-SUM($L65:AQ65)), MAX(AQ65,$I65-SUM($L65:AQ65))) -> 15.87487564 | AS65: =IF($I65 >0, MIN(AR65,$I65-SUM($L65:AR65)), MAX(AR65,$I65-SUM($L65:AR65))) -> 15.87487564 | AT65: =IF($I65 >0, MIN(AS65,$I65-SUM($L65:AS65)), MAX(AS65,$I65-SUM($L65:AS65))) -> 15.87487564
E66: 2016-03-31 | G66: £m 18/19 prices | I66: 639.14795 | AK66: =$I66/AJ$35 -> 25.88953721 | AL66: =IF($I66 >0, MIN(AK66,$I66-SUM($L66:AK66)), MAX(AK66,$I66-SUM($L66:AK66))) -> 25.88953721 | AM66: =IF($I66 >0, MIN(AL66,$I66-SUM($L66:AL66)), MAX(AL66,$I66-SUM($L66:AL66))) -> 25.88953721 | AN66: =IF($I66 >0, MIN(AM66,$I66-SUM($L66:AM66)), MAX(AM66,$I66-SUM($L66:AM66))) -> 25.88953721 | AO66: =IF($I66 >0, MIN(AN66,$I66-SUM($L66:AN66)), MAX(AN66,$I66-SUM($L66:AN66))) -> 25.88953721 | AP66: =IF($I66 >0, MIN(AO66,$I66-SUM($L66:AO66)), MAX(AO66,$I66-SUM($L66:AO66))) -> 25.88953721 | AQ66: =IF($I66 >0, MIN(AP66,$I66-SUM($L66:AP66)), MAX(AP66,$I66-SUM($L66:AP66))) -> 25.88953721 | AR66: =IF($I66 >0, MIN(AQ66,$I66-SUM($L66:AQ66)), MAX(AQ66,$I66-SUM($L66:AQ66))) -> 25.88953721 | AS66: =IF($I66 >0, MIN(AR66,$I66-SUM($L66:AR66)), MAX(AR66,$I66-SUM($L66:AR66))) -> 25.88953721 | AT66: =IF($I66 >0, MIN(AS66,$I66-SUM($L66:AS66)), MAX(AS66,$I66-SUM($L66:AS66))) -> 25.88953721
E67: 2017-03-31 | G67: £m 18/19 prices | I67: 537.8024541 | AL67: =$I67/AK$35 -> 20.48771254 | AM67: =IF($I67 >0, MIN(AL67,$I67-SUM($L67:AL67)), MAX(AL67,$I67-SUM($L67:AL67))) -> 20.48771254 | AN67: =IF($I67 >0, MIN(AM67,$I67-SUM($L67:AM67)), MAX(AM67,$I67-SUM($L67:AM67))) -> 20.48771254 | AO67: =IF($I67 >0, MIN(AN67,$I67-SUM($L67:AN67)), MAX(AN67,$I67-SUM($L67:AN67))) -> 20.48771254 | AP67: =IF($I67 >0, MIN(AO67,$I67-SUM($L67:AO67)), MAX(AO67,$I67-SUM($L67:AO67))) -> 20.48771254 | AQ67: =IF($I67 >0, MIN(AP67,$I67-SUM($L67:AP67)), MAX(AP67,$I67-SUM($L67:AP67))) -> 20.48771254 | AR67: =IF($I67 >0, MIN(AQ67,$I67-SUM($L67:AQ67)), MAX(AQ67,$I67-SUM($L67:AQ67))) -> 20.48771254 | AS67: =IF($I67 >0, MIN(AR67,$I67-SUM($L67:AR67)), MAX(AR67,$I67-SUM($L67:AR67))) -> 20.48771254 | AT67: =IF($I67 >0, MIN(AS67,$I67-SUM($L67:AS67)), MAX(AS67,$I67-SUM($L67:AS67))) -> 20.48771254
E68: 2018-03-31 | G68: £m 18/19 prices | I68: 389.5344038 | AM68: =$I68/AL$35 -> 14.00573137 | AN68: =IF($I68 >0, MIN(AM68,$I68-SUM($L68:AM68)), MAX(AM68,$I68-SUM($L68:AM68))) -> 14.00573137 | AO68: =IF($I68 >0, MIN(AN68,$I68-SUM($L68:AN68)), MAX(AN68,$I68-SUM($L68:AN68))) -> 14.00573137 | AP68: =IF($I68 >0, MIN(AO68,$I68-SUM($L68:AO68)), MAX(AO68,$I68-SUM($L68:AO68))) -> 14.00573137 | AQ68: =IF($I68 >0, MIN(AP68,$I68-SUM($L68:AP68)), MAX(AP68,$I68-SUM($L68:AP68))) -> 14.00573137 | AR68: =IF($I68 >0, MIN(AQ68,$I68-SUM($L68:AQ68)), MAX(AQ68,$I68-SUM($L68:AQ68))) -> 14.00573137 | AS68: =IF($I68 >0, MIN(AR68,$I68-SUM($L68:AR68)), MAX(AR68,$I68-SUM($L68:AR68))) -> 14.00573137 | AT68: =IF($I68 >0, MIN(AS68,$I68-SUM($L68:AS68)), MAX(AS68,$I68-SUM($L68:AS68))) -> 14.00573137
E69: 2019-03-31 | G69: £m 18/19 prices | I69: 254.1738332 | AN69: =$I69/AM$35 -> 8.652726237 | AO69: =IF($I69 >0, MIN(AN69,$I69-SUM($L69:AN69)), MAX(AN69,$I69-SUM($L69:AN69))) -> 8.652726237 | AP69: =IF($I69 >0, MIN(AO69,$I69-SUM($L69:AO69)), MAX(AO69,$I69-SUM($L69:AO69))) -> 8.652726237 | AQ69: =IF($I69 >0, MIN(AP69,$I69-SUM($L69:AP69)), MAX(AP69,$I69-SUM($L69:AP69))) -> 8.652726237 | AR69: =IF($I69 >0, MIN(AQ69,$I69-SUM($L69:AQ69)), MAX(AQ69,$I69-SUM($L69:AQ69))) -> 8.652726237 | AS69: =IF($I69 >0, MIN(AR69,$I69-SUM($L69:AR69)), MAX(AR69,$I69-SUM($L69:AR69))) -> 8.652726237 | AT69: =IF($I69 >0, MIN(AS69,$I69-SUM($L69:AS69)), MAX(AS69,$I69-SUM($L69:AS69))) -> 8.652726237
E70: 2020-03-31 | G70: £m 18/19 prices | I70: 278.8404426 | AO70: =$I70/AN$35 -> 9.013024406 | AP70: =IF($I70 >0, MIN(AO70,$I70-SUM($L70:AO70)), MAX(AO70,$I70-SUM($L70:AO70))) -> 9.013024406 | AQ70: =IF($I70 >0, MIN(AP70,$I70-SUM($L70:AP70)), MAX(AP70,$I70-SUM($L70:AP70))) -> 9.013024406 | AR70: =IF($I70 >0, MIN(AQ70,$I70-SUM($L70:AQ70)), MAX(AQ70,$I70-SUM($L70:AQ70))) -> 9.013024406 | AS70: =IF($I70 >0, MIN(AR70,$I70-SUM($L70:AR70)), MAX(AR70,$I70-SUM($L70:AR70))) -> 9.013024406 | AT70: =IF($I70 >0, MIN(AS70,$I70-SUM($L70:AS70)), MAX(AS70,$I70-SUM($L70:AS70))) -> 9.013024406
E71: 2021-03-31 | G71: £m 18/19 prices | I71: 381.8566 | AP71: =$I71/AO$35 -> 11.74943384 | AQ71: =IF($I71 >0, MIN(AP71,$I71-SUM($L71:AP71)), MAX(AP71,$I71-SUM($L71:AP71))) -> 11.74943384 | AR71: =IF($I71 >0, MIN(AQ71,$I71-SUM($L71:AQ71)), MAX(AQ71,$I71-SUM($L71:AQ71))) -> 11.74943384 | AS71: =IF($I71 >0, MIN(AR71,$I71-SUM($L71:AR71)), MAX(AR71,$I71-SUM($L71:AR71))) -> 11.74943384 | AT71: =IF($I71 >0, MIN(AS71,$I71-SUM($L71:AS71)), MAX(AS71,$I71-SUM($L71:AS71))) -> 11.74943384
E72: 2022-03-31 | G72: £m 18/19 prices | I72: 578.2589419 | AQ72: =$I72/AP$35 -> 16.52168405 | AR72: =IF($I72 >0, MIN(AQ72,$I72-SUM($L72:AQ72)), MAX(AQ72,$I72-SUM($L72:AQ72))) -> 16.52168405 | AS72: =IF($I72 >0, MIN(AR72,$I72-SUM($L72:AR72)), MAX(AR72,$I72-SUM($L72:AR72))) -> 16.52168405 | AT72: =IF($I72 >0, MIN(AS72,$I72-SUM($L72:AS72)), MAX(AS72,$I72-SUM($L72:AS72))) -> 16.52168405
E73: 2023-03-31 | G73: £m 18/19 prices | I73: 613.7993664 | AR73: =$I73/AQ$35 -> 16.3679831 | AS73: =IF($I73 >0, MIN(AR73,$I73-SUM($L73:AR73)), MAX(AR73,$I73-SUM($L73:AR73))) -> 16.3679831 | AT73: =IF($I73 >0, MIN(AS73,$I73-SUM($L73:AS73)), MAX(AS73,$I73-SUM($L73:AS73))) -> 16.3679831
E74: 2024-03-31 | G74: £m 18/19 prices | I74: 817.1214231 | AS74: =$I74/AR$35 -> 20.42803558 | AT74: =IF($I74 >0, MIN(AS74,$I74-SUM($L74:AS74)), MAX(AS74,$I74-SUM($L74:AS74))) -> 20.42803558
E75: 2025-03-31 | G75: £m 18/19 prices | I75: 922.2238762 | AT75: =$I75/AS$35 -> 21.69938532
E76: 2026-03-31 | G76: £m 18/19 prices | I76: 629.6222478
C78: Non-accelerated post-vesting depreciation
C79: Note: Non-accelerated depreciation calculations are used to establish the "RAV differential" accumulated as the difference between non-accelerated and accelerated depreciation before full depreciation of vesting assets.
D81: Depreciation parameters
E83: Non-accelerated post-vesting asset life | G83: years | J83: > | K83: =Input!K701 -> 48 | L83: =Input!L701 -> 48 | M83: =Input!M701 -> 48 | N83: =Input!N701 -> 48 | O83: =Input!O701 -> 48 | P83: =Input!P701 -> 48 | Q83: =Input!Q701 -> 48 | R83: =Input!R701 -> 48 | S83: =Input!S701 -> 48 | T83: =Input!T701 -> 48 | U83: =Input!U701 -> 48 | V83: =Input!V701 -> 48 | W83: =Input!W701 -> 48 | X83: =Input!X701 -> 48 | Y83: =Input!Y701 -> 48 | Z83: =Input!Z701 -> 48 | AA83: =Input!AA701 -> 48 | AB83: =Input!AB701 -> 48 | AC83: =Input!AC701 -> 48 | AD83: =Input!AD701 -> 48 | AE83: =Input!AE701 -> 48 | AF83: =Input!AF701 -> 48 | AG83: =Input!AG701 -> 48 | AH83: =Input!AH701 -> 21.5625 | AI83: =Input!AI701 -> 23.125 | AJ83: =Input!AJ701 -> 24.6875 | AK83: =Input!AK701 -> 26.25 | AL83: =Input!AL701 -> 27.8125 | AM83: =Input!AM701 -> 29.375 | AN83: =Input!AN701 -> 30.9375 | AO83: =Input!AO701 -> 32.5 | AP83: =Input!AP701 -> 35 | AQ83: =Input!AQ701 -> 37.5 | AR83: =Input!AR701 -> 40 | AS83: =Input!AS701 -> 42.5 | AT83: =Input!AT701 -> 45
E84: Non-accelerated post-vesting depreciation applied | G84: text | J84: > | L84: =YEAR(L$4) < YEAR($I$26) + $I$27 -> TRUE | M84: TRUE | N84: TRUE | O84: TRUE | P84: TRUE | Q84: TRUE | R84: TRUE | S84: TRUE | T84: TRUE | U84: TRUE | V84: TRUE | W84: TRUE | X84: TRUE | Y84: TRUE | Z84: TRUE | AA84: TRUE | AB84: TRUE | AC84: TRUE | AD84: TRUE | AE84: TRUE | AF84: TRUE | AG84: FALSE | AH84: FALSE | AI84: FALSE | AJ84: FALSE | AK84: FALSE | AL84: FALSE | AM84: FALSE | AN84: FALSE | AO84: FALSE | AP84: FALSE | AQ84: FALSE | AR84: FALSE | AS84: FALSE | AT84: FALSE
D86: Depreciation schedule
E88: Non-accelerated depreciation of additions from year ending | I88: Net additions
E89: 1991-03-31 | G89: £m 18/19 prices | I89: =TRANSPOSE(K16:AT16) -> 34.59618362 | J89: > | L89: =$I89/K$83 -> 0.7207538253 | M89: =IF($I89 >0, MIN(L89,$I89-SUM($L89:L89)), MAX(L89,$I89-SUM($L89:L89))) -> 0.7207538253 | N89: =IF($I89 >0, MIN(M89,$I89-SUM($L89:M89)), MAX(M89,$I89-SUM($L89:M89))) -> 0.7207538253 | O89: =IF($I89 >0, MIN(N89,$I89-SUM($L89:N89)), MAX(N89,$I89-SUM($L89:N89))) -> 0.7207538253 | P89: =IF($I89 >0, MIN(O89,$I89-SUM($L89:O89)), MAX(O89,$I89-SUM($L89:O89))) -> 0.7207538253 | Q89: =IF($I89 >0, MIN(P89,$I89-SUM($L89:P89)), MAX(P89,$I89-SUM($L89:P89))) -> 0.7207538253 | R89: =IF($I89 >0, MIN(Q89,$I89-SUM($L89:Q89)), MAX(Q89,$I89-SUM($L89:Q89))) -> 0.7207538253 | S89: =IF($I89 >0, MIN(R89,$I89-SUM($L89:R89)), MAX(R89,$I89-SUM($L89:R89))) -> 0.7207538253 | T89: =IF($I89 >0, MIN(S89,$I89-SUM($L89:S89)), MAX(S89,$I89-SUM($L89:S89))) -> 0.7207538253 | U89: =IF($I89 >0, MIN(T89,$I89-SUM($L89:T89)), MAX(T89,$I89-SUM($L89:T89))) -> 0.7207538253 | V89: =IF($I89 >0, MIN(U89,$I89-SUM($L89:U89)), MAX(U89,$I89-SUM($L89:U89))) -> 0.7207538253 | W89: =IF($I89 >0, MIN(V89,$I89-SUM($L89:V89)), MAX(V89,$I89-SUM($L89:V89))) -> 0.7207538253 | X89: =IF($I89 >0, MIN(W89,$I89-SUM($L89:W89)), MAX(W89,$I89-SUM($L89:W89))) -> 0.7207538253 | Y89: =IF($I89 >0, MIN(X89,$I89-SUM($L89:X89)), MAX(X89,$I89-SUM($L89:X89))) -> 0.7207538253 | Z89: =IF($I89 >0, MIN(Y89,$I89-SUM($L89:Y89)), MAX(Y89,$I89-SUM($L89:Y89))) -> 0.7207538253 | AA89: =IF($I89 >0, MIN(Z89,$I89-SUM($L89:Z89)), MAX(Z89,$I89-SUM($L89:Z89))) -> 0.7207538253 | AB89: =IF($I89 >0, MIN(AA89,$I89-SUM($L89:AA89)), MAX(AA89,$I89-SUM($L89:AA89))) -> 0.7207538253 | AC89: =IF($I89 >0, MIN(AB89,$I89-SUM($L89:AB89)), MAX(AB89,$I89-SUM($L89:AB89))) -> 0.7207538253 | AD89: =IF($I89 >0, MIN(AC89,$I89-SUM($L89:AC89)), MAX(AC89,$I89-SUM($L89:AC89))) -> 0.7207538253 | AE89: =IF($I89 >0, MIN(AD89,$I89-SUM($L89:AD89)), MAX(AD89,$I89-SUM($L89:AD89))) -> 0.7207538253 | AF89: =IF($I89 >0, MIN(AE89,$I89-SUM($L89:AE89)), MAX(AE89,$I89-SUM($L89:AE89))) -> 0.7207538253 | AG89: =IF($I89 >0, MIN(AF89,$I89-SUM($L89:AF89)), MAX(AF89,$I89-SUM($L89:AF89))) -> 0.7207538253 | AH89: =IF($I89 >0, MIN(AG89,$I89-SUM($L89:AG89)), MAX(AG89,$I89-SUM($L89:AG89))) -> 0.7207538253 | AI89: =IF($I89 >0, MIN(AH89,$I89-SUM($L89:AH89)), MAX(AH89,$I89-SUM($L89:AH89))) -> 0.7207538253 | AJ89: =IF($I89 >0, MIN(AI89,$I89-SUM($L89:AI89)), MAX(AI89,$I89-SUM($L89:AI89))) -> 0.7207538253 | AK89: =IF($I89 >0, MIN(AJ89,$I89-SUM($L89:AJ89)), MAX(AJ89,$I89-SUM($L89:AJ89))) -> 0.7207538253 | AL89: =IF($I89 >0, MIN(AK89,$I89-SUM($L89:AK89)), MAX(AK89,$I89-SUM($L89:AK89))) -> 0.7207538253 | AM89: =IF($I89 >0, MIN(AL89,$I89-SUM($L89:AL89)), MAX(AL89,$I89-SUM($L89:AL89))) -> 0.7207538253 | AN89: =IF($I89 >0, MIN(AM89,$I89-SUM($L89:AM89)), MAX(AM89,$I89-SUM($L89:AM89))) -> 0.7207538253 | AO89: =IF($I89 >0, MIN(AN89,$I89-SUM($L89:AN89)), MAX(AN89,$I89-SUM($L89:AN89))) -> 0.7207538253 | AP89: =IF($I89 >0, MIN(AO89,$I89-SUM($L89:AO89)), MAX(AO89,$I89-SUM($L89:AO89))) -> 0.7207538253 | AQ89: =IF($I89 >0, MIN(AP89,$I89-SUM($L89:AP89)), MAX(AP89,$I89-SUM($L89:AP89))) -> 0.7207538253 | AR89: =IF($I89 >0, MIN(AQ89,$I89-SUM($L89:AQ89)), MAX(AQ89,$I89-SUM($L89:AQ89))) -> 0.7207538253 | AS89: =IF($I89 >0, MIN(AR89,$I89-SUM($L89:AR89)), MAX(AR89,$I89-SUM($L89:AR89))) -> 0.7207538253 | AT89: =IF($I89 >0, MIN(AS89,$I89-SUM($L89:AS89)), MAX(AS89,$I89-SUM($L89:AS89))) -> 0.7207538253
E90: 1992-03-31 | G90: £m 18/19 prices | I90: 31.19088293 | J90: > | M90: =$I90/L$83 -> 0.6498100611 | N90: =IF($I90 >0, MIN(M90,$I90-SUM($L90:M90)), MAX(M90,$I90-SUM($L90:M90))) -> 0.6498100611 | O90: =IF($I90 >0, MIN(N90,$I90-SUM($L90:N90)), MAX(N90,$I90-SUM($L90:N90))) -> 0.6498100611 | P90: =IF($I90 >0, MIN(O90,$I90-SUM($L90:O90)), MAX(O90,$I90-SUM($L90:O90))) -> 0.6498100611 | Q90: =IF($I90 >0, MIN(P90,$I90-SUM($L90:P90)), MAX(P90,$I90-SUM($L90:P90))) -> 0.6498100611 | R90: =IF($I90 >0, MIN(Q90,$I90-SUM($L90:Q90)), MAX(Q90,$I90-SUM($L90:Q90))) -> 0.6498100611 | S90: =IF($I90 >0, MIN(R90,$I90-SUM($L90:R90)), MAX(R90,$I90-SUM($L90:R90))) -> 0.6498100611 | T90: =IF($I90 >0, MIN(S90,$I90-SUM($L90:S90)), MAX(S90,$I90-SUM($L90:S90))) -> 0.6498100611 | U90: =IF($I90 >0, MIN(T90,$I90-SUM($L90:T90)), MAX(T90,$I90-SUM($L90:T90))) -> 0.6498100611 | V90: =IF($I90 >0, MIN(U90,$I90-SUM($L90:U90)), MAX(U90,$I90-SUM($L90:U90))) -> 0.6498100611 | W90: =IF($I90 >0, MIN(V90,$I90-SUM($L90:V90)), MAX(V90,$I90-SUM($L90:V90))) -> 0.6498100611 | X90: =IF($I90 >0, MIN(W90,$I90-SUM($L90:W90)), MAX(W90,$I90-SUM($L90:W90))) -> 0.6498100611 | Y90: =IF($I90 >0, MIN(X90,$I90-SUM($L90:X90)), MAX(X90,$I90-SUM($L90:X90))) -> 0.6498100611 | Z90: =IF($I90 >0, MIN(Y90,$I90-SUM($L90:Y90)), MAX(Y90,$I90-SUM($L90:Y90))) -> 0.6498100611 | AA90: =IF($I90 >0, MIN(Z90,$I90-SUM($L90:Z90)), MAX(Z90,$I90-SUM($L90:Z90))) -> 0.6498100611 | AB90: =IF($I90 >0, MIN(AA90,$I90-SUM($L90:AA90)), MAX(AA90,$I90-SUM($L90:AA90))) -> 0.6498100611 | AC90: =IF($I90 >0, MIN(AB90,$I90-SUM($L90:AB90)), MAX(AB90,$I90-SUM($L90:AB90))) -> 0.6498100611 | AD90: =IF($I90 >0, MIN(AC90,$I90-SUM($L90:AC90)), MAX(AC90,$I90-SUM($L90:AC90))) -> 0.6498100611 | AE90: =IF($I90 >0, MIN(AD90,$I90-SUM($L90:AD90)), MAX(AD90,$I90-SUM($L90:AD90))) -> 0.6498100611 | AF90: =IF($I90 >0, MIN(AE90,$I90-SUM($L90:AE90)), MAX(AE90,$I90-SUM($L90:AE90))) -> 0.6498100611 | AG90: =IF($I90 >0, MIN(AF90,$I90-SUM($L90:AF90)), MAX(AF90,$I90-SUM($L90:AF90))) -> 0.6498100611 | AH90: =IF($I90 >0, MIN(AG90,$I90-SUM($L90:AG90)), MAX(AG90,$I90-SUM($L90:AG90))) -> 0.6498100611 | AI90: =IF($I90 >0, MIN(AH90,$I90-SUM($L90:AH90)), MAX(AH90,$I90-SUM($L90:AH90))) -> 0.6498100611 | AJ90: =IF($I90 >0, MIN(AI90,$I90-SUM($L90:AI90)), MAX(AI90,$I90-SUM($L90:AI90))) -> 0.6498100611 | AK90: =IF($I90 >0, MIN(AJ90,$I90-SUM($L90:AJ90)), MAX(AJ90,$I90-SUM($L90:AJ90))) -> 0.6498100611 | AL90: =IF($I90 >0, MIN(AK90,$I90-SUM($L90:AK90)), MAX(AK90,$I90-SUM($L90:AK90))) -> 0.6498100611 | AM90: =IF($I90 >0, MIN(AL90,$I90-SUM($L90:AL90)), MAX(AL90,$I90-SUM($L90:AL90))) -> 0.6498100611 | AN90: =IF($I90 >0, MIN(AM90,$I90-SUM($L90:AM90)), MAX(AM90,$I90-SUM($L90:AM90))) -> 0.6498100611 | AO90: =IF($I90 >0, MIN(AN90,$I90-SUM($L90:AN90)), MAX(AN90,$I90-SUM($L90:AN90))) -> 0.6498100611 | AP90: =IF($I90 >0, MIN(AO90,$I90-SUM($L90:AO90)), MAX(AO90,$I90-SUM($L90:AO90))) -> 0.6498100611 | AQ90: =IF($I90 >0, MIN(AP90,$I90-SUM($L90:AP90)), MAX(AP90,$I90-SUM($L90:AP90))) -> 0.6498100611 | AR90: =IF($I90 >0, MIN(AQ90,$I90-SUM($L90:AQ90)), MAX(AQ90,$I90-SUM($L90:AQ90))) -> 0.6498100611 | AS90: =IF($I90 >0, MIN(AR90,$I90-SUM($L90:AR90)), MAX(AR90,$I90-SUM($L90:AR90))) -> 0.6498100611 | AT90: =IF($I90 >0, MIN(AS90,$I90-SUM($L90:AS90)), MAX(AS90,$I90-SUM($L90:AS90))) -> 0.6498100611
E91: 1993-03-31 | G91: £m 18/19 prices | I91: 3.056499656 | J91: > | N91: =$I91/M$83 -> 0.06367707617 | O91: =IF($I91 >0, MIN(N91,$I91-SUM($L91:N91)), MAX(N91,$I91-SUM($L91:N91))) -> 0.06367707617 | P91: =IF($I91 >0, MIN(O91,$I91-SUM($L91:O91)), MAX(O91,$I91-SUM($L91:O91))) -> 0.06367707617 | Q91: =IF($I91 >0, MIN(P91,$I91-SUM($L91:P91)), MAX(P91,$I91-SUM($L91:P91))) -> 0.06367707617 | R91: =IF($I91 >0, MIN(Q91,$I91-SUM($L91:Q91)), MAX(Q91,$I91-SUM($L91:Q91))) -> 0.06367707617 | S91: =IF($I91 >0, MIN(R91,$I91-SUM($L91:R91)), MAX(R91,$I91-SUM($L91:R91))) -> 0.06367707617 | T91: =IF($I91 >0, MIN(S91,$I91-SUM($L91:S91)), MAX(S91,$I91-SUM($L91:S91))) -> 0.06367707617 | U91: =IF($I91 >0, MIN(T91,$I91-SUM($L91:T91)), MAX(T91,$I91-SUM($L91:T91))) -> 0.06367707617 | V91: =IF($I91 >0, MIN(U91,$I91-SUM($L91:U91)), MAX(U91,$I91-SUM($L91:U91))) -> 0.06367707617 | W91: =IF($I91 >0, MIN(V91,$I91-SUM($L91:V91)), MAX(V91,$I91-SUM($L91:V91))) -> 0.06367707617 | X91: =IF($I91 >0, MIN(W91,$I91-SUM($L91:W91)), MAX(W91,$I91-SUM($L91:W91))) -> 0.06367707617 | Y91: =IF($I91 >0, MIN(X91,$I91-SUM($L91:X91)), MAX(X91,$I91-SUM($L91:X91))) -> 0.06367707617 | Z91: =IF($I91 >0, MIN(Y91,$I91-SUM($L91:Y91)), MAX(Y91,$I91-SUM($L91:Y91))) -> 0.06367707617 | AA91: =IF($I91 >0, MIN(Z91,$I91-SUM($L91:Z91)), MAX(Z91,$I91-SUM($L91:Z91))) -> 0.06367707617 | AB91: =IF($I91 >0, MIN(AA91,$I91-SUM($L91:AA91)), MAX(AA91,$I91-SUM($L91:AA91))) -> 0.06367707617 | AC91: =IF($I91 >0, MIN(AB91,$I91-SUM($L91:AB91)), MAX(AB91,$I91-SUM($L91:AB91))) -> 0.06367707617 | AD91: =IF($I91 >0, MIN(AC91,$I91-SUM($L91:AC91)), MAX(AC91,$I91-SUM($L91:AC91))) -> 0.06367707617 | AE91: =IF($I91 >0, MIN(AD91,$I91-SUM($L91:AD91)), MAX(AD91,$I91-SUM($L91:AD91))) -> 0.06367707617 | AF91: =IF($I91 >0, MIN(AE91,$I91-SUM($L91:AE91)), MAX(AE91,$I91-SUM($L91:AE91))) -> 0.06367707617 | AG91: =IF($I91 >0, MIN(AF91,$I91-SUM($L91:AF91)), MAX(AF91,$I91-SUM($L91:AF91))) -> 0.06367707617 | AH91: =IF($I91 >0, MIN(AG91,$I91-SUM($L91:AG91)), MAX(AG91,$I91-SUM($L91:AG91))) -> 0.06367707617 | AI91: =IF($I91 >0, MIN(AH91,$I91-SUM($L91:AH91)), MAX(AH91,$I91-SUM($L91:AH91))) -> 0.06367707617 | AJ91: =IF($I91 >0, MIN(AI91,$I91-SUM($L91:AI91)), MAX(AI91,$I91-SUM($L91:AI91))) -> 0.06367707617 | AK91: =IF($I91 >0, MIN(AJ91,$I91-SUM($L91:AJ91)), MAX(AJ91,$I91-SUM($L91:AJ91))) -> 0.06367707617 | AL91: =IF($I91 >0, MIN(AK91,$I91-SUM($L91:AK91)), MAX(AK91,$I91-SUM($L91:AK91))) -> 0.06367707617 | AM91: =IF($I91 >0, MIN(AL91,$I91-SUM($L91:AL91)), MAX(AL91,$I91-SUM($L91:AL91))) -> 0.06367707617 | AN91: =IF($I91 >0, MIN(AM91,$I91-SUM($L91:AM91)), MAX(AM91,$I91-SUM($L91:AM91))) -> 0.06367707617 | AO91: =IF($I91 >0, MIN(AN91,$I91-SUM($L91:AN91)), MAX(AN91,$I91-SUM($L91:AN91))) -> 0.06367707617 | AP91: =IF($I91 >0, MIN(AO91,$I91-SUM($L91:AO91)), MAX(AO91,$I91-SUM($L91:AO91))) -> 0.06367707617 | AQ91: =IF($I91 >0, MIN(AP91,$I91-SUM($L91:AP91)), MAX(AP91,$I91-SUM($L91:AP91))) -> 0.06367707617 | AR91: =IF($I91 >0, MIN(AQ91,$I91-SUM($L91:AQ91)), MAX(AQ91,$I91-SUM($L91:AQ91))) -> 0.06367707617 | AS91: =IF($I91 >0, MIN(AR91,$I91-SUM($L91:AR91)), MAX(AR91,$I91-SUM($L91:AR91))) -> 0.06367707617 | AT91: =IF($I91 >0, MIN(AS91,$I91-SUM($L91:AS91)), MAX(AS91,$I91-SUM($L91:AS91))) -> 0.06367707617
E92: 1994-03-31 | G92: £m 18/19 prices | I92: 34.67974928 | J92: > | O92: =$I92/N$83 -> 0.7224947766 | P92: =IF($I92 >0, MIN(O92,$I92-SUM($L92:O92)), MAX(O92,$I92-SUM($L92:O92))) -> 0.7224947766 | Q92: =IF($I92 >0, MIN(P92,$I92-SUM($L92:P92)), MAX(P92,$I92-SUM($L92:P92))) -> 0.7224947766 | R92: =IF($I92 >0, MIN(Q92,$I92-SUM($L92:Q92)), MAX(Q92,$I92-SUM($L92:Q92))) -> 0.7224947766 | S92: =IF($I92 >0, MIN(R92,$I92-SUM($L92:R92)), MAX(R92,$I92-SUM($L92:R92))) -> 0.7224947766 | T92: =IF($I92 >0, MIN(S92,$I92-SUM($L92:S92)), MAX(S92,$I92-SUM($L92:S92))) -> 0.7224947766 | U92: =IF($I92 >0, MIN(T92,$I92-SUM($L92:T92)), MAX(T92,$I92-SUM($L92:T92))) -> 0.7224947766 | V92: =IF($I92 >0, MIN(U92,$I92-SUM($L92:U92)), MAX(U92,$I92-SUM($L92:U92))) -> 0.7224947766 | W92: =IF($I92 >0, MIN(V92,$I92-SUM($L92:V92)), MAX(V92,$I92-SUM($L92:V92))) -> 0.7224947766 | X92: =IF($I92 >0, MIN(W92,$I92-SUM($L92:W92)), MAX(W92,$I92-SUM($L92:W92))) -> 0.7224947766 | Y92: =IF($I92 >0, MIN(X92,$I92-SUM($L92:X92)), MAX(X92,$I92-SUM($L92:X92))) -> 0.7224947766 | Z92: =IF($I92 >0, MIN(Y92,$I92-SUM($L92:Y92)), MAX(Y92,$I92-SUM($L92:Y92))) -> 0.7224947766 | AA92: =IF($I92 >0, MIN(Z92,$I92-SUM($L92:Z92)), MAX(Z92,$I92-SUM($L92:Z92))) -> 0.7224947766 | AB92: =IF($I92 >0, MIN(AA92,$I92-SUM($L92:AA92)), MAX(AA92,$I92-SUM($L92:AA92))) -> 0.7224947766 | AC92: =IF($I92 >0, MIN(AB92,$I92-SUM($L92:AB92)), MAX(AB92,$I92-SUM($L92:AB92))) -> 0.7224947766 | AD92: =IF($I92 >0, MIN(AC92,$I92-SUM($L92:AC92)), MAX(AC92,$I92-SUM($L92:AC92))) -> 0.7224947766 | AE92: =IF($I92 >0, MIN(AD92,$I92-SUM($L92:AD92)), MAX(AD92,$I92-SUM($L92:AD92))) -> 0.7224947766 | AF92: =IF($I92 >0, MIN(AE92,$I92-SUM($L92:AE92)), MAX(AE92,$I92-SUM($L92:AE92))) -> 0.7224947766 | AG92: =IF($I92 >0, MIN(AF92,$I92-SUM($L92:AF92)), MAX(AF92,$I92-SUM($L92:AF92))) -> 0.7224947766 | AH92: =IF($I92 >0, MIN(AG92,$I92-SUM($L92:AG92)), MAX(AG92,$I92-SUM($L92:AG92))) -> 0.7224947766 | AI92: =IF($I92 >0, MIN(AH92,$I92-SUM($L92:AH92)), MAX(AH92,$I92-SUM($L92:AH92))) -> 0.7224947766 | AJ92: =IF($I92 >0, MIN(AI92,$I92-SUM($L92:AI92)), MAX(AI92,$I92-SUM($L92:AI92))) -> 0.7224947766 | AK92: =IF($I92 >0, MIN(AJ92,$I92-SUM($L92:AJ92)), MAX(AJ92,$I92-SUM($L92:AJ92))) -> 0.7224947766 | AL92: =IF($I92 >0, MIN(AK92,$I92-SUM($L92:AK92)), MAX(AK92,$I92-SUM($L92:AK92))) -> 0.7224947766 | AM92: =IF($I92 >0, MIN(AL92,$I92-SUM($L92:AL92)), MAX(AL92,$I92-SUM($L92:AL92))) -> 0.7224947766 | AN92: =IF($I92 >0, MIN(AM92,$I92-SUM($L92:AM92)), MAX(AM92,$I92-SUM($L92:AM92))) -> 0.7224947766 | AO92: =IF($I92 >0, MIN(AN92,$I92-SUM($L92:AN92)), MAX(AN92,$I92-SUM($L92:AN92))) -> 0.7224947766 | AP92: =IF($I92 >0, MIN(AO92,$I92-SUM($L92:AO92)), MAX(AO92,$I92-SUM($L92:AO92))) -> 0.7224947766 | AQ92: =IF($I92 >0, MIN(AP92,$I92-SUM($L92:AP92)), MAX(AP92,$I92-SUM($L92:AP92))) -> 0.7224947766 | AR92: =IF($I92 >0, MIN(AQ92,$I92-SUM($L92:AQ92)), MAX(AQ92,$I92-SUM($L92:AQ92))) -> 0.7224947766 | AS92: =IF($I92 >0, MIN(AR92,$I92-SUM($L92:AR92)), MAX(AR92,$I92-SUM($L92:AR92))) -> 0.7224947766 | AT92: =IF($I92 >0, MIN(AS92,$I92-SUM($L92:AS92)), MAX(AS92,$I92-SUM($L92:AS92))) -> 0.7224947766
E93: 1995-03-31 | G93: £m 18/19 prices | I93: 14.53281129 | J93: > | P93: =$I93/O$83 -> 0.302766902 | Q93: =IF($I93 >0, MIN(P93,$I93-SUM($L93:P93)), MAX(P93,$I93-SUM($L93:P93))) -> 0.302766902 | R93: =IF($I93 >0, MIN(Q93,$I93-SUM($L93:Q93)), MAX(Q93,$I93-SUM($L93:Q93))) -> 0.302766902 | S93: =IF($I93 >0, MIN(R93,$I93-SUM($L93:R93)), MAX(R93,$I93-SUM($L93:R93))) -> 0.302766902 | T93: =IF($I93 >0, MIN(S93,$I93-SUM($L93:S93)), MAX(S93,$I93-SUM($L93:S93))) -> 0.302766902 | U93: =IF($I93 >0, MIN(T93,$I93-SUM($L93:T93)), MAX(T93,$I93-SUM($L93:T93))) -> 0.302766902 | V93: =IF($I93 >0, MIN(U93,$I93-SUM($L93:U93)), MAX(U93,$I93-SUM($L93:U93))) -> 0.302766902 | W93: =IF($I93 >0, MIN(V93,$I93-SUM($L93:V93)), MAX(V93,$I93-SUM($L93:V93))) -> 0.302766902 | X93: =IF($I93 >0, MIN(W93,$I93-SUM($L93:W93)), MAX(W93,$I93-SUM($L93:W93))) -> 0.302766902 | Y93: =IF($I93 >0, MIN(X93,$I93-SUM($L93:X93)), MAX(X93,$I93-SUM($L93:X93))) -> 0.302766902 | Z93: =IF($I93 >0, MIN(Y93,$I93-SUM($L93:Y93)), MAX(Y93,$I93-SUM($L93:Y93))) -> 0.302766902 | AA93: =IF($I93 >0, MIN(Z93,$I93-SUM($L93:Z93)), MAX(Z93,$I93-SUM($L93:Z93))) -> 0.302766902 | AB93: =IF($I93 >0, MIN(AA93,$I93-SUM($L93:AA93)), MAX(AA93,$I93-SUM($L93:AA93))) -> 0.302766902 | AC93: =IF($I93 >0, MIN(AB93,$I93-SUM($L93:AB93)), MAX(AB93,$I93-SUM($L93:AB93))) -> 0.302766902 | AD93: =IF($I93 >0, MIN(AC93,$I93-SUM($L93:AC93)), MAX(AC93,$I93-SUM($L93:AC93))) -> 0.302766902 | AE93: =IF($I93 >0, MIN(AD93,$I93-SUM($L93:AD93)), MAX(AD93,$I93-SUM($L93:AD93))) -> 0.302766902 | AF93: =IF($I93 >0, MIN(AE93,$I93-SUM($L93:AE93)), MAX(AE93,$I93-SUM($L93:AE93))) -> 0.302766902 | AG93: =IF($I93 >0, MIN(AF93,$I93-SUM($L93:AF93)), MAX(AF93,$I93-SUM($L93:AF93))) -> 0.302766902 | AH93: =IF($I93 >0, MIN(AG93,$I93-SUM($L93:AG93)), MAX(AG93,$I93-SUM($L93:AG93))) -> 0.302766902 | AI93: =IF($I93 >0, MIN(AH93,$I93-SUM($L93:AH93)), MAX(AH93,$I93-SUM($L93:AH93))) -> 0.302766902 | AJ93: =IF($I93 >0, MIN(AI93,$I93-SUM($L93:AI93)), MAX(AI93,$I93-SUM($L93:AI93))) -> 0.302766902 | AK93: =IF($I93 >0, MIN(AJ93,$I93-SUM($L93:AJ93)), MAX(AJ93,$I93-SUM($L93:AJ93))) -> 0.302766902 | AL93: =IF($I93 >0, MIN(AK93,$I93-SUM($L93:AK93)), MAX(AK93,$I93-SUM($L93:AK93))) -> 0.302766902 | AM93: =IF($I93 >0, MIN(AL93,$I93-SUM($L93:AL93)), MAX(AL93,$I93-SUM($L93:AL93))) -> 0.302766902 | AN93: =IF($I93 >0, MIN(AM93,$I93-SUM($L93:AM93)), MAX(AM93,$I93-SUM($L93:AM93))) -> 0.302766902 | AO93: =IF($I93 >0, MIN(AN93,$I93-SUM($L93:AN93)), MAX(AN93,$I93-SUM($L93:AN93))) -> 0.302766902 | AP93: =IF($I93 >0, MIN(AO93,$I93-SUM($L93:AO93)), MAX(AO93,$I93-SUM($L93:AO93))) -> 0.302766902 | AQ93: =IF($I93 >0, MIN(AP93,$I93-SUM($L93:AP93)), MAX(AP93,$I93-SUM($L93:AP93))) -> 0.302766902 | AR93: =IF($I93 >0, MIN(AQ93,$I93-SUM($L93:AQ93)), MAX(AQ93,$I93-SUM($L93:AQ93))) -> 0.302766902 | AS93: =IF($I93 >0, MIN(AR93,$I93-SUM($L93:AR93)), MAX(AR93,$I93-SUM($L93:AR93))) -> 0.302766902 | AT93: =IF($I93 >0, MIN(AS93,$I93-SUM($L93:AS93)), MAX(AS93,$I93-SUM($L93:AS93))) -> 0.302766902
E94: 1996-03-31 | G94: £m 18/19 prices | I94: 14.87885822 | J94: > | Q94: =$I94/P$83 -> 0.3099762129 | R94: =IF($I94 >0, MIN(Q94,$I94-SUM($L94:Q94)), MAX(Q94,$I94-SUM($L94:Q94))) -> 0.3099762129 | S94: =IF($I94 >0, MIN(R94,$I94-SUM($L94:R94)), MAX(R94,$I94-SUM($L94:R94))) -> 0.3099762129 | T94: =IF($I94 >0, MIN(S94,$I94-SUM($L94:S94)), MAX(S94,$I94-SUM($L94:S94))) -> 0.3099762129 | U94: =IF($I94 >0, MIN(T94,$I94-SUM($L94:T94)), MAX(T94,$I94-SUM($L94:T94))) -> 0.3099762129 | V94: =IF($I94 >0, MIN(U94,$I94-SUM($L94:U94)), MAX(U94,$I94-SUM($L94:U94))) -> 0.3099762129 | W94: =IF($I94 >0, MIN(V94,$I94-SUM($L94:V94)), MAX(V94,$I94-SUM($L94:V94))) -> 0.3099762129 | X94: =IF($I94 >0, MIN(W94,$I94-SUM($L94:W94)), MAX(W94,$I94-SUM($L94:W94))) -> 0.3099762129 | Y94: =IF($I94 >0, MIN(X94,$I94-SUM($L94:X94)), MAX(X94,$I94-SUM($L94:X94))) -> 0.3099762129 | Z94: =IF($I94 >0, MIN(Y94,$I94-SUM($L94:Y94)), MAX(Y94,$I94-SUM($L94:Y94))) -> 0.3099762129 | AA94: =IF($I94 >0, MIN(Z94,$I94-SUM($L94:Z94)), MAX(Z94,$I94-SUM($L94:Z94))) -> 0.3099762129 | AB94: =IF($I94 >0, MIN(AA94,$I94-SUM($L94:AA94)), MAX(AA94,$I94-SUM($L94:AA94))) -> 0.3099762129 | AC94: =IF($I94 >0, MIN(AB94,$I94-SUM($L94:AB94)), MAX(AB94,$I94-SUM($L94:AB94))) -> 0.3099762129 | AD94: =IF($I94 >0, MIN(AC94,$I94-SUM($L94:AC94)), MAX(AC94,$I94-SUM($L94:AC94))) -> 0.3099762129 | AE94: =IF($I94 >0, MIN(AD94,$I94-SUM($L94:AD94)), MAX(AD94,$I94-SUM($L94:AD94))) -> 0.3099762129 | AF94: =IF($I94 >0, MIN(AE94,$I94-SUM($L94:AE94)), MAX(AE94,$I94-SUM($L94:AE94))) -> 0.3099762129 | AG94: =IF($I94 >0, MIN(AF94,$I94-SUM($L94:AF94)), MAX(AF94,$I94-SUM($L94:AF94))) -> 0.3099762129 | AH94: =IF($I94 >0, MIN(AG94,$I94-SUM($L94:AG94)), MAX(AG94,$I94-SUM($L94:AG94))) -> 0.3099762129 | AI94: =IF($I94 >0, MIN(AH94,$I94-SUM($L94:AH94)), MAX(AH94,$I94-SUM($L94:AH94))) -> 0.3099762129 | AJ94: =IF($I94 >0, MIN(AI94,$I94-SUM($L94:AI94)), MAX(AI94,$I94-SUM($L94:AI94))) -> 0.3099762129 | AK94: =IF($I94 >0, MIN(AJ94,$I94-SUM($L94:AJ94)), MAX(AJ94,$I94-SUM($L94:AJ94))) -> 0.3099762129 | AL94: =IF($I94 >0, MIN(AK94,$I94-SUM($L94:AK94)), MAX(AK94,$I94-SUM($L94:AK94))) -> 0.3099762129 | AM94: =IF($I94 >0, MIN(AL94,$I94-SUM($L94:AL94)), MAX(AL94,$I94-SUM($L94:AL94))) -> 0.3099762129 | AN94: =IF($I94 >0, MIN(AM94,$I94-SUM($L94:AM94)), MAX(AM94,$I94-SUM($L94:AM94))) -> 0.3099762129 | AO94: =IF($I94 >0, MIN(AN94,$I94-SUM($L94:AN94)), MAX(AN94,$I94-SUM($L94:AN94))) -> 0.3099762129 | AP94: =IF($I94 >0, MIN(AO94,$I94-SUM($L94:AO94)), MAX(AO94,$I94-SUM($L94:AO94))) -> 0.3099762129 | AQ94: =IF($I94 >0, MIN(AP94,$I94-SUM($L94:AP94)), MAX(AP94,$I94-SUM($L94:AP94))) -> 0.3099762129 | AR94: =IF($I94 >0, MIN(AQ94,$I94-SUM($L94:AQ94)), MAX(AQ94,$I94-SUM($L94:AQ94))) -> 0.3099762129 | AS94: =IF($I94 >0, MIN(AR94,$I94-SUM($L94:AR94)), MAX(AR94,$I94-SUM($L94:AR94))) -> 0.3099762129 | AT94: =IF($I94 >0, MIN(AS94,$I94-SUM($L94:AS94)), MAX(AS94,$I94-SUM($L94:AS94))) -> 0.3099762129
E95: 1997-03-31 | G95: £m 18/19 prices | I95: 17.79107608 | J95: > | R95: =$I95/Q$83 -> 0.3706474183 | S95: =IF($I95 >0, MIN(R95,$I95-SUM($L95:R95)), MAX(R95,$I95-SUM($L95:R95))) -> 0.3706474183 | T95: =IF($I95 >0, MIN(S95,$I95-SUM($L95:S95)), MAX(S95,$I95-SUM($L95:S95))) -> 0.3706474183 | U95: =IF($I95 >0, MIN(T95,$I95-SUM($L95:T95)), MAX(T95,$I95-SUM($L95:T95))) -> 0.3706474183 | V95: =IF($I95 >0, MIN(U95,$I95-SUM($L95:U95)), MAX(U95,$I95-SUM($L95:U95))) -> 0.3706474183 | W95: =IF($I95 >0, MIN(V95,$I95-SUM($L95:V95)), MAX(V95,$I95-SUM($L95:V95))) -> 0.3706474183 | X95: =IF($I95 >0, MIN(W95,$I95-SUM($L95:W95)), MAX(W95,$I95-SUM($L95:W95))) -> 0.3706474183 | Y95: =IF($I95 >0, MIN(X95,$I95-SUM($L95:X95)), MAX(X95,$I95-SUM($L95:X95))) -> 0.3706474183 | Z95: =IF($I95 >0, MIN(Y95,$I95-SUM($L95:Y95)), MAX(Y95,$I95-SUM($L95:Y95))) -> 0.3706474183 | AA95: =IF($I95 >0, MIN(Z95,$I95-SUM($L95:Z95)), MAX(Z95,$I95-SUM($L95:Z95))) -> 0.3706474183 | AB95: =IF($I95 >0, MIN(AA95,$I95-SUM($L95:AA95)), MAX(AA95,$I95-SUM($L95:AA95))) -> 0.3706474183 | AC95: =IF($I95 >0, MIN(AB95,$I95-SUM($L95:AB95)), MAX(AB95,$I95-SUM($L95:AB95))) -> 0.3706474183 | AD95: =IF($I95 >0, MIN(AC95,$I95-SUM($L95:AC95)), MAX(AC95,$I95-SUM($L95:AC95))) -> 0.3706474183 | AE95: =IF($I95 >0, MIN(AD95,$I95-SUM($L95:AD95)), MAX(AD95,$I95-SUM($L95:AD95))) -> 0.3706474183 | AF95: =IF($I95 >0, MIN(AE95,$I95-SUM($L95:AE95)), MAX(AE95,$I95-SUM($L95:AE95))) -> 0.3706474183 | AG95: =IF($I95 >0, MIN(AF95,$I95-SUM($L95:AF95)), MAX(AF95,$I95-SUM($L95:AF95))) -> 0.3706474183 | AH95: =IF($I95 >0, MIN(AG95,$I95-SUM($L95:AG95)), MAX(AG95,$I95-SUM($L95:AG95))) -> 0.3706474183 | AI95: =IF($I95 >0, MIN(AH95,$I95-SUM($L95:AH95)), MAX(AH95,$I95-SUM($L95:AH95))) -> 0.3706474183 | AJ95: =IF($I95 >0, MIN(AI95,$I95-SUM($L95:AI95)), MAX(AI95,$I95-SUM($L95:AI95))) -> 0.3706474183 | AK95: =IF($I95 >0, MIN(AJ95,$I95-SUM($L95:AJ95)), MAX(AJ95,$I95-SUM($L95:AJ95))) -> 0.3706474183 | AL95: =IF($I95 >0, MIN(AK95,$I95-SUM($L95:AK95)), MAX(AK95,$I95-SUM($L95:AK95))) -> 0.3706474183 | AM95: =IF($I95 >0, MIN(AL95,$I95-SUM($L95:AL95)), MAX(AL95,$I95-SUM($L95:AL95))) -> 0.3706474183 | AN95: =IF($I95 >0, MIN(AM95,$I95-SUM($L95:AM95)), MAX(AM95,$I95-SUM($L95:AM95))) -> 0.3706474183 | AO95: =IF($I95 >0, MIN(AN95,$I95-SUM($L95:AN95)), MAX(AN95,$I95-SUM($L95:AN95))) -> 0.3706474183 | AP95: =IF($I95 >0, MIN(AO95,$I95-SUM($L95:AO95)), MAX(AO95,$I95-SUM($L95:AO95))) -> 0.3706474183 | AQ95: =IF($I95 >0, MIN(AP95,$I95-SUM($L95:AP95)), MAX(AP95,$I95-SUM($L95:AP95))) -> 0.3706474183 | AR95: =IF($I95 >0, MIN(AQ95,$I95-SUM($L95:AQ95)), MAX(AQ95,$I95-SUM($L95:AQ95))) -> 0.3706474183 | AS95: =IF($I95 >0, MIN(AR95,$I95-SUM($L95:AR95)), MAX(AR95,$I95-SUM($L95:AR95))) -> 0.3706474183 | AT95: =IF($I95 >0, MIN(AS95,$I95-SUM($L95:AS95)), MAX(AS95,$I95-SUM($L95:AS95))) -> 0.3706474183
E96: 1998-03-31 | G96: £m 18/19 prices | I96: 21.27128943 | J96: > | S96: =$I96/R$83 -> 0.4431518632 | T96: =IF($I96 >0, MIN(S96,$I96-SUM($L96:S96)), MAX(S96,$I96-SUM($L96:S96))) -> 0.4431518632 | U96: =IF($I96 >0, MIN(T96,$I96-SUM($L96:T96)), MAX(T96,$I96-SUM($L96:T96))) -> 0.4431518632 | V96: =IF($I96 >0, MIN(U96,$I96-SUM($L96:U96)), MAX(U96,$I96-SUM($L96:U96))) -> 0.4431518632 | W96: =IF($I96 >0, MIN(V96,$I96-SUM($L96:V96)), MAX(V96,$I96-SUM($L96:V96))) -> 0.4431518632 | X96: =IF($I96 >0, MIN(W96,$I96-SUM($L96:W96)), MAX(W96,$I96-SUM($L96:W96))) -> 0.4431518632 | Y96: =IF($I96 >0, MIN(X96,$I96-SUM($L96:X96)), MAX(X96,$I96-SUM($L96:X96))) -> 0.4431518632 | Z96: =IF($I96 >0, MIN(Y96,$I96-SUM($L96:Y96)), MAX(Y96,$I96-SUM($L96:Y96))) -> 0.4431518632 | AA96: =IF($I96 >0, MIN(Z96,$I96-SUM($L96:Z96)), MAX(Z96,$I96-SUM($L96:Z96))) -> 0.4431518632 | AB96: =IF($I96 >0, MIN(AA96,$I96-SUM($L96:AA96)), MAX(AA96,$I96-SUM($L96:AA96))) -> 0.4431518632 | AC96: =IF($I96 >0, MIN(AB96,$I96-SUM($L96:AB96)), MAX(AB96,$I96-SUM($L96:AB96))) -> 0.4431518632 | AD96: =IF($I96 >0, MIN(AC96,$I96-SUM($L96:AC96)), MAX(AC96,$I96-SUM($L96:AC96))) -> 0.4431518632 | AE96: =IF($I96 >0, MIN(AD96,$I96-SUM($L96:AD96)), MAX(AD96,$I96-SUM($L96:AD96))) -> 0.4431518632 | AF96: =IF($I96 >0, MIN(AE96,$I96-SUM($L96:AE96)), MAX(AE96,$I96-SUM($L96:AE96))) -> 0.4431518632 | AG96: =IF($I96 >0, MIN(AF96,$I96-SUM($L96:AF96)), MAX(AF96,$I96-SUM($L96:AF96))) -> 0.4431518632 | AH96: =IF($I96 >0, MIN(AG96,$I96-SUM($L96:AG96)), MAX(AG96,$I96-SUM($L96:AG96))) -> 0.4431518632 | AI96: =IF($I96 >0, MIN(AH96,$I96-SUM($L96:AH96)), MAX(AH96,$I96-SUM($L96:AH96))) -> 0.4431518632 | AJ96: =IF($I96 >0, MIN(AI96,$I96-SUM($L96:AI96)), MAX(AI96,$I96-SUM($L96:AI96))) -> 0.4431518632 | AK96: =IF($I96 >0, MIN(AJ96,$I96-SUM($L96:AJ96)), MAX(AJ96,$I96-SUM($L96:AJ96))) -> 0.4431518632 | AL96: =IF($I96 >0, MIN(AK96,$I96-SUM($L96:AK96)), MAX(AK96,$I96-SUM($L96:AK96))) -> 0.4431518632 | AM96: =IF($I96 >0, MIN(AL96,$I96-SUM($L96:AL96)), MAX(AL96,$I96-SUM($L96:AL96))) -> 0.4431518632 | AN96: =IF($I96 >0, MIN(AM96,$I96-SUM($L96:AM96)), MAX(AM96,$I96-SUM($L96:AM96))) -> 0.4431518632 | AO96: =IF($I96 >0, MIN(AN96,$I96-SUM($L96:AN96)), MAX(AN96,$I96-SUM($L96:AN96))) -> 0.4431518632 | AP96: =IF($I96 >0, MIN(AO96,$I96-SUM($L96:AO96)), MAX(AO96,$I96-SUM($L96:AO96))) -> 0.4431518632 | AQ96: =IF($I96 >0, MIN(AP96,$I96-SUM($L96:AP96)), MAX(AP96,$I96-SUM($L96:AP96))) -> 0.4431518632 | AR96: =IF($I96 >0, MIN(AQ96,$I96-SUM($L96:AQ96)), MAX(AQ96,$I96-SUM($L96:AQ96))) -> 0.4431518632 | AS96: =IF($I96 >0, MIN(AR96,$I96-SUM($L96:AR96)), MAX(AR96,$I96-SUM($L96:AR96))) -> 0.4431518632 | AT96: =IF($I96 >0, MIN(AS96,$I96-SUM($L96:AS96)), MAX(AS96,$I96-SUM($L96:AS96))) -> 0.4431518632
E97: 1999-03-31 | G97: £m 18/19 prices | I97: 15.687443 | J97: > | T97: =$I97/S$83 -> 0.3268217291 | U97: =IF($I97 >0, MIN(T97,$I97-SUM($L97:T97)), MAX(T97,$I97-SUM($L97:T97))) -> 0.3268217291 | V97: =IF($I97 >0, MIN(U97,$I97-SUM($L97:U97)), MAX(U97,$I97-SUM($L97:U97))) -> 0.3268217291 | W97: =IF($I97 >0, MIN(V97,$I97-SUM($L97:V97)), MAX(V97,$I97-SUM($L97:V97))) -> 0.3268217291 | X97: =IF($I97 >0, MIN(W97,$I97-SUM($L97:W97)), MAX(W97,$I97-SUM($L97:W97))) -> 0.3268217291 | Y97: =IF($I97 >0, MIN(X97,$I97-SUM($L97:X97)), MAX(X97,$I97-SUM($L97:X97))) -> 0.3268217291 | Z97: =IF($I97 >0, MIN(Y97,$I97-SUM($L97:Y97)), MAX(Y97,$I97-SUM($L97:Y97))) -> 0.3268217291 | AA97: =IF($I97 >0, MIN(Z97,$I97-SUM($L97:Z97)), MAX(Z97,$I97-SUM($L97:Z97))) -> 0.3268217291 | AB97: =IF($I97 >0, MIN(AA97,$I97-SUM($L97:AA97)), MAX(AA97,$I97-SUM($L97:AA97))) -> 0.3268217291 | AC97: =IF($I97 >0, MIN(AB97,$I97-SUM($L97:AB97)), MAX(AB97,$I97-SUM($L97:AB97))) -> 0.3268217291 | AD97: =IF($I97 >0, MIN(AC97,$I97-SUM($L97:AC97)), MAX(AC97,$I97-SUM($L97:AC97))) -> 0.3268217291 | AE97: =IF($I97 >0, MIN(AD97,$I97-SUM($L97:AD97)), MAX(AD97,$I97-SUM($L97:AD97))) -> 0.3268217291 | AF97: =IF($I97 >0, MIN(AE97,$I97-SUM($L97:AE97)), MAX(AE97,$I97-SUM($L97:AE97))) -> 0.3268217291 | AG97: =IF($I97 >0, MIN(AF97,$I97-SUM($L97:AF97)), MAX(AF97,$I97-SUM($L97:AF97))) -> 0.3268217291 | AH97: =IF($I97 >0, MIN(AG97,$I97-SUM($L97:AG97)), MAX(AG97,$I97-SUM($L97:AG97))) -> 0.3268217291 | AI97: =IF($I97 >0, MIN(AH97,$I97-SUM($L97:AH97)), MAX(AH97,$I97-SUM($L97:AH97))) -> 0.3268217291 | AJ97: =IF($I97 >0, MIN(AI97,$I97-SUM($L97:AI97)), MAX(AI97,$I97-SUM($L97:AI97))) -> 0.3268217291 | AK97: =IF($I97 >0, MIN(AJ97,$I97-SUM($L97:AJ97)), MAX(AJ97,$I97-SUM($L97:AJ97))) -> 0.3268217291 | AL97: =IF($I97 >0, MIN(AK97,$I97-SUM($L97:AK97)), MAX(AK97,$I97-SUM($L97:AK97))) -> 0.3268217291 | AM97: =IF($I97 >0, MIN(AL97,$I97-SUM($L97:AL97)), MAX(AL97,$I97-SUM($L97:AL97))) -> 0.3268217291 | AN97: =IF($I97 >0, MIN(AM97,$I97-SUM($L97:AM97)), MAX(AM97,$I97-SUM($L97:AM97))) -> 0.3268217291 | AO97: =IF($I97 >0, MIN(AN97,$I97-SUM($L97:AN97)), MAX(AN97,$I97-SUM($L97:AN97))) -> 0.3268217291 | AP97: =IF($I97 >0, MIN(AO97,$I97-SUM($L97:AO97)), MAX(AO97,$I97-SUM($L97:AO97))) -> 0.3268217291 | AQ97: =IF($I97 >0, MIN(AP97,$I97-SUM($L97:AP97)), MAX(AP97,$I97-SUM($L97:AP97))) -> 0.3268217291 | AR97: =IF($I97 >0, MIN(AQ97,$I97-SUM($L97:AQ97)), MAX(AQ97,$I97-SUM($L97:AQ97))) -> 0.3268217291 | AS97: =IF($I97 >0, MIN(AR97,$I97-SUM($L97:AR97)), MAX(AR97,$I97-SUM($L97:AR97))) -> 0.3268217291 | AT97: =IF($I97 >0, MIN(AS97,$I97-SUM($L97:AS97)), MAX(AS97,$I97-SUM($L97:AS97))) -> 0.3268217291
E98: 2000-03-31 | G98: £m 18/19 prices | I98: 28.61180442 | J98: > | U98: =$I98/T$83 -> 0.5960792587 | V98: =IF($I98 >0, MIN(U98,$I98-SUM($L98:U98)), MAX(U98,$I98-SUM($L98:U98))) -> 0.5960792587 | W98: =IF($I98 >0, MIN(V98,$I98-SUM($L98:V98)), MAX(V98,$I98-SUM($L98:V98))) -> 0.5960792587 | X98: =IF($I98 >0, MIN(W98,$I98-SUM($L98:W98)), MAX(W98,$I98-SUM($L98:W98))) -> 0.5960792587 | Y98: =IF($I98 >0, MIN(X98,$I98-SUM($L98:X98)), MAX(X98,$I98-SUM($L98:X98))) -> 0.5960792587 | Z98: =IF($I98 >0, MIN(Y98,$I98-SUM($L98:Y98)), MAX(Y98,$I98-SUM($L98:Y98))) -> 0.5960792587 | AA98: =IF($I98 >0, MIN(Z98,$I98-SUM($L98:Z98)), MAX(Z98,$I98-SUM($L98:Z98))) -> 0.5960792587 | AB98: =IF($I98 >0, MIN(AA98,$I98-SUM($L98:AA98)), MAX(AA98,$I98-SUM($L98:AA98))) -> 0.5960792587 | AC98: =IF($I98 >0, MIN(AB98,$I98-SUM($L98:AB98)), MAX(AB98,$I98-SUM($L98:AB98))) -> 0.5960792587 | AD98: =IF($I98 >0, MIN(AC98,$I98-SUM($L98:AC98)), MAX(AC98,$I98-SUM($L98:AC98))) -> 0.5960792587 | AE98: =IF($I98 >0, MIN(AD98,$I98-SUM($L98:AD98)), MAX(AD98,$I98-SUM($L98:AD98))) -> 0.5960792587 | AF98: =IF($I98 >0, MIN(AE98,$I98-SUM($L98:AE98)), MAX(AE98,$I98-SUM($L98:AE98))) -> 0.5960792587 | AG98: =IF($I98 >0, MIN(AF98,$I98-SUM($L98:AF98)), MAX(AF98,$I98-SUM($L98:AF98))) -> 0.5960792587 | AH98: =IF($I98 >0, MIN(AG98,$I98-SUM($L98:AG98)), MAX(AG98,$I98-SUM($L98:AG98))) -> 0.5960792587 | AI98: =IF($I98 >0, MIN(AH98,$I98-SUM($L98:AH98)), MAX(AH98,$I98-SUM($L98:AH98))) -> 0.5960792587 | AJ98: =IF($I98 >0, MIN(AI98,$I98-SUM($L98:AI98)), MAX(AI98,$I98-SUM($L98:AI98))) -> 0.5960792587 | AK98: =IF($I98 >0, MIN(AJ98,$I98-SUM($L98:AJ98)), MAX(AJ98,$I98-SUM($L98:AJ98))) -> 0.5960792587 | AL98: =IF($I98 >0, MIN(AK98,$I98-SUM($L98:AK98)), MAX(AK98,$I98-SUM($L98:AK98))) -> 0.5960792587 | AM98: =IF($I98 >0, MIN(AL98,$I98-SUM($L98:AL98)), MAX(AL98,$I98-SUM($L98:AL98))) -> 0.5960792587 | AN98: =IF($I98 >0, MIN(AM98,$I98-SUM($L98:AM98)), MAX(AM98,$I98-SUM($L98:AM98))) -> 0.5960792587 | AO98: =IF($I98 >0, MIN(AN98,$I98-SUM($L98:AN98)), MAX(AN98,$I98-SUM($L98:AN98))) -> 0.5960792587 | AP98: =IF($I98 >0, MIN(AO98,$I98-SUM($L98:AO98)), MAX(AO98,$I98-SUM($L98:AO98))) -> 0.5960792587 | AQ98: =IF($I98 >0, MIN(AP98,$I98-SUM($L98:AP98)), MAX(AP98,$I98-SUM($L98:AP98))) -> 0.5960792587 | AR98: =IF($I98 >0, MIN(AQ98,$I98-SUM($L98:AQ98)), MAX(AQ98,$I98-SUM($L98:AQ98))) -> 0.5960792587 | AS98: =IF($I98 >0, MIN(AR98,$I98-SUM($L98:AR98)), MAX(AR98,$I98-SUM($L98:AR98))) -> 0.5960792587 | AT98: =IF($I98 >0, MIN(AS98,$I98-SUM($L98:AS98)), MAX(AS98,$I98-SUM($L98:AS98))) -> 0.5960792587
E99: 2001-03-31 | G99: £m 18/19 prices | I99: 14.8825519 | J99: > | V99: =$I99/U$83 -> 0.3100531645 | W99: =IF($I99 >0, MIN(V99,$I99-SUM($L99:V99)), MAX(V99,$I99-SUM($L99:V99))) -> 0.3100531645 | X99: =IF($I99 >0, MIN(W99,$I99-SUM($L99:W99)), MAX(W99,$I99-SUM($L99:W99))) -> 0.3100531645 | Y99: =IF($I99 >0, MIN(X99,$I99-SUM($L99:X99)), MAX(X99,$I99-SUM($L99:X99))) -> 0.3100531645 | Z99: =IF($I99 >0, MIN(Y99,$I99-SUM($L99:Y99)), MAX(Y99,$I99-SUM($L99:Y99))) -> 0.3100531645 | AA99: =IF($I99 >0, MIN(Z99,$I99-SUM($L99:Z99)), MAX(Z99,$I99-SUM($L99:Z99))) -> 0.3100531645 | AB99: =IF($I99 >0, MIN(AA99,$I99-SUM($L99:AA99)), MAX(AA99,$I99-SUM($L99:AA99))) -> 0.3100531645 | AC99: =IF($I99 >0, MIN(AB99,$I99-SUM($L99:AB99)), MAX(AB99,$I99-SUM($L99:AB99))) -> 0.3100531645 | AD99: =IF($I99 >0, MIN(AC99,$I99-SUM($L99:AC99)), MAX(AC99,$I99-SUM($L99:AC99))) -> 0.3100531645 | AE99: =IF($I99 >0, MIN(AD99,$I99-SUM($L99:AD99)), MAX(AD99,$I99-SUM($L99:AD99))) -> 0.3100531645 | AF99: =IF($I99 >0, MIN(AE99,$I99-SUM($L99:AE99)), MAX(AE99,$I99-SUM($L99:AE99))) -> 0.3100531645 | AG99: =IF($I99 >0, MIN(AF99,$I99-SUM($L99:AF99)), MAX(AF99,$I99-SUM($L99:AF99))) -> 0.3100531645 | AH99: =IF($I99 >0, MIN(AG99,$I99-SUM($L99:AG99)), MAX(AG99,$I99-SUM($L99:AG99))) -> 0.3100531645 | AI99: =IF($I99 >0, MIN(AH99,$I99-SUM($L99:AH99)), MAX(AH99,$I99-SUM($L99:AH99))) -> 0.3100531645 | AJ99: =IF($I99 >0, MIN(AI99,$I99-SUM($L99:AI99)), MAX(AI99,$I99-SUM($L99:AI99))) -> 0.3100531645 | AK99: =IF($I99 >0, MIN(AJ99,$I99-SUM($L99:AJ99)), MAX(AJ99,$I99-SUM($L99:AJ99))) -> 0.3100531645 | AL99: =IF($I99 >0, MIN(AK99,$I99-SUM($L99:AK99)), MAX(AK99,$I99-SUM($L99:AK99))) -> 0.3100531645 | AM99: =IF($I99 >0, MIN(AL99,$I99-SUM($L99:AL99)), MAX(AL99,$I99-SUM($L99:AL99))) -> 0.3100531645 | AN99: =IF($I99 >0, MIN(AM99,$I99-SUM($L99:AM99)), MAX(AM99,$I99-SUM($L99:AM99))) -> 0.3100531645 | AO99: =IF($I99 >0, MIN(AN99,$I99-SUM($L99:AN99)), MAX(AN99,$I99-SUM($L99:AN99))) -> 0.3100531645 | AP99: =IF($I99 >0, MIN(AO99,$I99-SUM($L99:AO99)), MAX(AO99,$I99-SUM($L99:AO99))) -> 0.3100531645 | AQ99: =IF($I99 >0, MIN(AP99,$I99-SUM($L99:AP99)), MAX(AP99,$I99-SUM($L99:AP99))) -> 0.3100531645 | AR99: =IF($I99 >0, MIN(AQ99,$I99-SUM($L99:AQ99)), MAX(AQ99,$I99-SUM($L99:AQ99))) -> 0.3100531645 | AS99: =IF($I99 >0, MIN(AR99,$I99-SUM($L99:AR99)), MAX(AR99,$I99-SUM($L99:AR99))) -> 0.3100531645 | AT99: =IF($I99 >0, MIN(AS99,$I99-SUM($L99:AS99)), MAX(AS99,$I99-SUM($L99:AS99))) -> 0.3100531645
E100: 2002-03-31 | G100: £m 18/19 prices | I100: 10.86700546 | J100: > | W100: =$I100/V$83 -> 0.2263959472 | X100: =IF($I100 >0, MIN(W100,$I100-SUM($L100:W100)), MAX(W100,$I100-SUM($L100:W100))) -> 0.2263959472 | Y100: =IF($I100 >0, MIN(X100,$I100-SUM($L100:X100)), MAX(X100,$I100-SUM($L100:X100))) -> 0.2263959472 | Z100: =IF($I100 >0, MIN(Y100,$I100-SUM($L100:Y100)), MAX(Y100,$I100-SUM($L100:Y100))) -> 0.2263959472 | AA100: =IF($I100 >0, MIN(Z100,$I100-SUM($L100:Z100)), MAX(Z100,$I100-SUM($L100:Z100))) -> 0.2263959472 | AB100: =IF($I100 >0, MIN(AA100,$I100-SUM($L100:AA100)), MAX(AA100,$I100-SUM($L100:AA100))) -> 0.2263959472 | AC100: =IF($I100 >0, MIN(AB100,$I100-SUM($L100:AB100)), MAX(AB100,$I100-SUM($L100:AB100))) -> 0.2263959472 | AD100: =IF($I100 >0, MIN(AC100,$I100-SUM($L100:AC100)), MAX(AC100,$I100-SUM($L100:AC100))) -> 0.2263959472 | AE100: =IF($I100 >0, MIN(AD100,$I100-SUM($L100:AD100)), MAX(AD100,$I100-SUM($L100:AD100))) -> 0.2263959472 | AF100: =IF($I100 >0, MIN(AE100,$I100-SUM($L100:AE100)), MAX(AE100,$I100-SUM($L100:AE100))) -> 0.2263959472 | AG100: =IF($I100 >0, MIN(AF100,$I100-SUM($L100:AF100)), MAX(AF100,$I100-SUM($L100:AF100))) -> 0.2263959472 | AH100: =IF($I100 >0, MIN(AG100,$I100-SUM($L100:AG100)), MAX(AG100,$I100-SUM($L100:AG100))) -> 0.2263959472 | AI100: =IF($I100 >0, MIN(AH100,$I100-SUM($L100:AH100)), MAX(AH100,$I100-SUM($L100:AH100))) -> 0.2263959472 | AJ100: =IF($I100 >0, MIN(AI100,$I100-SUM($L100:AI100)), MAX(AI100,$I100-SUM($L100:AI100))) -> 0.2263959472 | AK100: =IF($I100 >0, MIN(AJ100,$I100-SUM($L100:AJ100)), MAX(AJ100,$I100-SUM($L100:AJ100))) -> 0.2263959472 | AL100: =IF($I100 >0, MIN(AK100,$I100-SUM($L100:AK100)), MAX(AK100,$I100-SUM($L100:AK100))) -> 0.2263959472 | AM100: =IF($I100 >0, MIN(AL100,$I100-SUM($L100:AL100)), MAX(AL100,$I100-SUM($L100:AL100))) -> 0.2263959472 | AN100: =IF($I100 >0, MIN(AM100,$I100-SUM($L100:AM100)), MAX(AM100,$I100-SUM($L100:AM100))) -> 0.2263959472 | AO100: =IF($I100 >0, MIN(AN100,$I100-SUM($L100:AN100)), MAX(AN100,$I100-SUM($L100:AN100))) -> 0.2263959472 | AP100: =IF($I100 >0, MIN(AO100,$I100-SUM($L100:AO100)), MAX(AO100,$I100-SUM($L100:AO100))) -> 0.2263959472 | AQ100: =IF($I100 >0, MIN(AP100,$I100-SUM($L100:AP100)), MAX(AP100,$I100-SUM($L100:AP100))) -> 0.2263959472 | AR100: =IF($I100 >0, MIN(AQ100,$I100-SUM($L100:AQ100)), MAX(AQ100,$I100-SUM($L100:AQ100))) -> 0.2263959472 | AS100: =IF($I100 >0, MIN(AR100,$I100-SUM($L100:AR100)), MAX(AR100,$I100-SUM($L100:AR100))) -> 0.2263959472 | AT100: =IF($I100 >0, MIN(AS100,$I100-SUM($L100:AS100)), MAX(AS100,$I100-SUM($L100:AS100))) -> 0.2263959472
E101: 2003-03-31 | G101: £m 18/19 prices | I101: 12.49851658 | J101: > | X101: =$I101/W$83 -> 0.2603857622 | Y101: =IF($I101 >0, MIN(X101,$I101-SUM($L101:X101)), MAX(X101,$I101-SUM($L101:X101))) -> 0.2603857622 | Z101: =IF($I101 >0, MIN(Y101,$I101-SUM($L101:Y101)), MAX(Y101,$I101-SUM($L101:Y101))) -> 0.2603857622 | AA101: =IF($I101 >0, MIN(Z101,$I101-SUM($L101:Z101)), MAX(Z101,$I101-SUM($L101:Z101))) -> 0.2603857622 | AB101: =IF($I101 >0, MIN(AA101,$I101-SUM($L101:AA101)), MAX(AA101,$I101-SUM($L101:AA101))) -> 0.2603857622 | AC101: =IF($I101 >0, MIN(AB101,$I101-SUM($L101:AB101)), MAX(AB101,$I101-SUM($L101:AB101))) -> 0.2603857622 | AD101: =IF($I101 >0, MIN(AC101,$I101-SUM($L101:AC101)), MAX(AC101,$I101-SUM($L101:AC101))) -> 0.2603857622 | AE101: =IF($I101 >0, MIN(AD101,$I101-SUM($L101:AD101)), MAX(AD101,$I101-SUM($L101:AD101))) -> 0.2603857622 | AF101: =IF($I101 >0, MIN(AE101,$I101-SUM($L101:AE101)), MAX(AE101,$I101-SUM($L101:AE101))) -> 0.2603857622 | AG101: =IF($I101 >0, MIN(AF101,$I101-SUM($L101:AF101)), MAX(AF101,$I101-SUM($L101:AF101))) -> 0.2603857622 | AH101: =IF($I101 >0, MIN(AG101,$I101-SUM($L101:AG101)), MAX(AG101,$I101-SUM($L101:AG101))) -> 0.2603857622 | AI101: =IF($I101 >0, MIN(AH101,$I101-SUM($L101:AH101)), MAX(AH101,$I101-SUM($L101:AH101))) -> 0.2603857622 | AJ101: =IF($I101 >0, MIN(AI101,$I101-SUM($L101:AI101)), MAX(AI101,$I101-SUM($L101:AI101))) -> 0.2603857622 | AK101: =IF($I101 >0, MIN(AJ101,$I101-SUM($L101:AJ101)), MAX(AJ101,$I101-SUM($L101:AJ101))) -> 0.2603857622 | AL101: =IF($I101 >0, MIN(AK101,$I101-SUM($L101:AK101)), MAX(AK101,$I101-SUM($L101:AK101))) -> 0.2603857622 | AM101: =IF($I101 >0, MIN(AL101,$I101-SUM($L101:AL101)), MAX(AL101,$I101-SUM($L101:AL101))) -> 0.2603857622 | AN101: =IF($I101 >0, MIN(AM101,$I101-SUM($L101:AM101)), MAX(AM101,$I101-SUM($L101:AM101))) -> 0.2603857622 | AO101: =IF($I101 >0, MIN(AN101,$I101-SUM($L101:AN101)), MAX(AN101,$I101-SUM($L101:AN101))) -> 0.2603857622 | AP101: =IF($I101 >0, MIN(AO101,$I101-SUM($L101:AO101)), MAX(AO101,$I101-SUM($L101:AO101))) -> 0.2603857622 | AQ101: =IF($I101 >0, MIN(AP101,$I101-SUM($L101:AP101)), MAX(AP101,$I101-SUM($L101:AP101))) -> 0.2603857622 | AR101: =IF($I101 >0, MIN(AQ101,$I101-SUM($L101:AQ101)), MAX(AQ101,$I101-SUM($L101:AQ101))) -> 0.2603857622 | AS101: =IF($I101 >0, MIN(AR101,$I101-SUM($L101:AR101)), MAX(AR101,$I101-SUM($L101:AR101))) -> 0.2603857622 | AT101: =IF($I101 >0, MIN(AS101,$I101-SUM($L101:AS101)), MAX(AS101,$I101-SUM($L101:AS101))) -> 0.2603857622
E102: 2004-03-31 | G102: £m 18/19 prices | I102: 13.41587591 | J102: > | Y102: =$I102/X$83 -> 0.2794974148 | Z102: =IF($I102 >0, MIN(Y102,$I102-SUM($L102:Y102)), MAX(Y102,$I102-SUM($L102:Y102))) -> 0.2794974148 | AA102: =IF($I102 >0, MIN(Z102,$I102-SUM($L102:Z102)), MAX(Z102,$I102-SUM($L102:Z102))) -> 0.2794974148 | AB102: =IF($I102 >0, MIN(AA102,$I102-SUM($L102:AA102)), MAX(AA102,$I102-SUM($L102:AA102))) -> 0.2794974148 | AC102: =IF($I102 >0, MIN(AB102,$I102-SUM($L102:AB102)), MAX(AB102,$I102-SUM($L102:AB102))) -> 0.2794974148 | AD102: =IF($I102 >0, MIN(AC102,$I102-SUM($L102:AC102)), MAX(AC102,$I102-SUM($L102:AC102))) -> 0.2794974148 | AE102: =IF($I102 >0, MIN(AD102,$I102-SUM($L102:AD102)), MAX(AD102,$I102-SUM($L102:AD102))) -> 0.2794974148 | AF102: =IF($I102 >0, MIN(AE102,$I102-SUM($L102:AE102)), MAX(AE102,$I102-SUM($L102:AE102))) -> 0.2794974148 | AG102: =IF($I102 >0, MIN(AF102,$I102-SUM($L102:AF102)), MAX(AF102,$I102-SUM($L102:AF102))) -> 0.2794974148 | AH102: =IF($I102 >0, MIN(AG102,$I102-SUM($L102:AG102)), MAX(AG102,$I102-SUM($L102:AG102))) -> 0.2794974148 | AI102: =IF($I102 >0, MIN(AH102,$I102-SUM($L102:AH102)), MAX(AH102,$I102-SUM($L102:AH102))) -> 0.2794974148 | AJ102: =IF($I102 >0, MIN(AI102,$I102-SUM($L102:AI102)), MAX(AI102,$I102-SUM($L102:AI102))) -> 0.2794974148 | AK102: =IF($I102 >0, MIN(AJ102,$I102-SUM($L102:AJ102)), MAX(AJ102,$I102-SUM($L102:AJ102))) -> 0.2794974148 | AL102: =IF($I102 >0, MIN(AK102,$I102-SUM($L102:AK102)), MAX(AK102,$I102-SUM($L102:AK102))) -> 0.2794974148 | AM102: =IF($I102 >0, MIN(AL102,$I102-SUM($L102:AL102)), MAX(AL102,$I102-SUM($L102:AL102))) -> 0.2794974148 | AN102: =IF($I102 >0, MIN(AM102,$I102-SUM($L102:AM102)), MAX(AM102,$I102-SUM($L102:AM102))) -> 0.2794974148 | AO102: =IF($I102 >0, MIN(AN102,$I102-SUM($L102:AN102)), MAX(AN102,$I102-SUM($L102:AN102))) -> 0.2794974148 | AP102: =IF($I102 >0, MIN(AO102,$I102-SUM($L102:AO102)), MAX(AO102,$I102-SUM($L102:AO102))) -> 0.2794974148 | AQ102: =IF($I102 >0, MIN(AP102,$I102-SUM($L102:AP102)), MAX(AP102,$I102-SUM($L102:AP102))) -> 0.2794974148 | AR102: =IF($I102 >0, MIN(AQ102,$I102-SUM($L102:AQ102)), MAX(AQ102,$I102-SUM($L102:AQ102))) -> 0.2794974148 | AS102: =IF($I102 >0, MIN(AR102,$I102-SUM($L102:AR102)), MAX(AR102,$I102-SUM($L102:AR102))) -> 0.2794974148 | AT102: =IF($I102 >0, MIN(AS102,$I102-SUM($L102:AS102)), MAX(AS102,$I102-SUM($L102:AS102))) -> 0.2794974148
E103: 2005-03-31 | G103: £m 18/19 prices | I103: 63.63891178 | J103: > | Z103: =$I103/Y$83 -> 1.325810662 | AA103: =IF($I103 >0, MIN(Z103,$I103-SUM($L103:Z103)), MAX(Z103,$I103-SUM($L103:Z103))) -> 1.325810662 | AB103: =IF($I103 >0, MIN(AA103,$I103-SUM($L103:AA103)), MAX(AA103,$I103-SUM($L103:AA103))) -> 1.325810662 | AC103: =IF($I103 >0, MIN(AB103,$I103-SUM($L103:AB103)), MAX(AB103,$I103-SUM($L103:AB103))) -> 1.325810662 | AD103: =IF($I103 >0, MIN(AC103,$I103-SUM($L103:AC103)), MAX(AC103,$I103-SUM($L103:AC103))) -> 1.325810662 | AE103: =IF($I103 >0, MIN(AD103,$I103-SUM($L103:AD103)), MAX(AD103,$I103-SUM($L103:AD103))) -> 1.325810662 | AF103: =IF($I103 >0, MIN(AE103,$I103-SUM($L103:AE103)), MAX(AE103,$I103-SUM($L103:AE103))) -> 1.325810662 | AG103: =IF($I103 >0, MIN(AF103,$I103-SUM($L103:AF103)), MAX(AF103,$I103-SUM($L103:AF103))) -> 1.325810662 | AH103: =IF($I103 >0, MIN(AG103,$I103-SUM($L103:AG103)), MAX(AG103,$I103-SUM($L103:AG103))) -> 1.325810662 | AI103: =IF($I103 >0, MIN(AH103,$I103-SUM($L103:AH103)), MAX(AH103,$I103-SUM($L103:AH103))) -> 1.325810662 | AJ103: =IF($I103 >0, MIN(AI103,$I103-SUM($L103:AI103)), MAX(AI103,$I103-SUM($L103:AI103))) -> 1.325810662 | AK103: =IF($I103 >0, MIN(AJ103,$I103-SUM($L103:AJ103)), MAX(AJ103,$I103-SUM($L103:AJ103))) -> 1.325810662 | AL103: =IF($I103 >0, MIN(AK103,$I103-SUM($L103:AK103)), MAX(AK103,$I103-SUM($L103:AK103))) -> 1.325810662 | AM103: =IF($I103 >0, MIN(AL103,$I103-SUM($L103:AL103)), MAX(AL103,$I103-SUM($L103:AL103))) -> 1.325810662 | AN103: =IF($I103 >0, MIN(AM103,$I103-SUM($L103:AM103)), MAX(AM103,$I103-SUM($L103:AM103))) -> 1.325810662 | AO103: =IF($I103 >0, MIN(AN103,$I103-SUM($L103:AN103)), MAX(AN103,$I103-SUM($L103:AN103))) -> 1.325810662 | AP103: =IF($I103 >0, MIN(AO103,$I103-SUM($L103:AO103)), MAX(AO103,$I103-SUM($L103:AO103))) -> 1.325810662 | AQ103: =IF($I103 >0, MIN(AP103,$I103-SUM($L103:AP103)), MAX(AP103,$I103-SUM($L103:AP103))) -> 1.325810662 | AR103: =IF($I103 >0, MIN(AQ103,$I103-SUM($L103:AQ103)), MAX(AQ103,$I103-SUM($L103:AQ103))) -> 1.325810662 | AS103: =IF($I103 >0, MIN(AR103,$I103-SUM($L103:AR103)), MAX(AR103,$I103-SUM($L103:AR103))) -> 1.325810662 | AT103: =IF($I103 >0, MIN(AS103,$I103-SUM($L103:AS103)), MAX(AS103,$I103-SUM($L103:AS103))) -> 1.325810662
E104: 2006-03-31 | G104: £m 18/19 prices | I104: 29.18200966 | J104: > | AA104: =$I104/Z$83 -> 0.6079585346 | AB104: =IF($I104 >0, MIN(AA104,$I104-SUM($L104:AA104)), MAX(AA104,$I104-SUM($L104:AA104))) -> 0.6079585346 | AC104: =IF($I104 >0, MIN(AB104,$I104-SUM($L104:AB104)), MAX(AB104,$I104-SUM($L104:AB104))) -> 0.6079585346 | AD104: =IF($I104 >0, MIN(AC104,$I104-SUM($L104:AC104)), MAX(AC104,$I104-SUM($L104:AC104))) -> 0.6079585346 | AE104: =IF($I104 >0, MIN(AD104,$I104-SUM($L104:AD104)), MAX(AD104,$I104-SUM($L104:AD104))) -> 0.6079585346 | AF104: =IF($I104 >0, MIN(AE104,$I104-SUM($L104:AE104)), MAX(AE104,$I104-SUM($L104:AE104))) -> 0.6079585346 | AG104: =IF($I104 >0, MIN(AF104,$I104-SUM($L104:AF104)), MAX(AF104,$I104-SUM($L104:AF104))) -> 0.6079585346 | AH104: =IF($I104 >0, MIN(AG104,$I104-SUM($L104:AG104)), MAX(AG104,$I104-SUM($L104:AG104))) -> 0.6079585346 | AI104: =IF($I104 >0, MIN(AH104,$I104-SUM($L104:AH104)), MAX(AH104,$I104-SUM($L104:AH104))) -> 0.6079585346 | AJ104: =IF($I104 >0, MIN(AI104,$I104-SUM($L104:AI104)), MAX(AI104,$I104-SUM($L104:AI104))) -> 0.6079585346 | AK104: =IF($I104 >0, MIN(AJ104,$I104-SUM($L104:AJ104)), MAX(AJ104,$I104-SUM($L104:AJ104))) -> 0.6079585346 | AL104: =IF($I104 >0, MIN(AK104,$I104-SUM($L104:AK104)), MAX(AK104,$I104-SUM($L104:AK104))) -> 0.6079585346 | AM104: =IF($I104 >0, MIN(AL104,$I104-SUM($L104:AL104)), MAX(AL104,$I104-SUM($L104:AL104))) -> 0.6079585346 | AN104: =IF($I104 >0, MIN(AM104,$I104-SUM($L104:AM104)), MAX(AM104,$I104-SUM($L104:AM104))) -> 0.6079585346 | AO104: =IF($I104 >0, MIN(AN104,$I104-SUM($L104:AN104)), MAX(AN104,$I104-SUM($L104:AN104))) -> 0.6079585346 | AP104: =IF($I104 >0, MIN(AO104,$I104-SUM($L104:AO104)), MAX(AO104,$I104-SUM($L104:AO104))) -> 0.6079585346 | AQ104: =IF($I104 >0, MIN(AP104,$I104-SUM($L104:AP104)), MAX(AP104,$I104-SUM($L104:AP104))) -> 0.6079585346 | AR104: =IF($I104 >0, MIN(AQ104,$I104-SUM($L104:AQ104)), MAX(AQ104,$I104-SUM($L104:AQ104))) -> 0.6079585346 | AS104: =IF($I104 >0, MIN(AR104,$I104-SUM($L104:AR104)), MAX(AR104,$I104-SUM($L104:AR104))) -> 0.6079585346 | AT104: =IF($I104 >0, MIN(AS104,$I104-SUM($L104:AS104)), MAX(AS104,$I104-SUM($L104:AS104))) -> 0.6079585346
E105: 2007-03-31 | G105: £m 18/19 prices | I105: 34.89786415 | J105: > | AB105: =$I105/AA$83 -> 0.7270388364 | AC105: =IF($I105 >0, MIN(AB105,$I105-SUM($L105:AB105)), MAX(AB105,$I105-SUM($L105:AB105))) -> 0.7270388364 | AD105: =IF($I105 >0, MIN(AC105,$I105-SUM($L105:AC105)), MAX(AC105,$I105-SUM($L105:AC105))) -> 0.7270388364 | AE105: =IF($I105 >0, MIN(AD105,$I105-SUM($L105:AD105)), MAX(AD105,$I105-SUM($L105:AD105))) -> 0.7270388364 | AF105: =IF($I105 >0, MIN(AE105,$I105-SUM($L105:AE105)), MAX(AE105,$I105-SUM($L105:AE105))) -> 0.7270388364 | AG105: =IF($I105 >0, MIN(AF105,$I105-SUM($L105:AF105)), MAX(AF105,$I105-SUM($L105:AF105))) -> 0.7270388364 | AH105: =IF($I105 >0, MIN(AG105,$I105-SUM($L105:AG105)), MAX(AG105,$I105-SUM($L105:AG105))) -> 0.7270388364 | AI105: =IF($I105 >0, MIN(AH105,$I105-SUM($L105:AH105)), MAX(AH105,$I105-SUM($L105:AH105))) -> 0.7270388364 | AJ105: =IF($I105 >0, MIN(AI105,$I105-SUM($L105:AI105)), MAX(AI105,$I105-SUM($L105:AI105))) -> 0.7270388364 | AK105: =IF($I105 >0, MIN(AJ105,$I105-SUM($L105:AJ105)), MAX(AJ105,$I105-SUM($L105:AJ105))) -> 0.7270388364 | AL105: =IF($I105 >0, MIN(AK105,$I105-SUM($L105:AK105)), MAX(AK105,$I105-SUM($L105:AK105))) -> 0.7270388364 | AM105: =IF($I105 >0, MIN(AL105,$I105-SUM($L105:AL105)), MAX(AL105,$I105-SUM($L105:AL105))) -> 0.7270388364 | AN105: =IF($I105 >0, MIN(AM105,$I105-SUM($L105:AM105)), MAX(AM105,$I105-SUM($L105:AM105))) -> 0.7270388364 | AO105: =IF($I105 >0, MIN(AN105,$I105-SUM($L105:AN105)), MAX(AN105,$I105-SUM($L105:AN105))) -> 0.7270388364 | AP105: =IF($I105 >0, MIN(AO105,$I105-SUM($L105:AO105)), MAX(AO105,$I105-SUM($L105:AO105))) -> 0.7270388364 | AQ105: =IF($I105 >0, MIN(AP105,$I105-SUM($L105:AP105)), MAX(AP105,$I105-SUM($L105:AP105))) -> 0.7270388364 | AR105: =IF($I105 >0, MIN(AQ105,$I105-SUM($L105:AQ105)), MAX(AQ105,$I105-SUM($L105:AQ105))) -> 0.7270388364 | AS105: =IF($I105 >0, MIN(AR105,$I105-SUM($L105:AR105)), MAX(AR105,$I105-SUM($L105:AR105))) -> 0.7270388364 | AT105: =IF($I105 >0, MIN(AS105,$I105-SUM($L105:AS105)), MAX(AS105,$I105-SUM($L105:AS105))) -> 0.7270388364
E106: 2008-03-31 | G106: £m 18/19 prices | I106: 61.13551256 | J106: > | AC106: =$I106/AB$83 -> 1.273656512 | AD106: =IF($I106 >0, MIN(AC106,$I106-SUM($L106:AC106)), MAX(AC106,$I106-SUM($L106:AC106))) -> 1.273656512 | AE106: =IF($I106 >0, MIN(AD106,$I106-SUM($L106:AD106)), MAX(AD106,$I106-SUM($L106:AD106))) -> 1.273656512 | AF106: =IF($I106 >0, MIN(AE106,$I106-SUM($L106:AE106)), MAX(AE106,$I106-SUM($L106:AE106))) -> 1.273656512 | AG106: =IF($I106 >0, MIN(AF106,$I106-SUM($L106:AF106)), MAX(AF106,$I106-SUM($L106:AF106))) -> 1.273656512 | AH106: =IF($I106 >0, MIN(AG106,$I106-SUM($L106:AG106)), MAX(AG106,$I106-SUM($L106:AG106))) -> 1.273656512 | AI106: =IF($I106 >0, MIN(AH106,$I106-SUM($L106:AH106)), MAX(AH106,$I106-SUM($L106:AH106))) -> 1.273656512 | AJ106: =IF($I106 >0, MIN(AI106,$I106-SUM($L106:AI106)), MAX(AI106,$I106-SUM($L106:AI106))) -> 1.273656512 | AK106: =IF($I106 >0, MIN(AJ106,$I106-SUM($L106:AJ106)), MAX(AJ106,$I106-SUM($L106:AJ106))) -> 1.273656512 | AL106: =IF($I106 >0, MIN(AK106,$I106-SUM($L106:AK106)), MAX(AK106,$I106-SUM($L106:AK106))) -> 1.273656512 | AM106: =IF($I106 >0, MIN(AL106,$I106-SUM($L106:AL106)), MAX(AL106,$I106-SUM($L106:AL106))) -> 1.273656512 | AN106: =IF($I106 >0, MIN(AM106,$I106-SUM($L106:AM106)), MAX(AM106,$I106-SUM($L106:AM106))) -> 1.273656512 | AO106: =IF($I106 >0, MIN(AN106,$I106-SUM($L106:AN106)), MAX(AN106,$I106-SUM($L106:AN106))) -> 1.273656512 | AP106: =IF($I106 >0, MIN(AO106,$I106-SUM($L106:AO106)), MAX(AO106,$I106-SUM($L106:AO106))) -> 1.273656512 | AQ106: =IF($I106 >0, MIN(AP106,$I106-SUM($L106:AP106)), MAX(AP106,$I106-SUM($L106:AP106))) -> 1.273656512 | AR106: =IF($I106 >0, MIN(AQ106,$I106-SUM($L106:AQ106)), MAX(AQ106,$I106-SUM($L106:AQ106))) -> 1.273656512 | AS106: =IF($I106 >0, MIN(AR106,$I106-SUM($L106:AR106)), MAX(AR106,$I106-SUM($L106:AR106))) -> 1.273656512 | AT106: =IF($I106 >0, MIN(AS106,$I106-SUM($L106:AS106)), MAX(AS106,$I106-SUM($L106:AS106))) -> 1.273656512
E107: 2009-03-31 | G107: £m 18/19 prices | I107: 71.22555919 | J107: > | AD107: =$I107/AC$83 -> 1.483865816 | AE107: =IF($I107 >0, MIN(AD107,$I107-SUM($L107:AD107)), MAX(AD107,$I107-SUM($L107:AD107))) -> 1.483865816 | AF107: =IF($I107 >0, MIN(AE107,$I107-SUM($L107:AE107)), MAX(AE107,$I107-SUM($L107:AE107))) -> 1.483865816 | AG107: =IF($I107 >0, MIN(AF107,$I107-SUM($L107:AF107)), MAX(AF107,$I107-SUM($L107:AF107))) -> 1.483865816 | AH107: =IF($I107 >0, MIN(AG107,$I107-SUM($L107:AG107)), MAX(AG107,$I107-SUM($L107:AG107))) -> 1.483865816 | AI107: =IF($I107 >0, MIN(AH107,$I107-SUM($L107:AH107)), MAX(AH107,$I107-SUM($L107:AH107))) -> 1.483865816 | AJ107: =IF($I107 >0, MIN(AI107,$I107-SUM($L107:AI107)), MAX(AI107,$I107-SUM($L107:AI107))) -> 1.483865816 | AK107: =IF($I107 >0, MIN(AJ107,$I107-SUM($L107:AJ107)), MAX(AJ107,$I107-SUM($L107:AJ107))) -> 1.483865816 | AL107: =IF($I107 >0, MIN(AK107,$I107-SUM($L107:AK107)), MAX(AK107,$I107-SUM($L107:AK107))) -> 1.483865816 | AM107: =IF($I107 >0, MIN(AL107,$I107-SUM($L107:AL107)), MAX(AL107,$I107-SUM($L107:AL107))) -> 1.483865816 | AN107: =IF($I107 >0, MIN(AM107,$I107-SUM($L107:AM107)), MAX(AM107,$I107-SUM($L107:AM107))) -> 1.483865816 | AO107: =IF($I107 >0, MIN(AN107,$I107-SUM($L107:AN107)), MAX(AN107,$I107-SUM($L107:AN107))) -> 1.483865816 | AP107: =IF($I107 >0, MIN(AO107,$I107-SUM($L107:AO107)), MAX(AO107,$I107-SUM($L107:AO107))) -> 1.483865816 | AQ107: =IF($I107 >0, MIN(AP107,$I107-SUM($L107:AP107)), MAX(AP107,$I107-SUM($L107:AP107))) -> 1.483865816 | AR107: =IF($I107 >0, MIN(AQ107,$I107-SUM($L107:AQ107)), MAX(AQ107,$I107-SUM($L107:AQ107))) -> 1.483865816 | AS107: =IF($I107 >0, MIN(AR107,$I107-SUM($L107:AR107)), MAX(AR107,$I107-SUM($L107:AR107))) -> 1.483865816 | AT107: =IF($I107 >0, MIN(AS107,$I107-SUM($L107:AS107)), MAX(AS107,$I107-SUM($L107:AS107))) -> 1.483865816
E108: 2010-03-31 | G108: £m 18/19 prices | I108: 51.79638 | J108: > | AE108: =$I108/AD$83 -> 1.07909125 | AF108: =IF($I108 >0, MIN(AE108,$I108-SUM($L108:AE108)), MAX(AE108,$I108-SUM($L108:AE108))) -> 1.07909125 | AG108: =IF($I108 >0, MIN(AF108,$I108-SUM($L108:AF108)), MAX(AF108,$I108-SUM($L108:AF108))) -> 1.07909125 | AH108: =IF($I108 >0, MIN(AG108,$I108-SUM($L108:AG108)), MAX(AG108,$I108-SUM($L108:AG108))) -> 1.07909125 | AI108: =IF($I108 >0, MIN(AH108,$I108-SUM($L108:AH108)), MAX(AH108,$I108-SUM($L108:AH108))) -> 1.07909125 | AJ108: =IF($I108 >0, MIN(AI108,$I108-SUM($L108:AI108)), MAX(AI108,$I108-SUM($L108:AI108))) -> 1.07909125 | AK108: =IF($I108 >0, MIN(AJ108,$I108-SUM($L108:AJ108)), MAX(AJ108,$I108-SUM($L108:AJ108))) -> 1.07909125 | AL108: =IF($I108 >0, MIN(AK108,$I108-SUM($L108:AK108)), MAX(AK108,$I108-SUM($L108:AK108))) -> 1.07909125 | AM108: =IF($I108 >0, MIN(AL108,$I108-SUM($L108:AL108)), MAX(AL108,$I108-SUM($L108:AL108))) -> 1.07909125 | AN108: =IF($I108 >0, MIN(AM108,$I108-SUM($L108:AM108)), MAX(AM108,$I108-SUM($L108:AM108))) -> 1.07909125 | AO108: =IF($I108 >0, MIN(AN108,$I108-SUM($L108:AN108)), MAX(AN108,$I108-SUM($L108:AN108))) -> 1.07909125 | AP108: =IF($I108 >0, MIN(AO108,$I108-SUM($L108:AO108)), MAX(AO108,$I108-SUM($L108:AO108))) -> 1.07909125 | AQ108: =IF($I108 >0, MIN(AP108,$I108-SUM($L108:AP108)), MAX(AP108,$I108-SUM($L108:AP108))) -> 1.07909125 | AR108: =IF($I108 >0, MIN(AQ108,$I108-SUM($L108:AQ108)), MAX(AQ108,$I108-SUM($L108:AQ108))) -> 1.07909125 | AS108: =IF($I108 >0, MIN(AR108,$I108-SUM($L108:AR108)), MAX(AR108,$I108-SUM($L108:AR108))) -> 1.07909125 | AT108: =IF($I108 >0, MIN(AS108,$I108-SUM($L108:AS108)), MAX(AS108,$I108-SUM($L108:AS108))) -> 1.07909125
E109: 2011-03-31 | G109: £m 18/19 prices | I109: 43.92255175 | J109: > | AF109: =$I109/AE$83 -> 0.9150531615 | AG109: =IF($I109 >0, MIN(AF109,$I109-SUM($L109:AF109)), MAX(AF109,$I109-SUM($L109:AF109))) -> 0.9150531615 | AH109: =IF($I109 >0, MIN(AG109,$I109-SUM($L109:AG109)), MAX(AG109,$I109-SUM($L109:AG109))) -> 0.9150531615 | AI109: =IF($I109 >0, MIN(AH109,$I109-SUM($L109:AH109)), MAX(AH109,$I109-SUM($L109:AH109))) -> 0.9150531615 | AJ109: =IF($I109 >0, MIN(AI109,$I109-SUM($L109:AI109)), MAX(AI109,$I109-SUM($L109:AI109))) -> 0.9150531615 | AK109: =IF($I109 >0, MIN(AJ109,$I109-SUM($L109:AJ109)), MAX(AJ109,$I109-SUM($L109:AJ109))) -> 0.9150531615 | AL109: =IF($I109 >0, MIN(AK109,$I109-SUM($L109:AK109)), MAX(AK109,$I109-SUM($L109:AK109))) -> 0.9150531615 | AM109: =IF($I109 >0, MIN(AL109,$I109-SUM($L109:AL109)), MAX(AL109,$I109-SUM($L109:AL109))) -> 0.9150531615 | AN109: =IF($I109 >0, MIN(AM109,$I109-SUM($L109:AM109)), MAX(AM109,$I109-SUM($L109:AM109))) -> 0.9150531615 | AO109: =IF($I109 >0, MIN(AN109,$I109-SUM($L109:AN109)), MAX(AN109,$I109-SUM($L109:AN109))) -> 0.9150531615 | AP109: =IF($I109 >0, MIN(AO109,$I109-SUM($L109:AO109)), MAX(AO109,$I109-SUM($L109:AO109))) -> 0.9150531615 | AQ109: =IF($I109 >0, MIN(AP109,$I109-SUM($L109:AP109)), MAX(AP109,$I109-SUM($L109:AP109))) -> 0.9150531615 | AR109: =IF($I109 >0, MIN(AQ109,$I109-SUM($L109:AQ109)), MAX(AQ109,$I109-SUM($L109:AQ109))) -> 0.9150531615 | AS109: =IF($I109 >0, MIN(AR109,$I109-SUM($L109:AR109)), MAX(AR109,$I109-SUM($L109:AR109))) -> 0.9150531615 | AT109: =IF($I109 >0, MIN(AS109,$I109-SUM($L109:AS109)), MAX(AS109,$I109-SUM($L109:AS109))) -> 0.9150531615
E110: 2012-03-31 | G110: £m 18/19 prices | I110: 38.00315465 | J110: > | AG110: =$I110/AF$83 -> 0.7917323886 | AH110: =IF($I110 >0, MIN(AG110,$I110-SUM($L110:AG110)), MAX(AG110,$I110-SUM($L110:AG110))) -> 0.7917323886 | AI110: =IF($I110 >0, MIN(AH110,$I110-SUM($L110:AH110)), MAX(AH110,$I110-SUM($L110:AH110))) -> 0.7917323886 | AJ110: =IF($I110 >0, MIN(AI110,$I110-SUM($L110:AI110)), MAX(AI110,$I110-SUM($L110:AI110))) -> 0.7917323886 | AK110: =IF($I110 >0, MIN(AJ110,$I110-SUM($L110:AJ110)), MAX(AJ110,$I110-SUM($L110:AJ110))) -> 0.7917323886 | AL110: =IF($I110 >0, MIN(AK110,$I110-SUM($L110:AK110)), MAX(AK110,$I110-SUM($L110:AK110))) -> 0.7917323886 | AM110: =IF($I110 >0, MIN(AL110,$I110-SUM($L110:AL110)), MAX(AL110,$I110-SUM($L110:AL110))) -> 0.7917323886 | AN110: =IF($I110 >0, MIN(AM110,$I110-SUM($L110:AM110)), MAX(AM110,$I110-SUM($L110:AM110))) -> 0.7917323886 | AO110: =IF($I110 >0, MIN(AN110,$I110-SUM($L110:AN110)), MAX(AN110,$I110-SUM($L110:AN110))) -> 0.7917323886 | AP110: =IF($I110 >0, MIN(AO110,$I110-SUM($L110:AO110)), MAX(AO110,$I110-SUM($L110:AO110))) -> 0.7917323886 | AQ110: =IF($I110 >0, MIN(AP110,$I110-SUM($L110:AP110)), MAX(AP110,$I110-SUM($L110:AP110))) -> 0.7917323886 | AR110: =IF($I110 >0, MIN(AQ110,$I110-SUM($L110:AQ110)), MAX(AQ110,$I110-SUM($L110:AQ110))) -> 0.7917323886 | AS110: =IF($I110 >0, MIN(AR110,$I110-SUM($L110:AR110)), MAX(AR110,$I110-SUM($L110:AR110))) -> 0.7917323886 | AT110: =IF($I110 >0, MIN(AS110,$I110-SUM($L110:AS110)), MAX(AS110,$I110-SUM($L110:AS110))) -> 0.7917323886
E111: 2013-03-31 | G111: £m 18/19 prices | I111: 100.3154389 | AH111: =$I111/AG$83 -> 2.089904976 | AI111: =IF($I111 >0, MIN(AH111,$I111-SUM($L111:AH111)), MAX(AH111,$I111-SUM($L111:AH111))) -> 2.089904976 | AJ111: =IF($I111 >0, MIN(AI111,$I111-SUM($L111:AI111)), MAX(AI111,$I111-SUM($L111:AI111))) -> 2.089904976 | AK111: =IF($I111 >0, MIN(AJ111,$I111-SUM($L111:AJ111)), MAX(AJ111,$I111-SUM($L111:AJ111))) -> 2.089904976 | AL111: =IF($I111 >0, MIN(AK111,$I111-SUM($L111:AK111)), MAX(AK111,$I111-SUM($L111:AK111))) -> 2.089904976 | AM111: =IF($I111 >0, MIN(AL111,$I111-SUM($L111:AL111)), MAX(AL111,$I111-SUM($L111:AL111))) -> 2.089904976 | AN111: =IF($I111 >0, MIN(AM111,$I111-SUM($L111:AM111)), MAX(AM111,$I111-SUM($L111:AM111))) -> 2.089904976 | AO111: =IF($I111 >0, MIN(AN111,$I111-SUM($L111:AN111)), MAX(AN111,$I111-SUM($L111:AN111))) -> 2.089904976 | AP111: =IF($I111 >0, MIN(AO111,$I111-SUM($L111:AO111)), MAX(AO111,$I111-SUM($L111:AO111))) -> 2.089904976 | AQ111: =IF($I111 >0, MIN(AP111,$I111-SUM($L111:AP111)), MAX(AP111,$I111-SUM($L111:AP111))) -> 2.089904976 | AR111: =IF($I111 >0, MIN(AQ111,$I111-SUM($L111:AQ111)), MAX(AQ111,$I111-SUM($L111:AQ111))) -> 2.089904976 | AS111: =IF($I111 >0, MIN(AR111,$I111-SUM($L111:AR111)), MAX(AR111,$I111-SUM($L111:AR111))) -> 2.089904976 | AT111: =IF($I111 >0, MIN(AS111,$I111-SUM($L111:AS111)), MAX(AS111,$I111-SUM($L111:AS111))) -> 2.089904976
E112: 2014-03-31 | G112: £m 18/19 prices | I112: 110.0837117 | AI112: =$I112/AH$83 -> 5.105331556 | AJ112: =IF($I112 >0, MIN(AI112,$I112-SUM($L112:AI112)), MAX(AI112,$I112-SUM($L112:AI112))) -> 5.105331556 | AK112: =IF($I112 >0, MIN(AJ112,$I112-SUM($L112:AJ112)), MAX(AJ112,$I112-SUM($L112:AJ112))) -> 5.105331556 | AL112: =IF($I112 >0, MIN(AK112,$I112-SUM($L112:AK112)), MAX(AK112,$I112-SUM($L112:AK112))) -> 5.105331556 | AM112: =IF($I112 >0, MIN(AL112,$I112-SUM($L112:AL112)), MAX(AL112,$I112-SUM($L112:AL112))) -> 5.105331556 | AN112: =IF($I112 >0, MIN(AM112,$I112-SUM($L112:AM112)), MAX(AM112,$I112-SUM($L112:AM112))) -> 5.105331556 | AO112: =IF($I112 >0, MIN(AN112,$I112-SUM($L112:AN112)), MAX(AN112,$I112-SUM($L112:AN112))) -> 5.105331556 | AP112: =IF($I112 >0, MIN(AO112,$I112-SUM($L112:AO112)), MAX(AO112,$I112-SUM($L112:AO112))) -> 5.105331556 | AQ112: =IF($I112 >0, MIN(AP112,$I112-SUM($L112:AP112)), MAX(AP112,$I112-SUM($L112:AP112))) -> 5.105331556 | AR112: =IF($I112 >0, MIN(AQ112,$I112-SUM($L112:AQ112)), MAX(AQ112,$I112-SUM($L112:AQ112))) -> 5.105331556 | AS112: =IF($I112 >0, MIN(AR112,$I112-SUM($L112:AR112)), MAX(AR112,$I112-SUM($L112:AR112))) -> 5.105331556 | AT112: =IF($I112 >0, MIN(AS112,$I112-SUM($L112:AS112)), MAX(AS112,$I112-SUM($L112:AS112))) -> 5.105331556
E113: 2015-03-31 | G113: £m 18/19 prices | I113: 367.1064993 | AJ113: =$I113/AI$83 -> 15.87487564 | AK113: =IF($I113 >0, MIN(AJ113,$I113-SUM($L113:AJ113)), MAX(AJ113,$I113-SUM($L113:AJ113))) -> 15.87487564 | AL113: =IF($I113 >0, MIN(AK113,$I113-SUM($L113:AK113)), MAX(AK113,$I113-SUM($L113:AK113))) -> 15.87487564 | AM113: =IF($I113 >0, MIN(AL113,$I113-SUM($L113:AL113)), MAX(AL113,$I113-SUM($L113:AL113))) -> 15.87487564 | AN113: =IF($I113 >0, MIN(AM113,$I113-SUM($L113:AM113)), MAX(AM113,$I113-SUM($L113:AM113))) -> 15.87487564 | AO113: =IF($I113 >0, MIN(AN113,$I113-SUM($L113:AN113)), MAX(AN113,$I113-SUM($L113:AN113))) -> 15.87487564 | AP113: =IF($I113 >0, MIN(AO113,$I113-SUM($L113:AO113)), MAX(AO113,$I113-SUM($L113:AO113))) -> 15.87487564 | AQ113: =IF($I113 >0, MIN(AP113,$I113-SUM($L113:AP113)), MAX(AP113,$I113-SUM($L113:AP113))) -> 15.87487564 | AR113: =IF($I113 >0, MIN(AQ113,$I113-SUM($L113:AQ113)), MAX(AQ113,$I113-SUM($L113:AQ113))) -> 15.87487564 | AS113: =IF($I113 >0, MIN(AR113,$I113-SUM($L113:AR113)), MAX(AR113,$I113-SUM($L113:AR113))) -> 15.87487564 | AT113: =IF($I113 >0, MIN(AS113,$I113-SUM($L113:AS113)), MAX(AS113,$I113-SUM($L113:AS113))) -> 15.87487564
E114: 2016-03-31 | G114: £m 18/19 prices | I114: 639.14795 | AK114: =$I114/AJ$83 -> 25.88953721 | AL114: =IF($I114 >0, MIN(AK114,$I114-SUM($L114:AK114)), MAX(AK114,$I114-SUM($L114:AK114))) -> 25.88953721 | AM114: =IF($I114 >0, MIN(AL114,$I114-SUM($L114:AL114)), MAX(AL114,$I114-SUM($L114:AL114))) -> 25.88953721 | AN114: =IF($I114 >0, MIN(AM114,$I114-SUM($L114:AM114)), MAX(AM114,$I114-SUM($L114:AM114))) -> 25.88953721 | AO114: =IF($I114 >0, MIN(AN114,$I114-SUM($L114:AN114)), MAX(AN114,$I114-SUM($L114:AN114))) -> 25.88953721 | AP114: =IF($I114 >0, MIN(AO114,$I114-SUM($L114:AO114)), MAX(AO114,$I114-SUM($L114:AO114))) -> 25.88953721 | AQ114: =IF($I114 >0, MIN(AP114,$I114-SUM($L114:AP114)), MAX(AP114,$I114-SUM($L114:AP114))) -> 25.88953721 | AR114: =IF($I114 >0, MIN(AQ114,$I114-SUM($L114:AQ114)), MAX(AQ114,$I114-SUM($L114:AQ114))) -> 25.88953721 | AS114: =IF($I114 >0, MIN(AR114,$I114-SUM($L114:AR114)), MAX(AR114,$I114-SUM($L114:AR114))) -> 25.88953721 | AT114: =IF($I114 >0, MIN(AS114,$I114-SUM($L114:AS114)), MAX(AS114,$I114-SUM($L114:AS114))) -> 25.88953721
E115: 2017-03-31 | G115: £m 18/19 prices | I115: 537.8024541 | AL115: =$I115/AK$83 -> 20.48771254 | AM115: =IF($I115 >0, MIN(AL115,$I115-SUM($L115:AL115)), MAX(AL115,$I115-SUM($L115:AL115))) -> 20.48771254 | AN115: =IF($I115 >0, MIN(AM115,$I115-SUM($L115:AM115)), MAX(AM115,$I115-SUM($L115:AM115))) -> 20.48771254 | AO115: =IF($I115 >0, MIN(AN115,$I115-SUM($L115:AN115)), MAX(AN115,$I115-SUM($L115:AN115))) -> 20.48771254 | AP115: =IF($I115 >0, MIN(AO115,$I115-SUM($L115:AO115)), MAX(AO115,$I115-SUM($L115:AO115))) -> 20.48771254 | AQ115: =IF($I115 >0, MIN(AP115,$I115-SUM($L115:AP115)), MAX(AP115,$I115-SUM($L115:AP115))) -> 20.48771254 | AR115: =IF($I115 >0, MIN(AQ115,$I115-SUM($L115:AQ115)), MAX(AQ115,$I115-SUM($L115:AQ115))) -> 20.48771254 | AS115: =IF($I115 >0, MIN(AR115,$I115-SUM($L115:AR115)), MAX(AR115,$I115-SUM($L115:AR115))) -> 20.48771254 | AT115: =IF($I115 >0, MIN(AS115,$I115-SUM($L115:AS115)), MAX(AS115,$I115-SUM($L115:AS115))) -> 20.48771254
E116: 2018-03-31 | G116: £m 18/19 prices | I116: 389.5344038 | AM116: =$I116/AL$83 -> 14.00573137 | AN116: =IF($I116 >0, MIN(AM116,$I116-SUM($L116:AM116)), MAX(AM116,$I116-SUM($L116:AM116))) -> 14.00573137 | AO116: =IF($I116 >0, MIN(AN116,$I116-SUM($L116:AN116)), MAX(AN116,$I116-SUM($L116:AN116))) -> 14.00573137 | AP116: =IF($I116 >0, MIN(AO116,$I116-SUM($L116:AO116)), MAX(AO116,$I116-SUM($L116:AO116))) -> 14.00573137 | AQ116: =IF($I116 >0, MIN(AP116,$I116-SUM($L116:AP116)), MAX(AP116,$I116-SUM($L116:AP116))) -> 14.00573137 | AR116: =IF($I116 >0, MIN(AQ116,$I116-SUM($L116:AQ116)), MAX(AQ116,$I116-SUM($L116:AQ116))) -> 14.00573137 | AS116: =IF($I116 >0, MIN(AR116,$I116-SUM($L116:AR116)), MAX(AR116,$I116-SUM($L116:AR116))) -> 14.00573137 | AT116: =IF($I116 >0, MIN(AS116,$I116-SUM($L116:AS116)), MAX(AS116,$I116-SUM($L116:AS116))) -> 14.00573137
E117: 2019-03-31 | G117: £m 18/19 prices | I117: 254.1738332 | AN117: =$I117/AM$83 -> 8.652726237 | AO117: =IF($I117 >0, MIN(AN117,$I117-SUM($L117:AN117)), MAX(AN117,$I117-SUM($L117:AN117))) -> 8.652726237 | AP117: =IF($I117 >0, MIN(AO117,$I117-SUM($L117:AO117)), MAX(AO117,$I117-SUM($L117:AO117))) -> 8.652726237 | AQ117: =IF($I117 >0, MIN(AP117,$I117-SUM($L117:AP117)), MAX(AP117,$I117-SUM($L117:AP117))) -> 8.652726237 | AR117: =IF($I117 >0, MIN(AQ117,$I117-SUM($L117:AQ117)), MAX(AQ117,$I117-SUM($L117:AQ117))) -> 8.652726237 | AS117: =IF($I117 >0, MIN(AR117,$I117-SUM($L117:AR117)), MAX(AR117,$I117-SUM($L117:AR117))) -> 8.652726237 | AT117: =IF($I117 >0, MIN(AS117,$I117-SUM($L117:AS117)), MAX(AS117,$I117-SUM($L117:AS117))) -> 8.652726237
E118: 2020-03-31 | G118: £m 18/19 prices | I118: 278.8404426 | AO118: =$I118/AN$83 -> 9.013024406 | AP118: =IF($I118 >0, MIN(AO118,$I118-SUM($L118:AO118)), MAX(AO118,$I118-SUM($L118:AO118))) -> 9.013024406 | AQ118: =IF($I118 >0, MIN(AP118,$I118-SUM($L118:AP118)), MAX(AP118,$I118-SUM($L118:AP118))) -> 9.013024406 | AR118: =IF($I118 >0, MIN(AQ118,$I118-SUM($L118:AQ118)), MAX(AQ118,$I118-SUM($L118:AQ118))) -> 9.013024406 | AS118: =IF($I118 >0, MIN(AR118,$I118-SUM($L118:AR118)), MAX(AR118,$I118-SUM($L118:AR118))) -> 9.013024406 | AT118: =IF($I118 >0, MIN(AS118,$I118-SUM($L118:AS118)), MAX(AS118,$I118-SUM($L118:AS118))) -> 9.013024406
E119: 2021-03-31 | G119: £m 18/19 prices | I119: 381.8566 | AP119: =$I119/AO$83 -> 11.74943384 | AQ119: =IF($I119 >0, MIN(AP119,$I119-SUM($L119:AP119)), MAX(AP119,$I119-SUM($L119:AP119))) -> 11.74943384 | AR119: =IF($I119 >0, MIN(AQ119,$I119-SUM($L119:AQ119)), MAX(AQ119,$I119-SUM($L119:AQ119))) -> 11.74943384 | AS119: =IF($I119 >0, MIN(AR119,$I119-SUM($L119:AR119)), MAX(AR119,$I119-SUM($L119:AR119))) -> 11.74943384 | AT119: =IF($I119 >0, MIN(AS119,$I119-SUM($L119:AS119)), MAX(AS119,$I119-SUM($L119:AS119))) -> 11.74943384
E120: 2022-03-31 | G120: £m 18/19 prices | I120: 578.2589419 | AQ120: =$I120/AP$83 -> 16.52168405 | AR120: =IF($I120 >0, MIN(AQ120,$I120-SUM($L120:AQ120)), MAX(AQ120,$I120-SUM($L120:AQ120))) -> 16.52168405 | AS120: =IF($I120 >0, MIN(AR120,$I120-SUM($L120:AR120)), MAX(AR120,$I120-SUM($L120:AR120))) -> 16.52168405 | AT120: =IF($I120 >0, MIN(AS120,$I120-SUM($L120:AS120)), MAX(AS120,$I120-SUM($L120:AS120))) -> 16.52168405
E121: 2023-03-31 | G121: £m 18/19 prices | I121: 613.7993664 | AR121: =$I121/AQ$83 -> 16.3679831 | AS121: =IF($I121 >0, MIN(AR121,$I121-SUM($L121:AR121)), MAX(AR121,$I121-SUM($L121:AR121))) -> 16.3679831 | AT121: =IF($I121 >0, MIN(AS121,$I121-SUM($L121:AS121)), MAX(AS121,$I121-SUM($L121:AS121))) -> 16.3679831
E122: 2024-03-31 | G122: £m 18/19 prices | I122: 817.1214231 | AS122: =$I122/AR$83 -> 20.42803558 | AT122: =IF($I122 >0, MIN(AS122,$I122-SUM($L122:AS122)), MAX(AS122,$I122-SUM($L122:AS122))) -> 20.42803558
E123: 2025-03-31 | G123: £m 18/19 prices | I123: 922.2238762 | AT123: =$I123/AS$83 -> 21.69938532
E124: 2026-03-31 | G124: £m 18/19 prices | I124: 629.6222478
C126: Accelerated RAV differential post-vesting depreciation
C127: Note: The RAV differential accumulated from the accelerated and non-accelerated schedules above is released once pre-vesting assets are fully depreciated over an input smoothing profile.
D129: Depreciation parameters
E131: RAV differential is accruing differences | G131: flag | J131: > | L131: =IF(L84, 1, 0) -> 1 | M131: =IF(M84, 1, 0) -> 1 | N131: 1 | O131: 1 | P131: 1 | Q131: 1 | R131: 1 | S131: 1 | T131: 1 | U131: 1 | V131: 1 | W131: 1 | X131: 1 | Y131: 1 | Z131: 1 | AA131: 1 | AB131: 1 | AC131: 1 | AD131: 1 | AE131: 1 | AF131: 1 | AG131: 0 | AH131: 0 | AI131: 0 | AJ131: 0 | AK131: 0 | AL131: 0 | AM131: 0 | AN131: 0 | AO131: 0 | AP131: 0 | AQ131: 0 | AR131: 0 | AS131: 0 | AT131: 0
E132: Smoothing period | G132: years | I132: =Input!I703 -> 30
E133: Smoothing profile for recovery of RAV differential | G133: % | L133: =IF($I132 = 0, 0, IF(AND(YEAR(L$4) >= YEAR($I$26) + $I$27, YEAR(L$4) < YEAR($I$26) + $I$27 + $I132), 1, 0) / $I132) -> 0 | M133: 0 | N133: 0 | O133: 0 | P133: 0 | Q133: 0 | R133: 0 | S133: 0 | T133: 0 | U133: 0 | V133: 0 | W133: 0 | X133: 0 | Y133: 0 | Z133: 0 | AA133: 0 | AB133: 0 | AC133: 0 | AD133: 0 | AE133: 0 | AF133: 0 | AG133: 0.03333333333 | AH133: 0.03333333333 | AI133: 0.03333333333 | AJ133: 0.03333333333 | AK133: 0.03333333333 | AL133: 0.03333333333 | AM133: 0.03333333333 | AN133: 0.03333333333 | AO133: 0.03333333333 | AP133: 0.03333333333 | AQ133: 0.03333333333 | AR133: 0.03333333333 | AS133: 0.03333333333 | AT133: 0.03333333333
D135: Pre-RIIO transfer to depreciation
E137: Year ending | K137: =K4 -> 1991-03-31 | L137: 1992-03-31 | M137: 1993-03-31 | N137: 1994-03-31 | O137: 1995-03-31 | P137: 1996-03-31 | Q137: 1997-03-31 | R137: 1998-03-31 | S137: 1999-03-31 | T137: 2000-03-31 | U137: 2001-03-31 | V137: 2002-03-31 | W137: 2003-03-31 | X137: 2004-03-31 | Y137: 2005-03-31 | Z137: 2006-03-31 | AA137: 2007-03-31 | AB137: 2008-03-31 | AC137: 2009-03-31 | AD137: 2010-03-31 | AE137: 2011-03-31 | AF137: 2012-03-31 | AG137: 2013-03-31 | AH137: 2014-03-31 | AI137: 2015-03-31 | AJ137: 2016-03-31 | AK137: 2017-03-31 | AL137: 2018-03-31 | AM137: 2019-03-31 | AN137: 2020-03-31 | AO137: 2021-03-31 | AP137: 2022-03-31 | AQ137: 2023-03-31 | AR137: 2024-03-31 | AS137: 2025-03-31 | AT137: 2026-03-31
E138: Pre-RIIO transfers to depreciation | K138: =K131 * K21 -> 0 | L138: 0 | M138: 0 | N138: 0 | O138: 0 | P138: 0 | Q138: 0 | R138: 0 | S138: 0 | T138: 0 | U138: 0 | V138: 0 | W138: 0 | X138: 0 | Y138: 0 | Z138: 0 | AA138: 0 | AB138: 0 | AC138: 0 | AD138: 0 | AE138: 0 | AF138: 0 | AG138: 0 | AH138: 0 | AI138: 0 | AJ138: 0 | AK138: 0 | AL138: 0 | AM138: 0 | AN138: 0 | AO138: 0 | AP138: =AP131 * AP21 -> 0 | AQ138: =AQ131 * AQ21 -> 0 | AR138: =AR131 * AR21 -> 0 | AS138: =AS131 * AS21 -> 0 | AT138: =AT131 * AT21 -> 0
D140: Depreciation schedule
E142: RAV differential depreciation of additions from year ending | I142: RAV differential
E143: 1991-03-31 | G143: £m 18/19 prices | I143: =SUMPRODUCT(L41:AT41, L$131:AT$131) - SUMPRODUCT(L89:AT89, L$131:AT$131) + HLOOKUP(E143, $K$137:$AT$138,2, FALSE) -> 19.46035328 | J143: > | L143: =$I143 * L$133 -> 0 | M143: =$I143 * M$133 -> 0 | N143: 0 | O143: 0 | P143: 0 | Q143: 0 | R143: 0 | S143: 0 | T143: 0 | U143: 0 | V143: 0 | W143: 0 | X143: 0 | Y143: 0 | Z143: 0 | AA143: 0 | AB143: 0 | AC143: 0 | AD143: 0 | AE143: 0 | AF143: 0 | AG143: 0.6486784428 | AH143: =$I143 * AH$133 -> 0.6486784428 | AI143: =$I143 * AI$133 -> 0.6486784428 | AJ143: 0.6486784428 | AK143: 0.6486784428 | AL143: 0.6486784428 | AM143: 0.6486784428 | AN143: 0.6486784428 | AO143: 0.6486784428 | AP143: 0.6486784428 | AQ143: =$I143 * AQ$133 -> 0.6486784428 | AR143: 0.6486784428 | AS143: 0.6486784428 | AT143: 0.6486784428
E144: 1992-03-31 | G144: £m 18/19 prices | I144: =SUMPRODUCT(L42:AT42, L$131:AT$131) - SUMPRODUCT(L90:AT90, L$131:AT$131) + HLOOKUP(E144, $K$137:$AT$138,2, FALSE) -> 18.19468171 | J144: > | M144: =$I144 * M$133 -> 0 | N144: 0 | O144: 0 | P144: 0 | Q144: 0 | R144: 0 | S144: 0 | T144: 0 | U144: 0 | V144: 0 | W144: 0 | X144: 0 | Y144: 0 | Z144: 0 | AA144: 0 | AB144: 0 | AC144: 0 | AD144: 0 | AE144: 0 | AF144: 0 | AG144: 0.6064893904 | AH144: 0.6064893904 | AI144: 0.6064893904 | AJ144: 0.6064893904 | AK144: 0.6064893904 | AL144: 0.6064893904 | AM144: 0.6064893904 | AN144: 0.6064893904 | AO144: 0.6064893904 | AP144: 0.6064893904 | AQ144: 0.6064893904 | AR144: 0.6064893904 | AS144: 0.6064893904 | AT144: 0.6064893904
E145: 1993-03-31 | G145: £m 18/19 prices | I145: 1.693810226 | J145: > | N145: =$I145 * N$133 -> 0 | O145: 0 | P145: 0 | Q145: 0 | R145: 0 | S145: 0 | T145: 0 | U145: 0 | V145: 0 | W145: 0 | X145: 0 | Y145: 0 | Z145: 0 | AA145: 0 | AB145: 0 | AC145: 0 | AD145: 0 | AE145: 0 | AF145: 0 | AG145: 0.05646034087 | AH145: 0.05646034087 | AI145: 0.05646034087 | AJ145: 0.05646034087 | AK145: 0.05646034087 | AL145: 0.05646034087 | AM145: 0.05646034087 | AN145: 0.05646034087 | AO145: 0.05646034087 | AP145: 0.05646034087 | AQ145: 0.05646034087 | AR145: 0.05646034087 | AS145: 0.05646034087 | AT145: 0.05646034087
E146: 1994-03-31 | G146: £m 18/19 prices | I146: 18.20686837 | J146: > | O146: =$I146 * O$133 -> 0 | P146: 0 | Q146: 0 | R146: 0 | S146: 0 | T146: 0 | U146: 0 | V146: 0 | W146: 0 | X146: 0 | Y146: 0 | Z146: 0 | AA146: 0 | AB146: 0 | AC146: 0 | AD146: 0 | AE146: 0 | AF146: 0 | AG146: 0.6068956124 | AH146: 0.6068956124 | AI146: 0.6068956124 | AJ146: 0.6068956124 | AK146: 0.6068956124 | AL146: 0.6068956124 | AM146: 0.6068956124 | AN146: 0.6068956124 | AO146: 0.6068956124 | AP146: 0.6068956124 | AQ146: 0.6068956124 | AR146: 0.6068956124 | AS146: 0.6068956124 | AT146: 0.6068956124
E147: 1995-03-31 | G147: £m 18/19 prices | I147: 7.205852267 | J147: > | P147: =$I147 * P$133 -> 0 | Q147: 0 | R147: 0 | S147: 0 | T147: 0 | U147: 0 | V147: 0 | W147: 0 | X147: 0 | Y147: 0 | Z147: 0 | AA147: 0 | AB147: 0 | AC147: 0 | AD147: 0 | AE147: 0 | AF147: 0 | AG147: 0.2401950756 | AH147: 0.2401950756 | AI147: 0.2401950756 | AJ147: 0.2401950756 | AK147: 0.2401950756 | AL147: 0.2401950756 | AM147: 0.2401950756 | AN147: 0.2401950756 | AO147: 0.2401950756 | AP147: 0.2401950756 | AQ147: 0.2401950756 | AR147: 0.2401950756 | AS147: 0.2401950756 | AT147: 0.2401950756
E148: 1996-03-31 | G148: £m 18/19 prices | I148: 6.94346717 | J148: > | Q148: =$I148 * Q$133 -> 0 | R148: 0 | S148: 0 | T148: 0 | U148: 0 | V148: 0 | W148: 0 | X148: 0 | Y148: 0 | Z148: 0 | AA148: 0 | AB148: 0 | AC148: 0 | AD148: 0 | AE148: 0 | AF148: 0 | AG148: 0.2314489057 | AH148: 0.2314489057 | AI148: 0.2314489057 | AJ148: 0.2314489057 | AK148: 0.2314489057 | AL148: 0.2314489057 | AM148: 0.2314489057 | AN148: 0.2314489057 | AO148: 0.2314489057 | AP148: 0.2314489057 | AQ148: 0.2314489057 | AR148: 0.2314489057 | AS148: 0.2314489057 | AT148: 0.2314489057
E149: 1997-03-31 | G149: £m 18/19 prices | I149: 7.783595785 | J149: > | R149: =$I149 * R$133 -> 0 | S149: 0 | T149: 0 | U149: 0 | V149: 0 | W149: 0 | X149: 0 | Y149: 0 | Z149: 0 | AA149: 0 | AB149: 0 | AC149: 0 | AD149: 0 | AE149: 0 | AF149: 0 | AG149: 0.2594531928 | AH149: 0.2594531928 | AI149: 0.2594531928 | AJ149: 0.2594531928 | AK149: 0.2594531928 | AL149: 0.2594531928 | AM149: 0.2594531928 | AN149: 0.2594531928 | AO149: 0.2594531928 | AP149: 0.2594531928 | AQ149: 0.2594531928 | AR149: 0.2594531928 | AS149: 0.2594531928 | AT149: 0.2594531928
E150: 1998-03-31 | G150: £m 18/19 prices | I150: 8.685776519 | J150: > | S150: =$I150 * S$133 -> 0 | T150: 0 | U150: 0 | V150: 0 | W150: 0 | X150: 0 | Y150: 0 | Z150: 0 | AA150: 0 | AB150: 0 | AC150: 0 | AD150: 0 | AE150: 0 | AF150: 0 | AG150: 0.289525884 | AH150: 0.289525884 | AI150: 0.289525884 | AJ150: 0.289525884 | AK150: 0.289525884 | AL150: 0.289525884 | AM150: 0.289525884 | AN150: 0.289525884 | AO150: 0.289525884 | AP150: 0.289525884 | AQ150: 0.289525884 | AR150: 0.289525884 | AS150: 0.289525884 | AT150: 0.289525884
E151: 1999-03-31 | G151: £m 18/19 prices | I151: 5.94815547 | J151: > | T151: =$I151 * T$133 -> 0 | U151: 0 | V151: 0 | W151: 0 | X151: 0 | Y151: 0 | Z151: 0 | AA151: 0 | AB151: 0 | AC151: 0 | AD151: 0 | AE151: 0 | AF151: 0 | AG151: 0.198271849 | AH151: 0.198271849 | AI151: 0.198271849 | AJ151: 0.198271849 | AK151: 0.198271849 | AL151: 0.198271849 | AM151: 0.198271849 | AN151: 0.198271849 | AO151: 0.198271849 | AP151: 0.198271849 | AQ151: 0.198271849 | AR151: 0.198271849 | AS151: 0.198271849 | AT151: 0.198271849
E152: 2000-03-31 | G152: £m 18/19 prices | I152: 10.01413155 | J152: > | U152: =$I152 * U$133 -> 0 | V152: 0 | W152: 0 | X152: 0 | Y152: 0 | Z152: 0 | AA152: 0 | AB152: 0 | AC152: 0 | AD152: 0 | AE152: 0 | AF152: 0 | AG152: 0.3338043849 | AH152: 0.3338043849 | AI152: 0.3338043849 | AJ152: 0.3338043849 | AK152: 0.3338043849 | AL152: 0.3338043849 | AM152: 0.3338043849 | AN152: 0.3338043849 | AO152: 0.3338043849 | AP152: 0.3338043849 | AQ152: 0.3338043849 | AR152: 0.3338043849 | AS152: 0.3338043849 | AT152: 0.3338043849
E153: 2001-03-31 | G153: £m 18/19 prices | I153: 4.774818734 | J153: > | V153: =$I153 * V$133 -> 0 | W153: 0 | X153: 0 | Y153: 0 | Z153: 0 | AA153: 0 | AB153: 0 | AC153: 0 | AD153: 0 | AE153: 0 | AF153: 0 | AG153: =$I153 * AG$133 -> 0.1591606245 | AH153: 0.1591606245 | AI153: 0.1591606245 | AJ153: 0.1591606245 | AK153: 0.1591606245 | AL153: 0.1591606245 | AM153: 0.1591606245 | AN153: 0.1591606245 | AO153: 0.1591606245 | AP153: 0.1591606245 | AQ153: 0.1591606245 | AR153: 0.1591606245 | AS153: 0.1591606245 | AT153: 0.1591606245
E154: 2002-03-31 | G154: £m 18/19 prices | I154: 3.16954326 | J154: > | W154: =$I154 * W$133 -> 0 | X154: =$I154 * X$133 -> 0 | Y154: 0 | Z154: 0 | AA154: 0 | AB154: 0 | AC154: 0 | AD154: 0 | AE154: 0 | AF154: 0 | AG154: 0.105651442 | AH154: 0.105651442 | AI154: 0.105651442 | AJ154: 0.105651442 | AK154: 0.105651442 | AL154: 0.105651442 | AM154: 0.105651442 | AN154: 0.105651442 | AO154: 0.105651442 | AP154: 0.105651442 | AQ154: 0.105651442 | AR154: 0.105651442 | AS154: 0.105651442 | AT154: 0.105651442
E155: 2003-03-31 | G155: £m 18/19 prices | I155: 3.280860603 | J155: > | X155: =$I155 * X$133 -> 0 | Y155: 0 | Z155: 0 | AA155: 0 | AB155: 0 | AC155: 0 | AD155: 0 | AE155: 0 | AF155: 0 | AG155: 0.1093620201 | AH155: 0.1093620201 | AI155: 0.1093620201 | AJ155: 0.1093620201 | AK155: 0.1093620201 | AL155: 0.1093620201 | AM155: 0.1093620201 | AN155: 0.1093620201 | AO155: 0.1093620201 | AP155: 0.1093620201 | AQ155: 0.1093620201 | AR155: 0.1093620201 | AS155: 0.1093620201 | AT155: 0.1093620201
E156: 2004-03-31 | G156: £m 18/19 prices | I156: 3.130371046 | J156: > | Y156: =$I156 * Y$133 -> 0 | Z156: 0 | AA156: 0 | AB156: 0 | AC156: 0 | AD156: 0 | AE156: 0 | AF156: 0 | AG156: 0.1043457015 | AH156: 0.1043457015 | AI156: 0.1043457015 | AJ156: 0.1043457015 | AK156: 0.1043457015 | AL156: 0.1043457015 | AM156: 0.1043457015 | AN156: 0.1043457015 | AO156: 0.1043457015 | AP156: 0.1043457015 | AQ156: 0.1043457015 | AR156: 0.1043457015 | AS156: 0.1043457015 | AT156: 0.1043457015
E157: 2005-03-31 | G157: £m 18/19 prices | I157: 12.99294449 | J157: > | Z157: =$I157 * Z$133 -> 0 | AA157: 0 | AB157: 0 | AC157: 0 | AD157: 0 | AE157: 0 | AF157: 0 | AG157: 0.4330981496 | AH157: 0.4330981496 | AI157: 0.4330981496 | AJ157: 0.4330981496 | AK157: 0.4330981496 | AL157: 0.4330981496 | AM157: 0.4330981496 | AN157: 0.4330981496 | AO157: 0.4330981496 | AP157: 0.4330981496 | AQ157: 0.4330981496 | AR157: 0.4330981496 | AS157: 0.4330981496 | AT157: 0.4330981496
E158: 2006-03-31 | G158: £m 18/19 prices | I158: 5.10685169 | J158: > | AA158: =$I158 * AA$133 -> 0 | AB158: 0 | AC158: 0 | AD158: 0 | AE158: 0 | AF158: 0 | AG158: 0.1702283897 | AH158: 0.1702283897 | AI158: 0.1702283897 | AJ158: 0.1702283897 | AK158: 0.1702283897 | AL158: 0.1702283897 | AM158: 0.1702283897 | AN158: 0.1702283897 | AO158: 0.1702283897 | AP158: 0.1702283897 | AQ158: 0.1702283897 | AR158: 0.1702283897 | AS158: 0.1702283897 | AT158: 0.1702283897
E159: 2007-03-31 | G159: £m 18/19 prices | I159: 5.089271855 | J159: > | AB159: =$I159 * AB$133 -> 0 | AC159: 0 | AD159: 0 | AE159: 0 | AF159: 0 | AG159: 0.1696423952 | AH159: 0.1696423952 | AI159: 0.1696423952 | AJ159: 0.1696423952 | AK159: 0.1696423952 | AL159: 0.1696423952 | AM159: 0.1696423952 | AN159: 0.1696423952 | AO159: 0.1696423952 | AP159: 0.1696423952 | AQ159: 0.1696423952 | AR159: 0.1696423952 | AS159: 0.1696423952 | AT159: 0.1696423952
E160: 2008-03-31 | G160: £m 18/19 prices | I160: 7.132476465 | J160: > | AC160: =$I160 * AC$133 -> 0 | AD160: 0 | AE160: 0 | AF160: 0 | AG160: 0.2377492155 | AH160: 0.2377492155 | AI160: 0.2377492155 | AJ160: 0.2377492155 | AK160: 0.2377492155 | AL160: 0.2377492155 | AM160: 0.2377492155 | AN160: 0.2377492155 | AO160: 0.2377492155 | AP160: 0.2377492155 | AQ160: 0.2377492155 | AR160: 0.2377492155 | AS160: 0.2377492155 | AT160: 0.2377492155
E161: 2009-03-31 | G161: £m 18/19 prices | I161: 6.232236429 | J161: > | AD161: =$I161 * AD$133 -> 0 | AE161: 0 | AF161: 0 | AG161: 0.2077412143 | AH161: 0.2077412143 | AI161: 0.2077412143 | AJ161: 0.2077412143 | AK161: 0.2077412143 | AL161: 0.2077412143 | AM161: 0.2077412143 | AN161: 0.2077412143 | AO161: 0.2077412143 | AP161: 0.2077412143 | AQ161: 0.2077412143 | AR161: 0.2077412143 | AS161: 0.2077412143 | AT161: 0.2077412143
E162: 2010-03-31 | G162: £m 18/19 prices | I162: 3.0214555 | J162: > | AE162: =$I162 * AE$133 -> 0 | AF162: 0 | AG162: 0.1007151833 | AH162: 0.1007151833 | AI162: 0.1007151833 | AJ162: 0.1007151833 | AK162: 0.1007151833 | AL162: 0.1007151833 | AM162: 0.1007151833 | AN162: 0.1007151833 | AO162: 0.1007151833 | AP162: 0.1007151833 | AQ162: 0.1007151833 | AR162: 0.1007151833 | AS162: 0.1007151833 | AT162: 0.1007151833
E163: 2011-03-31 | G163: £m 18/19 prices | I163: 1.281074426 | J163: > | AF163: =$I163 * AF$133 -> 0 | AG163: 0.04270248087 | AH163: 0.04270248087 | AI163: 0.04270248087 | AJ163: 0.04270248087 | AK163: 0.04270248087 | AL163: 0.04270248087 | AM163: 0.04270248087 | AN163: 0.04270248087 | AO163: 0.04270248087 | AP163: 0.04270248087 | AQ163: 0.04270248087 | AR163: 0.04270248087 | AS163: 0.04270248087 | AT163: 0.04270248087
E164: 2012-03-31 | G164: £m 18/19 prices | I164: 0 | J164: > | AG164: =$I164 * AG$133 -> 0 | AH164: 0 | AI164: 0 | AJ164: 0 | AK164: 0 | AL164: 0 | AM164: 0 | AN164: 0 | AO164: 0 | AP164: 0 | AQ164: 0 | AR164: 0 | AS164: 0 | AT164: 0
E165: 2013-03-31 | G165: £m 18/19 prices | I165: 0 | AH165: =$I165 * AH$133 -> 0 | AI165: 0 | AJ165: 0 | AK165: 0 | AL165: 0 | AM165: 0 | AN165: 0 | AO165: 0 | AP165: 0 | AQ165: 0 | AR165: 0 | AS165: 0 | AT165: 0
E166: 2014-03-31 | G166: £m 18/19 prices | I166: 0 | AI166: =$I166 * AI$133 -> 0 | AJ166: 0 | AK166: 0 | AL166: 0 | AM166: 0 | AN166: 0 | AO166: 0 | AP166: 0 | AQ166: 0 | AR166: 0 | AS166: 0 | AT166: 0
